{"text_format":"1","workbook":"xlsx","n_sheets":9,"sheets":["Instructions","Info","Entry-Prescription A","Entry-Without Prescription B","Summary A","Summary B","Report","Back End","Back End - Graphs"],"not_rendered":{"charts":4,"images":1,"macros":0,"external_links":0,"defined_names":5,"comments":1,"pivot_tables":0},"unopened":[],"bounds":{"document_bytes":16777216,"sheet_cells":100000,"rows_first":2000,"rows_last":500,"rows_between":2000,"halvings":0,"cell_chars":16384,"cell_head_chars":4096},"cells_cut":0,"cells_raw":0,"read":"whole","date_system":"1900"}

{"sheet":"Instructions","index":0,"n_rows":0,"n_cols":0,"rows_kept":0,"cut":false,"hidden":false,"merged":[[16,4,16,11],[34,4,34,11],[36,4,36,11],[38,4,38,11],[2,4,3,11],[4,4,4,11],[6,4,6,11],[10,5,10,11],[8,4,8,11],[12,5,12,12],[14,4,14,7],[14,8,14,12],[40,4,40,11],[18,4,18,11],[26,4,26,11],[28,4,28,11],[30,4,30,11],[32,4,32,11],[20,4,20,11],[22,4,22,11],[24,4,24,11]]}

{"sheet":"Info","index":1,"n_rows":0,"n_cols":0,"rows_kept":0,"cut":false,"hidden":false,"merged":[]}

{"sheet":"Entry-Prescription A","index":2,"n_rows":393,"n_cols":18,"rows_kept":393,"cut":false,"hidden":false,"merged":[[354,0,366,0],[354,1,366,1],[354,2,366,2],[354,3,366,3],[128,10,132,11],[380,0,392,0],[380,1,392,1],[380,2,392,2],[380,3,392,3],[377,4,379,5],[367,0,379,0],[367,1,379,1],[367,2,379,2],[367,3,379,3],[328,1,340,1],[328,2,340,2],[328,3,340,3],[276,0,288,0],[276,1,288,1],[276,2,288,2],[276,3,288,3],[341,0,353,0],[341,1,353,1],[341,2,353,2],[380,12,392,12],[380,13,392,13],[367,13,379,13],[390,4,392,5],[364,4,366,5],[354,12,366,12],[367,14,379,14],[367,15,379,15],[368,6,368,7],[369,6,379,7],[367,12,379,12],[380,14,392,14],[380,15,392,15],[381,6,381,7],[382,6,392,7],[375,10,379,11],[388,10,392,11],[354,14,366,14],[354,15,366,15],[355,6,355,7],[356,6,366,7],[354,13,366,13],[341,13,353,13],[341,14,353,14],[341,15,353,15],[336,10,340,11],[349,10,353,11],[362,10,366,11],[341,12,353,12],[351,4,353,5],[328,13,340,13],[328,14,340,14],[328,15,340,15],[329,6,329,7],[330,6,340,7],[328,12,340,12],[342,6,342,7],[343,6,353,7],[302,15,314,15],[303,6,303,7],[304,6,314,7],[315,14,327,14],[315,15,327,15],[316,6,316,7],[317,6,327,7],[315,0,327,0],[315,1,327,1],[341,3,353,3],[328,0,340,0],[315,2,327,2],[315,3,327,3],[315,12,327,12],[315,13,327,13],[289,13,301,13],[289,14,301,14],[289,0,301,0],[289,1,301,1],[289,2,301,2],[289,3,301,3],[302,0,314,0],[302,1,314,1],[302,2,314,2],[302,3,314,3],[302,12,314,12],[302,13,314,13],[302,14,314,14],[312,4,314,5],[325,4,327,5],[310,10,314,11],[323,10,327,11],[338,4,340,5],[289,15,301,15],[290,6,290,7],[291,6,301,7],[299,4,301,5],[286,4,288,5],[289,12,301,12],[276,12,288,12],[276,14,288,14],[276,15,288,15],[277,6,277,7],[278,6,288,7],[276,13,288,13],[284,10,288,11],[297,10,301,11],[258,10,262,11],[271,10,275,11],[260,4,262,5],[237,14,249,14],[237,15,249,15],[238,6,238,7],[239,6,249,7],[263,0,275,0],[263,1,275,1],[263,2,275,2],[263,3,275,3],[263,12,275,12],[250,0,262,0],[250,1,262,1],[250,2,262,2],[250,3,262,3],[250,12,262,12],[273,4,275,5],[232,10,236,11],[245,10,249,11],[263,13,275,13],[263,14,275,14],[263,15,275,15],[264,6,264,7],[265,6,275,7],[211,14,223,14],[211,0,223,0],[211,1,223,1],[211,2,223,2],[211,3,223,3],[247,4,249,5],[237,0,249,0],[237,1,249,1],[237,2,249,2],[237,3,249,3],[237,12,249,12],[237,13,249,13],[250,13,262,13],[250,14,262,14],[250,15,262,15],[251,6,251,7],[252,6,262,7],[198,0,210,0],[224,15,236,15],[225,6,225,7],[226,6,236,7],[211,15,223,15],[212,6,212,7],[213,6,223,7],[221,4,223,5],[208,4,210,5],[211,12,223,12],[219,10,223,11],[224,0,236,0],[224,1,236,1],[224,2,236,2],[224,3,236,3],[224,12,236,12],[224,13,236,13],[224,14,236,14],[198,13,210,13],[234,4,236,5],[211,13,223,13],[198,1,210,1],[198,2,210,2],[198,3,210,3],[198,12,210,12],[198,14,210,14],[198,15,210,15],[199,6,199,7],[200,6,210,7],[182,4,184,5],[185,13,197,13],[185,14,197,14],[185,15,197,15],[172,13,184,13],[172,14,184,14],[172,15,184,15],[206,10,210,11],[146,15,158,15],[147,6,147,7],[148,6,158,7],[159,14,171,14],[159,15,171,15],[160,6,160,7],[161,6,171,7],[185,0,197,0],[185,1,197,1],[185,2,197,2],[185,3,197,3],[185,12,197,12],[172,0,184,0],[172,1,184,1],[172,2,184,2],[172,3,184,3],[172,12,184,12],[186,6,186,7],[187,6,197,7],[195,4,197,5],[173,6,173,7],[174,6,184,7],[180,10,184,11],[193,10,197,11],[169,4,171,5],[146,0,158,0],[146,1,158,1],[146,2,158,2],[146,3,158,3],[146,12,158,12],[146,13,158,13],[146,14,158,14],[156,4,158,5],[159,0,171,0],[159,1,171,1],[159,2,171,2],[159,3,171,3],[159,12,171,12],[159,13,171,13],[154,10,158,11],[167,10,171,11],[0,0,0,1],[2,8,2,9],[2,10,2,11],[2,6,2,7],[30,6,30,7],[31,6,41,7],[17,6,17,7],[2,4,2,5],[16,1,28,1],[29,1,41,1],[4,6,4,7],[16,0,28,0],[1,4,1,11],[18,6,28,7],[26,4,28,5],[0,2,0,11],[24,10,28,11],[3,13,15,13],[3,12,15,12],[3,3,15,3],[3,2,15,2],[3,1,15,1],[1,1,1,3],[11,10,15,11],[120,0,132,0],[120,2,132,2],[120,3,132,3],[120,12,132,12],[29,0,41,0],[29,2,41,2],[29,3,41,3],[29,12,41,12],[5,6,15,7],[13,4,15,5],[82,6,82,7],[83,6,93,7],[43,6,43,7],[44,6,54,7],[56,6,56,7],[57,6,67,7],[3,0,15,0],[29,15,41,15],[65,4,67,5],[55,13,67,13],[55,14,67,14],[55,15,67,15],[120,1,132,1],[1,12,1,15],[16,2,28,2],[16,3,28,3],[16,12,28,12],[16,13,28,13],[16,14,28,14],[16,15,28,15],[81,14,93,14],[81,15,93,15],[42,13,54,13],[42,14,54,14],[42,15,54,15],[94,13,106,13],[94,14,106,14],[94,15,106,15],[95,6,95,7],[3,15,15,15],[3,14,15,14],[55,0,67,0],[55,2,67,2],[55,3,67,3],[55,12,67,12],[39,4,41,5],[42,0,54,0],[42,2,54,2],[42,3,54,3],[42,12,54,12],[42,1,54,1],[55,1,67,1],[37,10,41,11],[50,10,54,11],[63,10,67,11],[68,0,80,0],[68,2,80,2],[68,3,80,3],[68,12,80,12],[68,13,80,13],[81,0,93,0],[107,0,119,0],[94,0,106,0],[94,2,106,2],[94,3,106,3],[94,12,106,12],[102,10,106,11],[115,10,119,11],[68,1,80,1],[81,1,93,1],[94,1,106,1],[76,10,80,11],[107,1,119,1],[120,13,132,13],[120,14,132,14],[120,15,132,15],[121,6,121,7],[122,6,132,7],[81,2,93,2],[81,3,93,3],[81,12,93,12],[107,2,119,2],[107,3,119,3],[107,12,119,12],[117,4,119,5],[91,4,93,5],[89,10,93,11],[96,6,106,7],[104,4,106,5],[133,0,145,0],[133,1,145,1],[133,2,145,2],[133,3,145,3],[133,12,145,12],[133,13,145,13],[133,14,145,14],[133,15,145,15],[134,6,134,7],[135,6,145,7],[141,10,145,11],[3,16,15,16],[3,17,15,17],[1,16,1,17],[143,4,145,5],[81,13,93,13],[52,4,54,5],[130,4,132,5],[107,13,119,13],[107,14,119,14],[107,15,119,15],[108,6,108,7],[109,6,119,7],[16,16,28,16],[16,17,28,17],[29,16,41,16],[29,17,41,17],[42,16,54,16],[68,14,80,14],[68,15,80,15],[69,6,69,7],[70,6,80,7],[78,4,80,5],[29,13,41,13],[29,14,41,14],[42,17,54,17],[55,16,67,16],[55,17,67,17],[68,16,80,16],[68,17,80,17],[81,16,93,16],[81,17,93,17],[94,16,106,16],[94,17,106,17],[107,16,119,16],[107,17,119,17],[120,16,132,16],[120,17,132,17],[133,16,145,16],[133,17,145,17],[146,16,158,16],[146,17,158,17],[159,16,171,16],[159,17,171,17],[172,16,184,16],[172,17,184,17],[185,16,197,16],[185,17,197,17],[198,16,210,16],[198,17,210,17],[211,16,223,16],[211,17,223,17],[224,16,236,16],[224,17,236,17],[237,16,249,16],[237,17,249,17],[250,16,262,16],[250,17,262,17],[263,16,275,16],[263,17,275,17],[380,16,392,16],[380,17,392,17],[328,16,340,16],[328,17,340,17],[341,16,353,16],[341,17,353,17],[354,16,366,16],[354,17,366,17],[276,16,288,16],[276,17,288,17],[289,16,301,16],[289,17,301,17],[302,16,314,16],[302,17,314,17],[315,16,327,16],[315,17,327,17],[367,16,379,16],[367,17,379,17]]}
["V13",null,"It is important that you read the instructions before starting this audit.                                 For the treatment section of this audit, select the primary reason by selecting \"p\" next to the appropriate option and then add subsidiary reasons by selecting 'yes'.    "]
[null,"Basic Details",null,null,"Treatment ",null,null,null,null,null,null,null,"Prescription",null,null,null,"Post-Prescription"]
["No.","Patient Identifier","Age ","Gender ","Diagnosis of clinical condition (select Yes or No as appropriate)",null,"Medical History",null,"Reason for issuing a prescription",null,"Clinical intervention carried out (select Yes or No as appropriate)",null,"Drug","Dose","Frequency","Duration","Condition resolved?","Was the patient reviewed?"]
[1,null,null,null,"No","Acute periapical infection","No","Is there relevant medical history? ","No","Prophylaxis due to medical history ","No","None "]
[null,null,null,null,"No","Acute periodontal infection ","If Yes, please comment below",null,"No","Prophylaxis for surgical procedure","No","Extraction"]
[null,null,null,null,"No","NUG",null,null,"No","Localised fluctuant swelling","No","Opened tooth for drainage"]
[null,null,null,null,"No","Post-surgical infection",null,null,"No","Gross or diffuse swelling","No","Incise Abscess"]
[null,null,null,null,"No","Chronic periodontitis ",null,null,"No","Elevated temperature (>36.5º)","No","Scaling/RSD"]
[null,null,null,null,"No","Alveolar osteitis (dry socket)",null,null,"No","Evidence of systemic spread (Malaise)","No","Debridement/ Irrigation"]
[null,null,null,null,"No","Irreversible pulpitis ",null,null,"No","Pain","No","Analgesia Recommended"]
[null,null,null,null,"No","Pericoronitis",null,null,"No","Patient expectation","No","Other"]
[null,null,null,null,"No","Sinusitis ",null,null,"No","Pressure of time and workload","Comment: "]
[null,null,null,null,"No","Other (Comment below)",null,null,"No","Uncertainty of diagnosis"]
[null,null,null,null,null,null,null,null,"No","Treatment had to be delayed"]
[null,null,null,null,null,null,null,null,"No","Unable to drain or remove source of infection"]
[null,null,null,null,null,null,null,null,"No","Other"]
[2,null,null,null,"No","Acute periapical infection","No","Is there relevant medical history? ","No","Prophylaxis due to medical history ","No","None "]
[null,null,null,null,"No","Acute periodontal infection ","If Yes, please comment below",null,"No","Prophylaxis for surgical procedure","No","Extraction"]
[null,null,null,null,"No","NUG",null,null,"No","Localised fluctuant swelling","No","Opened tooth for drainage"]
[null,null,null,null,"No","Post-surgical infection",null,null,"No","Gross or diffuse swelling","No","Incise Abscess"]
[null,null,null,null,"No","Chronic periodontitis ",null,null,"No","Elevated temperature (>36.5º)","No","Scaling/RSD"]
[null,null,null,null,"No","Alveolar osteitis (dry socket)",null,null,"No","Evidence of systemic spread (Malaise)","No","Debridement/ Irrigation"]
[null,null,null,null,"No","Irreversible pulpitis ",null,null,"No","Pain","No","Analgesia Recommended"]
[null,null,null,null,"No","Pericoronitis",null,null,"No","Patient expectation","No","Other"]
[null,null,null,null,"No","Sinusitis ",null,null,"No","Pressure of time and workload","Comment: "]
[null,null,null,null,"No","Other (Comment below)",null,null,"No","Uncertainty of diagnosis"]
[null,null,null,null,null,null,null,null,"No","Treatment had to be delayed"]
[null,null,null,null,null,null,null,null,"No","Unable to drain or remove source of infection"]
[null,null,null,null,null,null,null,null,"No","Other"]
[3,null,null,null,"No","Acute periapical infection","No","Is there relevant medical history? ","No","Prophylaxis due to medical history ","No","None "]
[null,null,null,null,"No","Acute periodontal infection ","If Yes, please comment below",null,"No","Prophylaxis for surgical procedure","No","Extraction"]
[null,null,null,null,"No","NUG",null,null,"No","Localised fluctuant swelling","No","Opened tooth for drainage"]
[null,null,null,null,"No","Post-surgical infection",null,null,"No","Gross or diffuse swelling","No","Incise Abscess"]
[null,null,null,null,"No","Chronic periodontitis ",null,null,"No","Elevated temperature (>36.5º)","No","Scaling/RSD"]
[null,null,null,null,"No","Alveolar osteitis (dry socket)",null,null,"No","Evidence of systemic spread (Malaise)","No","Debridement/ Irrigation"]
[null,null,null,null,"No","Irreversible pulpitis ",null,null,"No","Pain","No","Analgesia Recommended"]
[null,null,null,null,"No","Pericoronitis",null,null,"No","Patient expectation","No","Other"]
[null,null,null,null,"No","Sinusitis ",null,null,"No","Pressure of time and workload","Comment: "]
[null,null,null,null,"No","Other (Comment below)",null,null,"No","Uncertainty of diagnosis"]
[null,null,null,null,null,null,null,null,"No","Treatment had to be delayed"]
[null,null,null,null,null,null,null,null,"No","Unable to drain or remove source of infection"]
[null,null,null,null,null,null,null,null,"No","Other"]
[4,null,null,null,"No","Acute periapical infection","No","Is there relevant medical history? ","No","Prophylaxis due to medical history ","No","None "]
[null,null,null,null,"No","Acute periodontal infection ","If Yes, please comment below",null,"No","Prophylaxis for surgical procedure","No","Extraction"]
[null,null,null,null,"No","NUG",null,null,"No","Localised fluctuant swelling","No","Opened tooth for drainage"]
[null,null,null,null,"No","Post-surgical infection",null,null,"No","Gross or diffuse swelling","No","Incise Abscess"]
[null,null,null,null,"No","Chronic periodontitis ",null,null,"No","Elevated temperature (>36.5º)","No","Scaling/RSD"]
[null,null,null,null,"No","Alveolar osteitis (dry socket)",null,null,"No","Evidence of systemic spread (Malaise)","No","Debridement/ Irrigation"]
[null,null,null,null,"No","Irreversible pulpitis ",null,null,"No","Pain","No","Analgesia Recommended"]
[null,null,null,null,"No","Pericoronitis",null,null,"No","Patient expectation","No","Other"]
[null,null,null,null,"No","Sinusitis ",null,null,"No","Pressure of time and workload","Comment: "]
[null,null,null,null,"No","Other (Comment below)",null,null,"No","Uncertainty of diagnosis"]
[null,null,null,null,null,null,null,null,"No","Treatment had to be delayed"]
[null,null,null,null,null,null,null,null,"No","Unable to drain or remove source of infection"]
[null,null,null,null,null,null,null,null,"No","Other"]
[5,null,null,null,"No","Acute periapical infection","No","Is there relevant medical history? ","No","Prophylaxis due to medical history ","No","None "]
[null,null,null,null,"No","Acute periodontal infection ","If Yes, please comment below",null,"No","Prophylaxis for surgical procedure","No","Extraction"]
[null,null,null,null,"No","NUG",null,null,"No","Localised fluctuant swelling","No","Opened tooth for drainage"]
[null,null,null,null,"No","Post-surgical infection",null,null,"No","Gross or diffuse swelling","No","Incise Abscess"]
[null,null,null,null,"No","Chronic periodontitis ",null,null,"No","Elevated temperature (>36.5º)","No","Scaling/RSD"]
[null,null,null,null,"No","Alveolar osteitis (dry socket)",null,null,"No","Evidence of systemic spread (Malaise)","No","Debridement/ Irrigation"]
[null,null,null,null,"No","Irreversible pulpitis ",null,null,"No","Pain","No","Analgesia Recommended"]
[null,null,null,null,"No","Pericoronitis",null,null,"No","Patient expectation","No","Other"]
[null,null,null,null,"No","Sinusitis ",null,null,"No","Pressure of time and workload","Comment: "]
[null,null,null,null,"No","Other (Comment below)",null,null,"No","Uncertainty of diagnosis"]
[null,null,null,null,null,null,null,null,"No","Treatment had to be delayed"]
[null,null,null,null,null,null,null,null,"No","Unable to drain or remove source of infection"]
[null,null,null,null,null,null,null,null,"No","Other"]
[6,null,null,null,"No","Acute periapical infection","No","Is there relevant medical history? ","No","Prophylaxis due to medical history ","No","None "]
[null,null,null,null,"No","Acute periodontal infection ","If Yes, please comment below",null,"No","Prophylaxis for surgical procedure","No","Extraction"]
[null,null,null,null,"No","NUG",null,null,"No","Localised fluctuant swelling","No","Opened tooth for drainage"]
[null,null,null,null,"No","Post-surgical infection",null,null,"No","Gross or diffuse swelling","No","Incise Abscess"]
[null,null,null,null,"No","Chronic periodontitis ",null,null,"No","Elevated temperature (>36.5º)","No","Scaling/RSD"]
[null,null,null,null,"No","Alveolar osteitis (dry socket)",null,null,"No","Evidence of systemic spread (Malaise)","No","Debridement/ Irrigation"]
[null,null,null,null,"No","Irreversible pulpitis ",null,null,"No","Pain","No","Analgesia Recommended"]
[null,null,null,null,"No","Pericoronitis",null,null,"No","Patient expectation","No","Other"]
[null,null,null,null,"No","Sinusitis ",null,null,"No","Pressure of time and workload","Comment: "]
[null,null,null,null,"No","Other (Comment below)",null,null,"No","Uncertainty of diagnosis"]
[null,null,null,null,null,null,null,null,"No","Treatment had to be delayed"]
[null,null,null,null,null,null,null,null,"No","Unable to drain or remove source of infection"]
[null,null,null,null,null,null,null,null,"No","Other"]
[7,null,null,null,"No","Acute periapical infection","No","Is there relevant medical history? ","No","Prophylaxis due to medical history ","No","None "]
[null,null,null,null,"No","Acute periodontal infection ","If Yes, please comment below",null,"No","Prophylaxis for surgical procedure","No","Extraction"]
[null,null,null,null,"No","NUG",null,null,"No","Localised fluctuant swelling","No","Opened tooth for drainage"]
[null,null,null,null,"No","Post-surgical infection",null,null,"No","Gross or diffuse swelling","No","Incise Abscess"]
[null,null,null,null,"No","Chronic periodontitis ",null,null,"No","Elevated temperature (>36.5º)","No","Scaling/RSD"]
[null,null,null,null,"No","Alveolar osteitis (dry socket)",null,null,"No","Evidence of systemic spread (Malaise)","No","Debridement/ Irrigation"]
[null,null,null,null,"No","Irreversible pulpitis ",null,null,"No","Pain","No","Analgesia Recommended"]
[null,null,null,null,"No","Pericoronitis",null,null,"No","Patient expectation","No","Other"]
[null,null,null,null,"No","Sinusitis ",null,null,"No","Pressure of time and workload","Comment: "]
[null,null,null,null,"No","Other (Comment below)",null,null,"No","Uncertainty of diagnosis"]
[null,null,null,null,null,null,null,null,"No","Treatment had to be delayed"]
[null,null,null,null,null,null,null,null,"No","Unable to drain or remove source of infection"]
[null,null,null,null,null,null,null,null,"No","Other"]
[8,null,null,null,"No","Acute periapical infection","No","Is there relevant medical history? ","No","Prophylaxis due to medical history ","No","None "]
[null,null,null,null,"No","Acute periodontal infection ","If Yes, please comment below",null,"No","Prophylaxis for surgical procedure","No","Extraction"]
[null,null,null,null,"No","NUG",null,null,"No","Localised fluctuant swelling","No","Opened tooth for drainage"]
[null,null,null,null,"No","Post-surgical infection",null,null,"No","Gross or diffuse swelling","No","Incise Abscess"]
[null,null,null,null,"No","Chronic periodontitis ",null,null,"No","Elevated temperature (>36.5º)","No","Scaling/RSD"]
[null,null,null,null,"No","Alveolar osteitis (dry socket)",null,null,"No","Evidence of systemic spread (Malaise)","No","Debridement/ Irrigation"]
[null,null,null,null,"No","Irreversible pulpitis ",null,null,"No","Pain","No","Analgesia Recommended"]
[null,null,null,null,"No","Pericoronitis",null,null,"No","Patient expectation","No","Other"]
[null,null,null,null,"No","Sinusitis ",null,null,"No","Pressure of time and workload","Comment: "]
[null,null,null,null,"No","Other (Comment below)",null,null,"No","Uncertainty of diagnosis"]
[null,null,null,null,null,null,null,null,"No","Treatment had to be delayed"]
[null,null,null,null,null,null,null,null,"No","Unable to drain or remove source of infection"]
[null,null,null,null,null,null,null,null,"No","Other"]
[9,null,null,null,"No","Acute periapical infection","No","Is there relevant medical history? ","No","Prophylaxis due to medical history ","No","None "]
[null,null,null,null,"No","Acute periodontal infection ","If Yes, please comment below",null,"No","Prophylaxis for surgical procedure","No","Extraction"]
[null,null,null,null,"No","NUG",null,null,"No","Localised fluctuant swelling","No","Opened tooth for drainage"]
[null,null,null,null,"No","Post-surgical infection",null,null,"No","Gross or diffuse swelling","No","Incise Abscess"]
[null,null,null,null,"No","Chronic periodontitis ",null,null,"No","Elevated temperature (>36.5º)","No","Scaling/RSD"]
[null,null,null,null,"No","Alveolar osteitis (dry socket)",null,null,"No","Evidence of systemic spread (Malaise)","No","Debridement/ Irrigation"]
[null,null,null,null,"No","Irreversible pulpitis ",null,null,"No","Pain","No","Analgesia Recommended"]
[null,null,null,null,"No","Pericoronitis",null,null,"No","Patient expectation","No","Other"]
[null,null,null,null,"No","Sinusitis ",null,null,"No","Pressure of time and workload","Comment: "]
[null,null,null,null,"No","Other (Comment below)",null,null,"No","Uncertainty of diagnosis"]
[null,null,null,null,null,null,null,null,"No","Treatment had to be delayed"]
[null,null,null,null,null,null,null,null,"No","Unable to drain or remove source of infection"]
[null,null,null,null,null,null,null,null,"No","Other"]
[10,null,null,null,"No","Acute periapical infection","No","Is there relevant medical history? ","No","Prophylaxis due to medical history ","No","None "]
[null,null,null,null,"No","Acute periodontal infection ","If Yes, please comment below",null,"No","Prophylaxis for surgical procedure","No","Extraction"]
[null,null,null,null,"No","NUG",null,null,"No","Localised fluctuant swelling","No","Opened tooth for drainage"]
[null,null,null,null,"No","Post-surgical infection",null,null,"No","Gross or diffuse swelling","No","Incise Abscess"]
[null,null,null,null,"No","Chronic periodontitis ",null,null,"No","Elevated temperature (>36.5º)","No","Scaling/RSD"]
[null,null,null,null,"No","Alveolar osteitis (dry socket)",null,null,"No","Evidence of systemic spread (Malaise)","No","Debridement/ Irrigation"]
[null,null,null,null,"No","Irreversible pulpitis ",null,null,"No","Pain","No","Analgesia Recommended"]
[null,null,null,null,"No","Pericoronitis",null,null,"No","Patient expectation","No","Other"]
[null,null,null,null,"No","Sinusitis ",null,null,"No","Pressure of time and workload","Comment: "]
[null,null,null,null,"No","Other (Comment below)",null,null,"No","Uncertainty of diagnosis"]
[null,null,null,null,null,null,null,null,"No","Treatment had to be delayed"]
[null,null,null,null,null,null,null,null,"No","Unable to drain or remove source of infection"]
[null,null,null,null,null,null,null,null,"No","Other"]
[11,null,null,null,"No","Acute periapical infection","No","Is there relevant medical history? ","No","Prophylaxis due to medical history ","No","None "]
[null,null,null,null,"No","Acute periodontal infection ","If Yes, please comment below",null,"No","Prophylaxis for surgical procedure","No","Extraction"]
[null,null,null,null,"No","NUG",null,null,"No","Localised fluctuant swelling","No","Opened tooth for drainage"]
[null,null,null,null,"No","Post-surgical infection",null,null,"No","Gross or diffuse swelling","No","Incise Abscess"]
[null,null,null,null,"No","Chronic periodontitis ",null,null,"No","Elevated temperature (>36.5º)","No","Scaling/RSD"]
[null,null,null,null,"No","Alveolar osteitis (dry socket)",null,null,"No","Evidence of systemic spread (Malaise)","No","Debridement/ Irrigation"]
[null,null,null,null,"No","Irreversible pulpitis ",null,null,"No","Pain","No","Analgesia Recommended"]
[null,null,null,null,"No","Pericoronitis",null,null,"No","Patient expectation","No","Other"]
[null,null,null,null,"No","Sinusitis ",null,null,"No","Pressure of time and workload","Comment: "]
[null,null,null,null,"No","Other (Comment below)",null,null,"No","Uncertainty of diagnosis"]
[null,null,null,null,null,null,null,null,"No","Treatment had to be delayed"]
[null,null,null,null,null,null,null,null,"No","Unable to drain or remove source of infection"]
[null,null,null,null,null,null,null,null,"No","Other"]
[12,null,null,null,"No","Acute periapical infection","No","Is there relevant medical history? ","No","Prophylaxis due to medical history ","No","None "]
[null,null,null,null,"No","Acute periodontal infection ","If Yes, please comment below",null,"No","Prophylaxis for surgical procedure","No","Extraction"]
[null,null,null,null,"No","NUG",null,null,"No","Localised fluctuant swelling","No","Opened tooth for drainage"]
[null,null,null,null,"No","Post-surgical infection",null,null,"No","Gross or diffuse swelling","No","Incise Abscess"]
[null,null,null,null,"No","Chronic periodontitis ",null,null,"No","Elevated temperature (>36.5º)","No","Scaling/RSD"]
[null,null,null,null,"No","Alveolar osteitis (dry socket)",null,null,"No","Evidence of systemic spread (Malaise)","No","Debridement/ Irrigation"]
[null,null,null,null,"No","Irreversible pulpitis ",null,null,"No","Pain","No","Analgesia Recommended"]
[null,null,null,null,"No","Pericoronitis",null,null,"No","Patient expectation","No","Other"]
[null,null,null,null,"No","Sinusitis ",null,null,"No","Pressure of time and workload","Comment: "]
[null,null,null,null,"No","Other (Comment below)",null,null,"No","Uncertainty of diagnosis"]
[null,null,null,null,null,null,null,null,"No","Treatment had to be delayed"]
[null,null,null,null,null,null,null,null,"No","Unable to drain or remove source of infection"]
[null,null,null,null,null,null,null,null,"No","Other"]
[13,null,null,null,"No","Acute periapical infection","No","Is there relevant medical history? ","No","Prophylaxis due to medical history ","No","None "]
[null,null,null,null,"No","Acute periodontal infection ","If Yes, please comment below",null,"No","Prophylaxis for surgical procedure","No","Extraction"]
[null,null,null,null,"No","NUG",null,null,"No","Localised fluctuant swelling","No","Opened tooth for drainage"]
[null,null,null,null,"No","Post-surgical infection",null,null,"No","Gross or diffuse swelling","No","Incise Abscess"]
[null,null,null,null,"No","Chronic periodontitis ",null,null,"No","Elevated temperature (>36.5º)","No","Scaling/RSD"]
[null,null,null,null,"No","Alveolar osteitis (dry socket)",null,null,"No","Evidence of systemic spread (Malaise)","No","Debridement/ Irrigation"]
[null,null,null,null,"No","Irreversible pulpitis ",null,null,"No","Pain","No","Analgesia Recommended"]
[null,null,null,null,"No","Pericoronitis",null,null,"No","Patient expectation","No","Other"]
[null,null,null,null,"No","Sinusitis ",null,null,"No","Pressure of time and workload","Comment: "]
[null,null,null,null,"No","Other (Comment below)",null,null,"No","Uncertainty of diagnosis"]
[null,null,null,null,null,null,null,null,"No","Treatment had to be delayed"]
[null,null,null,null,null,null,null,null,"No","Unable to drain or remove source of infection"]
[null,null,null,null,null,null,null,null,"No","Other"]
[14,null,null,null,"No","Acute periapical infection","No","Is there relevant medical history? ","No","Prophylaxis due to medical history ","No","None "]
[null,null,null,null,"No","Acute periodontal infection ","If Yes, please comment below",null,"No","Prophylaxis for surgical procedure","No","Extraction"]
[null,null,null,null,"No","NUG",null,null,"No","Localised fluctuant swelling","No","Opened tooth for drainage"]
[null,null,null,null,"No","Post-surgical infection",null,null,"No","Gross or diffuse swelling","No","Incise Abscess"]
[null,null,null,null,"No","Chronic periodontitis ",null,null,"No","Elevated temperature (>36.5º)","No","Scaling/RSD"]
[null,null,null,null,"No","Alveolar osteitis (dry socket)",null,null,"No","Evidence of systemic spread (Malaise)","No","Debridement/ Irrigation"]
[null,null,null,null,"No","Irreversible pulpitis ",null,null,"No","Pain","No","Analgesia Recommended"]
[null,null,null,null,"No","Pericoronitis",null,null,"No","Patient expectation","No","Other"]
[null,null,null,null,"No","Sinusitis ",null,null,"No","Pressure of time and workload","Comment: "]
[null,null,null,null,"No","Other (Comment below)",null,null,"No","Uncertainty of diagnosis"]
[null,null,null,null,null,null,null,null,"No","Treatment had to be delayed"]
[null,null,null,null,null,null,null,null,"No","Unable to drain or remove source of infection"]
[null,null,null,null,null,null,null,null,"No","Other"]
[15,null,null,null,"No","Acute periapical infection","No","Is there relevant medical history? ","No","Prophylaxis due to medical history ","No","None "]
[null,null,null,null,"No","Acute periodontal infection ","If Yes, please comment below",null,"No","Prophylaxis for surgical procedure","No","Extraction"]
[null,null,null,null,"No","NUG",null,null,"No","Localised fluctuant swelling","No","Opened tooth for drainage"]
[null,null,null,null,"No","Post-surgical infection",null,null,"No","Gross or diffuse swelling","No","Incise Abscess"]
[null,null,null,null,"No","Chronic periodontitis ",null,null,"No","Elevated temperature (>36.5º)","No","Scaling/RSD"]
[null,null,null,null,"No","Alveolar osteitis (dry socket)",null,null,"No","Evidence of systemic spread (Malaise)","No","Debridement/ Irrigation"]
[null,null,null,null,"No","Irreversible pulpitis ",null,null,"No","Pain","No","Analgesia Recommended"]
[null,null,null,null,"No","Pericoronitis",null,null,"No","Patient expectation","No","Other"]
[null,null,null,null,"No","Sinusitis ",null,null,"No","Pressure of time and workload","Comment: "]
[null,null,null,null,"No","Other (Comment below)",null,null,"No","Uncertainty of diagnosis"]
[null,null,null,null,null,null,null,null,"No","Treatment had to be delayed"]
[null,null,null,null,null,null,null,null,"No","Unable to drain or remove source of infection"]
[null,null,null,null,null,null,null,null,"No","Other"]
[16,null,null,null,"No","Acute periapical infection","No","Is there relevant medical history? ","No","Prophylaxis due to medical history ","No","None "]
[null,null,null,null,"No","Acute periodontal infection ","If Yes, please comment below",null,"No","Prophylaxis for surgical procedure","No","Extraction"]
[null,null,null,null,"No","NUG",null,null,"No","Localised fluctuant swelling","No","Opened tooth for drainage"]
[null,null,null,null,"No","Post-surgical infection",null,null,"No","Gross or diffuse swelling","No","Incise Abscess"]
[null,null,null,null,"No","Chronic periodontitis ",null,null,"No","Elevated temperature (>36.5º)","No","Scaling/RSD"]
[null,null,null,null,"No","Alveolar osteitis (dry socket)",null,null,"No","Evidence of systemic spread (Malaise)","No","Debridement/ Irrigation"]
[null,null,null,null,"No","Irreversible pulpitis ",null,null,"No","Pain","No","Analgesia Recommended"]
[null,null,null,null,"No","Pericoronitis",null,null,"No","Patient expectation","No","Other"]
[null,null,null,null,"No","Sinusitis ",null,null,"No","Pressure of time and workload","Comment: "]
[null,null,null,null,"No","Other (Comment below)",null,null,"No","Uncertainty of diagnosis"]
[null,null,null,null,null,null,null,null,"No","Treatment had to be delayed"]
[null,null,null,null,null,null,null,null,"No","Unable to drain or remove source of infection"]
[null,null,null,null,null,null,null,null,"No","Other"]
[17,null,null,null,"No","Acute periapical infection","No","Is there relevant medical history? ","No","Prophylaxis due to medical history ","No","None "]
[null,null,null,null,"No","Acute periodontal infection ","If Yes, please comment below",null,"No","Prophylaxis for surgical procedure","No","Extraction"]
[null,null,null,null,"No","NUG",null,null,"No","Localised fluctuant swelling","No","Opened tooth for drainage"]
[null,null,null,null,"No","Post-surgical infection",null,null,"No","Gross or diffuse swelling","No","Incise Abscess"]
[null,null,null,null,"No","Chronic periodontitis ",null,null,"No","Elevated temperature (>36.5º)","No","Scaling/RSD"]
[null,null,null,null,"No","Alveolar osteitis (dry socket)",null,null,"No","Evidence of systemic spread (Malaise)","No","Debridement/ Irrigation"]
[null,null,null,null,"No","Irreversible pulpitis ",null,null,"No","Pain","No","Analgesia Recommended"]
[null,null,null,null,"No","Pericoronitis",null,null,"No","Patient expectation","No","Other"]
[null,null,null,null,"No","Sinusitis ",null,null,"No","Pressure of time and workload","Comment: "]
[null,null,null,null,"No","Other (Comment below)",null,null,"No","Uncertainty of diagnosis"]
[null,null,null,null,null,null,null,null,"No","Treatment had to be delayed"]
[null,null,null,null,null,null,null,null,"No","Unable to drain or remove source of infection"]
[null,null,null,null,null,null,null,null,"No","Other"]
[18,null,null,null,"No","Acute periapical infection","No","Is there relevant medical history? ","No","Prophylaxis due to medical history ","No","None "]
[null,null,null,null,"No","Acute periodontal infection ","If Yes, please comment below",null,"No","Prophylaxis for surgical procedure","No","Extraction"]
[null,null,null,null,"No","NUG",null,null,"No","Localised fluctuant swelling","No","Opened tooth for drainage"]
[null,null,null,null,"No","Post-surgical infection",null,null,"No","Gross or diffuse swelling","No","Incise Abscess"]
[null,null,null,null,"No","Chronic periodontitis ",null,null,"No","Elevated temperature (>36.5º)","No","Scaling/RSD"]
[null,null,null,null,"No","Alveolar osteitis (dry socket)",null,null,"No","Evidence of systemic spread (Malaise)","No","Debridement/ Irrigation"]
[null,null,null,null,"No","Irreversible pulpitis ",null,null,"No","Pain","No","Analgesia Recommended"]
[null,null,null,null,"No","Pericoronitis",null,null,"No","Patient expectation","No","Other"]
[null,null,null,null,"No","Sinusitis ",null,null,"No","Pressure of time and workload","Comment: "]
[null,null,null,null,"No","Other (Comment below)",null,null,"No","Uncertainty of diagnosis"]
[null,null,null,null,null,null,null,null,"No","Treatment had to be delayed"]
[null,null,null,null,null,null,null,null,"No","Unable to drain or remove source of infection"]
[null,null,null,null,null,null,null,null,"No","Other"]
[19,null,null,null,"No","Acute periapical infection","No","Is there relevant medical history? ","No","Prophylaxis due to medical history ","No","None "]
[null,null,null,null,"No","Acute periodontal infection ","If Yes, please comment below",null,"No","Prophylaxis for surgical procedure","No","Extraction"]
[null,null,null,null,"No","NUG",null,null,"No","Localised fluctuant swelling","No","Opened tooth for drainage"]
[null,null,null,null,"No","Post-surgical infection",null,null,"No","Gross or diffuse swelling","No","Incise Abscess"]
[null,null,null,null,"No","Chronic periodontitis ",null,null,"No","Elevated temperature (>36.5º)","No","Scaling/RSD"]
[null,null,null,null,"No","Alveolar osteitis (dry socket)",null,null,"No","Evidence of systemic spread (Malaise)","No","Debridement/ Irrigation"]
[null,null,null,null,"No","Irreversible pulpitis ",null,null,"No","Pain","No","Analgesia Recommended"]
[null,null,null,null,"No","Pericoronitis",null,null,"No","Patient expectation","No","Other"]
[null,null,null,null,"No","Sinusitis ",null,null,"No","Pressure of time and workload","Comment: "]
[null,null,null,null,"No","Other (Comment below)",null,null,"No","Uncertainty of diagnosis"]
[null,null,null,null,null,null,null,null,"No","Treatment had to be delayed"]
[null,null,null,null,null,null,null,null,"No","Unable to drain or remove source of infection"]
[null,null,null,null,null,null,null,null,"No","Other"]
[20,null,null,null,"No","Acute periapical infection","No","Is there relevant medical history? ","No","Prophylaxis due to medical history ","No","None "]
[null,null,null,null,"No","Acute periodontal infection ","If Yes, please comment below",null,"No","Prophylaxis for surgical procedure","No","Extraction"]
[null,null,null,null,"No","NUG",null,null,"No","Localised fluctuant swelling","No","Opened tooth for drainage"]
[null,null,null,null,"No","Post-surgical infection",null,null,"No","Gross or diffuse swelling","No","Incise Abscess"]
[null,null,null,null,"No","Chronic periodontitis ",null,null,"No","Elevated temperature (>36.5º)","No","Scaling/RSD"]
[null,null,null,null,"No","Alveolar osteitis (dry socket)",null,null,"No","Evidence of systemic spread (Malaise)","No","Debridement/ Irrigation"]
[null,null,null,null,"No","Irreversible pulpitis ",null,null,"No","Pain","No","Analgesia Recommended"]
[null,null,null,null,"No","Pericoronitis",null,null,"No","Patient expectation","No","Other"]
[null,null,null,null,"No","Sinusitis ",null,null,"No","Pressure of time and workload","Comment: "]
[null,null,null,null,"No","Other (Comment below)",null,null,"No","Uncertainty of diagnosis"]
[null,null,null,null,null,null,null,null,"No","Treatment had to be delayed"]
[null,null,null,null,null,null,null,null,"No","Unable to drain or remove source of infection"]
[null,null,null,null,null,null,null,null,"No","Other"]
[21,null,null,null,"No","Acute periapical infection","No","Is there relevant medical history? ","No","Prophylaxis due to medical history ","No","None "]
[null,null,null,null,"No","Acute periodontal infection ","If Yes, please comment below",null,"No","Prophylaxis for surgical procedure","No","Extraction"]
[null,null,null,null,"No","NUG",null,null,"No","Localised fluctuant swelling","No","Opened tooth for drainage"]
[null,null,null,null,"No","Post-surgical infection",null,null,"No","Gross or diffuse swelling","No","Incise Abscess"]
[null,null,null,null,"No","Chronic periodontitis ",null,null,"No","Elevated temperature (>36.5º)","No","Scaling/RSD"]
[null,null,null,null,"No","Alveolar osteitis (dry socket)",null,null,"No","Evidence of systemic spread (Malaise)","No","Debridement/ Irrigation"]
[null,null,null,null,"No","Irreversible pulpitis ",null,null,"No","Pain","No","Analgesia Recommended"]
[null,null,null,null,"No","Pericoronitis",null,null,"No","Patient expectation","No","Other"]
[null,null,null,null,"No","Sinusitis ",null,null,"No","Pressure of time and workload","Comment: "]
[null,null,null,null,"No","Other (Comment below)",null,null,"No","Uncertainty of diagnosis"]
[null,null,null,null,null,null,null,null,"No","Treatment had to be delayed"]
[null,null,null,null,null,null,null,null,"No","Unable to drain or remove source of infection"]
[null,null,null,null,null,null,null,null,"No","Other"]
[22,null,null,null,"No","Acute periapical infection","No","Is there relevant medical history? ","No","Prophylaxis due to medical history ","No","None "]
[null,null,null,null,"No","Acute periodontal infection ","If Yes, please comment below",null,"No","Prophylaxis for surgical procedure","No","Extraction"]
[null,null,null,null,"No","NUG",null,null,"No","Localised fluctuant swelling","No","Opened tooth for drainage"]
[null,null,null,null,"No","Post-surgical infection",null,null,"No","Gross or diffuse swelling","No","Incise Abscess"]
[null,null,null,null,"No","Chronic periodontitis ",null,null,"No","Elevated temperature (>36.5º)","No","Scaling/RSD"]
[null,null,null,null,"No","Alveolar osteitis (dry socket)",null,null,"No","Evidence of systemic spread (Malaise)","No","Debridement/ Irrigation"]
[null,null,null,null,"No","Irreversible pulpitis ",null,null,"No","Pain","No","Analgesia Recommended"]
[null,null,null,null,"No","Pericoronitis",null,null,"No","Patient expectation","No","Other"]
[null,null,null,null,"No","Sinusitis ",null,null,"No","Pressure of time and workload","Comment: "]
[null,null,null,null,"No","Other (Comment below)",null,null,"No","Uncertainty of diagnosis"]
[null,null,null,null,null,null,null,null,"No","Treatment had to be delayed"]
[null,null,null,null,null,null,null,null,"No","Unable to drain or remove source of infection"]
[null,null,null,null,null,null,null,null,"No","Other"]
[23,null,null,null,"No","Acute periapical infection","No","Is there relevant medical history? ","No","Prophylaxis due to medical history ","No","None "]
[null,null,null,null,"No","Acute periodontal infection ","If Yes, please comment below",null,"No","Prophylaxis for surgical procedure","No","Extraction"]
[null,null,null,null,"No","NUG",null,null,"No","Localised fluctuant swelling","No","Opened tooth for drainage"]
[null,null,null,null,"No","Post-surgical infection",null,null,"No","Gross or diffuse swelling","No","Incise Abscess"]
[null,null,null,null,"No","Chronic periodontitis ",null,null,"No","Elevated temperature (>36.5º)","No","Scaling/RSD"]
[null,null,null,null,"No","Alveolar osteitis (dry socket)",null,null,"No","Evidence of systemic spread (Malaise)","No","Debridement/ Irrigation"]
[null,null,null,null,"No","Irreversible pulpitis ",null,null,"No","Pain","No","Analgesia Recommended"]
[null,null,null,null,"No","Pericoronitis",null,null,"No","Patient expectation","No","Other"]
[null,null,null,null,"No","Sinusitis ",null,null,"No","Pressure of time and workload","Comment: "]
[null,null,null,null,"No","Other (Comment below)",null,null,"No","Uncertainty of diagnosis"]
[null,null,null,null,null,null,null,null,"No","Treatment had to be delayed"]
[null,null,null,null,null,null,null,null,"No","Unable to drain or remove source of infection"]
[null,null,null,null,null,null,null,null,"No","Other"]
[24,null,null,null,"No","Acute periapical infection","No","Is there relevant medical history? ","No","Prophylaxis due to medical history ","No","None "]
[null,null,null,null,"No","Acute periodontal infection ","If Yes, please comment below",null,"No","Prophylaxis for surgical procedure","No","Extraction"]
[null,null,null,null,"No","NUG",null,null,"No","Localised fluctuant swelling","No","Opened tooth for drainage"]
[null,null,null,null,"No","Post-surgical infection",null,null,"No","Gross or diffuse swelling","No","Incise Abscess"]
[null,null,null,null,"No","Chronic periodontitis ",null,null,"No","Elevated temperature (>36.5º)","No","Scaling/RSD"]
[null,null,null,null,"No","Alveolar osteitis (dry socket)",null,null,"No","Evidence of systemic spread (Malaise)","No","Debridement/ Irrigation"]
[null,null,null,null,"No","Irreversible pulpitis ",null,null,"No","Pain","No","Analgesia Recommended"]
[null,null,null,null,"No","Pericoronitis",null,null,"No","Patient expectation","No","Other"]
[null,null,null,null,"No","Sinusitis ",null,null,"No","Pressure of time and workload","Comment: "]
[null,null,null,null,"No","Other (Comment below)",null,null,"No","Uncertainty of diagnosis"]
[null,null,null,null,null,null,null,null,"No","Treatment had to be delayed"]
[null,null,null,null,null,null,null,null,"No","Unable to drain or remove source of infection"]
[null,null,null,null,null,null,null,null,"No","Other"]
[25,null,null,null,"No","Acute periapical infection","No","Is there relevant medical history? ","No","Prophylaxis due to medical history ","No","None "]
[null,null,null,null,"No","Acute periodontal infection ","If Yes, please comment below",null,"No","Prophylaxis for surgical procedure","No","Extraction"]
[null,null,null,null,"No","NUG",null,null,"No","Localised fluctuant swelling","No","Opened tooth for drainage"]
[null,null,null,null,"No","Post-surgical infection",null,null,"No","Gross or diffuse swelling","No","Incise Abscess"]
[null,null,null,null,"No","Chronic periodontitis ",null,null,"No","Elevated temperature (>36.5º)","No","Scaling/RSD"]
[null,null,null,null,"No","Alveolar osteitis (dry socket)",null,null,"No","Evidence of systemic spread (Malaise)","No","Debridement/ Irrigation"]
[null,null,null,null,"No","Irreversible pulpitis ",null,null,"No","Pain","No","Analgesia Recommended"]
[null,null,null,null,"No","Pericoronitis",null,null,"No","Patient expectation","No","Other"]
[null,null,null,null,"No","Sinusitis ",null,null,"No","Pressure of time and workload","Comment: "]
[null,null,null,null,"No","Other (Comment below)",null,null,"No","Uncertainty of diagnosis"]
[null,null,null,null,null,null,null,null,"No","Treatment had to be delayed"]
[null,null,null,null,null,null,null,null,"No","Unable to drain or remove source of infection"]
[null,null,null,null,null,null,null,null,"No","Other"]
[26,null,null,null,"No","Acute periapical infection","No","Is there relevant medical history? ","No","Prophylaxis due to medical history ","No","None "]
[null,null,null,null,"No","Acute periodontal infection ","If Yes, please comment below",null,"No","Prophylaxis for surgical procedure","No","Extraction"]
[null,null,null,null,"No","NUG",null,null,"No","Localised fluctuant swelling","No","Opened tooth for drainage"]
[null,null,null,null,"No","Post-surgical infection",null,null,"No","Gross or diffuse swelling","No","Incise Abscess"]
[null,null,null,null,"No","Chronic periodontitis ",null,null,"No","Elevated temperature (>36.5º)","No","Scaling/RSD"]
[null,null,null,null,"No","Alveolar osteitis (dry socket)",null,null,"No","Evidence of systemic spread (Malaise)","No","Debridement/ Irrigation"]
[null,null,null,null,"No","Irreversible pulpitis ",null,null,"No","Pain","No","Analgesia Recommended"]
[null,null,null,null,"No","Pericoronitis",null,null,"No","Patient expectation","No","Other"]
[null,null,null,null,"No","Sinusitis ",null,null,"No","Pressure of time and workload","Comment: "]
[null,null,null,null,"No","Other (Comment below)",null,null,"No","Uncertainty of diagnosis"]
[null,null,null,null,null,null,null,null,"No","Treatment had to be delayed"]
[null,null,null,null,null,null,null,null,"No","Unable to drain or remove source of infection"]
[null,null,null,null,null,null,null,null,"No","Other"]
[27,null,null,null,"No","Acute periapical infection","No","Is there relevant medical history? ","No","Prophylaxis due to medical history ","No","None "]
[null,null,null,null,"No","Acute periodontal infection ","If Yes, please comment below",null,"No","Prophylaxis for surgical procedure","No","Extraction"]
[null,null,null,null,"No","NUG",null,null,"No","Localised fluctuant swelling","No","Opened tooth for drainage"]
[null,null,null,null,"No","Post-surgical infection",null,null,"No","Gross or diffuse swelling","No","Incise Abscess"]
[null,null,null,null,"No","Chronic periodontitis ",null,null,"No","Elevated temperature (>36.5º)","No","Scaling/RSD"]
[null,null,null,null,"No","Alveolar osteitis (dry socket)",null,null,"No","Evidence of systemic spread (Malaise)","No","Debridement/ Irrigation"]
[null,null,null,null,"No","Irreversible pulpitis ",null,null,"No","Pain","No","Analgesia Recommended"]
[null,null,null,null,"No","Pericoronitis",null,null,"No","Patient expectation","No","Other"]
[null,null,null,null,"No","Sinusitis ",null,null,"No","Pressure of time and workload","Comment: "]
[null,null,null,null,"No","Other (Comment below)",null,null,"No","Uncertainty of diagnosis"]
[null,null,null,null,null,null,null,null,"No","Treatment had to be delayed"]
[null,null,null,null,null,null,null,null,"No","Unable to drain or remove source of infection"]
[null,null,null,null,null,null,null,null,"No","Other"]
[28,null,null,null,"No","Acute periapical infection","No","Is there relevant medical history? ","No","Prophylaxis due to medical history ","No","None "]
[null,null,null,null,"No","Acute periodontal infection ","If Yes, please comment below",null,"No","Prophylaxis for surgical procedure","No","Extraction"]
[null,null,null,null,"No","NUG",null,null,"No","Localised fluctuant swelling","No","Opened tooth for drainage"]
[null,null,null,null,"No","Post-surgical infection",null,null,"No","Gross or diffuse swelling","No","Incise Abscess"]
[null,null,null,null,"No","Chronic periodontitis ",null,null,"No","Elevated temperature (>36.5º)","No","Scaling/RSD"]
[null,null,null,null,"No","Alveolar osteitis (dry socket)",null,null,"No","Evidence of systemic spread (Malaise)","No","Debridement/ Irrigation"]
[null,null,null,null,"No","Irreversible pulpitis ",null,null,"No","Pain","No","Analgesia Recommended"]
[null,null,null,null,"No","Pericoronitis",null,null,"No","Patient expectation","No","Other"]
[null,null,null,null,"No","Sinusitis ",null,null,"No","Pressure of time and workload","Comment: "]
[null,null,null,null,"No","Other (Comment below)",null,null,"No","Uncertainty of diagnosis"]
[null,null,null,null,null,null,null,null,"No","Treatment had to be delayed"]
[null,null,null,null,null,null,null,null,"No","Unable to drain or remove source of infection"]
[null,null,null,null,null,null,null,null,"No","Other"]
[29,null,null,null,"No","Acute periapical infection","No","Is there relevant medical history? ","No","Prophylaxis due to medical history ","No","None "]
[null,null,null,null,"No","Acute periodontal infection ","If Yes, please comment below",null,"No","Prophylaxis for surgical procedure","No","Extraction"]
[null,null,null,null,"No","NUG",null,null,"No","Localised fluctuant swelling","No","Opened tooth for drainage"]
[null,null,null,null,"No","Post-surgical infection",null,null,"No","Gross or diffuse swelling","No","Incise Abscess"]
[null,null,null,null,"No","Chronic periodontitis ",null,null,"No","Elevated temperature (>36.5º)","No","Scaling/RSD"]
[null,null,null,null,"No","Alveolar osteitis (dry socket)",null,null,"No","Evidence of systemic spread (Malaise)","No","Debridement/ Irrigation"]
[null,null,null,null,"No","Irreversible pulpitis ",null,null,"No","Pain","No","Analgesia Recommended"]
[null,null,null,null,"No","Pericoronitis",null,null,"No","Patient expectation","No","Other"]
[null,null,null,null,"No","Sinusitis ",null,null,"No","Pressure of time and workload","Comment: "]
[null,null,null,null,"No","Other (Comment below)",null,null,"No","Uncertainty of diagnosis"]
[null,null,null,null,null,null,null,null,"No","Treatment had to be delayed"]
[null,null,null,null,null,null,null,null,"No","Unable to drain or remove source of infection"]
[null,null,null,null,null,null,null,null,"No","Other"]
[30,null,null,null,"No","Acute periapical infection","No","Is there relevant medical history? ","No","Prophylaxis due to medical history ","No","None "]
[null,null,null,null,"No","Acute periodontal infection ","If Yes, please comment below",null,"No","Prophylaxis for surgical procedure","No","Extraction"]
[null,null,null,null,"No","NUG",null,null,"No","Localised fluctuant swelling","No","Opened tooth for drainage"]
[null,null,null,null,"No","Post-surgical infection",null,null,"No","Gross or diffuse swelling","No","Incise Abscess"]
[null,null,null,null,"No","Chronic periodontitis ",null,null,"No","Elevated temperature (>36.5º)","No","Scaling/RSD"]
[null,null,null,null,"No","Alveolar osteitis (dry socket)",null,null,"No","Evidence of systemic spread (Malaise)","No","Debridement/ Irrigation"]
[null,null,null,null,"No","Irreversible pulpitis ",null,null,"No","Pain","No","Analgesia Recommended"]
[null,null,null,null,"No","Pericoronitis",null,null,"No","Patient expectation","No","Other"]
[null,null,null,null,"No","Sinusitis ",null,null,"No","Pressure of time and workload","Comment: "]
[null,null,null,null,"No","Other (Comment below)",null,null,"No","Uncertainty of diagnosis"]
[null,null,null,null,null,null,null,null,"No","Treatment had to be delayed"]
[null,null,null,null,null,null,null,null,"No","Unable to drain or remove source of infection"]
[null,null,null,null,null,null,null,null,"No","Other"]

{"sheet":"Entry-Without Prescription B","index":3,"n_rows":390,"n_cols":14,"rows_kept":390,"cut":false,"hidden":false,"merged":[[0,0,0,1],[1,1,1,3],[1,12,1,13],[0,2,0,11],[9,10,9,11],[10,10,15,11],[22,10,22,11],[23,10,28,11],[35,10,35,11],[2,4,2,5],[2,6,2,7],[2,8,2,9],[3,0,15,0],[3,1,15,1],[3,2,15,2],[3,3,15,3],[4,6,4,7],[5,6,15,7],[16,12,28,12],[16,13,28,13],[11,8,15,9],[13,4,15,5],[16,0,28,0],[16,1,28,1],[16,2,28,2],[16,3,28,3],[17,6,17,7],[18,6,28,7],[3,12,15,12],[3,13,15,13],[24,8,28,9],[26,4,28,5],[6,11,8,11],[6,10,8,10],[19,10,21,10],[19,11,21,11],[42,12,54,12],[42,13,54,13],[37,8,41,9],[39,4,41,5],[42,0,54,0],[42,1,54,1],[42,2,54,2],[42,3,54,3],[43,6,43,7],[44,6,54,7],[29,12,41,12],[29,13,41,13],[36,10,41,11],[48,10,48,11],[49,10,54,11],[50,8,54,9],[52,4,54,5],[32,10,34,10],[32,11,34,11],[45,10,47,10],[45,11,47,11],[55,2,67,2],[55,3,67,3],[56,6,56,7],[57,6,67,7],[29,0,41,0],[29,1,41,1],[29,2,41,2],[29,3,41,3],[30,6,30,7],[31,6,41,7],[68,12,80,12],[68,13,80,13],[63,8,67,9],[65,4,67,5],[68,0,80,0],[68,1,80,1],[68,2,80,2],[68,3,80,3],[69,6,69,7],[70,6,80,7],[55,12,67,12],[55,13,67,13],[61,10,61,11],[62,10,67,11],[74,10,74,11],[75,10,80,11],[76,8,80,9],[78,4,80,5],[58,10,60,10],[58,11,60,11],[71,10,73,10],[71,11,73,11],[55,0,67,0],[55,1,67,1],[94,12,106,12],[94,13,106,13],[89,8,93,9],[91,4,93,5],[94,0,106,0],[94,1,106,1],[94,2,106,2],[94,3,106,3],[95,6,95,7],[96,6,106,7],[81,12,93,12],[81,13,93,13],[87,10,87,11],[88,10,93,11],[100,10,100,11],[101,10,106,11],[102,8,106,9],[104,4,106,5],[84,10,86,10],[84,11,86,11],[97,10,99,10],[97,11,99,11],[107,2,119,2],[107,3,119,3],[108,6,108,7],[109,6,119,7],[81,0,93,0],[81,1,93,1],[81,2,93,2],[81,3,93,3],[82,6,82,7],[83,6,93,7],[120,12,132,12],[120,13,132,13],[115,8,119,9],[117,4,119,5],[120,0,132,0],[120,1,132,1],[120,2,132,2],[120,3,132,3],[121,6,121,7],[122,6,132,7],[107,12,119,12],[107,13,119,13],[113,10,113,11],[114,10,119,11],[126,10,126,11],[127,10,132,11],[128,8,132,9],[130,4,132,5],[110,10,112,10],[110,11,112,11],[123,10,125,10],[123,11,125,11],[107,0,119,0],[107,1,119,1],[146,12,158,12],[146,13,158,13],[141,8,145,9],[143,4,145,5],[146,0,158,0],[146,1,158,1],[146,2,158,2],[146,3,158,3],[147,6,147,7],[148,6,158,7],[133,12,145,12],[133,13,145,13],[139,10,139,11],[140,10,145,11],[152,10,152,11],[153,10,158,11],[156,4,158,5],[136,10,138,10],[136,11,138,11],[149,10,151,10],[149,11,151,11],[159,3,171,3],[160,6,160,7],[161,6,171,7],[133,0,145,0],[133,1,145,1],[133,2,145,2],[133,3,145,3],[134,6,134,7],[135,6,145,7],[172,13,184,13],[167,8,171,9],[169,4,171,5],[172,0,184,0],[172,1,184,1],[172,2,184,2],[172,3,184,3],[173,6,173,7],[174,6,184,7],[159,12,171,12],[159,13,171,13],[165,10,165,11],[166,10,171,11],[178,10,178,11],[179,10,184,11],[180,8,184,9],[182,4,184,5],[162,10,164,10],[162,11,164,11],[175,10,177,10],[175,11,177,11],[159,0,171,0],[159,1,171,1],[159,2,171,2],[185,0,197,0],[185,1,197,1],[185,2,197,2],[185,3,197,3],[186,6,186,7],[187,6,197,7],[198,12,210,12],[198,13,210,13],[193,8,197,9],[195,4,197,5],[198,0,210,0],[198,1,210,1],[198,2,210,2],[198,3,210,3],[199,6,199,7],[200,6,210,7],[185,12,197,12],[185,13,197,13],[191,10,191,11],[192,10,197,11],[204,10,204,11],[205,10,210,11],[188,10,190,10],[188,11,190,11],[224,13,236,13],[219,8,223,9],[221,4,223,5],[224,0,236,0],[224,1,236,1],[224,2,236,2],[224,3,236,3],[225,6,225,7],[226,6,236,7],[211,12,223,12],[211,13,223,13],[217,10,217,11],[218,10,223,11],[230,10,230,11],[231,10,236,11],[232,8,236,9],[234,4,236,5],[211,0,223,0],[211,1,223,1],[211,2,223,2],[211,3,223,3],[212,6,212,7],[213,6,223,7],[237,0,249,0],[237,1,249,1],[237,2,249,2],[237,3,249,3],[238,6,238,7],[239,6,249,7],[250,12,262,12],[250,13,262,13],[245,8,249,9],[247,4,249,5],[250,0,262,0],[250,1,262,1],[250,2,262,2],[250,3,262,3],[251,6,251,7],[252,6,262,7],[237,12,249,12],[237,13,249,13],[243,10,243,11],[244,10,249,11],[256,10,256,11],[257,10,262,11],[276,13,288,13],[271,8,275,9],[273,4,275,5],[276,0,288,0],[276,1,288,1],[276,2,288,2],[276,3,288,3],[277,6,277,7],[278,6,288,7],[263,12,275,12],[263,13,275,13],[269,10,269,11],[270,10,275,11],[282,10,282,11],[283,10,288,11],[284,8,288,9],[286,4,288,5],[263,0,275,0],[263,1,275,1],[263,2,275,2],[263,3,275,3],[264,6,264,7],[265,6,275,7],[266,10,268,10],[289,0,301,0],[289,1,301,1],[289,2,301,2],[289,3,301,3],[290,6,290,7],[291,6,301,7],[302,13,314,13],[297,8,301,9],[299,4,301,5],[302,0,314,0],[302,1,314,1],[302,2,314,2],[302,3,314,3],[303,6,303,7],[304,6,314,7],[289,12,301,12],[289,13,301,13],[295,10,295,11],[296,10,301,11],[308,10,308,11],[309,10,314,11],[305,10,307,10],[328,13,340,13],[323,8,327,9],[325,4,327,5],[328,0,340,0],[328,1,340,1],[328,2,340,2],[328,3,340,3],[329,6,329,7],[330,6,340,7],[315,12,327,12],[315,13,327,13],[315,0,327,0],[315,1,327,1],[315,2,327,2],[315,3,327,3],[316,6,316,7],[317,6,327,7],[321,10,321,11],[322,10,327,11],[334,10,334,11],[335,10,340,11],[354,13,366,13],[349,8,353,9],[351,4,353,5],[354,0,366,0],[354,1,366,1],[354,2,366,2],[354,3,366,3],[355,6,355,7],[356,6,366,7],[341,12,353,12],[341,13,353,13],[341,0,353,0],[341,1,353,1],[341,2,353,2],[341,3,353,3],[342,6,342,7],[343,6,353,7],[347,10,347,11],[348,10,353,11],[360,10,360,11],[361,10,366,11],[380,13,392,13],[375,8,379,9],[377,4,379,5],[380,0,392,0],[380,1,392,1],[380,2,392,2],[380,3,392,3],[381,6,381,7],[382,6,392,7],[367,12,379,12],[367,13,379,13],[367,0,379,0],[367,1,379,1],[367,2,379,2],[367,3,379,3],[368,6,368,7],[369,6,379,7],[373,10,373,11],[374,10,379,11],[386,10,386,11],[387,10,392,11],[398,10,398,11],[399,10,405,11],[388,8,392,9],[390,4,392,5],[2,10,2,11],[1,4,1,11],[380,12,392,12],[362,8,366,9],[364,4,366,5],[354,12,366,12],[336,8,340,9],[338,4,340,5],[328,12,340,12],[310,8,314,9],[312,4,314,5],[302,12,314,12],[276,12,288,12],[258,8,262,9],[260,4,262,5],[224,12,236,12],[206,8,210,9],[208,4,210,5],[172,12,184,12],[154,8,158,9],[201,10,203,10],[201,11,203,11],[214,10,216,10],[214,11,216,11],[227,10,229,10],[227,11,229,11],[240,10,242,10],[240,11,242,11],[253,10,255,10],[253,11,255,11],[266,11,268,11],[279,10,281,10],[279,11,281,11],[292,10,294,10],[292,11,294,11],[370,10,372,10],[370,11,372,11],[383,10,385,10],[383,11,385,11],[305,11,307,11],[318,10,320,10],[318,11,320,11],[331,10,333,10],[331,11,333,11],[344,10,346,10],[344,11,346,11],[357,10,359,10],[357,11,359,11]]}
["V 13",null,"It is important that you read the instructions before starting this audit.                                 For the treatment section of this audit, select the primary reason by selecting \"p\" next to the appropriate option and then add subsidiary reasons by selecting 'yes'.    "]
[null,"Basic Details",null,null,"Treatment ",null,null,null,null,null,null,null,"Post-Prescription"]
["No.","Patient Identifier","Age ","Gender ","Diagnosis of clinical condition (select Yes or No as appropriate)",null,"Medical History",null,"Clinical intervention carried out (select Yes or No as appropriate)",null,"Reason for not prescribing ",null,"Condition resolved?","Was the patient reviewed?"]
[1,null,null,null,"No","Acute periapical infection","No","Is there relevant medical history? ","No","None ","No","No infection"]
[null,null,null,null,"No","Acute periodontal infection ","If Yes, please comment below",null,"No","Extraction","No","Clinical intervention was successful"]
[null,null,null,null,"No","NUG",null,null,"No","Opened tooth for drainage","No","Patient refused prescription "]
[null,null,null,null,"No","Post-surgical infection",null,null,"No","Incise Abscess","No","Evidence of systemic spread"]
[null,null,null,null,"No","Chronic periodontitis ",null,null,"No","Scaling/RSD"]
[null,null,null,null,"No","Alveolar osteitis (dry socket)",null,null,"No","Debridement/ Irrigation"]
[null,null,null,null,"No","Irreversible pulpitis ",null,null,"No","Analgesia Recommended","Other reason for not prescribing:"]
[null,null,null,null,"No","Pericoronitis",null,null,"No","Other"]
[null,null,null,null,"No","Sinusitis ",null,null,"Comment: "]
[null,null,null,null,"No","Other (Comment below)"]
[]
[]
[]
[2,null,null,null,"No","Acute periapical infection","No","Is there relevant medical history? ","No","None ","No","No infection"]
[null,null,null,null,"No","Acute periodontal infection ","If Yes, please comment below",null,"No","Extraction","No","Clinical intervention was successful"]
[null,null,null,null,"No","NUG",null,null,"No","Opened tooth for drainage","No","Patient refused prescription "]
[null,null,null,null,"No","Post-surgical infection",null,null,"No","Incise Abscess","No","Evidence of systemic spread"]
[null,null,null,null,"No","Chronic periodontitis ",null,null,"No","Scaling/RSD"]
[null,null,null,null,"No","Alveolar osteitis (dry socket)",null,null,"No","Debridement/ Irrigation"]
[null,null,null,null,"No","Irreversible pulpitis ",null,null,"No","Analgesia Recommended","Other reason for not prescribing:"]
[null,null,null,null,"No","Pericoronitis",null,null,"No","Other"]
[null,null,null,null,"No","Sinusitis ",null,null,"Comment: "]
[null,null,null,null,"No","Other (Comment below)"]
[]
[]
[]
[3,null,null,null,"No","Acute periapical infection","No","Is there relevant medical history? ","No","None ","No","No infection"]
[null,null,null,null,"No","Acute periodontal infection ","If Yes, please comment below",null,"No","Extraction","No","Clinical intervention was successful"]
[null,null,null,null,"No","NUG",null,null,"No","Opened tooth for drainage","No","Patient refused prescription "]
[null,null,null,null,"No","Post-surgical infection",null,null,"No","Incise Abscess","No","Evidence of systemic spread "]
[null,null,null,null,"No","Chronic periodontitis ",null,null,"No","Scaling/RSD"]
[null,null,null,null,"No","Alveolar osteitis (dry socket)",null,null,"No","Debridement/ Irrigation"]
[null,null,null,null,"No","Irreversible pulpitis ",null,null,"No","Analgesia Recommended","Other reason for not prescribing:"]
[null,null,null,null,"No","Pericoronitis",null,null,"No","Other"]
[null,null,null,null,"No","Sinusitis ",null,null,"Comment: "]
[null,null,null,null,"No","Other (Comment below)"]
[]
[]
[]
[4,null,null,null,"No","Acute periapical infection","No","Is there relevant medical history? ","No","None ","No","No infection"]
[null,null,null,null,"No","Acute periodontal infection ","If Yes, please comment below",null,"No","Extraction","No","Clinical intervention was successful"]
[null,null,null,null,"No","NUG",null,null,"No","Opened tooth for drainage","No","Patient refused prescription "]
[null,null,null,null,"No","Post-surgical infection",null,null,"No","Incise Abscess","No","Evidence of systemic spread"]
[null,null,null,null,"No","Chronic periodontitis ",null,null,"No","Scaling/RSD"]
[null,null,null,null,"No","Alveolar osteitis (dry socket)",null,null,"No","Debridement/ Irrigation"]
[null,null,null,null,"No","Irreversible pulpitis ",null,null,"No","Analgesia Recommended","Other reason for not prescribing:"]
[null,null,null,null,"No","Pericoronitis",null,null,"No","Other"]
[null,null,null,null,"No","Sinusitis ",null,null,"Comment: "]
[null,null,null,null,"No","Other (Comment below)"]
[]
[]
[]
[5,null,null,null,"No","Acute periapical infection","No","Is there relevant medical history? ","No","None ","No","No infection"]
[null,null,null,null,"No","Acute periodontal infection ","If Yes, please comment below",null,"No","Extraction","No","Clinical intervention was successful"]
[null,null,null,null,"No","NUG",null,null,"No","Opened tooth for drainage","No","Patient refused prescription "]
[null,null,null,null,"No","Post-surgical infection",null,null,"No","Incise Abscess","No","Evidence of systemic spread"]
[null,null,null,null,"No","Chronic periodontitis ",null,null,"No","Scaling/RSD"]
[null,null,null,null,"No","Alveolar osteitis (dry socket)",null,null,"No","Debridement/ Irrigation"]
[null,null,null,null,"No","Irreversible pulpitis ",null,null,"No","Analgesia Recommended","Other reason for not prescribing:"]
[null,null,null,null,"No","Pericoronitis",null,null,"No","Other"]
[null,null,null,null,"No","Sinusitis ",null,null,"Comment: "]
[null,null,null,null,"No","Other (Comment below)"]
[]
[]
[]
[6,null,null,null,"No","Acute periapical infection","No","Is there relevant medical history? ","No","None ","No","No infection"]
[null,null,null,null,"No","Acute periodontal infection ","If Yes, please comment below",null,"No","Extraction","No","Clinical intervention was successful"]
[null,null,null,null,"No","NUG",null,null,"No","Opened tooth for drainage","No","Patient refused prescription "]
[null,null,null,null,"No","Post-surgical infection",null,null,"No","Incise Abscess","No","Evidence of systemic spread"]
[null,null,null,null,"No","Chronic periodontitis ",null,null,"No","Scaling/RSD"]
[null,null,null,null,"No","Alveolar osteitis (dry socket)",null,null,"No","Debridement/ Irrigation"]
[null,null,null,null,"No","Irreversible pulpitis ",null,null,"No","Analgesia Recommended","Other reason for not prescribing:"]
[null,null,null,null,"No","Pericoronitis",null,null,"No","Other"]
[null,null,null,null,"No","Sinusitis ",null,null,"Comment: "]
[null,null,null,null,"No","Other (Comment below)"]
[]
[]
[]
[7,null,null,null,"No","Acute periapical infection","No","Is there relevant medical history? ","No","None ","No","No infection"]
[null,null,null,null,"No","Acute periodontal infection ","If Yes, please comment below",null,"No","Extraction","No","Clinical intervention was successful"]
[null,null,null,null,"No","NUG",null,null,"No","Opened tooth for drainage","No","Patient refused prescription "]
[null,null,null,null,"No","Post-surgical infection",null,null,"No","Incise Abscess","No","Evidence of systemic spread "]
[null,null,null,null,"No","Chronic periodontitis ",null,null,"No","Scaling/RSD"]
[null,null,null,null,"No","Alveolar osteitis (dry socket)",null,null,"No","Debridement/ Irrigation"]
[null,null,null,null,"No","Irreversible pulpitis ",null,null,"No","Analgesia Recommended","Other reason for not prescribing:"]
[null,null,null,null,"No","Pericoronitis",null,null,"No","Other"]
[null,null,null,null,"No","Sinusitis ",null,null,"Comment: "]
[null,null,null,null,"No","Other (Comment below)"]
[]
[]
[]
[8,null,null,null,"No","Acute periapical infection","No","Is there relevant medical history? ","No","None ","No","No infection"]
[null,null,null,null,"No","Acute periodontal infection ","If Yes, please comment below",null,"No","Extraction","No","Clinical intervention was successful"]
[null,null,null,null,"No","NUG",null,null,"No","Opened tooth for drainage","No","Patient refused prescription "]
[null,null,null,null,"No","Post-surgical infection",null,null,"No","Incise Abscess","No","Evidence of systemic spread"]
[null,null,null,null,"No","Chronic periodontitis ",null,null,"No","Scaling/RSD"]
[null,null,null,null,"No","Alveolar osteitis (dry socket)",null,null,"No","Debridement/ Irrigation"]
[null,null,null,null,"No","Irreversible pulpitis ",null,null,"No","Analgesia Recommended","Other reason for not prescribing:"]
[null,null,null,null,"No","Pericoronitis",null,null,"No","Other"]
[null,null,null,null,"No","Sinusitis ",null,null,"Comment: "]
[null,null,null,null,"No","Other (Comment below)"]
[]
[]
[]
[9,null,null,null,"No","Acute periapical infection","No","Is there relevant medical history? ","No","None ","No","No infection"]
[null,null,null,null,"No","Acute periodontal infection ","If Yes, please comment below",null,"No","Extraction","No","Clinical intervention was successful"]
[null,null,null,null,"No","NUG",null,null,"No","Opened tooth for drainage","No","Patient refused prescription "]
[null,null,null,null,"No","Post-surgical infection",null,null,"No","Incise Abscess","No","Evidence of systemic spread"]
[null,null,null,null,"No","Chronic periodontitis ",null,null,"No","Scaling/RSD"]
[null,null,null,null,"No","Alveolar osteitis (dry socket)",null,null,"No","Debridement/ Irrigation"]
[null,null,null,null,"No","Irreversible pulpitis ",null,null,"No","Analgesia Recommended","Other reason for not prescribing:"]
[null,null,null,null,"No","Pericoronitis",null,null,"No","Other"]
[null,null,null,null,"No","Sinusitis ",null,null,"Comment: "]
[null,null,null,null,"No","Other (Comment below)"]
[]
[]
[]
[10,null,null,null,"No","Acute periapical infection","No","Is there relevant medical history? ","No","None ","No","No infection"]
[null,null,null,null,"No","Acute periodontal infection ","If Yes, please comment below",null,"No","Extraction","No","Clinical intervention was successful"]
[null,null,null,null,"No","NUG",null,null,"No","Opened tooth for drainage","No","Patient refused prescription "]
[null,null,null,null,"No","Post-surgical infection",null,null,"No","Incise Abscess","No","Evidence of systemic spread "]
[null,null,null,null,"No","Chronic periodontitis ",null,null,"No","Scaling/RSD"]
[null,null,null,null,"No","Alveolar osteitis (dry socket)",null,null,"No","Debridement/ Irrigation"]
[null,null,null,null,"No","Irreversible pulpitis ",null,null,"No","Analgesia Recommended","Other reason for not prescribing:"]
[null,null,null,null,"No","Pericoronitis",null,null,"No","Other"]
[null,null,null,null,"No","Sinusitis ",null,null,"Comment: "]
[null,null,null,null,"No","Other (Comment below)"]
[]
[]
[]
[11,null,null,null,"No","Acute periapical infection","No","Is there relevant medical history? ","No","None ","No","No infection"]
[null,null,null,null,"No","Acute periodontal infection ","If Yes, please comment below",null,"No","Extraction","No","Clinical intervention was successful"]
[null,null,null,null,"No","NUG",null,null,"No","Opened tooth for drainage","No","Patient refused prescription "]
[null,null,null,null,"No","Post-surgical infection",null,null,"No","Incise Abscess","No","Evidence of systemic spread"]
[null,null,null,null,"No","Chronic periodontitis ",null,null,"No","Scaling/RSD"]
[null,null,null,null,"No","Alveolar osteitis (dry socket)",null,null,"No","Debridement/ Irrigation"]
[null,null,null,null,"No","Irreversible pulpitis ",null,null,"No","Analgesia Recommended","Other reason for not prescribing:"]
[null,null,null,null,"No","Pericoronitis",null,null,"No","Other"]
[null,null,null,null,"No","Sinusitis ",null,null,"Comment: "]
[null,null,null,null,"No","Other (Comment below)"]
[]
[]
[]
[12,null,null,null,"No","Acute periapical infection","No","Is there relevant medical history? ","No","None ","No","No infection"]
[null,null,null,null,"No","Acute periodontal infection ","If Yes, please comment below",null,"No","Extraction","No","Clinical intervention was successful"]
[null,null,null,null,"No","NUG",null,null,"No","Opened tooth for drainage","No","Patient refused prescription "]
[null,null,null,null,"No","Post-surgical infection",null,null,"No","Incise Abscess","No","Evidence of systemic spread "]
[null,null,null,null,"No","Chronic periodontitis ",null,null,"No","Scaling/RSD"]
[null,null,null,null,"No","Alveolar osteitis (dry socket)",null,null,"No","Debridement/ Irrigation"]
[null,null,null,null,"No","Irreversible pulpitis ",null,null,"No","Analgesia Recommended","Other reason for not prescribing:"]
[null,null,null,null,"No","Pericoronitis",null,null,"No","Other"]
[null,null,null,null,"No","Sinusitis ",null,null,"Comment: "]
[null,null,null,null,"No","Other (Comment below)"]
[]
[]
[]
[13,null,null,null,"No","Acute periapical infection","No","Is there relevant medical history? ","No","None ","No","No infection"]
[null,null,null,null,"No","Acute periodontal infection ","If Yes, please comment below",null,"No","Extraction","No","Clinical intervention was successful"]
[null,null,null,null,"No","NUG",null,null,"No","Opened tooth for drainage","No","Patient refused prescription "]
[null,null,null,null,"No","Post-surgical infection",null,null,"No","Incise Abscess","No","Evidence of systemic spread"]
[null,null,null,null,"No","Chronic periodontitis ",null,null,"No","Scaling/RSD"]
[null,null,null,null,"No","Alveolar osteitis (dry socket)",null,null,"No","Debridement/ Irrigation"]
[null,null,null,null,"No","Irreversible pulpitis ",null,null,"No","Analgesia Recommended","Other reason for not prescribing:"]
[null,null,null,null,"No","Pericoronitis",null,null,"No","Other"]
[null,null,null,null,"No","Sinusitis ",null,null,"Comment: "]
[null,null,null,null,"No","Other (Comment below)"]
[]
[]
[]
[14,null,null,null,"No","Acute periapical infection","No","Is there relevant medical history? ","No","None ","No","No infection"]
[null,null,null,null,"No","Acute periodontal infection ","If Yes, please comment below",null,"No","Extraction","No","Clinical intervention was successful"]
[null,null,null,null,"No","NUG",null,null,"No","Opened tooth for drainage","No","Patient refused prescription "]
[null,null,null,null,"No","Post-surgical infection",null,null,"No","Incise Abscess","No","Evidence of systemic spread: "]
[null,null,null,null,"No","Chronic periodontitis ",null,null,"No","Scaling/RSD"]
[null,null,null,null,"No","Alveolar osteitis (dry socket)",null,null,"No","Debridement/ Irrigation"]
[null,null,null,null,"No","Irreversible pulpitis ",null,null,"No","Analgesia Recommended","Other reason for not prescribing:"]
[null,null,null,null,"No","Pericoronitis",null,null,"No","Other"]
[null,null,null,null,"No","Sinusitis ",null,null,"Comment: "]
[null,null,null,null,"No","Other (Comment below)"]
[]
[]
[]
[15,null,null,null,"No","Acute periapical infection","No","Is there relevant medical history? ","No","None ","No","No infection"]
[null,null,null,null,"No","Acute periodontal infection ","If Yes, please comment below",null,"No","Extraction","No","Clinical intervention was successful"]
[null,null,null,null,"No","NUG",null,null,"No","Opened tooth for drainage","No","Patient refused prescription "]
[null,null,null,null,"No","Post-surgical infection",null,null,"No","Incise Abscess","No","Evidence of systemic spread"]
[null,null,null,null,"No","Chronic periodontitis ",null,null,"No","Scaling/RSD"]
[null,null,null,null,"No","Alveolar osteitis (dry socket)",null,null,"No","Debridement/ Irrigation"]
[null,null,null,null,"No","Irreversible pulpitis ",null,null,"No","Analgesia Recommended","Other reason for not prescribing:"]
[null,null,null,null,"No","Pericoronitis",null,null,"No","Other"]
[null,null,null,null,"No","Sinusitis ",null,null,"Comment: "]
[null,null,null,null,"No","Other (Comment below)"]
[]
[]
[]
[16,null,null,null,"No","Acute periapical infection","No","Is there relevant medical history? ","No","None ","No","No infection"]
[null,null,null,null,"No","Acute periodontal infection ","If Yes, please comment below",null,"No","Extraction","No","Clinical intervention was successful"]
[null,null,null,null,"No","NUG",null,null,"No","Opened tooth for drainage","No","Patient refused prescription "]
[null,null,null,null,"No","Post-surgical infection",null,null,"No","Incise Abscess","No","Evidence of systemic spread"]
[null,null,null,null,"No","Chronic periodontitis ",null,null,"No","Scaling/RSD"]
[null,null,null,null,"No","Alveolar osteitis (dry socket)",null,null,"No","Debridement/ Irrigation"]
[null,null,null,null,"No","Irreversible pulpitis ",null,null,"No","Analgesia Recommended","Other reason for not prescribing:"]
[null,null,null,null,"No","Pericoronitis",null,null,"No","Other"]
[null,null,null,null,"No","Sinusitis ",null,null,"Comment: "]
[null,null,null,null,"No","Other (Comment below)"]
[]
[]
[]
[17,null,null,null,"No","Acute periapical infection","No","Is there relevant medical history? ","No","None ","No","No infection"]
[null,null,null,null,"No","Acute periodontal infection ","If Yes, please comment below",null,"No","Extraction","No","Clinical intervention was successful"]
[null,null,null,null,"No","NUG",null,null,"No","Opened tooth for drainage","No","Patient refused prescription "]
[null,null,null,null,"No","Post-surgical infection",null,null,"No","Incise Abscess","No","Evidence of systemic spread "]
[null,null,null,null,"No","Chronic periodontitis ",null,null,"No","Scaling/RSD"]
[null,null,null,null,"No","Alveolar osteitis (dry socket)",null,null,"No","Debridement/ Irrigation"]
[null,null,null,null,"No","Irreversible pulpitis ",null,null,"No","Analgesia Recommended","Other reason for not prescribing:"]
[null,null,null,null,"No","Pericoronitis",null,null,"No","Other"]
[null,null,null,null,"No","Sinusitis ",null,null,"Comment: "]
[null,null,null,null,"No","Other (Comment below)"]
[]
[]
[]
[18,null,null,null,"No","Acute periapical infection","No","Is there relevant medical history? ","No","None ","No","No infection"]
[null,null,null,null,"No","Acute periodontal infection ","If Yes, please comment below",null,"No","Extraction","No","Clinical intervention was successful"]
[null,null,null,null,"No","NUG",null,null,"No","Opened tooth for drainage","No","Patient refused prescription "]
[null,null,null,null,"No","Post-surgical infection",null,null,"No","Incise Abscess","No","Evidence of systemic spread"]
[null,null,null,null,"No","Chronic periodontitis ",null,null,"No","Scaling/RSD"]
[null,null,null,null,"No","Alveolar osteitis (dry socket)",null,null,"No","Debridement/ Irrigation"]
[null,null,null,null,"No","Irreversible pulpitis ",null,null,"No","Analgesia Recommended","Other reason for not prescribing:"]
[null,null,null,null,"No","Pericoronitis",null,null,"No","Other"]
[null,null,null,null,"No","Sinusitis ",null,null,"Comment: "]
[null,null,null,null,"No","Other (Comment below)"]
[]
[]
[]
[19,null,null,null,"No","Acute periapical infection","No","Is there relevant medical history? ","No","None ","No","No infection"]
[null,null,null,null,"No","Acute periodontal infection ","If Yes, please comment below",null,"No","Extraction","No","Clinical intervention was successful"]
[null,null,null,null,"No","NUG",null,null,"No","Opened tooth for drainage","No","Patient refused prescription "]
[null,null,null,null,"No","Post-surgical infection",null,null,"No","Incise Abscess","No","Evidence of systemic spread"]
[null,null,null,null,"No","Chronic periodontitis ",null,null,"No","Scaling/RSD"]
[null,null,null,null,"No","Alveolar osteitis (dry socket)",null,null,"No","Debridement/ Irrigation"]
[null,null,null,null,"No","Irreversible pulpitis ",null,null,"No","Analgesia Recommended","Other reason for not prescribing:"]
[null,null,null,null,"No","Pericoronitis",null,null,"No","Other"]
[null,null,null,null,"No","Sinusitis ",null,null,"Comment: "]
[null,null,null,null,"No","Other (Comment below)"]
[]
[]
[]
[20,null,null,null,"No","Acute periapical infection","No","Is there relevant medical history? ","No","None ","No","No infection"]
[null,null,null,null,"No","Acute periodontal infection ","If Yes, please comment below",null,"No","Extraction","No","Clinical intervention was successful"]
[null,null,null,null,"No","NUG",null,null,"No","Opened tooth for drainage","No","Patient refused prescription "]
[null,null,null,null,"No","Post-surgical infection",null,null,"No","Incise Abscess","No","Evidence of systemic spread "]
[null,null,null,null,"No","Chronic periodontitis ",null,null,"No","Scaling/RSD"]
[null,null,null,null,"No","Alveolar osteitis (dry socket)",null,null,"No","Debridement/ Irrigation"]
[null,null,null,null,"No","Irreversible pulpitis ",null,null,"No","Analgesia Recommended","Other reason for not prescribing:"]
[null,null,null,null,"No","Pericoronitis",null,null,"No","Other"]
[null,null,null,null,"No","Sinusitis ",null,null,"Comment: "]
[null,null,null,null,"No","Other (Comment below)"]
[]
[]
[]
[21,null,null,null,"No","Acute periapical infection","No","Is there relevant medical history? ","No","None ","No","No infection"]
[null,null,null,null,"No","Acute periodontal infection ","If Yes, please comment below",null,"No","Extraction","No","Clinical intervention was successful"]
[null,null,null,null,"No","NUG",null,null,"No","Opened tooth for drainage","No","Patient refused prescription "]
[null,null,null,null,"No","Post-surgical infection",null,null,"No","Incise Abscess","No","Evidence of systemic spread"]
[null,null,null,null,"No","Chronic periodontitis ",null,null,"No","Scaling/RSD"]
[null,null,null,null,"No","Alveolar osteitis (dry socket)",null,null,"No","Debridement/ Irrigation"]
[null,null,null,null,"No","Irreversible pulpitis ",null,null,"No","Analgesia Recommended","Other reason for not prescribing:"]
[null,null,null,null,"No","Pericoronitis",null,null,"No","Other"]
[null,null,null,null,"No","Sinusitis ",null,null,"Comment: "]
[null,null,null,null,"No","Other (Comment below)"]
[]
[]
[]
[22,null,null,null,"No","Acute periapical infection","No","Is there relevant medical history? ","No","None ","No","No infection"]
[null,null,null,null,"No","Acute periodontal infection ","If Yes, please comment below",null,"No","Extraction","No","Clinical intervention was successful"]
[null,null,null,null,"No","NUG",null,null,"No","Opened tooth for drainage","No","Patient refused prescription "]
[null,null,null,null,"No","Post-surgical infection",null,null,"No","Incise Abscess","No","Evidence of systemic spread "]
[null,null,null,null,"No","Chronic periodontitis ",null,null,"No","Scaling/RSD"]
[null,null,null,null,"No","Alveolar osteitis (dry socket)",null,null,"No","Debridement/ Irrigation"]
[null,null,null,null,"No","Irreversible pulpitis ",null,null,"No","Analgesia Recommended","Other reason for not prescribing:"]
[null,null,null,null,"No","Pericoronitis",null,null,"No","Other"]
[null,null,null,null,"No","Sinusitis ",null,null,"Comment: "]
[null,null,null,null,"No","Other (Comment below)"]
[]
[]
[]
[23,null,null,null,"No","Acute periapical infection","No","Is there relevant medical history? ","No","None ","No","No infection"]
[null,null,null,null,"No","Acute periodontal infection ","If Yes, please comment below",null,"No","Extraction","No","Clinical intervention was successful"]
[null,null,null,null,"No","NUG",null,null,"No","Opened tooth for drainage","No","Patient refused prescription "]
[null,null,null,null,"No","Post-surgical infection",null,null,"No","Incise Abscess","No","Evidence of systemic spread"]
[null,null,null,null,"No","Chronic periodontitis ",null,null,"No","Scaling/RSD"]
[null,null,null,null,"No","Alveolar osteitis (dry socket)",null,null,"No","Debridement/ Irrigation"]
[null,null,null,null,"No","Irreversible pulpitis ",null,null,"No","Analgesia Recommended","Other reason for not prescribing:"]
[null,null,null,null,"No","Pericoronitis",null,null,"No","Other"]
[null,null,null,null,"No","Sinusitis ",null,null,"Comment: "]
[null,null,null,null,"No","Other (Comment below)"]
[]
[]
[]
[24,null,null,null,"No","Acute periapical infection","No","Is there relevant medical history? ","No","None ","No","No infection"]
[null,null,null,null,"No","Acute periodontal infection ","If Yes, please comment below",null,"No","Extraction","No","Clinical intervention was successful"]
[null,null,null,null,"No","NUG",null,null,"No","Opened tooth for drainage","No","Patient refused prescription "]
[null,null,null,null,"No","Post-surgical infection",null,null,"No","Incise Abscess","No","Evidence of systemic spread"]
[null,null,null,null,"No","Chronic periodontitis ",null,null,"No","Scaling/RSD"]
[null,null,null,null,"No","Alveolar osteitis (dry socket)",null,null,"No","Debridement/ Irrigation"]
[null,null,null,null,"No","Irreversible pulpitis ",null,null,"No","Analgesia Recommended","Other reason for not prescribing:"]
[null,null,null,null,"No","Pericoronitis",null,null,"No","Other"]
[null,null,null,null,"No","Sinusitis ",null,null,"Comment: "]
[null,null,null,null,"No","Other (Comment below)"]
[]
[]
[]
[25,null,null,null,"No","Acute periapical infection","No","Is there relevant medical history? ","No","None ","No","No infection"]
[null,null,null,null,"No","Acute periodontal infection ","If Yes, please comment below",null,"No","Extraction","No","Clinical intervention was successful"]
[null,null,null,null,"No","NUG",null,null,"No","Opened tooth for drainage","No","Patient refused prescription "]
[null,null,null,null,"No","Post-surgical infection",null,null,"No","Incise Abscess","No","Evidence of systemic spread"]
[null,null,null,null,"No","Chronic periodontitis ",null,null,"No","Scaling/RSD"]
[null,null,null,null,"No","Alveolar osteitis (dry socket)",null,null,"No","Debridement/ Irrigation"]
[null,null,null,null,"No","Irreversible pulpitis ",null,null,"No","Analgesia Recommended","Other reason for not prescribing:"]
[null,null,null,null,"No","Pericoronitis",null,null,"No","Other"]
[null,null,null,null,"No","Sinusitis ",null,null,"Comment: "]
[null,null,null,null,"No","Other (Comment below)"]
[]
[]
[]
[26,null,null,null,"No","Acute periapical infection","No","Is there relevant medical history? ","No","None ","No","No infection"]
[null,null,null,null,"No","Acute periodontal infection ","If Yes, please comment below",null,"No","Extraction","No","Clinical intervention was successful"]
[null,null,null,null,"No","NUG",null,null,"No","Opened tooth for drainage","No","Patient refused prescription "]
[null,null,null,null,"No","Post-surgical infection",null,null,"No","Incise Abscess","No","Evidence of systemic spread"]
[null,null,null,null,"No","Chronic periodontitis ",null,null,"No","Scaling/RSD"]
[null,null,null,null,"No","Alveolar osteitis (dry socket)",null,null,"No","Debridement/ Irrigation"]
[null,null,null,null,"No","Irreversible pulpitis ",null,null,"No","Analgesia Recommended","Other reason for not prescribing:"]
[null,null,null,null,"No","Pericoronitis",null,null,"No","Other"]
[null,null,null,null,"No","Sinusitis ",null,null,"Comment: "]
[null,null,null,null,"No","Other (Comment below)"]
[]
[]
[]
[27,null,null,null,"No","Acute periapical infection","No","Is there relevant medical history? ","No","None ","No","No infection"]
[null,null,null,null,"No","Acute periodontal infection ","If Yes, please comment below",null,"No","Extraction","No","Clinical intervention was successful"]
[null,null,null,null,"No","NUG",null,null,"No","Opened tooth for drainage","No","Patient refused prescription "]
[null,null,null,null,"No","Post-surgical infection",null,null,"No","Incise Abscess","No","Evidence of systemic spread"]
[null,null,null,null,"No","Chronic periodontitis ",null,null,"No","Scaling/RSD"]
[null,null,null,null,"No","Alveolar osteitis (dry socket)",null,null,"No","Debridement/ Irrigation"]
[null,null,null,null,"No","Irreversible pulpitis ",null,null,"No","Analgesia Recommended","Other reason for not prescribing:"]
[null,null,null,null,"No","Pericoronitis",null,null,"No","Other"]
[null,null,null,null,"No","Sinusitis ",null,null,"Comment: "]
[null,null,null,null,"No","Other (Comment below)"]
[]
[]
[]
[28,null,null,null,"No","Acute periapical infection","No","Is there relevant medical history? ","No","None ","No","No infection"]
[null,null,null,null,"No","Acute periodontal infection ","If Yes, please comment below",null,"No","Extraction","No","Clinical intervention was successful"]
[null,null,null,null,"No","NUG",null,null,"No","Opened tooth for drainage","No","Patient refused prescription "]
[null,null,null,null,"No","Post-surgical infection",null,null,"No","Incise Abscess","No","Evidence of systemic spread"]
[null,null,null,null,"No","Chronic periodontitis ",null,null,"No","Scaling/RSD"]
[null,null,null,null,"No","Alveolar osteitis (dry socket)",null,null,"No","Debridement/ Irrigation"]
[null,null,null,null,"No","Irreversible pulpitis ",null,null,"No","Analgesia Recommended","Other reason for not prescribing:"]
[null,null,null,null,"No","Pericoronitis",null,null,"No","Other"]
[null,null,null,null,"No","Sinusitis ",null,null,"Comment: "]
[null,null,null,null,"No","Other (Comment below)"]
[]
[]
[]
[29,null,null,null,"No","Acute periapical infection","No","Is there relevant medical history? ","No","None ","No","No infection"]
[null,null,null,null,"No","Acute periodontal infection ","If Yes, please comment below",null,"No","Extraction","No","Clinical intervention was successful"]
[null,null,null,null,"No","NUG",null,null,"No","Opened tooth for drainage","No","Patient refused prescription "]
[null,null,null,null,"No","Post-surgical infection",null,null,"No","Incise Abscess","No","Evidence of systemic spread"]
[null,null,null,null,"No","Chronic periodontitis ",null,null,"No","Scaling/RSD"]
[null,null,null,null,"No","Alveolar osteitis (dry socket)",null,null,"No","Debridement/ Irrigation"]
[null,null,null,null,"No","Irreversible pulpitis ",null,null,"No","Analgesia Recommended","Other reason for not prescribing:"]
[null,null,null,null,"No","Pericoronitis",null,null,"No","Other"]
[null,null,null,null,"No","Sinusitis ",null,null,"Comment: "]
[null,null,null,null,"No","Other (Comment below)"]
[]
[]
[]
[30,null,null,null,"No","Acute periapical infection","No","Is there relevant medical history? ","No","None ","No","No infection"]
[null,null,null,null,"No","Acute periodontal infection ","If Yes, please comment below",null,"No","Extraction","No","Clinical intervention was successful"]
[null,null,null,null,"No","NUG",null,null,"No","Opened tooth for drainage","No","Patient refused prescription "]
[null,null,null,null,"No","Post-surgical infection",null,null,"No","Incise Abscess","No","Evidence of systemic spread"]
[null,null,null,null,"No","Chronic periodontitis ",null,null,"No","Scaling/RSD"]
[null,null,null,null,"No","Alveolar osteitis (dry socket)",null,null,"No","Debridement/ Irrigation"]
[null,null,null,null,"No","Irreversible pulpitis ",null,null,"No","Analgesia Recommended","Other reason for not prescribing:"]
[null,null,null,null,"No","Pericoronitis",null,null,"No","Other"]
[null,null,null,null,"No","Sinusitis ",null,null,"Comment: "]
[null,null,null,null,"No","Other (Comment below)"]

{"sheet":"Summary A","index":4,"n_rows":35,"n_cols":14,"rows_kept":35,"cut":false,"hidden":false,"merged":[[3,1,3,3],[3,4,3,7],[3,8,3,11],[3,12,3,13],[1,1,1,13]]}
[]
[null,"Summary of treatment provided with a prescription"]
[]
[null,"Patient Details",null,null,"Treatment Details ",null,null,null,"Prescription",null,null,null,"Post-Prescription"]
[null,"Patient Number","Age","Gender","Primary diagnosis of clinical condition ","Medical History","Primary reason for prescribing","Primary treatment carried out ","Drug","Dose","Frequency","Duration","Condition resolved? ","Was the patient reviewed"]
[null,1,{"$f":"IF('Entry-Prescription A'!C4=\"\",\"None\",'Entry-Prescription A'!C4)","v":"None"},{"$f":"IF('Entry-Prescription A'!D4=\"\",\"None\",'Entry-Prescription A'!D4)","v":"None"},{"$f":"IF(ISNA(VLOOKUP(\"p\",'Entry-Prescription A'!E4:F13,2, FALSE)),\"None Selected\", VLOOKUP(\"p\",'Entry-Prescription A'!E4:F13,2, FALSE))","v":"None Selected"},{"$f":"'Entry-Prescription A'!G4","v":"No"},{"$f":"IF(ISNA(VLOOKUP(\"p\",'Entry-Prescription A'!I4:J16,2, FALSE)),\"None Selected\", VLOOKUP(\"p\",'Entry-Prescription A'!I4:J16,2, FALSE))","v":"None Selected"},{"$f":"IF(ISNA(VLOOKUP(\"p\",'Entry-Prescription A'!K4:L12,2, FALSE)),\"None Selected \", VLOOKUP(\"p\",'Entry-Prescription A'!K4:L12,2, FALSE))","v":"None Selected "},{"$f":"IF('Entry-Prescription A'!M4=\"\",\"None Selected\",'Entry-Prescription A'!M4)","v":"None Selected"},{"$f":"IF('Entry-Prescription A'!N4=\"\",\"None\",'Entry-Prescription A'!N4)","v":"None"},{"$f":"IF('Entry-Prescription A'!O4=\"\",\"None\",'Entry-Prescription A'!O4)","v":"None"},{"$f":"IF('Entry-Prescription A'!P4=\"\",\"None\",'Entry-Prescription A'!P4)","v":"None"},{"$f":"IF('Entry-Prescription A'!Q4=\"\",\"None Selected\",'Entry-Prescription A'!Q4)","v":"None Selected"},{"$f":"IF('Entry-Prescription A'!R4=\"\",\"None Selected\",'Entry-Prescription A'!R4)","v":"None Selected"}]
[null,2,{"$f":"IF('Entry-Prescription A'!C17=\"\",\"None\",'Entry-Prescription A'!C17)","v":"None"},{"$f":"IF('Entry-Prescription A'!D17=\"\",\"None\",'Entry-Prescription A'!D17)","v":"None"},{"$f":"IF(ISNA(VLOOKUP(\"p\",'Entry-Prescription A'!E17:F26,2, FALSE)),\"None Selected\", VLOOKUP(\"p\",'Entry-Prescription A'!E17:F26,2, FALSE))","v":"None Selected"},{"$f":"'Entry-Prescription A'!G17","v":"No"},{"$f":"IF(ISNA(VLOOKUP(\"p\",'Entry-Prescription A'!I17:J29,2, FALSE)),\"None Selected\", VLOOKUP(\"p\",'Entry-Prescription A'!I17:J29,2, FALSE))","v":"None Selected"},{"$f":"IF(ISNA(VLOOKUP(\"p\",'Entry-Prescription A'!K17:L25,2, FALSE)),\"None Selected\", VLOOKUP(\"p\",'Entry-Prescription A'!K17:L25,2, FALSE))","v":"None Selected"},{"$f":"IF('Entry-Prescription A'!M17=\"\",\"None Selected\",'Entry-Prescription A'!M17)","v":"None Selected"},{"$f":"IF('Entry-Prescription A'!N17=\"\",\"None\",'Entry-Prescription A'!N17)","v":"None"},{"$f":"IF('Entry-Prescription A'!O17=\"\",\"None\",'Entry-Prescription A'!O17)","v":"None"},{"$f":"IF('Entry-Prescription A'!P17=\"\",\"None\",'Entry-Prescription A'!P17)","v":"None"},{"$f":"IF('Entry-Prescription A'!Q17=\"\",\"None Selected\",'Entry-Prescription A'!Q17)","v":"None Selected"},{"$f":"IF('Entry-Prescription A'!R17=\"\",\"None Selected\",'Entry-Prescription A'!R17)","v":"None Selected"}]
[null,3,{"$f":"IF('Entry-Prescription A'!C30=\"\",\"None\",'Entry-Prescription A'!C30)","v":"None"},{"$f":"IF('Entry-Prescription A'!D30=\"\",\"None\",'Entry-Prescription A'!D30)","v":"None"},{"$f":"IF(ISNA(VLOOKUP(\"p\",'Entry-Prescription A'!E30:F39,2, FALSE)),\"None Selected\", VLOOKUP(\"p\",'Entry-Prescription A'!E30:F39,2, FALSE))","v":"None Selected"},{"$f":"'Entry-Prescription A'!G30","v":"No"},{"$f":"IF(ISNA(VLOOKUP(\"p\",'Entry-Prescription A'!I30:J42,2, FALSE)),\"None Selected\", VLOOKUP(\"p\",'Entry-Prescription A'!I30:J42,2, FALSE))","v":"None Selected"},{"$f":"IF(ISNA(VLOOKUP(\"p\",'Entry-Prescription A'!K30:L38,2, FALSE)),\"None Selected\", VLOOKUP(\"p\",'Entry-Prescription A'!K30:L38,2, FALSE))","v":"None Selected"},{"$f":"IF('Entry-Prescription A'!M30=\"\",\"None Selected\",'Entry-Prescription A'!M30)","v":"None Selected"},{"$f":"IF('Entry-Prescription A'!N30=\"\",\"None\",'Entry-Prescription A'!N30)","v":"None"},{"$f":"IF('Entry-Prescription A'!O30=\"\",\"None\",'Entry-Prescription A'!O30)","v":"None"},{"$f":"IF('Entry-Prescription A'!P30=\"\",\"None\",'Entry-Prescription A'!P30)","v":"None"},{"$f":"IF('Entry-Prescription A'!Q30=\"\",\"None Selected\",'Entry-Prescription A'!Q30)","v":"None Selected"},{"$f":"IF('Entry-Prescription A'!R30=\"\",\"None Selected\",'Entry-Prescription A'!R30)","v":"None Selected"}]
[null,4,{"$f":"IF('Entry-Prescription A'!C43=\"\",\"None\",'Entry-Prescription A'!C43)","v":"None"},{"$f":"IF('Entry-Prescription A'!D43=\"\",\"None\",'Entry-Prescription A'!D43)","v":"None"},{"$f":"IF(ISNA(VLOOKUP(\"p\",'Entry-Prescription A'!E43:F52,2, FALSE)),\"None Selected\", VLOOKUP(\"p\",'Entry-Prescription A'!E43:F52,2, FALSE))","v":"None Selected"},{"$f":"'Entry-Prescription A'!G43","v":"No"},{"$f":"IF(ISNA(VLOOKUP(\"p\",'Entry-Prescription A'!I43:J55,2, FALSE)),\"None Selected\", VLOOKUP(\"p\",'Entry-Prescription A'!I43:J55,2, FALSE))","v":"None Selected"},{"$f":"IF(ISNA(VLOOKUP(\"p\",'Entry-Prescription A'!K43:L51,2, FALSE)),\"None Selected\", VLOOKUP(\"p\",'Entry-Prescription A'!K43:L51,2, FALSE))","v":"None Selected"},{"$f":"IF('Entry-Prescription A'!M43=\"\",\"None Selected\",'Entry-Prescription A'!M43)","v":"None Selected"},{"$f":"IF('Entry-Prescription A'!N43=\"\",\"None\",'Entry-Prescription A'!N43)","v":"None"},{"$f":"IF('Entry-Prescription A'!O43=\"\",\"None\",'Entry-Prescription A'!O43)","v":"None"},{"$f":"IF('Entry-Prescription A'!P43=\"\",\"None\",'Entry-Prescription A'!P43)","v":"None"},{"$f":"IF('Entry-Prescription A'!Q43=\"\",\"None Selected\",'Entry-Prescription A'!Q43)","v":"None Selected"},{"$f":"IF('Entry-Prescription A'!R43=\"\",\"None Selected\",'Entry-Prescription A'!R43)","v":"None Selected"}]
[null,5,{"$f":"IF('Entry-Prescription A'!C56=\"\",\"None\",'Entry-Prescription A'!C56)","v":"None"},{"$f":"IF('Entry-Prescription A'!D56=\"\",\"None\",'Entry-Prescription A'!D56)","v":"None"},{"$f":"IF(ISNA(VLOOKUP(\"p\",'Entry-Prescription A'!E56:F65,2, FALSE)),\"None Selected\", VLOOKUP(\"p\",'Entry-Prescription A'!E56:F65,2, FALSE))","v":"None Selected"},{"$f":"'Entry-Prescription A'!G56","v":"No"},{"$f":"IF(ISNA(VLOOKUP(\"p\",'Entry-Prescription A'!I56:J68,2, FALSE)),\"None Selected\", VLOOKUP(\"p\",'Entry-Prescription A'!I56:J68,2, FALSE))","v":"None Selected"},{"$f":"IF(ISNA(VLOOKUP(\"p\",'Entry-Prescription A'!K56:L64,2, FALSE)),\"None Selected\", VLOOKUP(\"p\",'Entry-Prescription A'!K56:L64,2, FALSE))","v":"None Selected"},{"$f":"IF('Entry-Prescription A'!M56=\"\",\"None Selected\",'Entry-Prescription A'!M56)","v":"None Selected"},{"$f":"IF('Entry-Prescription A'!N56=\"\",\"None\",'Entry-Prescription A'!N56)","v":"None"},{"$f":"IF('Entry-Prescription A'!O56=\"\",\"None\",'Entry-Prescription A'!O56)","v":"None"},{"$f":"IF('Entry-Prescription A'!P56=\"\",\"None\",'Entry-Prescription A'!P56)","v":"None"},{"$f":"IF('Entry-Prescription A'!Q56=\"\",\"None Selected\",'Entry-Prescription A'!Q56)","v":"None Selected"},{"$f":"IF('Entry-Prescription A'!R56=\"\",\"None Selected\",'Entry-Prescription A'!R56)","v":"None Selected"}]
[null,6,{"$f":"IF('Entry-Prescription A'!C69=\"\",\"None\",'Entry-Prescription A'!C69)","v":"None"},{"$f":"IF('Entry-Prescription A'!D69=\"\",\"None\",'Entry-Prescription A'!D69)","v":"None"},{"$f":"IF(ISNA(VLOOKUP(\"p\",'Entry-Prescription A'!E69:F78,2, FALSE)),\"None Selected\", VLOOKUP(\"p\",'Entry-Prescription A'!E69:F78,2, FALSE))","v":"None Selected"},{"$f":"'Entry-Prescription A'!G69","v":"No"},{"$f":"IF(ISNA(VLOOKUP(\"p\",'Entry-Prescription A'!I69:J81,2, FALSE)),\"None Selected\", VLOOKUP(\"p\",'Entry-Prescription A'!I69:J81,2, FALSE))","v":"None Selected"},{"$f":"IF(ISNA(VLOOKUP(\"p\",'Entry-Prescription A'!K69:L77,2, FALSE)),\"None Selected\", VLOOKUP(\"p\",'Entry-Prescription A'!K69:L77,2, FALSE))","v":"None Selected"},{"$f":"IF('Entry-Prescription A'!M69=\"\",\"None Selected\",'Entry-Prescription A'!M69)","v":"None Selected"},{"$f":"IF('Entry-Prescription A'!N69=\"\",\"None\",'Entry-Prescription A'!N69)","v":"None"},{"$f":"IF('Entry-Prescription A'!O69=\"\",\"None\",'Entry-Prescription A'!O69)","v":"None"},{"$f":"IF('Entry-Prescription A'!P69=\"\",\"None\",'Entry-Prescription A'!P69)","v":"None"},{"$f":"IF('Entry-Prescription A'!Q69=\"\",\"None Selected\",'Entry-Prescription A'!Q69)","v":"None Selected"},{"$f":"IF('Entry-Prescription A'!R69=\"\",\"None Selected\",'Entry-Prescription A'!R69)","v":"None Selected"}]
[null,7,{"$f":"IF('Entry-Prescription A'!C82=\"\",\"None\",'Entry-Prescription A'!C82)","v":"None"},{"$f":"IF('Entry-Prescription A'!D82=\"\",\"None\",'Entry-Prescription A'!D82)","v":"None"},{"$f":"IF(ISNA(VLOOKUP(\"p\",'Entry-Prescription A'!E82:F91,2, FALSE)),\"None Selected\", VLOOKUP(\"p\",'Entry-Prescription A'!E82:F91,2, FALSE))","v":"None Selected"},{"$f":"'Entry-Prescription A'!G82","v":"No"},{"$f":"IF(ISNA(VLOOKUP(\"p\",'Entry-Prescription A'!I82:J94,2, FALSE)),\"None Selected\", VLOOKUP(\"p\",'Entry-Prescription A'!I82:J94,2, FALSE))","v":"None Selected"},{"$f":"IF(ISNA(VLOOKUP(\"p\",'Entry-Prescription A'!K82:L90,2, FALSE)),\"None Selected\", VLOOKUP(\"p\",'Entry-Prescription A'!K82:L90,2, FALSE))","v":"None Selected"},{"$f":"IF('Entry-Prescription A'!M82=\"\",\"None Selected\",'Entry-Prescription A'!M82)","v":"None Selected"},{"$f":"IF('Entry-Prescription A'!N82=\"\",\"None\",'Entry-Prescription A'!N82)","v":"None"},{"$f":"IF('Entry-Prescription A'!O82=\"\",\"None\",'Entry-Prescription A'!O82)","v":"None"},{"$f":"IF('Entry-Prescription A'!P82=\"\",\"None\",'Entry-Prescription A'!P82)","v":"None"},{"$f":"IF('Entry-Prescription A'!Q82=\"\",\"None Selected\",'Entry-Prescription A'!Q82)","v":"None Selected"},{"$f":"IF('Entry-Prescription A'!R82=\"\",\"None Selected\",'Entry-Prescription A'!R82)","v":"None Selected"}]
[null,8,{"$f":"IF('Entry-Prescription A'!C95=\"\",\"None\",'Entry-Prescription A'!C95)","v":"None"},{"$f":"IF('Entry-Prescription A'!D95=\"\",\"None\",'Entry-Prescription A'!D95)","v":"None"},{"$f":"IF(ISNA(VLOOKUP(\"p\",'Entry-Prescription A'!E95:F104,2, FALSE)),\"None Selected\", VLOOKUP(\"p\",'Entry-Prescription A'!E95:F104,2, FALSE))","v":"None Selected"},{"$f":"'Entry-Prescription A'!G95","v":"No"},{"$f":"IF(ISNA(VLOOKUP(\"p\",'Entry-Prescription A'!I95:J107,2, FALSE)),\"None Selected\", VLOOKUP(\"p\",'Entry-Prescription A'!I95:J107,2, FALSE))","v":"None Selected"},{"$f":"IF(ISNA(VLOOKUP(\"p\",'Entry-Prescription A'!K95:L103,2, FALSE)),\"None Selected\", VLOOKUP(\"p\",'Entry-Prescription A'!K95:L103,2, FALSE))","v":"None Selected"},{"$f":"IF('Entry-Prescription A'!M95=\"\",\"None Selected\",'Entry-Prescription A'!M95)","v":"None Selected"},{"$f":"IF('Entry-Prescription A'!N95=\"\",\"None\",'Entry-Prescription A'!N95)","v":"None"},{"$f":"IF('Entry-Prescription A'!O95=\"\",\"None\",'Entry-Prescription A'!O95)","v":"None"},{"$f":"IF('Entry-Prescription A'!P95=\"\",\"None\",'Entry-Prescription A'!P95)","v":"None"},{"$f":"IF('Entry-Prescription A'!Q95=\"\",\"None Selected\",'Entry-Prescription A'!Q95)","v":"None Selected"},{"$f":"IF('Entry-Prescription A'!R95=\"\",\"None Selected\",'Entry-Prescription A'!R95)","v":"None Selected"}]
[null,9,{"$f":"IF('Entry-Prescription A'!C108=\"\",\"None\",'Entry-Prescription A'!C108)","v":"None"},{"$f":"IF('Entry-Prescription A'!D108=\"\",\"None\",'Entry-Prescription A'!D108)","v":"None"},{"$f":"IF(ISNA(VLOOKUP(\"p\",'Entry-Prescription A'!E108:F117,2, FALSE)),\"None Selected\", VLOOKUP(\"p\",'Entry-Prescription A'!E108:F117,2, FALSE))","v":"None Selected"},{"$f":"'Entry-Prescription A'!G108","v":"No"},{"$f":"IF(ISNA(VLOOKUP(\"p\",'Entry-Prescription A'!I108:J120,2, FALSE)),\"None Selected\", VLOOKUP(\"p\",'Entry-Prescription A'!I108:J120,2, FALSE))","v":"None Selected"},{"$f":"IF(ISNA(VLOOKUP(\"p\",'Entry-Prescription A'!K108:L116,2, FALSE)),\"None Selected\", VLOOKUP(\"p\",'Entry-Prescription A'!K108:L116,2, FALSE))","v":"None Selected"},{"$f":"IF('Entry-Prescription A'!M108=\"\",\"None Selected\",'Entry-Prescription A'!M108)","v":"None Selected"},{"$f":"IF('Entry-Prescription A'!N108=\"\",\"None\",'Entry-Prescription A'!N108)","v":"None"},{"$f":"IF('Entry-Prescription A'!O108=\"\",\"None\",'Entry-Prescription A'!O108)","v":"None"},{"$f":"IF('Entry-Prescription A'!P108=\"\",\"None\",'Entry-Prescription A'!P108)","v":"None"},{"$f":"IF('Entry-Prescription A'!Q108=\"\",\"None Selected\",'Entry-Prescription A'!Q108)","v":"None Selected"},{"$f":"IF('Entry-Prescription A'!R108=\"\",\"None Selected\",'Entry-Prescription A'!R108)","v":"None Selected"}]
[null,10,{"$f":"IF('Entry-Prescription A'!C121=\"\",\"None\",'Entry-Prescription A'!C121)","v":"None"},{"$f":"IF('Entry-Prescription A'!D121=\"\",\"None\",'Entry-Prescription A'!D121)","v":"None"},{"$f":"IF(ISNA(VLOOKUP(\"p\",'Entry-Prescription A'!E121:F130,2, FALSE)),\"None Selected\", VLOOKUP(\"p\",'Entry-Prescription A'!E121:F130,2, FALSE))","v":"None Selected"},{"$f":"'Entry-Prescription A'!G121","v":"No"},{"$f":"IF(ISNA(VLOOKUP(\"p\",'Entry-Prescription A'!I121:J133,2, FALSE)),\"None Selected\", VLOOKUP(\"p\",'Entry-Prescription A'!I121:J133,2, FALSE))","v":"None Selected"},{"$f":"IF(ISNA(VLOOKUP(\"p\",'Entry-Prescription A'!K121:L129,2, FALSE)),\"None Selected\", VLOOKUP(\"p\",'Entry-Prescription A'!K121:L129,2, FALSE))","v":"None Selected"},{"$f":"IF('Entry-Prescription A'!M121=\"\",\"None Selected\",'Entry-Prescription A'!M121)","v":"None Selected"},{"$f":"IF('Entry-Prescription A'!N121=\"\",\"None\",'Entry-Prescription A'!N121)","v":"None"},{"$f":"IF('Entry-Prescription A'!O121=\"\",\"None\",'Entry-Prescription A'!O121)","v":"None"},{"$f":"IF('Entry-Prescription A'!P121=\"\",\"None\",'Entry-Prescription A'!P121)","v":"None"},{"$f":"IF('Entry-Prescription A'!Q121=\"\",\"None Selected\",'Entry-Prescription A'!Q121)","v":"None Selected"},{"$f":"IF('Entry-Prescription A'!R121=\"\",\"None Selected\",'Entry-Prescription A'!R121)","v":"None Selected"}]
[null,11,{"$f":"IF('Entry-Prescription A'!C134=\"\",\"None\",'Entry-Prescription A'!C134)","v":"None"},{"$f":"IF('Entry-Prescription A'!D134=\"\",\"None\",'Entry-Prescription A'!D134)","v":"None"},{"$f":"IF(ISNA(VLOOKUP(\"p\",'Entry-Prescription A'!E134:F143,2, FALSE)),\"None Selected\", VLOOKUP(\"p\",'Entry-Prescription A'!E134:F143,2, FALSE))","v":"None Selected"},{"$f":"'Entry-Prescription A'!G134","v":"No"},{"$f":"IF(ISNA(VLOOKUP(\"p\",'Entry-Prescription A'!I134:J146,2, FALSE)),\"None Selected\", VLOOKUP(\"p\",'Entry-Prescription A'!I134:J146,2, FALSE))","v":"None Selected"},{"$f":"IF(ISNA(VLOOKUP(\"p\",'Entry-Prescription A'!K134:L142,2, FALSE)),\"None Selected\", VLOOKUP(\"p\",'Entry-Prescription A'!K134:L142,2, FALSE))","v":"None Selected"},{"$f":"IF('Entry-Prescription A'!M134=\"\",\"None Selected\",'Entry-Prescription A'!M134)","v":"None Selected"},{"$f":"IF('Entry-Prescription A'!N134=\"\",\"None\",'Entry-Prescription A'!N134)","v":"None"},{"$f":"IF('Entry-Prescription A'!O134=\"\",\"None\",'Entry-Prescription A'!O134)","v":"None"},{"$f":"IF('Entry-Prescription A'!P134=\"\",\"None\",'Entry-Prescription A'!P134)","v":"None"},{"$f":"IF('Entry-Prescription A'!Q134=\"\",\"None Selected\",'Entry-Prescription A'!Q134)","v":"None Selected"},{"$f":"IF('Entry-Prescription A'!R134=\"\",\"None Selected\",'Entry-Prescription A'!R134)","v":"None Selected"}]
[null,12,{"$f":"IF('Entry-Prescription A'!C147=\"\",\"None\",'Entry-Prescription A'!C147)","v":"None"},{"$f":"IF('Entry-Prescription A'!D147=\"\",\"None\",'Entry-Prescription A'!D147)","v":"None"},{"$f":"IF(ISNA(VLOOKUP(\"p\",'Entry-Prescription A'!E147:F156,2, FALSE)),\"None Selected\", VLOOKUP(\"p\",'Entry-Prescription A'!E147:F156,2, FALSE))","v":"None Selected"},{"$f":"'Entry-Prescription A'!G147","v":"No"},{"$f":"IF(ISNA(VLOOKUP(\"p\",'Entry-Prescription A'!I147:J159,2, FALSE)),\"None Selected\", VLOOKUP(\"p\",'Entry-Prescription A'!I147:J159,2, FALSE))","v":"None Selected"},{"$f":"IF(ISNA(VLOOKUP(\"p\",'Entry-Prescription A'!K147:L155,2, FALSE)),\"None Selected\", VLOOKUP(\"p\",'Entry-Prescription A'!K147:L155,2, FALSE))","v":"None Selected"},{"$f":"IF('Entry-Prescription A'!M147=\"\",\"None Selected\",'Entry-Prescription A'!M147)","v":"None Selected"},{"$f":"IF('Entry-Prescription A'!N147=\"\",\"None\",'Entry-Prescription A'!N147)","v":"None"},{"$f":"IF('Entry-Prescription A'!O147=\"\",\"None\",'Entry-Prescription A'!O147)","v":"None"},{"$f":"IF('Entry-Prescription A'!P147=\"\",\"None\",'Entry-Prescription A'!P147)","v":"None"},{"$f":"IF('Entry-Prescription A'!Q147=\"\",\"None Selected\",'Entry-Prescription A'!Q147)","v":"None Selected"},{"$f":"IF('Entry-Prescription A'!R147=\"\",\"None Selected\",'Entry-Prescription A'!R147)","v":"None Selected"}]
[null,13,{"$f":"IF('Entry-Prescription A'!C160=\"\",\"None\",'Entry-Prescription A'!C160)","v":"None"},{"$f":"IF('Entry-Prescription A'!D160=\"\",\"None\",'Entry-Prescription A'!D160)","v":"None"},{"$f":"IF(ISNA(VLOOKUP(\"p\",'Entry-Prescription A'!E160:F169,2, FALSE)),\"None Selected\", VLOOKUP(\"p\",'Entry-Prescription A'!E160:F169,2, FALSE))","v":"None Selected"},{"$f":"'Entry-Prescription A'!G160","v":"No"},{"$f":"IF(ISNA(VLOOKUP(\"p\",'Entry-Prescription A'!I160:J172,2, FALSE)),\"None Selected\", VLOOKUP(\"p\",'Entry-Prescription A'!I160:J172,2, FALSE))","v":"None Selected"},{"$f":"IF(ISNA(VLOOKUP(\"p\",'Entry-Prescription A'!K160:L168,2, FALSE)),\"None Selected\", VLOOKUP(\"p\",'Entry-Prescription A'!K160:L168,2, FALSE))","v":"None Selected"},{"$f":"IF('Entry-Prescription A'!M160=\"\",\"None Selected\",'Entry-Prescription A'!M160)","v":"None Selected"},{"$f":"IF('Entry-Prescription A'!N160=\"\",\"None\",'Entry-Prescription A'!N160)","v":"None"},{"$f":"IF('Entry-Prescription A'!O160=\"\",\"None\",'Entry-Prescription A'!O160)","v":"None"},{"$f":"IF('Entry-Prescription A'!P160=\"\",\"None\",'Entry-Prescription A'!P160)","v":"None"},{"$f":"IF('Entry-Prescription A'!Q160=\"\",\"None Selected\",'Entry-Prescription A'!Q160)","v":"None Selected"},{"$f":"IF('Entry-Prescription A'!R160=\"\",\"None Selected\",'Entry-Prescription A'!R160)","v":"None Selected"}]
[null,14,{"$f":"IF('Entry-Prescription A'!C173=\"\",\"None\",'Entry-Prescription A'!C173)","v":"None"},{"$f":"IF('Entry-Prescription A'!D173=\"\",\"None\",'Entry-Prescription A'!D173)","v":"None"},{"$f":"IF(ISNA(VLOOKUP(\"p\",'Entry-Prescription A'!E173:F182,2, FALSE)),\"None Selected\", VLOOKUP(\"p\",'Entry-Prescription A'!E173:F182,2, FALSE))","v":"None Selected"},{"$f":"'Entry-Prescription A'!G173","v":"No"},{"$f":"IF(ISNA(VLOOKUP(\"p\",'Entry-Prescription A'!I173:J185,2, FALSE)),\"None Selected\", VLOOKUP(\"p\",'Entry-Prescription A'!I173:J185,2, FALSE))","v":"None Selected"},{"$f":"IF(ISNA(VLOOKUP(\"p\",'Entry-Prescription A'!K173:L181,2, FALSE)),\"None Selected\", VLOOKUP(\"p\",'Entry-Prescription A'!K173:L181,2, FALSE))","v":"None Selected"},{"$f":"IF('Entry-Prescription A'!M173=\"\",\"None Selected\",'Entry-Prescription A'!M173)","v":"None Selected"},{"$f":"IF('Entry-Prescription A'!N173=\"\",\"None\",'Entry-Prescription A'!N173)","v":"None"},{"$f":"IF('Entry-Prescription A'!O173=\"\",\"None\",'Entry-Prescription A'!O173)","v":"None"},{"$f":"IF('Entry-Prescription A'!P173=\"\",\"None\",'Entry-Prescription A'!P173)","v":"None"},{"$f":"IF('Entry-Prescription A'!Q173=\"\",\"None Selected\",'Entry-Prescription A'!Q173)","v":"None Selected"},{"$f":"IF('Entry-Prescription A'!R173=\"\",\"None Selected\",'Entry-Prescription A'!R173)","v":"None Selected"}]
[null,15,{"$f":"IF('Entry-Prescription A'!C186=\"\",\"None\",'Entry-Prescription A'!C186)","v":"None"},{"$f":"IF('Entry-Prescription A'!D186=\"\",\"None\",'Entry-Prescription A'!D186)","v":"None"},{"$f":"IF(ISNA(VLOOKUP(\"p\",'Entry-Prescription A'!E186:F195,2, FALSE)),\"None Selected\", VLOOKUP(\"p\",'Entry-Prescription A'!E186:F195,2, FALSE))","v":"None Selected"},{"$f":"'Entry-Prescription A'!G186","v":"No"},{"$f":"IF(ISNA(VLOOKUP(\"p\",'Entry-Prescription A'!I186:J198,2, FALSE)),\"None Selected\", VLOOKUP(\"p\",'Entry-Prescription A'!I186:J198,2, FALSE))","v":"None Selected"},{"$f":"IF(ISNA(VLOOKUP(\"p\",'Entry-Prescription A'!K186:L194,2, FALSE)),\"None Selected\", VLOOKUP(\"p\",'Entry-Prescription A'!K186:L194,2, FALSE))","v":"None Selected"},{"$f":"IF('Entry-Prescription A'!M186=\"\",\"None Selected\",'Entry-Prescription A'!M186)","v":"None Selected"},{"$f":"IF('Entry-Prescription A'!N186=\"\",\"None\",'Entry-Prescription A'!N186)","v":"None"},{"$f":"IF('Entry-Prescription A'!O186=\"\",\"None\",'Entry-Prescription A'!O186)","v":"None"},{"$f":"IF('Entry-Prescription A'!P186=\"\",\"None\",'Entry-Prescription A'!P186)","v":"None"},{"$f":"IF('Entry-Prescription A'!Q186=\"\",\"None Selected\",'Entry-Prescription A'!Q186)","v":"None Selected"},{"$f":"IF('Entry-Prescription A'!R186=\"\",\"None Selected\",'Entry-Prescription A'!R186)","v":"None Selected"}]
[null,16,{"$f":"IF('Entry-Prescription A'!C199=\"\",\"None\",'Entry-Prescription A'!C199)","v":"None"},{"$f":"IF('Entry-Prescription A'!D199=\"\",\"None\",'Entry-Prescription A'!D199)","v":"None"},{"$f":"IF(ISNA(VLOOKUP(\"p\",'Entry-Prescription A'!E199:F208,2, FALSE)),\"None Selected\", VLOOKUP(\"p\",'Entry-Prescription A'!E199:F208,2, FALSE))","v":"None Selected"},{"$f":"'Entry-Prescription A'!G199","v":"No"},{"$f":"IF(ISNA(VLOOKUP(\"p\",'Entry-Prescription A'!I199:J211,2, FALSE)),\"None Selected\", VLOOKUP(\"p\",'Entry-Prescription A'!I199:J211,2, FALSE))","v":"None Selected"},{"$f":"IF(ISNA(VLOOKUP(\"p\",'Entry-Prescription A'!K199:L207,2, FALSE)),\"None Selected\", VLOOKUP(\"p\",'Entry-Prescription A'!K199:L207,2, FALSE))","v":"None Selected"},{"$f":"IF('Entry-Prescription A'!M199=\"\",\"None Selected\",'Entry-Prescription A'!M199)","v":"None Selected"},{"$f":"IF('Entry-Prescription A'!N199=\"\",\"None\",'Entry-Prescription A'!N199)","v":"None"},{"$f":"IF('Entry-Prescription A'!O199=\"\",\"None\",'Entry-Prescription A'!O199)","v":"None"},{"$f":"IF('Entry-Prescription A'!P199=\"\",\"None\",'Entry-Prescription A'!P199)","v":"None"},{"$f":"IF('Entry-Prescription A'!Q199=\"\",\"None Selected\",'Entry-Prescription A'!Q199)","v":"None Selected"},{"$f":"IF('Entry-Prescription A'!R199=\"\",\"None Selected\",'Entry-Prescription A'!R199)","v":"None Selected"}]
[null,17,{"$f":"IF('Entry-Prescription A'!C212=\"\",\"None\",'Entry-Prescription A'!C212)","v":"None"},{"$f":"IF('Entry-Prescription A'!D212=\"\",\"None\",'Entry-Prescription A'!D212)","v":"None"},{"$f":"IF(ISNA(VLOOKUP(\"p\",'Entry-Prescription A'!E212:F221,2, FALSE)),\"None Selected\", VLOOKUP(\"p\",'Entry-Prescription A'!E212:F221,2, FALSE))","v":"None Selected"},{"$f":"'Entry-Prescription A'!G212","v":"No"},{"$f":"IF(ISNA(VLOOKUP(\"p\",'Entry-Prescription A'!I212:J224,2, FALSE)),\"None Selected\", VLOOKUP(\"p\",'Entry-Prescription A'!I212:J224,2, FALSE))","v":"None Selected"},{"$f":"IF(ISNA(VLOOKUP(\"p\",'Entry-Prescription A'!K212:L220,2, FALSE)),\"None Selected\", VLOOKUP(\"p\",'Entry-Prescription A'!K212:L220,2, FALSE))","v":"None Selected"},{"$f":"IF('Entry-Prescription A'!M212=\"\",\"None Selected\",'Entry-Prescription A'!M212)","v":"None Selected"},{"$f":"IF('Entry-Prescription A'!N212=\"\",\"None\",'Entry-Prescription A'!N212)","v":"None"},{"$f":"IF('Entry-Prescription A'!O212=\"\",\"None\",'Entry-Prescription A'!O212)","v":"None"},{"$f":"IF('Entry-Prescription A'!P212=\"\",\"None\",'Entry-Prescription A'!P212)","v":"None"},{"$f":"IF('Entry-Prescription A'!Q212=\"\",\"None Selected\",'Entry-Prescription A'!Q212)","v":"None Selected"},{"$f":"IF('Entry-Prescription A'!R212=\"\",\"None Selected\",'Entry-Prescription A'!R212)","v":"None Selected"}]
[null,18,{"$f":"IF('Entry-Prescription A'!C225=\"\",\"None\",'Entry-Prescription A'!C1225)","v":"None"},{"$f":"IF('Entry-Prescription A'!D225=\"\",\"None\",'Entry-Prescription A'!D1225)","v":"None"},{"$f":"IF(ISNA(VLOOKUP(\"p\",'Entry-Prescription A'!E225:F234,2, FALSE)),\"None Selected\", VLOOKUP(\"p\",'Entry-Prescription A'!E225:F234,2, FALSE))","v":"None Selected"},{"$f":"'Entry-Prescription A'!G225","v":"No"},{"$f":"IF(ISNA(VLOOKUP(\"p\",'Entry-Prescription A'!I225:J237,2, FALSE)),\"None Selected\", VLOOKUP(\"p\",'Entry-Prescription A'!I225:J237,2, FALSE))","v":"None Selected"},{"$f":"IF(ISNA(VLOOKUP(\"p\",'Entry-Prescription A'!K225:L233,2, FALSE)),\"None Selected\", VLOOKUP(\"p\",'Entry-Prescription A'!K225:L233,2, FALSE))","v":"None Selected"},{"$f":"IF('Entry-Prescription A'!M225=\"\",\"None Selected\",'Entry-Prescription A'!#REF!)","v":"None Selected"},{"$f":"IF('Entry-Prescription A'!N225=\"\",\"None\",'Entry-Prescription A'!#REF!)","v":"None"},{"$f":"IF('Entry-Prescription A'!O225=\"\",\"None\",'Entry-Prescription A'!#REF!)","v":"None"},{"$f":"IF('Entry-Prescription A'!P225=\"\",\"None\",'Entry-Prescription A'!#REF!)","v":"None"},{"$f":"IF('Entry-Prescription A'!Q225=\"\",\"None Selected\",'Entry-Prescription A'!Q225)","v":"None Selected"},{"$f":"IF('Entry-Prescription A'!R225=\"\",\"None Selected\",'Entry-Prescription A'!R225)","v":"None Selected"}]
[null,19,{"$f":"IF('Entry-Prescription A'!C238=\"\",\"None\",'Entry-Prescription A'!C238)","v":"None"},{"$f":"IF('Entry-Prescription A'!D238=\"\",\"None\",'Entry-Prescription A'!D238)","v":"None"},{"$f":"IF(ISNA(VLOOKUP(\"p\",'Entry-Prescription A'!E238:F247,2, FALSE)),\"None Selected\", VLOOKUP(\"p\",'Entry-Prescription A'!E238:F247,2, FALSE))","v":"None Selected"},{"$f":"'Entry-Prescription A'!G238","v":"No"},{"$f":"IF(ISNA(VLOOKUP(\"p\",'Entry-Prescription A'!I238:J250,2, FALSE)),\"None Selected\", VLOOKUP(\"p\",'Entry-Prescription A'!I238:J250,2, FALSE))","v":"None Selected"},{"$f":"IF(ISNA(VLOOKUP(\"p\",'Entry-Prescription A'!K238:L246,2, FALSE)),\"None Selected\", VLOOKUP(\"p\",'Entry-Prescription A'!K238:L246,2, FALSE))","v":"None Selected"},{"$f":"IF('Entry-Prescription A'!M238=\"\",\"None Selected\",'Entry-Prescription A'!M238)","v":"None Selected"},{"$f":"IF('Entry-Prescription A'!N238=\"\",\"None\",'Entry-Prescription A'!N238)","v":"None"},{"$f":"IF('Entry-Prescription A'!O238=\"\",\"None\",'Entry-Prescription A'!O238)","v":"None"},{"$f":"IF('Entry-Prescription A'!P238=\"\",\"None\",'Entry-Prescription A'!P238)","v":"None"},{"$f":"IF('Entry-Prescription A'!Q238=\"\",\"None Selected\",'Entry-Prescription A'!Q238)","v":"None Selected"},{"$f":"IF('Entry-Prescription A'!R238=\"\",\"None Selected\",'Entry-Prescription A'!R238)","v":"None Selected"}]
[null,20,{"$f":"IF('Entry-Prescription A'!C251=\"\",\"None\",'Entry-Prescription A'!C251)","v":"None"},{"$f":"IF('Entry-Prescription A'!D251=\"\",\"None\",'Entry-Prescription A'!D251)","v":"None"},{"$f":"IF(ISNA(VLOOKUP(\"p\",'Entry-Prescription A'!E251:F260,2, FALSE)),\"None Selected\", VLOOKUP(\"p\",'Entry-Prescription A'!E251:F260,2, FALSE))","v":"None Selected"},{"$f":"'Entry-Prescription A'!G251","v":"No"},{"$f":"IF(ISNA(VLOOKUP(\"p\",'Entry-Prescription A'!I251:J263,2, FALSE)),\"None Selected\", VLOOKUP(\"p\",'Entry-Prescription A'!I251:J263,2, FALSE))","v":"None Selected"},{"$f":"IF(ISNA(VLOOKUP(\"p\",'Entry-Prescription A'!K251:L259,2, FALSE)),\"None Selected\", VLOOKUP(\"p\",'Entry-Prescription A'!K251:L259,2, FALSE))","v":"None Selected"},{"$f":"IF('Entry-Prescription A'!M251=\"\",\"None Selected\",'Entry-Prescription A'!M251)","v":"None Selected"},{"$f":"IF('Entry-Prescription A'!N251=\"\",\"None\",'Entry-Prescription A'!N251)","v":"None"},{"$f":"IF('Entry-Prescription A'!O251=\"\",\"None\",'Entry-Prescription A'!O251)","v":"None"},{"$f":"IF('Entry-Prescription A'!P251=\"\",\"None\",'Entry-Prescription A'!P251)","v":"None"},{"$f":"IF('Entry-Prescription A'!Q251=\"\",\"None Selected\",'Entry-Prescription A'!Q251)","v":"None Selected"},{"$f":"IF('Entry-Prescription A'!R251=\"\",\"None Selected\",'Entry-Prescription A'!R251)","v":"None Selected"}]
[null,21,{"$f":"IF('Entry-Prescription A'!C264=\"\",\"None\",'Entry-Prescription A'!C264)","v":"None"},{"$f":"IF('Entry-Prescription A'!D264=\"\",\"None\",'Entry-Prescription A'!D264)","v":"None"},{"$f":"IF(ISNA(VLOOKUP(\"p\",'Entry-Prescription A'!E264:F273,2, FALSE)),\"None Selected\", VLOOKUP(\"p\",'Entry-Prescription A'!E264:F273,2, FALSE))","v":"None Selected"},{"$f":"'Entry-Prescription A'!G264","v":"No"},{"$f":"IF(ISNA(VLOOKUP(\"p\",'Entry-Prescription A'!I264:J276,2, FALSE)),\"None Selected\", VLOOKUP(\"p\",'Entry-Prescription A'!I264:J276,2, FALSE))","v":"None Selected"},{"$f":"IF(ISNA(VLOOKUP(\"p\",'Entry-Prescription A'!K264:L272,2, FALSE)),\"None Selected\", VLOOKUP(\"p\",'Entry-Prescription A'!K264:L272,2, FALSE))","v":"None Selected"},{"$f":"IF('Entry-Prescription A'!M264=\"\",\"None Selected\",'Entry-Prescription A'!M264)","v":"None Selected"},{"$f":"IF('Entry-Prescription A'!N264=\"\",\"None\",'Entry-Prescription A'!N264)","v":"None"},{"$f":"IF('Entry-Prescription A'!O264=\"\",\"None\",'Entry-Prescription A'!O264)","v":"None"},{"$f":"IF('Entry-Prescription A'!P264=\"\",\"None\",'Entry-Prescription A'!P264)","v":"None"},{"$f":"IF('Entry-Prescription A'!Q264=\"\",\"None Selected\",'Entry-Prescription A'!Q264)","v":"None Selected"},{"$f":"IF('Entry-Prescription A'!R264=\"\",\"None Selected\",'Entry-Prescription A'!R264)","v":"None Selected"}]
[null,22,{"$f":"IF('Entry-Prescription A'!C277=\"\",\"None\",'Entry-Prescription A'!C277)","v":"None"},{"$f":"IF('Entry-Prescription A'!D277=\"\",\"None\",'Entry-Prescription A'!D277)","v":"None"},{"$f":"IF(ISNA(VLOOKUP(\"p\",'Entry-Prescription A'!E277:F286,2, FALSE)),\"None Selected\", VLOOKUP(\"p\",'Entry-Prescription A'!E277:F286,2, FALSE))","v":"None Selected"},{"$f":"'Entry-Prescription A'!G277","v":"No"},{"$f":"IF(ISNA(VLOOKUP(\"p\",'Entry-Prescription A'!I277:J289,2, FALSE)),\"None Selected\", VLOOKUP(\"p\",'Entry-Prescription A'!I277:J289,2, FALSE))","v":"None Selected"},{"$f":"IF(ISNA(VLOOKUP(\"p\",'Entry-Prescription A'!K277:L285,2, FALSE)),\"None Selected\", VLOOKUP(\"p\",'Entry-Prescription A'!K277:L285,2, FALSE))","v":"None Selected"},{"$f":"IF('Entry-Prescription A'!M277=\"\",\"None Selected\",'Entry-Prescription A'!M277)","v":"None Selected"},{"$f":"IF('Entry-Prescription A'!N277=\"\",\"None\",'Entry-Prescription A'!N277)","v":"None"},{"$f":"IF('Entry-Prescription A'!O277=\"\",\"None\",'Entry-Prescription A'!O277)","v":"None"},{"$f":"IF('Entry-Prescription A'!P277=\"\",\"None\",'Entry-Prescription A'!P277)","v":"None"},{"$f":"IF('Entry-Prescription A'!Q277=\"\",\"None Selected\",'Entry-Prescription A'!Q277)","v":"None Selected"},{"$f":"IF('Entry-Prescription A'!R277=\"\",\"None Selected\",'Entry-Prescription A'!R277)","v":"None Selected"}]
[null,23,{"$f":"IF('Entry-Prescription A'!C290=\"\",\"None\",'Entry-Prescription A'!C290)","v":"None"},{"$f":"IF('Entry-Prescription A'!D290=\"\",\"None\",'Entry-Prescription A'!D290)","v":"None"},{"$f":"IF(ISNA(VLOOKUP(\"p\",'Entry-Prescription A'!E290:F299,2, FALSE)),\"None Selected\", VLOOKUP(\"p\",'Entry-Prescription A'!E290:F299,2, FALSE))","v":"None Selected"},{"$f":"'Entry-Prescription A'!G290","v":"No"},{"$f":"IF(ISNA(VLOOKUP(\"p\",'Entry-Prescription A'!I290:J302,2, FALSE)),\"None Selected\", VLOOKUP(\"p\",'Entry-Prescription A'!I290:J302,2, FALSE))","v":"None Selected"},{"$f":"IF(ISNA(VLOOKUP(\"p\",'Entry-Prescription A'!K290:L298,2, FALSE)),\"None Selected\", VLOOKUP(\"p\",'Entry-Prescription A'!K290:L298,2, FALSE))","v":"None Selected"},{"$f":"IF('Entry-Prescription A'!M290=\"\",\"None Selected \",'Entry-Prescription A'!M290)","v":"None Selected "},{"$f":"IF('Entry-Prescription A'!N290=\"\",\"None\",'Entry-Prescription A'!N290)","v":"None"},{"$f":"IF('Entry-Prescription A'!O290=\"\",\"None\",'Entry-Prescription A'!O290)","v":"None"},{"$f":"IF('Entry-Prescription A'!P290=\"\",\"None\",'Entry-Prescription A'!P290)","v":"None"},{"$f":"IF('Entry-Prescription A'!Q290=\"\",\"None Selected\",'Entry-Prescription A'!Q290)","v":"None Selected"},{"$f":"IF('Entry-Prescription A'!R290=\"\",\"None Selected\",'Entry-Prescription A'!R290)","v":"None Selected"}]
[null,24,{"$f":"IF('Entry-Prescription A'!C303=\"\",\"None\",'Entry-Prescription A'!C303)","v":"None"},{"$f":"IF('Entry-Prescription A'!D303=\"\",\"None\",'Entry-Prescription A'!D303)","v":"None"},{"$f":"IF(ISNA(VLOOKUP(\"p\",'Entry-Prescription A'!E303:F312,2, FALSE)),\"None Selected\", VLOOKUP(\"p\",'Entry-Prescription A'!E303:F312,2, FALSE))","v":"None Selected"},{"$f":"'Entry-Prescription A'!G303","v":"No"},{"$f":"IF(ISNA(VLOOKUP(\"p\",'Entry-Prescription A'!I303:J315,2, FALSE)),\"None Selected\", VLOOKUP(\"p\",'Entry-Prescription A'!I303:J315,2, FALSE))","v":"None Selected"},{"$f":"IF(ISNA(VLOOKUP(\"p\",'Entry-Prescription A'!K303:L311,2, FALSE)),\"None Selected\", VLOOKUP(\"p\",'Entry-Prescription A'!K303:L311,2, FALSE))","v":"None Selected"},{"$f":"IF('Entry-Prescription A'!M303=\"\",\"None Selected\",'Entry-Prescription A'!M303)","v":"None Selected"},{"$f":"IF('Entry-Prescription A'!N303=\"\",\"None\",'Entry-Prescription A'!N303)","v":"None"},{"$f":"IF('Entry-Prescription A'!O303=\"\",\"None\",'Entry-Prescription A'!O303)","v":"None"},{"$f":"IF('Entry-Prescription A'!P303=\"\",\"None\",'Entry-Prescription A'!P303)","v":"None"},{"$f":"IF('Entry-Prescription A'!Q303=\"\",\"None Selected\",'Entry-Prescription A'!Q303)","v":"None Selected"},{"$f":"IF('Entry-Prescription A'!R303=\"\",\"None Selected\",'Entry-Prescription A'!R303)","v":"None Selected"}]
[null,25,{"$f":"IF('Entry-Prescription A'!C316=\"\",\"None\",'Entry-Prescription A'!C316)","v":"None"},{"$f":"IF('Entry-Prescription A'!D316=\"\",\"None\",'Entry-Prescription A'!D316)","v":"None"},{"$f":"IF(ISNA(VLOOKUP(\"p\",'Entry-Prescription A'!E316:F325,2, FALSE)),\"None Selected\", VLOOKUP(\"p\",'Entry-Prescription A'!E316:F325,2, FALSE))","v":"None Selected"},{"$f":"'Entry-Prescription A'!G316","v":"No"},{"$f":"IF(ISNA(VLOOKUP(\"p\",'Entry-Prescription A'!I316:J328,2, FALSE)),\"None Selected\", VLOOKUP(\"p\",'Entry-Prescription A'!I316:J328,2, FALSE))","v":"None Selected"},{"$f":"IF(ISNA(VLOOKUP(\"p\",'Entry-Prescription A'!K316:L324,2, FALSE)),\"None Selected\", VLOOKUP(\"p\",'Entry-Prescription A'!K316:L324,2, FALSE))","v":"None Selected"},{"$f":"IF('Entry-Prescription A'!M316=\"\",\"None Selected\",'Entry-Prescription A'!M316)","v":"None Selected"},{"$f":"IF('Entry-Prescription A'!N316=\"\",\"None\",'Entry-Prescription A'!N316)","v":"None"},{"$f":"IF('Entry-Prescription A'!O316=\"\",\"None\",'Entry-Prescription A'!O316)","v":"None"},{"$f":"IF('Entry-Prescription A'!P316=\"\",\"None\",'Entry-Prescription A'!P316)","v":"None"},{"$f":"IF('Entry-Prescription A'!Q316=\"\",\"None Selected\",'Entry-Prescription A'!Q316)","v":"None Selected"},{"$f":"IF('Entry-Prescription A'!R316=\"\",\"None Selected\",'Entry-Prescription A'!R316)","v":"None Selected"}]
[null,26,{"$f":"IF('Entry-Prescription A'!C329=\"\",\"None\",'Entry-Prescription A'!C329)","v":"None"},{"$f":"IF('Entry-Prescription A'!D329=\"\",\"None\",'Entry-Prescription A'!D329)","v":"None"},{"$f":"IF(ISNA(VLOOKUP(\"p\",'Entry-Prescription A'!E329:F338,2, FALSE)),\"None Selected\", VLOOKUP(\"p\",'Entry-Prescription A'!E329:F338,2, FALSE))","v":"None Selected"},{"$f":"'Entry-Prescription A'!G329","v":"No"},{"$f":"IF(ISNA(VLOOKUP(\"p\",'Entry-Prescription A'!I329:J341,2, FALSE)),\"None Selected\", VLOOKUP(\"p\",'Entry-Prescription A'!I329:J341,2, FALSE))","v":"None Selected"},{"$f":"IF(ISNA(VLOOKUP(\"p\",'Entry-Prescription A'!K329:L337,2, FALSE)),\"None Selected\", VLOOKUP(\"p\",'Entry-Prescription A'!K329:L337,2, FALSE))","v":"None Selected"},{"$f":"IF('Entry-Prescription A'!M329=\"\",\"None Selected\",'Entry-Prescription A'!M329)","v":"None Selected"},{"$f":"IF('Entry-Prescription A'!N329=\"\",\"None\",'Entry-Prescription A'!N329)","v":"None"},{"$f":"IF('Entry-Prescription A'!O329=\"\",\"None\",'Entry-Prescription A'!O329)","v":"None"},{"$f":"IF('Entry-Prescription A'!P329=\"\",\"None\",'Entry-Prescription A'!P329)","v":"None"},{"$f":"IF('Entry-Prescription A'!Q329=\"\",\"None Selected\",'Entry-Prescription A'!Q329)","v":"None Selected"},{"$f":"IF('Entry-Prescription A'!R329=\"\",\"None Selected\",'Entry-Prescription A'!R329)","v":"None Selected"}]
[null,27,{"$f":"IF('Entry-Prescription A'!C342=\"\",\"None\",'Entry-Prescription A'!C342)","v":"None"},{"$f":"IF('Entry-Prescription A'!D342=\"\",\"None\",'Entry-Prescription A'!D342)","v":"None"},{"$f":"IF(ISNA(VLOOKUP(\"p\",'Entry-Prescription A'!E342:F351,2, FALSE)),\"None Selected\", VLOOKUP(\"p\",'Entry-Prescription A'!E342:F351,2, FALSE))","v":"None Selected"},{"$f":"'Entry-Prescription A'!G342","v":"No"},{"$f":"IF(ISNA(VLOOKUP(\"p\",'Entry-Prescription A'!I342:J354,2, FALSE)),\"None Selected\", VLOOKUP(\"p\",'Entry-Prescription A'!I342:J354,2, FALSE))","v":"None Selected"},{"$f":"IF(ISNA(VLOOKUP(\"p\",'Entry-Prescription A'!K342:L350,2, FALSE)),\"None Selected\", VLOOKUP(\"p\",'Entry-Prescription A'!K342:L350,2, FALSE))","v":"None Selected"},{"$f":"IF('Entry-Prescription A'!M342=\"\",\"None Selected\",'Entry-Prescription A'!M342)","v":"None Selected"},{"$f":"IF('Entry-Prescription A'!N342=\"\",\"None\",'Entry-Prescription A'!N342)","v":"None"},{"$f":"IF('Entry-Prescription A'!O342=\"\",\"None\",'Entry-Prescription A'!O342)","v":"None"},{"$f":"IF('Entry-Prescription A'!P342=\"\",\"None\",'Entry-Prescription A'!P342)","v":"None"},{"$f":"IF('Entry-Prescription A'!Q342=\"\",\"None Selected\",'Entry-Prescription A'!Q342)","v":"None Selected"},{"$f":"IF('Entry-Prescription A'!R342=\"\",\"None Selected\",'Entry-Prescription A'!R342)","v":"None Selected"}]
[null,28,{"$f":"IF('Entry-Prescription A'!C355=\"\",\"None\",'Entry-Prescription A'!C355)","v":"None"},{"$f":"IF('Entry-Prescription A'!D355=\"\",\"None\",'Entry-Prescription A'!D355)","v":"None"},{"$f":"IF(ISNA(VLOOKUP(\"p\",'Entry-Prescription A'!E355:F364,2, FALSE)),\"None Selected\", VLOOKUP(\"p\",'Entry-Prescription A'!E355:F364,2, FALSE))","v":"None Selected"},{"$f":"'Entry-Prescription A'!G355","v":"No"},{"$f":"IF(ISNA(VLOOKUP(\"p\",'Entry-Prescription A'!I355:J367,2, FALSE)),\"None Selected\", VLOOKUP(\"p\",'Entry-Prescription A'!I355:J367,2, FALSE))","v":"None Selected"},{"$f":"IF(ISNA(VLOOKUP(\"p\",'Entry-Prescription A'!K355:L363,2, FALSE)),\"None Selected\", VLOOKUP(\"p\",'Entry-Prescription A'!K355:L363,2, FALSE))","v":"None Selected"},{"$f":"IF('Entry-Prescription A'!M355=\"\",\"None Selected\",'Entry-Prescription A'!M355)","v":"None Selected"},{"$f":"IF('Entry-Prescription A'!N355=\"\",\"None\",'Entry-Prescription A'!N355)","v":"None"},{"$f":"IF('Entry-Prescription A'!O355=\"\",\"None\",'Entry-Prescription A'!O355)","v":"None"},{"$f":"IF('Entry-Prescription A'!P355=\"\",\"None\",'Entry-Prescription A'!P355)","v":"None"},{"$f":"IF('Entry-Prescription A'!Q355=\"\",\"None Selected\",'Entry-Prescription A'!Q355)","v":"None Selected"},{"$f":"IF('Entry-Prescription A'!R355=\"\",\"None Selected\",'Entry-Prescription A'!R355)","v":"None Selected"}]
[null,29,{"$f":"IF('Entry-Prescription A'!C368=\"\",\"None\",'Entry-Prescription A'!C368)","v":"None"},{"$f":"IF('Entry-Prescription A'!D368=\"\",\"None\",'Entry-Prescription A'!D368)","v":"None"},{"$f":"IF(ISNA(VLOOKUP(\"p\",'Entry-Prescription A'!E368:F377,2, FALSE)),\"None Selected\", VLOOKUP(\"p\",'Entry-Prescription A'!E368:F377,2, FALSE))","v":"None Selected"},{"$f":"'Entry-Prescription A'!G368","v":"No"},{"$f":"IF(ISNA(VLOOKUP(\"p\",'Entry-Prescription A'!I368:J380,2, FALSE)),\"None Selected\", VLOOKUP(\"p\",'Entry-Prescription A'!I368:J380,2, FALSE))","v":"None Selected"},{"$f":"IF(ISNA(VLOOKUP(\"p\",'Entry-Prescription A'!K368:L376,2, FALSE)),\"None Selected\", VLOOKUP(\"p\",'Entry-Prescription A'!K368:L376,2, FALSE))","v":"None Selected"},{"$f":"IF('Entry-Prescription A'!M368=\"\",\"None Selected\",'Entry-Prescription A'!M368)","v":"None Selected"},{"$f":"IF('Entry-Prescription A'!N368=\"\",\"None\",'Entry-Prescription A'!N368)","v":"None"},{"$f":"IF('Entry-Prescription A'!O368=\"\",\"None\",'Entry-Prescription A'!O368)","v":"None"},{"$f":"IF('Entry-Prescription A'!P368=\"\",\"None\",'Entry-Prescription A'!P368)","v":"None"},{"$f":"IF('Entry-Prescription A'!Q368=\"\",\"None Selected\",'Entry-Prescription A'!Q368)","v":"None Selected"},{"$f":"IF('Entry-Prescription A'!R368=\"\",\"None Selected\",'Entry-Prescription A'!R368)","v":"None Selected"}]
[null,30,{"$f":"IF('Entry-Prescription A'!C381=\"\",\"None\",'Entry-Prescription A'!C381)","v":"None"},{"$f":"IF('Entry-Prescription A'!D381=\"\",\"None\",'Entry-Prescription A'!D381)","v":"None"},{"$f":"IF(ISNA(VLOOKUP(\"p\",'Entry-Prescription A'!E381:F390,2, FALSE)),\"None Selected\", VLOOKUP(\"p\",'Entry-Prescription A'!E381:F390,2, FALSE))","v":"None Selected"},{"$f":"'Entry-Prescription A'!G381","v":"No"},{"$f":"IF(ISNA(VLOOKUP(\"p\",'Entry-Prescription A'!I381:J393,2, FALSE)),\"None Selected\", VLOOKUP(\"p\",'Entry-Prescription A'!I381:J393,2, FALSE))","v":"None Selected"},{"$f":"IF(ISNA(VLOOKUP(\"p\",'Entry-Prescription A'!K381:L389,2, FALSE)),\"None Selected\", VLOOKUP(\"p\",'Entry-Prescription A'!K381:L389,2, FALSE))","v":"None Selected"},{"$f":"IF('Entry-Prescription A'!M381=\"\",\"None Selected\",'Entry-Prescription A'!M381)","v":"None Selected"},{"$f":"IF('Entry-Prescription A'!N381=\"\",\"None\",'Entry-Prescription A'!N381)","v":"None"},{"$f":"IF('Entry-Prescription A'!O381=\"\",\"None\",'Entry-Prescription A'!O381)","v":"None"},{"$f":"IF('Entry-Prescription A'!P381=\"\",\"None\",'Entry-Prescription A'!P381)","v":"None"},{"$f":"IF('Entry-Prescription A'!Q381=\"\",\"None Selected\",'Entry-Prescription A'!Q381)","v":"None Selected"},{"$f":"IF('Entry-Prescription A'!R381=\"\",\"None Selected\",'Entry-Prescription A'!R381)","v":"None Selected"}]

{"sheet":"Summary B","index":5,"n_rows":35,"n_cols":10,"rows_kept":35,"cut":false,"hidden":false,"merged":[[3,1,3,3],[3,4,3,7],[3,8,3,9],[1,1,1,9]]}
[]
[null,"Summary of treatment provided where no prescription has been issued"]
[]
[null,"Patient Details",null,null,"Treatment Details ",null,null,null,"Post-Prescription"]
[null,"Patient Number","Age","Gender","Primary diagnosis of clinical condition ","Medical History","Primary treatment carried out ","Reason for not prescribing","Condition resolved? ","Was the patient reviewed"]
[null,1,{"$f":"IF('Entry-Without Prescription B'!C4=\"\",\"None\",'Entry-Without Prescription B'!C4)","v":"None"},{"$f":"IF('Entry-Without Prescription B'!D4=\"\",\"None\",'Entry-Without Prescription B'!D4)","v":"None"},{"$f":"IF(ISNA(VLOOKUP(\"p\",'Entry-Without Prescription B'!E4:F13,2, FALSE)),\"None Selected\", VLOOKUP(\"p\",'Entry-Without Prescription B'!E4:F13,2, FALSE))","v":"None Selected"},{"$f":"'Entry-Without Prescription B'!G4","v":"No"},{"$f":"IF(ISNA(VLOOKUP(\"p\",'Entry-Without Prescription B'!I4:J12,2, FALSE)),\"None Selected\", VLOOKUP(\"p\",'Entry-Without Prescription B'!I4:J12,2, FALSE))","v":"None Selected"},{"$f":"IF(ISNA(VLOOKUP(\"p\",'Entry-Without Prescription B'!K4:L11,2, FALSE)),\"None Selected\", VLOOKUP(\"p\",'Entry-Without Prescription B'!K4:L11,2, FALSE))","v":"None Selected"},{"$f":"IF('Entry-Without Prescription B'!M4=\"\",\"None Selected\",'Entry-Without Prescription B'!M4)","v":"None Selected"},{"$f":"IF('Entry-Without Prescription B'!N4=\"\",\"None Selected\",'Entry-Without Prescription B'!N4)","v":"None Selected"}]
[null,2,{"$f":"IF('Entry-Without Prescription B'!C17=\"\",\"None\",'Entry-Without Prescription B'!C17)","v":"None"},{"$f":"IF('Entry-Without Prescription B'!D17=\"\",\"None\",'Entry-Without Prescription B'!D17)","v":"None"},{"$f":"IF(ISNA(VLOOKUP(\"p\",'Entry-Without Prescription B'!E17:F26,2, FALSE)),\"None Selected\", VLOOKUP(\"p\",'Entry-Without Prescription B'!E17:F26,2, FALSE))","v":"None Selected"},{"$f":"'Entry-Without Prescription B'!G17","v":"No"},{"$f":"IF(ISNA(VLOOKUP(\"p\",'Entry-Without Prescription B'!I17:J25,2, FALSE)),\"None Selected\", VLOOKUP(\"p\",'Entry-Without Prescription B'!I17:J25,2, FALSE))","v":"None Selected"},{"$f":"IF(ISNA(VLOOKUP(\"p\",'Entry-Without Prescription B'!K17:L24,2, FALSE)),\"None Selected\", VLOOKUP(\"p\",'Entry-Without Prescription B'!K17:L24,2, FALSE))","v":"None Selected"},{"$f":"IF('Entry-Without Prescription B'!M17=\"\",\"None Selected\",'Entry-Without Prescription B'!M17)","v":"None Selected"},{"$f":"IF('Entry-Without Prescription B'!N17=\"\",\"None Selected\",'Entry-Without Prescription B'!N17)","v":"None Selected"}]
[null,3,{"$f":"IF('Entry-Without Prescription B'!C30=\"\",\"None\",'Entry-Without Prescription B'!C30)","v":"None"},{"$f":"IF('Entry-Without Prescription B'!D30=\"\",\"None\",'Entry-Without Prescription B'!D30)","v":"None"},{"$f":"IF(ISNA(VLOOKUP(\"p\",'Entry-Without Prescription B'!E30:F39,2, FALSE)),\"None Selected\", VLOOKUP(\"p\",'Entry-Without Prescription B'!E30:F39,2, FALSE))","v":"None Selected"},{"$f":"'Entry-Without Prescription B'!G30","v":"No"},{"$f":"IF(ISNA(VLOOKUP(\"p\",'Entry-Without Prescription B'!I30:J38,2, FALSE)),\"None Selected\", VLOOKUP(\"p\",'Entry-Without Prescription B'!I30:J38,2, FALSE))","v":"None Selected"},{"$f":"IF(ISNA(VLOOKUP(\"p\",'Entry-Without Prescription B'!K30:L37,2, FALSE)),\"None Selected\", VLOOKUP(\"p\",'Entry-Without Prescription B'!K30:L37,2, FALSE))","v":"None Selected"},{"$f":"IF('Entry-Without Prescription B'!M30=\"\",\"None Selected\",'Entry-Without Prescription B'!M30)","v":"None Selected"},{"$f":"IF('Entry-Without Prescription B'!N30=\"\",\"None Selected\",'Entry-Without Prescription B'!N30)","v":"None Selected"}]
[null,4,{"$f":"IF('Entry-Without Prescription B'!C43=\"\",\"None\",'Entry-Without Prescription B'!C43)","v":"None"},{"$f":"IF('Entry-Without Prescription B'!D43=\"\",\"None\",'Entry-Without Prescription B'!D43)","v":"None"},{"$f":"IF(ISNA(VLOOKUP(\"p\",'Entry-Without Prescription B'!E43:F52,2, FALSE)),\"None Selected\", VLOOKUP(\"p\",'Entry-Without Prescription B'!E43:F52,2, FALSE))","v":"None Selected"},{"$f":"'Entry-Without Prescription B'!G43","v":"No"},{"$f":"IF(ISNA(VLOOKUP(\"p\",'Entry-Without Prescription B'!I43:J51,2, FALSE)),\"None Selected\", VLOOKUP(\"p\",'Entry-Without Prescription B'!I43:J51,2, FALSE))","v":"None Selected"},{"$f":"IF(ISNA(VLOOKUP(\"p\",'Entry-Without Prescription B'!K43:L50,2, FALSE)),\"None Selected\", VLOOKUP(\"p\",'Entry-Without Prescription B'!K43:L50,2, FALSE))","v":"None Selected"},{"$f":"IF('Entry-Without Prescription B'!M43=\"\",\"None Selected\",'Entry-Without Prescription B'!M43)","v":"None Selected"},{"$f":"IF('Entry-Without Prescription B'!N43=\"\",\"None Selected\",'Entry-Without Prescription B'!N43)","v":"None Selected"}]
[null,5,{"$f":"IF('Entry-Without Prescription B'!C56=\"\",\"None\",'Entry-Without Prescription B'!C56)","v":"None"},{"$f":"IF('Entry-Without Prescription B'!D56=\"\",\"None\",'Entry-Without Prescription B'!D56)","v":"None"},{"$f":"IF(ISNA(VLOOKUP(\"p\",'Entry-Without Prescription B'!E56:F65,2, FALSE)),\"None Selected\", VLOOKUP(\"p\",'Entry-Without Prescription B'!E56:F65,2, FALSE))","v":"None Selected"},{"$f":"'Entry-Without Prescription B'!G56","v":"No"},{"$f":"IF(ISNA(VLOOKUP(\"p\",'Entry-Without Prescription B'!I56:J66,2, FALSE)),\"None Selected\", VLOOKUP(\"p\",'Entry-Without Prescription B'!I56:J66,2, FALSE))","v":"None Selected"},{"$f":"IF(ISNA(VLOOKUP(\"p\",'Entry-Without Prescription B'!K56:L65,2, FALSE)),\"None Selected\", VLOOKUP(\"p\",'Entry-Without Prescription B'!K56:L65,2, FALSE))","v":"None Selected"},{"$f":"IF('Entry-Without Prescription B'!M56=\"\",\"None Selected\",'Entry-Without Prescription B'!M56)","v":"None Selected"},{"$f":"IF('Entry-Without Prescription B'!N56=\"\",\"None Selected\",'Entry-Without Prescription B'!N56)","v":"None Selected"}]
[null,6,{"$f":"IF('Entry-Without Prescription B'!C69=\"\",\"None\",'Entry-Without Prescription B'!C69)","v":"None"},{"$f":"IF('Entry-Without Prescription B'!D69=\"\",\"None\",'Entry-Without Prescription B'!D69)","v":"None"},{"$f":"IF(ISNA(VLOOKUP(\"p\",'Entry-Without Prescription B'!E69:F78,2, FALSE)),\"None Selected\", VLOOKUP(\"p\",'Entry-Without Prescription B'!E69:F78,2, FALSE))","v":"None Selected"},{"$f":"'Entry-Without Prescription B'!G69","v":"No"},{"$f":"IF(ISNA(VLOOKUP(\"p\",'Entry-Without Prescription B'!I69:J77,2, FALSE)),\"None Selected\", VLOOKUP(\"p\",'Entry-Without Prescription B'!I69:J77,2, FALSE))","v":"None Selected"},{"$f":"IF(ISNA(VLOOKUP(\"p\",'Entry-Without Prescription B'!K69:L76,2, FALSE)),\"None Selected\", VLOOKUP(\"p\",'Entry-Without Prescription B'!K69:L76,2, FALSE))","v":"None Selected"},{"$f":"IF('Entry-Without Prescription B'!M69=\"\",\"None Selected\",'Entry-Without Prescription B'!M69)","v":"None Selected"},{"$f":"IF('Entry-Without Prescription B'!N69=\"\",\"None Selected\",'Entry-Without Prescription B'!N69)","v":"None Selected"}]
[null,7,{"$f":"IF('Entry-Without Prescription B'!C82=\"\",\"None\",'Entry-Without Prescription B'!C82)","v":"None"},{"$f":"IF('Entry-Without Prescription B'!D82=\"\",\"None\",'Entry-Without Prescription B'!D82)","v":"None"},{"$f":"IF(ISNA(VLOOKUP(\"p\",'Entry-Without Prescription B'!E82:F91,2, FALSE)),\"None Selected\", VLOOKUP(\"p\",'Entry-Without Prescription B'!E82:F91,2, FALSE))","v":"None Selected"},{"$f":"'Entry-Without Prescription B'!G82","v":"No"},{"$f":"IF(ISNA(VLOOKUP(\"p\",'Entry-Without Prescription B'!I82:J90,2, FALSE)),\"None Selected\", VLOOKUP(\"p\",'Entry-Without Prescription B'!I82:J90,2, FALSE))","v":"None Selected"},{"$f":"IF(ISNA(VLOOKUP(\"p\",'Entry-Without Prescription B'!K82:L89,2, FALSE)),\"None Selected\", VLOOKUP(\"p\",'Entry-Without Prescription B'!K82:L89,2, FALSE))","v":"None Selected"},{"$f":"IF('Entry-Without Prescription B'!M82=\"\",\"None Selected\",'Entry-Without Prescription B'!M82)","v":"None Selected"},{"$f":"IF('Entry-Without Prescription B'!N82=\"\",\"None Selected\",'Entry-Without Prescription B'!N82)","v":"None Selected"}]
[null,8,{"$f":"IF('Entry-Without Prescription B'!C95=\"\",\"None\",'Entry-Without Prescription B'!C95)","v":"None"},{"$f":"IF('Entry-Without Prescription B'!D95=\"\",\"None\",'Entry-Without Prescription B'!D95)","v":"None"},{"$f":"IF(ISNA(VLOOKUP(\"p\",'Entry-Without Prescription B'!E95:F104,2, FALSE)),\"None Selected\", VLOOKUP(\"p\",'Entry-Without Prescription B'!E95:F104,2, FALSE))","v":"None Selected"},{"$f":"'Entry-Without Prescription B'!G95","v":"No"},{"$f":"IF(ISNA(VLOOKUP(\"p\",'Entry-Without Prescription B'!I95:J103,2, FALSE)),\"None Selected\", VLOOKUP(\"p\",'Entry-Without Prescription B'!I95:J103,2, FALSE))","v":"None Selected"},{"$f":"IF(ISNA(VLOOKUP(\"p\",'Entry-Without Prescription B'!K95:L102,2, FALSE)),\"None Selected\", VLOOKUP(\"p\",'Entry-Without Prescription B'!K95:L102,2, FALSE))","v":"None Selected"},{"$f":"IF('Entry-Without Prescription B'!M95=\"\",\"None Selected\",'Entry-Without Prescription B'!M95)","v":"None Selected"},{"$f":"IF('Entry-Without Prescription B'!N95=\"\",\"None Selected\",'Entry-Without Prescription B'!N95)","v":"None Selected"}]
[null,9,{"$f":"IF('Entry-Without Prescription B'!C108=\"\",\"None\",'Entry-Without Prescription B'!C108)","v":"None"},{"$f":"IF('Entry-Without Prescription B'!D108=\"\",\"None\",'Entry-Without Prescription B'!D108)","v":"None"},{"$f":"IF(ISNA(VLOOKUP(\"p\",'Entry-Without Prescription B'!E108:F117,2, FALSE)),\"None Selected\", VLOOKUP(\"p\",'Entry-Without Prescription B'!E108:F117,2, FALSE))","v":"None Selected"},{"$f":"'Entry-Without Prescription B'!G108","v":"No"},{"$f":"IF(ISNA(VLOOKUP(\"p\",'Entry-Without Prescription B'!I108:J116,2, FALSE)),\"None Selected\", VLOOKUP(\"p\",'Entry-Without Prescription B'!I108:J116,2, FALSE))","v":"None Selected"},{"$f":"IF(ISNA(VLOOKUP(\"p\",'Entry-Without Prescription B'!K108:L115,2, FALSE)),\"None Selected\", VLOOKUP(\"p\",'Entry-Without Prescription B'!K108:L115,2, FALSE))","v":"None Selected"},{"$f":"IF('Entry-Without Prescription B'!M108=\"\",\"None Selected\",'Entry-Without Prescription B'!M108)","v":"None Selected"},{"$f":"IF('Entry-Without Prescription B'!N108=\"\",\"None Selected\",'Entry-Without Prescription B'!N108)","v":"None Selected"}]
[null,10,{"$f":"IF('Entry-Without Prescription B'!C121=\"\",\"None\",'Entry-Without Prescription B'!C121)","v":"None"},{"$f":"IF('Entry-Without Prescription B'!D121=\"\",\"None\",'Entry-Without Prescription B'!D121)","v":"None"},{"$f":"IF(ISNA(VLOOKUP(\"p\",'Entry-Without Prescription B'!E121:F130,2, FALSE)),\"None Selected\", VLOOKUP(\"p\",'Entry-Without Prescription B'!E121:F130,2, FALSE))","v":"None Selected"},{"$f":"'Entry-Without Prescription B'!E121","v":"No"},{"$f":"IF(ISNA(VLOOKUP(\"p\",'Entry-Without Prescription B'!I121:J129,2, FALSE)),\"None Selected\", VLOOKUP(\"p\",'Entry-Without Prescription B'!I121:J129,2, FALSE))","v":"None Selected"},{"$f":"IF(ISNA(VLOOKUP(\"p\",'Entry-Without Prescription B'!K121:L128,2, FALSE)),\"None Selected\", VLOOKUP(\"p\",'Entry-Without Prescription B'!K121:L128,2, FALSE))","v":"None Selected"},{"$f":"IF('Entry-Without Prescription B'!M121=\"\",\"None Selected\",'Entry-Without Prescription B'!M121)","v":"None Selected"},{"$f":"IF('Entry-Without Prescription B'!N121=\"\",\"None Selected\",'Entry-Without Prescription B'!N121)","v":"None Selected"}]
[null,11,{"$f":"IF('Entry-Without Prescription B'!C134=\"\",\"None\",'Entry-Without Prescription B'!C134)","v":"None"},{"$f":"IF('Entry-Without Prescription B'!D134=\"\",\"None\",'Entry-Without Prescription B'!D134)","v":"None"},{"$f":"IF(ISNA(VLOOKUP(\"p\",'Entry-Without Prescription B'!E134:F143,2, FALSE)),\"None Selected\", VLOOKUP(\"p\",'Entry-Without Prescription B'!E134:F143,2, FALSE))","v":"None Selected"},{"$f":"'Entry-Without Prescription B'!G134","v":"No"},{"$f":"IF(ISNA(VLOOKUP(\"p\",'Entry-Without Prescription B'!I134:J142,2, FALSE)),\"None Selected\", VLOOKUP(\"p\",'Entry-Without Prescription B'!I134:J142,2, FALSE))","v":"None Selected"},{"$f":"IF(ISNA(VLOOKUP(\"p\",'Entry-Without Prescription B'!K134:L141,2, FALSE)),\"None Selected\", VLOOKUP(\"p\",'Entry-Without Prescription B'!K134:L141,2, FALSE))","v":"None Selected"},{"$f":"IF('Entry-Without Prescription B'!M134=\"\",\"None Selected\",'Entry-Without Prescription B'!M134)","v":"None Selected"},{"$f":"IF('Entry-Without Prescription B'!N134=\"\",\"None Selected\",'Entry-Without Prescription B'!N134)","v":"None Selected"}]
[null,12,{"$f":"IF('Entry-Without Prescription B'!C147=\"\",\"None\",'Entry-Without Prescription B'!C147)","v":"None"},{"$f":"IF('Entry-Without Prescription B'!D147=\"\",\"None\",'Entry-Without Prescription B'!D147)","v":"None"},{"$f":"IF(ISNA(VLOOKUP(\"p\",'Entry-Without Prescription B'!E147:F156,2, FALSE)),\"None Selected\", VLOOKUP(\"p\",'Entry-Without Prescription B'!E147:F156,2, FALSE))","v":"None Selected"},{"$f":"'Entry-Without Prescription B'!G147","v":"No"},{"$f":"IF(ISNA(VLOOKUP(\"p\",'Entry-Without Prescription B'!I147:J155,2, FALSE)),\"None Selected\", VLOOKUP(\"p\",'Entry-Without Prescription B'!I147:J155,2, FALSE))","v":"None Selected"},{"$f":"IF(ISNA(VLOOKUP(\"p\",'Entry-Without Prescription B'!K147:L154,2, FALSE)),\"None Selected\", VLOOKUP(\"p\",'Entry-Without Prescription B'!K147:L154,2, FALSE))","v":"None Selected"},{"$f":"IF('Entry-Without Prescription B'!M147=\"\",\"None Selected\",'Entry-Without Prescription B'!M147)","v":"None Selected"},{"$f":"IF('Entry-Without Prescription B'!N147=\"\",\"None Selected\",'Entry-Without Prescription B'!N147)","v":"None Selected"}]
[null,13,{"$f":"IF('Entry-Without Prescription B'!C160=\"\",\"None\",'Entry-Without Prescription B'!C160)","v":"None"},{"$f":"IF('Entry-Without Prescription B'!D160=\"\",\"None\",'Entry-Without Prescription B'!D160)","v":"None"},{"$f":"IF(ISNA(VLOOKUP(\"p\",'Entry-Without Prescription B'!E160:F169,2, FALSE)),\"None Selected\", VLOOKUP(\"p\",'Entry-Without Prescription B'!E160:F169,2, FALSE))","v":"None Selected"},{"$f":"'Entry-Without Prescription B'!G160","v":"No"},{"$f":"IF(ISNA(VLOOKUP(\"p\",'Entry-Without Prescription B'!I160:J168,2, FALSE)),\"None Selected\", VLOOKUP(\"p\",'Entry-Without Prescription B'!I160:J168,2, FALSE))","v":"None Selected"},{"$f":"IF(ISNA(VLOOKUP(\"p\",'Entry-Without Prescription B'!K160:L167,2, FALSE)),\"None Selected\", VLOOKUP(\"p\",'Entry-Without Prescription B'!K160:L167,2, FALSE))","v":"None Selected"},{"$f":"IF('Entry-Without Prescription B'!M160=\"\",\"None Selected\",'Entry-Without Prescription B'!M160)","v":"None Selected"},{"$f":"IF('Entry-Without Prescription B'!N160=\"\",\"None Selected\",'Entry-Without Prescription B'!N160)","v":"None Selected"}]
[null,14,{"$f":"IF('Entry-Without Prescription B'!C173=\"\",\"None\",'Entry-Without Prescription B'!C173)","v":"None"},{"$f":"IF('Entry-Without Prescription B'!D173=\"\",\"None\",'Entry-Without Prescription B'!D173)","v":"None"},{"$f":"IF(ISNA(VLOOKUP(\"p\",'Entry-Without Prescription B'!E173:F182,2, FALSE)),\"None Selected\", VLOOKUP(\"p\",'Entry-Without Prescription B'!E173:F182,2, FALSE))","v":"None Selected"},{"$f":"'Entry-Without Prescription B'!G173","v":"No"},{"$f":"IF(ISNA(VLOOKUP(\"p\",'Entry-Without Prescription B'!I173:J181,2, FALSE)),\"None Selected\", VLOOKUP(\"p\",'Entry-Without Prescription B'!I173:J181,2, FALSE))","v":"None Selected"},{"$f":"IF(ISNA(VLOOKUP(\"p\",'Entry-Without Prescription B'!K173:L180,2, FALSE)),\"None Selected\", VLOOKUP(\"p\",'Entry-Without Prescription B'!K173:L180,2, FALSE))","v":"None Selected"},{"$f":"IF('Entry-Without Prescription B'!M173=\"\",\"None Selected\",'Entry-Without Prescription B'!M173)","v":"None Selected"},{"$f":"IF('Entry-Without Prescription B'!N173=\"\",\"None Selected\",'Entry-Without Prescription B'!N173)","v":"None Selected"}]
[null,15,{"$f":"IF('Entry-Without Prescription B'!C186=\"\",\"None\",'Entry-Without Prescription B'!C186)","v":"None"},{"$f":"IF('Entry-Without Prescription B'!D186=\"\",\"None\",'Entry-Without Prescription B'!D186)","v":"None"},{"$f":"IF(ISNA(VLOOKUP(\"p\",'Entry-Without Prescription B'!E186:F195,2, FALSE)),\"None Selected\", VLOOKUP(\"p\",'Entry-Without Prescription B'!E186:F195,2, FALSE))","v":"None Selected"},{"$f":"'Entry-Without Prescription B'!G186","v":"No"},{"$f":"IF(ISNA(VLOOKUP(\"p\",'Entry-Without Prescription B'!I186:J194,2, FALSE)),\"None Selected\", VLOOKUP(\"p\",'Entry-Without Prescription B'!I186:J194,2, FALSE))","v":"None Selected"},{"$f":"IF(ISNA(VLOOKUP(\"p\",'Entry-Without Prescription B'!K186:L193,2, FALSE)),\"None Selected\", VLOOKUP(\"p\",'Entry-Without Prescription B'!K93:L186,2, FALSE))","v":"None Selected"},{"$f":"IF('Entry-Without Prescription B'!M186=\"\",\"None Selected\",'Entry-Without Prescription B'!M186)","v":"None Selected"},{"$f":"IF('Entry-Without Prescription B'!N186=\"\",\"None Selected\",'Entry-Without Prescription B'!N186)","v":"None Selected"}]
[null,16,{"$f":"IF('Entry-Without Prescription B'!C199=\"\",\"None\",'Entry-Without Prescription B'!C199)","v":"None"},{"$f":"IF('Entry-Without Prescription B'!D199=\"\",\"None\",'Entry-Without Prescription B'!D199)","v":"None"},{"$f":"IF(ISNA(VLOOKUP(\"p\",'Entry-Without Prescription B'!E199:F208,2, FALSE)),\"None Selected\", VLOOKUP(\"p\",'Entry-Without Prescription B'!E199:F208,2, FALSE))","v":"None Selected"},{"$f":"'Entry-Without Prescription B'!G199","v":"No"},{"$f":"IF(ISNA(VLOOKUP(\"p\",'Entry-Without Prescription B'!I199:J207,2, FALSE)),\"None Selected\", VLOOKUP(\"p\",'Entry-Without Prescription B'!I199:J207,2, FALSE))","v":"None Selected"},{"$f":"IF(ISNA(VLOOKUP(\"p\",'Entry-Without Prescription B'!K199:L206,2, FALSE)),\"None Selected\", VLOOKUP(\"p\",'Entry-Without Prescription B'!K199:L206,2, FALSE))","v":"None Selected"},{"$f":"IF('Entry-Without Prescription B'!M199=\"\",\"None Selected\",'Entry-Without Prescription B'!IM99)","v":"None Selected"},{"$f":"IF('Entry-Without Prescription B'!N199=\"\",\"None Selected\",'Entry-Without Prescription B'!IN99)","v":"None Selected"}]
[null,17,{"$f":"IF('Entry-Without Prescription B'!C212=\"\",\"None\",'Entry-Without Prescription B'!C212)","v":"None"},{"$f":"IF('Entry-Without Prescription B'!D212=\"\",\"None\",'Entry-Without Prescription B'!D212)","v":"None"},{"$f":"IF(ISNA(VLOOKUP(\"p\",'Entry-Without Prescription B'!E212:F221,2, FALSE)),\"None Selected\", VLOOKUP(\"p\",'Entry-Without Prescription B'!E212:F221,2, FALSE))","v":"None Selected"},{"$f":"'Entry-Without Prescription B'!G212","v":"No"},{"$f":"IF(ISNA(VLOOKUP(\"p\",'Entry-Without Prescription B'!I212:J220,2, FALSE)),\"None Selected\", VLOOKUP(\"p\",'Entry-Without Prescription B'!I212:J220,2, FALSE))","v":"None Selected"},{"$f":"IF(ISNA(VLOOKUP(\"p\",'Entry-Without Prescription B'!K212:L219,2, FALSE)),\"None Selected\", VLOOKUP(\"p\",'Entry-Without Prescription B'!K212:L219,2, FALSE))","v":"None Selected"},{"$f":"IF('Entry-Without Prescription B'!M212=\"\",\"None Selected\",'Entry-Without Prescription B'!M212)","v":"None Selected"},{"$f":"IF('Entry-Without Prescription B'!N212=\"\",\"None Selected\",'Entry-Without Prescription B'!N212)","v":"None Selected"}]
[null,18,{"$f":"IF('Entry-Without Prescription B'!C225=\"\",\"None\",'Entry-Without Prescription B'!C225)","v":"None"},{"$f":"IF('Entry-Without Prescription B'!D225=\"\",\"None\",'Entry-Without Prescription B'!D225)","v":"None"},{"$f":"IF(ISNA(VLOOKUP(\"p\",'Entry-Without Prescription B'!E225:F234,2, FALSE)),\"None Selected\", VLOOKUP(\"p\",'Entry-Without Prescription B'!E225:F234,2, FALSE))","v":"None Selected"},{"$f":"'Entry-Without Prescription B'!G225","v":"No"},{"$f":"IF(ISNA(VLOOKUP(\"p\",'Entry-Without Prescription B'!I225:J233,2, FALSE)),\"None Selected\", VLOOKUP(\"p\",'Entry-Without Prescription B'!I225:J233,2, FALSE))","v":"None Selected"},{"$f":"IF(ISNA(VLOOKUP(\"p\",'Entry-Without Prescription B'!K225:L232,2, FALSE)),\"None Selected\", VLOOKUP(\"p\",'Entry-Without Prescription B'!K225:L232,2, FALSE))","v":"None Selected"},{"$f":"IF('Entry-Without Prescription B'!M225=\"\",\"None Selected\",'Entry-Without Prescription B'!M225)","v":"None Selected"},{"$f":"IF('Entry-Without Prescription B'!N225=\"\",\"None Selected\",'Entry-Without Prescription B'!N225)","v":"None Selected"}]
[null,19,{"$f":"IF('Entry-Without Prescription B'!C238=\"\",\"None\",'Entry-Without Prescription B'!C238)","v":"None"},{"$f":"IF('Entry-Without Prescription B'!D238=\"\",\"None\",'Entry-Without Prescription B'!D238)","v":"None"},{"$f":"IF(ISNA(VLOOKUP(\"p\",'Entry-Without Prescription B'!E238:F247,2, FALSE)),\"None Selected\", VLOOKUP(\"p\",'Entry-Without Prescription B'!E238:F247,2, FALSE))","v":"None Selected"},{"$f":"'Entry-Without Prescription B'!G238","v":"No"},{"$f":"IF(ISNA(VLOOKUP(\"p\",'Entry-Without Prescription B'!I238:J246,2, FALSE)),\"None Selected\", VLOOKUP(\"p\",'Entry-Without Prescription B'!I238:J246,2, FALSE))","v":"None Selected"},{"$f":"IF(ISNA(VLOOKUP(\"p\",'Entry-Without Prescription B'!K238:L245,2, FALSE)),\"None Selected\", VLOOKUP(\"p\",'Entry-Without Prescription B'!K238:L245,2, FALSE))","v":"None Selected"},{"$f":"IF('Entry-Without Prescription B'!M238=\"\",\"None Selected\",'Entry-Without Prescription B'!M238)","v":"None Selected"},{"$f":"IF('Entry-Without Prescription B'!N238=\"\",\"None Selected\",'Entry-Without Prescription B'!N238)","v":"None Selected"}]
[null,20,{"$f":"IF('Entry-Without Prescription B'!C251=\"\",\"None\",'Entry-Without Prescription B'!C251)","v":"None"},{"$f":"IF('Entry-Without Prescription B'!D251=\"\",\"None\",'Entry-Without Prescription B'!D251)","v":"None"},{"$f":"IF(ISNA(VLOOKUP(\"p\",'Entry-Without Prescription B'!E251:F260,2, FALSE)),\"None Selected\", VLOOKUP(\"p\",'Entry-Without Prescription B'!E251:F260,2, FALSE))","v":"None Selected"},{"$f":"'Entry-Without Prescription B'!G251","v":"No"},{"$f":"IF(ISNA(VLOOKUP(\"p\",'Entry-Without Prescription B'!I251:J259,2, FALSE)),\"None Selected\", VLOOKUP(\"p\",'Entry-Without Prescription B'!I251:J259,2, FALSE))","v":"None Selected"},{"$f":"IF(ISNA(VLOOKUP(\"p\",'Entry-Without Prescription B'!K251:L258,2, FALSE)),\"None Selected\", VLOOKUP(\"p\",'Entry-Without Prescription B'!K251:L258,2, FALSE))","v":"None Selected"},{"$f":"IF('Entry-Without Prescription B'!M251=\"\",\"None Selected\",'Entry-Without Prescription B'!M251)","v":"None Selected"},{"$f":"IF('Entry-Without Prescription B'!N251=\"\",\"None Selected\",'Entry-Without Prescription B'!N251)","v":"None Selected"}]
[null,21,{"$f":"IF('Entry-Without Prescription B'!C264=\"\",\"None\",'Entry-Without Prescription B'!C264)","v":"None"},{"$f":"IF('Entry-Without Prescription B'!D264=\"\",\"None\",'Entry-Without Prescription B'!D264)","v":"None"},{"$f":"IF(ISNA(VLOOKUP(\"p\",'Entry-Without Prescription B'!E264:F273,2, FALSE)),\"None Selected\", VLOOKUP(\"p\",'Entry-Without Prescription B'!E264:F273,2, FALSE))","v":"None Selected"},{"$f":"'Entry-Without Prescription B'!G264","v":"No"},{"$f":"IF(ISNA(VLOOKUP(\"p\",'Entry-Without Prescription B'!I264:J272,2, FALSE)),\"None Selected\", VLOOKUP(\"p\",'Entry-Without Prescription B'!I264:J272,2, FALSE))","v":"None Selected"},{"$f":"IF(ISNA(VLOOKUP(\"p\",'Entry-Without Prescription B'!K264:L271,2, FALSE)),\"None Selected\", VLOOKUP(\"p\",'Entry-Without Prescription B'!K264:L271,2, FALSE))","v":"None Selected"},{"$f":"IF('Entry-Without Prescription B'!M264=\"\",\"None Selected\",'Entry-Without Prescription B'!M264)","v":"None Selected"},{"$f":"IF('Entry-Without Prescription B'!N264=\"\",\"None Selected\",'Entry-Without Prescription B'!N264)","v":"None Selected"}]
[null,22,{"$f":"IF('Entry-Without Prescription B'!C277=\"\",\"None\",'Entry-Without Prescription B'!C277)","v":"None"},{"$f":"IF('Entry-Without Prescription B'!D277=\"\",\"None\",'Entry-Without Prescription B'!D277)","v":"None"},{"$f":"IF(ISNA(VLOOKUP(\"p\",'Entry-Without Prescription B'!E277:F286,2, FALSE)),\"None Selected\", VLOOKUP(\"p\",'Entry-Without Prescription B'!E277:F286,2, FALSE))","v":"None Selected"},{"$f":"'Entry-Without Prescription B'!G277","v":"No"},{"$f":"IF(ISNA(VLOOKUP(\"p\",'Entry-Without Prescription B'!I277:J285,2, FALSE)),\"None Selected\", VLOOKUP(\"p\",'Entry-Without Prescription B'!I277:J285,2, FALSE))","v":"None Selected"},{"$f":"IF(ISNA(VLOOKUP(\"p\",'Entry-Without Prescription B'!K277:L284,2, FALSE)),\"None Selected\", VLOOKUP(\"p\",'Entry-Without Prescription B'!K277:L284,2, FALSE))","v":"None Selected"},{"$f":"IF('Entry-Without Prescription B'!M277=\"\",\"None Selected\",'Entry-Without Prescription B'!M277)","v":"None Selected"},{"$f":"IF('Entry-Without Prescription B'!N277=\"\",\"None Selected\",'Entry-Without Prescription B'!N277)","v":"None Selected"}]
[null,23,{"$f":"IF('Entry-Without Prescription B'!C290=\"\",\"None\",'Entry-Without Prescription B'!C290)","v":"None"},{"$f":"IF('Entry-Without Prescription B'!D290=\"\",\"None\",'Entry-Without Prescription B'!D290)","v":"None"},{"$f":"IF(ISNA(VLOOKUP(\"p\",'Entry-Without Prescription B'!E290:F299,2, FALSE)),\"None Selected\", VLOOKUP(\"p\",'Entry-Without Prescription B'!E290:F299,2, FALSE))","v":"None Selected"},{"$f":"'Entry-Without Prescription B'!G290","v":"No"},{"$f":"IF(ISNA(VLOOKUP(\"p\",'Entry-Without Prescription B'!I290:J298,2, FALSE)),\"None Selected\", VLOOKUP(\"p\",'Entry-Without Prescription B'!I290:J298,2, FALSE))","v":"None Selected"},{"$f":"IF(ISNA(VLOOKUP(\"p\",'Entry-Without Prescription B'!K290:L297,2, FALSE)),\"None Selected\", VLOOKUP(\"p\",'Entry-Without Prescription B'!K290:L297,2, FALSE))","v":"None Selected"},{"$f":"IF('Entry-Without Prescription B'!M290=\"\",\"None Selected\",'Entry-Without Prescription B'!M290)","v":"None Selected"},{"$f":"IF('Entry-Without Prescription B'!N290=\"\",\"None Selected\",'Entry-Without Prescription B'!N290)","v":"None Selected"}]
[null,24,{"$f":"IF('Entry-Without Prescription B'!C303=\"\",\"None\",'Entry-Without Prescription B'!C303)","v":"None"},{"$f":"IF('Entry-Without Prescription B'!D303=\"\",\"None\",'Entry-Without Prescription B'!D303)","v":"None"},{"$f":"IF(ISNA(VLOOKUP(\"p\",'Entry-Without Prescription B'!E303:F312,2, FALSE)),\"None Selected\", VLOOKUP(\"p\",'Entry-Without Prescription B'!E303:F312,2, FALSE))","v":"None Selected"},{"$f":"'Entry-Without Prescription B'!G303","v":"No"},{"$f":"IF(ISNA(VLOOKUP(\"p\",'Entry-Without Prescription B'!I303:J311,2, FALSE)),\"None Selected\", VLOOKUP(\"p\",'Entry-Without Prescription B'!I303:J311,2, FALSE))","v":"None Selected"},{"$f":"IF(ISNA(VLOOKUP(\"p\",'Entry-Without Prescription B'!K303:L310,2, FALSE)),\"None Selected\", VLOOKUP(\"p\",'Entry-Without Prescription B'!K303:L310,2, FALSE))","v":"None Selected"},{"$f":"IF('Entry-Without Prescription B'!M303=\"\",\"None Selected\",'Entry-Without Prescription B'!M303)","v":"None Selected"},{"$f":"IF('Entry-Without Prescription B'!N303=\"\",\"None Selected\",'Entry-Without Prescription B'!N303)","v":"None Selected"}]
[null,25,{"$f":"IF('Entry-Without Prescription B'!C316=\"\",\"None\",'Entry-Without Prescription B'!C316)","v":"None"},{"$f":"IF('Entry-Without Prescription B'!D316=\"\",\"None\",'Entry-Without Prescription B'!D316)","v":"None"},{"$f":"IF(ISNA(VLOOKUP(\"p\",'Entry-Without Prescription B'!E316:F325,2, FALSE)),\"None Selected\", VLOOKUP(\"p\",'Entry-Without Prescription B'!E316:F325,2, FALSE))","v":"None Selected"},{"$f":"'Entry-Without Prescription B'!G316","v":"No"},{"$f":"IF(ISNA(VLOOKUP(\"p\",'Entry-Without Prescription B'!I316:J324,2, FALSE)),\"None Selected\", VLOOKUP(\"p\",'Entry-Without Prescription B'!I316:J324,2, FALSE))","v":"None Selected"},{"$f":"IF(ISNA(VLOOKUP(\"p\",'Entry-Without Prescription B'!K316:L323,2, FALSE)),\"None Selected\", VLOOKUP(\"p\",'Entry-Without Prescription B'!K316:L323,2, FALSE))","v":"None Selected"},{"$f":"IF('Entry-Without Prescription B'!M316=\"\",\"None Selected\",'Entry-Without Prescription B'!M316)","v":"None Selected"},{"$f":"IF('Entry-Without Prescription B'!N316=\"\",\"None Selected\",'Entry-Without Prescription B'!N316)","v":"None Selected"}]
[null,26,{"$f":"IF('Entry-Without Prescription B'!C329=\"\",\"None\",'Entry-Without Prescription B'!C329)","v":"None"},{"$f":"IF('Entry-Without Prescription B'!D329=\"\",\"None\",'Entry-Without Prescription B'!D329)","v":"None"},{"$f":"IF(ISNA(VLOOKUP(\"p\",'Entry-Without Prescription B'!E329:F338,2, FALSE)),\"None Selected\", VLOOKUP(\"p\",'Entry-Without Prescription B'!E329:F338,2, FALSE))","v":"None Selected"},{"$f":"'Entry-Without Prescription B'!G329","v":"No"},{"$f":"IF(ISNA(VLOOKUP(\"p\",'Entry-Without Prescription B'!I329:J337,2, FALSE)),\"None Selected\", VLOOKUP(\"p\",'Entry-Without Prescription B'!I329:J337,2, FALSE))","v":"None Selected"},{"$f":"IF(ISNA(VLOOKUP(\"p\",'Entry-Without Prescription B'!K329:L336,2, FALSE)),\"None Selected\", VLOOKUP(\"p\",'Entry-Without Prescription B'!K329:L336,2, FALSE))","v":"None Selected"},{"$f":"IF('Entry-Without Prescription B'!M329=\"\",\"None Selected\",'Entry-Without Prescription B'!M329)","v":"None Selected"},{"$f":"IF('Entry-Without Prescription B'!N329=\"\",\"None Selected\",'Entry-Without Prescription B'!N329)","v":"None Selected"}]
[null,27,{"$f":"IF('Entry-Without Prescription B'!C342=\"\",\"None\",'Entry-Without Prescription B'!C342)","v":"None"},{"$f":"IF('Entry-Without Prescription B'!D342=\"\",\"None\",'Entry-Without Prescription B'!D342)","v":"None"},{"$f":"IF(ISNA(VLOOKUP(\"p\",'Entry-Without Prescription B'!E342:F351,2, FALSE)),\"None Selected\", VLOOKUP(\"p\",'Entry-Without Prescription B'!E342:F351,2, FALSE))","v":"None Selected"},{"$f":"'Entry-Without Prescription B'!G342","v":"No"},{"$f":"IF(ISNA(VLOOKUP(\"p\",'Entry-Without Prescription B'!I342:J350,2, FALSE)),\"None Selected\", VLOOKUP(\"p\",'Entry-Without Prescription B'!I342:J350,2, FALSE))","v":"None Selected"},{"$f":"IF(ISNA(VLOOKUP(\"p\",'Entry-Without Prescription B'!K342:L349,2, FALSE)),\"None Selected\", VLOOKUP(\"p\",'Entry-Without Prescription B'!K342:L349,2, FALSE))","v":"None Selected"},{"$f":"IF('Entry-Without Prescription B'!M342=\"\",\"None Selected\",'Entry-Without Prescription B'!M342)","v":"None Selected"},{"$f":"IF('Entry-Without Prescription B'!N342=\"\",\"None Selected\",'Entry-Without Prescription B'!N342)","v":"None Selected"}]
[null,28,{"$f":"IF('Entry-Without Prescription B'!C355=\"\",\"None\",'Entry-Without Prescription B'!C355)","v":"None"},{"$f":"IF('Entry-Without Prescription B'!D355=\"\",\"None\",'Entry-Without Prescription B'!D355)","v":"None"},{"$f":"IF(ISNA(VLOOKUP(\"p\",'Entry-Without Prescription B'!E355:F364,2, FALSE)),\"None Selected\", VLOOKUP(\"p\",'Entry-Without Prescription B'!E355:F364,2, FALSE))","v":"None Selected"},{"$f":"'Entry-Without Prescription B'!G355","v":"No"},{"$f":"IF(ISNA(VLOOKUP(\"p\",'Entry-Without Prescription B'!I355:J363,2, FALSE)),\"None Selected\", VLOOKUP(\"p\",'Entry-Without Prescription B'!I355:J363,2, FALSE))","v":"None Selected"},{"$f":"IF(ISNA(VLOOKUP(\"p\",'Entry-Without Prescription B'!K355:L362,2, FALSE)),\"None Selected\", VLOOKUP(\"p\",'Entry-Without Prescription B'!K355:L362,2, FALSE))","v":"None Selected"},{"$f":"IF('Entry-Without Prescription B'!M355=\"\",\"None Selected\",'Entry-Without Prescription B'!M355)","v":"None Selected"},{"$f":"IF('Entry-Without Prescription B'!N355=\"\",\"None Selected\",'Entry-Without Prescription B'!N355)","v":"None Selected"}]
[null,29,{"$f":"IF('Entry-Without Prescription B'!C368=\"\",\"None\",'Entry-Without Prescription B'!C368)","v":"None"},{"$f":"IF('Entry-Without Prescription B'!D368=\"\",\"None\",'Entry-Without Prescription B'!D368)","v":"None"},{"$f":"IF(ISNA(VLOOKUP(\"p\",'Entry-Without Prescription B'!E368:F377,2, FALSE)),\"None Selected\", VLOOKUP(\"p\",'Entry-Without Prescription B'!E368:F377,2, FALSE))","v":"None Selected"},{"$f":"'Entry-Without Prescription B'!G368","v":"No"},{"$f":"IF(ISNA(VLOOKUP(\"p\",'Entry-Without Prescription B'!I369:J375,2, FALSE)),\"None Selected\", VLOOKUP(\"p\",'Entry-Without Prescription B'!I369:J375,2, FALSE))","v":"None Selected"},{"$f":"IF(ISNA(VLOOKUP(\"p\",'Entry-Without Prescription B'!K368:L375,2, FALSE)),\"None Selected\", VLOOKUP(\"p\",'Entry-Without Prescription B'!K368:L375,2, FALSE))","v":"None Selected"},{"$f":"IF('Entry-Without Prescription B'!M368=\"\",\"None Selected\",'Entry-Without Prescription B'!M368)","v":"None Selected"},{"$f":"IF('Entry-Without Prescription B'!N368=\"\",\"None Selected\",'Entry-Without Prescription B'!N368)","v":"None Selected"}]
[null,30,{"$f":"IF('Entry-Without Prescription B'!C381=\"\",\"None\",'Entry-Without Prescription B'!C381)","v":"None"},{"$f":"IF('Entry-Without Prescription B'!D381=\"\",\"None\",'Entry-Without Prescription B'!D381)","v":"None"},{"$f":"IF(ISNA(VLOOKUP(\"p\",'Entry-Without Prescription B'!E381:F390,2, FALSE)),\"None Selected\", VLOOKUP(\"p\",'Entry-Without Prescription B'!E381:F390,2, FALSE))","v":"None Selected"},{"$f":"'Entry-Without Prescription B'!G381","v":"No"},{"$f":"IF(ISNA(VLOOKUP(\"p\",'Entry-Without Prescription B'!I381:J389,2, FALSE)),\"None Selected\", VLOOKUP(\"p\",'Entry-Without Prescription B'!I381:J389,2, FALSE))","v":"None Selected"},{"$f":"IF(ISNA(VLOOKUP(\"p\",'Entry-Without Prescription B'!K381:L388,2, FALSE)),\"None Selected\", VLOOKUP(\"p\",'Entry-Without Prescription B'!K381:L388,2, FALSE))","v":"None Selected"},{"$f":"IF('Entry-Without Prescription B'!M381=\"\",\"None Selected\",'Entry-Without Prescription B'!M381)","v":"None Selected"},{"$f":"IF('Entry-Without Prescription B'!N381=\"\",\"None Selected\",'Entry-Without Prescription B'!N381)","v":"None Selected"}]

{"sheet":"Report","index":6,"n_rows":34,"n_cols":17,"rows_kept":34,"cut":false,"hidden":false,"merged":[[20,1,20,8],[21,1,21,8],[22,1,22,8],[23,1,23,8],[32,1,32,4],[31,5,31,6],[32,5,32,6],[31,7,31,9],[32,7,32,9],[31,1,31,4],[24,1,24,8],[27,1,27,9],[28,5,28,6],[29,5,29,6],[30,5,30,6],[3,1,3,9],[13,1,13,8],[19,1,19,9],[15,1,15,8],[15,16,15,17],[10,1,10,8],[12,16,12,17],[8,16,8,17],[14,16,14,17],[4,13,4,15],[4,16,4,17],[4,1,4,8],[5,1,5,8],[9,16,9,17],[8,13,8,15],[9,11,9,12],[1,1,1,17],[11,1,11,8],[36,11,36,12],[37,13,37,15],[37,16,37,17],[36,13,36,14],[37,11,37,12],[36,16,36,17],[8,1,8,9],[4,11,4,12],[5,11,5,12],[5,13,5,15],[5,16,5,17],[3,11,3,17],[16,13,16,15],[9,1,9,8],[9,13,9,15],[6,16,6,17],[7,11,7,12],[7,16,7,17],[8,11,8,12],[6,13,6,15],[7,13,7,15],[17,13,17,15],[17,16,17,17],[17,11,17,12],[16,11,16,12],[15,11,15,12],[16,16,16,17],[10,16,10,17],[11,16,11,17],[13,16,13,17],[15,13,15,14],[14,13,14,14],[13,13,13,14],[12,13,12,14],[11,13,11,14],[10,13,10,14],[6,1,6,8],[12,11,12,12],[29,1,29,4],[28,1,28,4],[33,1,33,4],[33,5,33,6],[33,7,33,9],[12,1,12,8],[14,1,14,8],[16,1,16,8],[17,1,17,8],[25,1,25,8],[6,11,6,12],[28,7,28,9],[29,7,29,9],[30,7,30,9]]}
[]
[null,"Prescribing and Management of Dental Infections Audit"]
[]
[null,"Total number of patients",null,null,null,null,null,null,null,null,null,"Frequency of drugs prescribed"]
[null,"Total number of patients seen during the study period",null,null,null,null,null,null,null,0,null,"Antibiotic",null,"Frequency",null,null,"Relative Frequency %"]
[null,"Total number of patients diagnosed with an infection during the study period ",null,null,null,null,null,null,null,{"$f":"SUM('Back End'!I7:J36)","v":0},null,"Amoxicillin",null,{"$f":"COUNTIF('Entry-Prescription A'!$M$4:$M$393,L6)","v":0},null,null,{"$f":"N6/N18","v":{"$error":"#DIV/0!"}}]
[null,"Total number of patients entered into the audit ",null,null,null,null,null,null,null,{"$f":"SUM('Back End'!C29:D29)","v":0},null,"Metronidazole",null,{"$f":"COUNTIF('Entry-Prescription A'!$M$4:$M$393,L7)","v":0},null,null,{"$f":"N7/N18","v":{"$error":"#DIV/0!"}}]
[null,null,null,null,null,null,null,null,null,null,null,"Clarithromycin",null,{"$f":"COUNTIF('Entry-Prescription A'!$M$4:$M$393,L8)","v":0},null,null,{"$f":"N8/N18","v":{"$error":"#DIV/0!"}}]
[null,"Total number of patients with a prescription",null,null,null,null,null,null,null,null,null,"Azithromycin",null,{"$f":"COUNTIF('Entry-Prescription A'!$M$4:$M$393,L9)","v":0},null,null,{"$f":"N9/N18","v":{"$error":"#DIV/0!"}}]
[null,"Total",null,null,null,null,null,null,null,"Number",null,"Penicillin",null,{"$f":"COUNTIF('Entry-Prescription A'!$M$4:$M$393,L10)","v":0},null,null,{"$f":"N10/N18","v":{"$error":"#DIV/0!"}}]
[null,"Total number of patients receiving prophylaxis",null,null,null,null,null,null,null,{"$f":"SUM('Back End'!K7:K36)","v":0},null,"Clindamycin",null,{"$f":"COUNTIF('Entry-Prescription A'!$M$4:$M$393,L11)","v":0},null,null,{"$f":"N11/N18","v":{"$error":"#DIV/0!"}}]
[null,"Total number of prescriptions issued during the study period ",null,null,null,null,null,null,null,{"$f":"SUM('Back End'!L7:L36)","v":0},null,"Cephalosporin",null,{"$f":"COUNTIF('Entry-Prescription A'!$M$4:$M$393,L12)","v":0},null,null,{"$f":"N12/N18","v":{"$error":"#DIV/0!"}}]
[null,"Percentage of patients receiving a prescription during the study period ",null,null,null,null,null,null,null,{"$f":"J12/J5","v":{"$error":"#DIV/0!"}},null,"Co-amoxiclav",null,{"$f":"COUNTIF('Entry-Prescription A'!$M$4:$M$393,L13)","v":0},null,null,{"$f":"N13/N18","v":{"$error":"#DIV/0!"}}]
[null,"Total number of conditions resolved with a prescription ",null,null,null,null,null,null,null,{"$f":"COUNTIF('Entry-Prescription A'!Q4:Q393,\"Yes\")","v":0},null,"Erythromycin",null,{"$f":"COUNTIF('Entry-Prescription A'!$M$4:$M$393,L14)","v":0},null,null,{"$f":"N14/N18","v":{"$error":"#DIV/0!"}}]
[null,"Total number of patients not reviewed ",null,null,null,null,null,null,null,{"$f":"COUNTIF('Entry-Prescription A'!$R$4:$R$393,\"=No\")","v":0},null,"Tetracycline",null,{"$f":"COUNTIF('Entry-Prescription A'!$M$4:$M$393,L15)","v":0},null,null,{"$f":"N15/N18","v":{"$error":"#DIV/0!"}}]
[null,"Total number of patients reviewed less than three days after a prescription was issued",null,null,null,null,null,null,null,{"$f":"COUNTIF('Entry-Prescription A'!$R$4:$R$393,\"=Before 3 days\")","v":0},null,"Amoxicillin + Metronidazole",null,{"$f":"COUNTIF('Entry-Prescription A'!$M$4:$M$393,L16)","v":0},null,null,{"$f":"N16/N18","v":{"$error":"#DIV/0!"}}]
[null,"Total number of patients reviewed three days after a prescription was issued",null,null,null,null,null,null,null,{"$f":"COUNTIF('Entry-Prescription A'!$R$4:$R$393,\"=3 days\")","v":0},null,"Other",null,{"$f":"COUNTIF('Entry-Prescription A'!$M$4:$M$393,L17)","v":0},null,null,{"$f":"N17/N18","v":{"$error":"#DIV/0!"}}]
[null,"Total number of patients reviewed more that three days after a prescription was issued",null,null,null,null,null,null,null,{"$f":"COUNTIF('Entry-Prescription A'!$R$4:$R$393,\"=After 3 days\")","v":0},null,"Total",null,{"$f":"SUM(N6:P17)","v":0},null,null,{"$f":"SUM(Q6:R17)","v":{"$error":"#DIV/0!"}}]
[]
[null,"Total number of patients without a prescription"]
[null,"Total",null,null,null,null,null,null,null,"Number"]
[null,"Total number of conditions resolved without a prescription ",null,null,null,null,null,null,null,{"$f":"COUNTIF('Entry-Without Prescription B'!M4:M393,\"Yes\")","v":0}]
[null,"Total number of paitents not reviewed ",null,null,null,null,null,null,null,{"$f":"COUNTIF('Entry-Without Prescription B'!$N$4:$N$393,\"No\")","v":0}]
[null,"Total number of patients reviewed less than three days after treatment ",null,null,null,null,null,null,null,{"$f":"COUNTIF('Entry-Without Prescription B'!$N$4:$N$393,\"Before 3 days\")","v":0}]
[null,"Total number of patients reviewed three days after treatment ",null,null,null,null,null,null,null,{"$f":"COUNTIF('Entry-Without Prescription B'!$N$4:$N$393,\"3 days\")","v":0}]
[null,"Total number of patients reviewed more that three days after treatment",null,null,null,null,null,null,null,{"$f":"COUNTIF('Entry-Without Prescription B'!$N$4:$N$393,\"After 3 days\")","v":0}]
[]
[null,"Frequency of reasons for not prescribing"]
[null,"Reasons ",null,null,null,"Frequency",null,"Relative Frequency %"]
[null,"No infection ",null,null,null,{"$f":"SUM('Back End'!AS33)","v":0},null,{"$f":"F30/F34","v":{"$error":"#DIV/0!"}}]
[null,"Clinical intervention was successful ",null,null,null,{"$f":"SUM('Back End'!AS34)","v":0},null,{"$f":"F31/F34","v":{"$error":"#DIV/0!"}}]
[null,"Patient refused treatment ",null,null,null,{"$f":"SUM('Back End'!AS35)","v":0},null,{"$f":"F32/F34","v":{"$error":"#DIV/0!"}}]
[null,"Evidence of systemic spread",null,null,null,{"$f":"SUM('Back End'!AS36)","v":0},null,{"$f":"F33/F34","v":{"$error":"#DIV/0!"}}]
[null,"Total ",null,null,null,{"$f":"SUM(F30:G33)","v":0},null,{"$f":"SUM(H30:J33)","v":{"$error":"#DIV/0!"}}]

{"sheet":"Back End","index":7,"n_rows":50,"n_cols":45,"rows_kept":50,"cut":false,"hidden":true,"merged":[]}
[]
[]
[null,"PLEASE LEAVE BLANK"]
["Age Group","Gender","Drug","Dose","Frequency","Duration","Options"]
["0-9","Male","Amoxicillin","200mg","Once Daily","NA","P",null,null,null,null,null,null,null,1,2,3,4,5,6,7,8,9,10,11,12,13,14,15,16,17,18,19,20,21,22,23,24,25,26,27,28,29,30,"Total"]
["10-19","Female","Metronidazole","250mg","Twice Daily","3 Days","Yes",null,"Infection without prescr","Infection - presc","Prophylaxis","Prescriptions",null,"Prophylaxis due to Medical History ",{"$f":"IF(OR('Entry-Prescription A'!I4 = \"yes\",'Entry-Prescription A'!I4 = \"P\"), 1,0)","v":0},{"$f":"IF(OR('Entry-Prescription A'!I17 = \"yes\",'Entry-Prescription A'!I17 = \"P\"), 1,0)","v":0},{"$f":"IF(OR('Entry-Prescription A'!I30 = \"yes\",'Entry-Prescription A'!I30 = \"P\"), 1,0)","v":0},{"$f":"IF(OR('Entry-Prescription A'!I43 = \"yes\",'Entry-Prescription A'!I43 = \"P\"), 1,0)","v":0},{"$f":"IF(OR('Entry-Prescription A'!I56 = \"yes\",'Entry-Prescription A'!I56 = \"P\"), 1,0)","v":0},{"$f":"IF(OR('Entry-Prescription A'!I69 = \"yes\",'Entry-Prescription A'!I69 = \"P\"), 1,0)","v":0},{"$f":"IF(OR('Entry-Prescription A'!I82 = \"yes\",'Entry-Prescription A'!I82 = \"P\"), 1,0)","v":0},{"$f":"IF(OR('Entry-Prescription A'!I95 = \"yes\",'Entry-Prescription A'!I95 = \"P\"), 1,0)","v":0},{"$f":"IF(OR('Entry-Prescription A'!I108 = \"yes\",'Entry-Prescription A'!I108 = \"P\"), 1,0)","v":0},{"$f":"IF(OR('Entry-Prescription A'!I121 = \"yes\",'Entry-Prescription A'!I121 = \"P\"), 1,0)","v":0},{"$f":"IF(OR('Entry-Prescription A'!I134 = \"yes\",'Entry-Prescription A'!I134 = \"P\"), 1,0)","v":0},{"$f":"IF(OR('Entry-Prescription A'!I147 = \"yes\",'Entry-Prescription A'!I147 = \"P\"), 1,0)","v":0},{"$f":"IF(OR('Entry-Prescription A'!I160 = \"yes\",'Entry-Prescription A'!I160 = \"P\"), 1,0)","v":0},{"$f":"IF(OR('Entry-Prescription A'!I173 = \"yes\",'Entry-Prescription A'!I173 = \"P\"), 1,0)","v":0},{"$f":"IF(OR('Entry-Prescription A'!I186 = \"yes\",'Entry-Prescription A'!I186 = \"P\"), 1,0)","v":0},{"$f":"IF(OR('Entry-Prescription A'!I199 = \"yes\",'Entry-Prescription A'!I199 = \"P\"), 1,0)","v":0},{"$f":"IF(OR('Entry-Prescription A'!I212 = \"yes\",'Entry-Prescription A'!I212 = \"P\"), 1,0)","v":0},{"$f":"IF(OR('Entry-Prescription A'!I225 = \"yes\",'Entry-Prescription A'!I225 = \"P\"), 1,0)","v":0},{"$f":"IF(OR('Entry-Prescription A'!I238 = \"yes\",'Entry-Prescription A'!I238 = \"P\"), 1,0)","v":0},{"$f":"IF(OR('Entry-Prescription A'!I251 = \"yes\",'Entry-Prescription A'!I251 = \"P\"), 1,0)","v":0},{"$f":"IF(OR('Entry-Prescription A'!I264 = \"yes\",'Entry-Prescription A'!I264 = \"P\"), 1,0)","v":0},{"$f":"IF(OR('Entry-Prescription A'!I277 = \"yes\",'Entry-Prescription A'!I277 = \"P\"), 1,0)","v":0},{"$f":"IF(OR('Entry-Prescription A'!I290 = \"yes\",'Entry-Prescription A'!I290 = \"P\"), 1,0)","v":0},{"$f":"IF(OR('Entry-Prescription A'!I303 = \"yes\",'Entry-Prescription A'!I303 = \"P\"), 1,0)","v":0},{"$f":"IF(OR('Entry-Prescription A'!I316 = \"yes\",'Entry-Prescription A'!I316 = \"P\"), 1,0)","v":0},{"$f":"IF(OR('Entry-Prescription A'!I329 = \"yes\",'Entry-Prescription A'!I329 = \"P\"), 1,0)","v":0},{"$f":"IF(OR('Entry-Prescription A'!I342 = \"yes\",'Entry-Prescription A'!I342 = \"P\"), 1,0)","v":0},{"$f":"IF(OR('Entry-Prescription A'!I355 = \"yes\",'Entry-Prescription A'!I355 = \"P\"), 1,0)","v":0},{"$f":"IF(OR('Entry-Prescription A'!I368 = \"yes\",'Entry-Prescription A'!I368 = \"P\"), 1,0)","v":0},{"$f":"IF(OR('Entry-Prescription A'!I381 = \"yes\",'Entry-Prescription A'!I381 = \"P\"), 1,0)","v":0},{"$f":"SUM(O6:AR6)","v":0}]
["20-29",null,"Clarithromycin","400mg","Every 8 Hours","5 Days","No",1,{"$f":"IF(OR(COUNTIF('Entry-Without Prescription B'!E4:F8,\"Yes\") > 0, COUNTIF('Entry-Without Prescription B'!E4:F8,\"=P\") >0),1,0)","v":0},{"$f":"IF(OR(COUNTIF('Entry-Prescription A'!E4:E7,\"=yes\") > 0, COUNTIF('Entry-Prescription A'!E4:E7,\"=P\") > 0), 1, 0)","v":0},{"$f":"IF(OR(COUNTIF('Entry-Prescription A'!I4:I5,\"=yes\") > 0, COUNTIF('Entry-Prescription A'!I4:I5,\"=P\") > 0), 1, 0)","v":0},{"$f":"IF(OR(COUNTIF('Entry-Prescription A'!I4:I16,\"=yes\") > 0, COUNTIF('Entry-Prescription A'!I4:I16,\"=P\") > 0), 1, 0)","v":0},null,"Prophylaxis for Surgical Procedure",{"$f":"IF(OR('Entry-Prescription A'!I5 = \"yes\",'Entry-Prescription A'!I5 = \"P\"), 1,0)","v":0},{"$f":"IF(OR('Entry-Prescription A'!I18 = \"yes\",'Entry-Prescription A'!I18 = \"P\"), 1,0)","v":0},{"$f":"IF(OR('Entry-Prescription A'!I31 = \"yes\",'Entry-Prescription A'!I31 = \"P\"), 1,0)","v":0},{"$f":"IF(OR('Entry-Prescription A'!I44 = \"yes\",'Entry-Prescription A'!I44 = \"P\"), 1,0)","v":0},{"$f":"IF(OR('Entry-Prescription A'!I57 = \"yes\",'Entry-Prescription A'!I57 = \"P\"), 1,0)","v":0},{"$f":"IF(OR('Entry-Prescription A'!I70 = \"yes\",'Entry-Prescription A'!I70 = \"P\"), 1,0)","v":0},{"$f":"IF(OR('Entry-Prescription A'!I83 = \"yes\",'Entry-Prescription A'!I83 = \"P\"), 1,0)","v":0},{"$f":"IF(OR('Entry-Prescription A'!I96 = \"yes\",'Entry-Prescription A'!I96 = \"P\"), 1,0)","v":0},{"$f":"IF(OR('Entry-Prescription A'!I109 = \"yes\",'Entry-Prescription A'!I109 = \"P\"), 1,0)","v":0},{"$f":"IF(OR('Entry-Prescription A'!I122 = \"yes\",'Entry-Prescription A'!I122 = \"P\"), 1,0)","v":0},{"$f":"IF(OR('Entry-Prescription A'!I135 = \"yes\",'Entry-Prescription A'!I135 = \"P\"), 1,0)","v":0},{"$f":"IF(OR('Entry-Prescription A'!I148 = \"yes\",'Entry-Prescription A'!I148 = \"P\"), 1,0)","v":0},{"$f":"IF(OR('Entry-Prescription A'!I161 = \"yes\",'Entry-Prescription A'!I161 = \"P\"), 1,0)","v":0},{"$f":"IF(OR('Entry-Prescription A'!I174 = \"yes\",'Entry-Prescription A'!I174 = \"P\"), 1,0)","v":0},{"$f":"IF(OR('Entry-Prescription A'!I187 = \"yes\",'Entry-Prescription A'!I187 = \"P\"), 1,0)","v":0},{"$f":"IF(OR('Entry-Prescription A'!I200 = \"yes\",'Entry-Prescription A'!I200 = \"P\"), 1,0)","v":0},{"$f":"IF(OR('Entry-Prescription A'!I213 = \"yes\",'Entry-Prescription A'!I213 = \"P\"), 1,0)","v":0},{"$f":"IF(OR('Entry-Prescription A'!I226 = \"yes\",'Entry-Prescription A'!I226 = \"P\"), 1,0)","v":0},{"$f":"IF(OR('Entry-Prescription A'!I239 = \"yes\",'Entry-Prescription A'!I239 = \"P\"), 1,0)","v":0},{"$f":"IF(OR('Entry-Prescription A'!I252 = \"yes\",'Entry-Prescription A'!I252 = \"P\"), 1,0)","v":0},{"$f":"IF(OR('Entry-Prescription A'!I265 = \"yes\",'Entry-Prescription A'!I265 = \"P\"), 1,0)","v":0},{"$f":"IF(OR('Entry-Prescription A'!I278 = \"yes\",'Entry-Prescription A'!I278 = \"P\"), 1,0)","v":0},{"$f":"IF(OR('Entry-Prescription A'!I291 = \"yes\",'Entry-Prescription A'!I291 = \"P\"), 1,0)","v":0},{"$f":"IF(OR('Entry-Prescription A'!I304 = \"yes\",'Entry-Prescription A'!I304 = \"P\"), 1,0)","v":0},{"$f":"IF(OR('Entry-Prescription A'!I317 = \"yes\",'Entry-Prescription A'!I317 = \"P\"), 1,0)","v":0},{"$f":"IF(OR('Entry-Prescription A'!I330 = \"yes\",'Entry-Prescription A'!I330 = \"P\"), 1,0)","v":0},{"$f":"IF(OR('Entry-Prescription A'!I343 = \"yes\",'Entry-Prescription A'!I343 = \"P\"), 1,0)","v":0},{"$f":"IF(OR('Entry-Prescription A'!I356 = \"yes\",'Entry-Prescription A'!I356 = \"P\"), 1,0)","v":0},{"$f":"IF(OR('Entry-Prescription A'!I369 = \"yes\",'Entry-Prescription A'!I369 = \"P\"), 1,0)","v":0},{"$f":"IF(OR('Entry-Prescription A'!I382 = \"yes\",'Entry-Prescription A'!I382 = \"P\"), 1,0)","v":0},{"$f":"SUM(O7:AR7)","v":0}]
["30-39",null,"Azithromycin","500mg","Every 6 Hours","7 Days",null,2,{"$f":"IF(OR(COUNTIF('Entry-Without Prescription B'!E17:F20,\"Yes\") > 0, COUNTIF('Entry-Without Prescription B'!E17:F20,\"=P\") >0),1,0)","v":0},{"$f":"IF(OR(COUNTIF('Entry-Prescription A'!E17:E20,\"=yes\") > 0, COUNTIF('Entry-Prescription A'!E17:E20,\"=P\") > 0), 1, 0)","v":0},{"$f":"IF(OR(COUNTIF('Entry-Prescription A'!I17:I18,\"=yes\") > 0, COUNTIF('Entry-Prescription A'!I17:I18,\"=P\") > 0), 1, 0)","v":0},{"$f":"IF(OR(COUNTIF('Entry-Prescription A'!I17:I29,\"=yes\") > 0, COUNTIF('Entry-Prescription A'!I17:I29,\"=P\") > 0), 1, 0)","v":0},null,"Localised Fluctuant Swelling",{"$f":"IF(OR('Entry-Prescription A'!I6 = \"yes\",'Entry-Prescription A'!I6 = \"P\"), 1,0)","v":0},{"$f":"IF(OR('Entry-Prescription A'!I19 = \"yes\",'Entry-Prescription A'!I19 = \"P\"), 1,0)","v":0},{"$f":"IF(OR('Entry-Prescription A'!I32 = \"yes\",'Entry-Prescription A'!I32 = \"P\"), 1,0)","v":0},{"$f":"IF(OR('Entry-Prescription A'!I45 = \"yes\",'Entry-Prescription A'!I45 = \"P\"), 1,0)","v":0},{"$f":"IF(OR('Entry-Prescription A'!I58 = \"yes\",'Entry-Prescription A'!I58 = \"P\"), 1,0)","v":0},{"$f":"IF(OR('Entry-Prescription A'!I71 = \"yes\",'Entry-Prescription A'!I71 = \"P\"), 1,0)","v":0},{"$f":"IF(OR('Entry-Prescription A'!I84 = \"yes\",'Entry-Prescription A'!I84 = \"P\"), 1,0)","v":0},{"$f":"IF(OR('Entry-Prescription A'!I97 = \"yes\",'Entry-Prescription A'!I97 = \"P\"), 1,0)","v":0},{"$f":"IF(OR('Entry-Prescription A'!I110 = \"yes\",'Entry-Prescription A'!I110 = \"P\"), 1,0)","v":0},{"$f":"IF(OR('Entry-Prescription A'!I123 = \"yes\",'Entry-Prescription A'!I123 = \"P\"), 1,0)","v":0},{"$f":"IF(OR('Entry-Prescription A'!I136 = \"yes\",'Entry-Prescription A'!I136 = \"P\"), 1,0)","v":0},{"$f":"IF(OR('Entry-Prescription A'!I149 = \"yes\",'Entry-Prescription A'!I149 = \"P\"), 1,0)","v":0},{"$f":"IF(OR('Entry-Prescription A'!I162 = \"yes\",'Entry-Prescription A'!I162 = \"P\"), 1,0)","v":0},{"$f":"IF(OR('Entry-Prescription A'!I175 = \"yes\",'Entry-Prescription A'!I175 = \"P\"), 1,0)","v":0},{"$f":"IF(OR('Entry-Prescription A'!I188 = \"yes\",'Entry-Prescription A'!I188 = \"P\"), 1,0)","v":0},{"$f":"IF(OR('Entry-Prescription A'!I201 = \"yes\",'Entry-Prescription A'!I201 = \"P\"), 1,0)","v":0},{"$f":"IF(OR('Entry-Prescription A'!I214 = \"yes\",'Entry-Prescription A'!I214 = \"P\"), 1,0)","v":0},{"$f":"IF(OR('Entry-Prescription A'!I227 = \"yes\",'Entry-Prescription A'!I227 = \"P\"), 1,0)","v":0},{"$f":"IF(OR('Entry-Prescription A'!I240 = \"yes\",'Entry-Prescription A'!I240 = \"P\"), 1,0)","v":0},{"$f":"IF(OR('Entry-Prescription A'!I253 = \"yes\",'Entry-Prescription A'!I253 = \"P\"), 1,0)","v":0},{"$f":"IF(OR('Entry-Prescription A'!I266 = \"yes\",'Entry-Prescription A'!I266 = \"P\"), 1,0)","v":0},{"$f":"IF(OR('Entry-Prescription A'!I279 = \"yes\",'Entry-Prescription A'!I279 = \"P\"), 1,0)","v":0},{"$f":"IF(OR('Entry-Prescription A'!I292 = \"yes\",'Entry-Prescription A'!I292 = \"P\"), 1,0)","v":0},{"$f":"IF(OR('Entry-Prescription A'!I305 = \"yes\",'Entry-Prescription A'!I305 = \"P\"), 1,0)","v":0},{"$f":"IF(OR('Entry-Prescription A'!I318 = \"yes\",'Entry-Prescription A'!I318 = \"P\"), 1,0)","v":0},{"$f":"IF(OR('Entry-Prescription A'!I331 = \"yes\",'Entry-Prescription A'!I331 = \"P\"), 1,0)","v":0},{"$f":"IF(OR('Entry-Prescription A'!I344 = \"yes\",'Entry-Prescription A'!I344 = \"P\"), 1,0)","v":0},{"$f":"IF(OR('Entry-Prescription A'!I357 = \"yes\",'Entry-Prescription A'!I357 = \"P\"), 1,0)","v":0},{"$f":"IF(OR('Entry-Prescription A'!I370 = \"yes\",'Entry-Prescription A'!I370 = \"P\"), 1,0)","v":0},{"$f":"IF(OR('Entry-Prescription A'!I383 = \"yes\",'Entry-Prescription A'!I383 = \"P\"), 1,0)","v":0},{"$f":"SUM(O8:AR8)","v":0}]
["40-49",null,"Penicillin","3g",null,null,null,3,{"$f":"IF(OR(COUNTIF('Entry-Without Prescription B'!E30:F33,\"Yes\") > 0, COUNTIF('Entry-Without Prescription B'!E30:F33,\"=P\") >0),1,0)","v":0},{"$f":"IF(OR(COUNTIF('Entry-Prescription A'!E30:E33,\"=yes\") > 0, COUNTIF('Entry-Prescription A'!E30:E33,\"=P\") > 0), 1, 0)","v":0},{"$f":"IF(OR(COUNTIF('Entry-Prescription A'!I30:I31,\"=yes\") > 0, COUNTIF('Entry-Prescription A'!I30:I31,\"=P\") > 0), 1, 0)","v":0},{"$f":"IF(OR(COUNTIF('Entry-Prescription A'!I30:I42,\"=yes\") > 0, COUNTIF('Entry-Prescription A'!I30:I42,\"=P\") > 0), 1, 0)","v":0},null,"Gross or Diffuse Welling",{"$f":"IF(OR('Entry-Prescription A'!I7 = \"yes\",'Entry-Prescription A'!I7 = \"P\"), 1,0)","v":0},{"$f":"IF(OR('Entry-Prescription A'!I20 = \"yes\",'Entry-Prescription A'!I20 = \"P\"), 1,0)","v":0},{"$f":"IF(OR('Entry-Prescription A'!I33 = \"yes\",'Entry-Prescription A'!I33 = \"P\"), 1,0)","v":0},{"$f":"IF(OR('Entry-Prescription A'!I46 = \"yes\",'Entry-Prescription A'!I46 = \"P\"), 1,0)","v":0},{"$f":"IF(OR('Entry-Prescription A'!I59 = \"yes\",'Entry-Prescription A'!I59 = \"P\"), 1,0)","v":0},{"$f":"IF(OR('Entry-Prescription A'!I72 = \"yes\",'Entry-Prescription A'!I72 = \"P\"), 1,0)","v":0},{"$f":"IF(OR('Entry-Prescription A'!I85 = \"yes\",'Entry-Prescription A'!I85 = \"P\"), 1,0)","v":0},{"$f":"IF(OR('Entry-Prescription A'!I98 = \"yes\",'Entry-Prescription A'!I98 = \"P\"), 1,0)","v":0},{"$f":"IF(OR('Entry-Prescription A'!I111 = \"yes\",'Entry-Prescription A'!I111 = \"P\"), 1,0)","v":0},{"$f":"IF(OR('Entry-Prescription A'!I124 = \"yes\",'Entry-Prescription A'!I124 = \"P\"), 1,0)","v":0},{"$f":"IF(OR('Entry-Prescription A'!I137 = \"yes\",'Entry-Prescription A'!I137 = \"P\"), 1,0)","v":0},{"$f":"IF(OR('Entry-Prescription A'!I150 = \"yes\",'Entry-Prescription A'!I150 = \"P\"), 1,0)","v":0},{"$f":"IF(OR('Entry-Prescription A'!I163 = \"yes\",'Entry-Prescription A'!I163 = \"P\"), 1,0)","v":0},{"$f":"IF(OR('Entry-Prescription A'!I176 = \"yes\",'Entry-Prescription A'!I176 = \"P\"), 1,0)","v":0},{"$f":"IF(OR('Entry-Prescription A'!I189 = \"yes\",'Entry-Prescription A'!I189 = \"P\"), 1,0)","v":0},{"$f":"IF(OR('Entry-Prescription A'!I202 = \"yes\",'Entry-Prescription A'!I202 = \"P\"), 1,0)","v":0},{"$f":"IF(OR('Entry-Prescription A'!I215 = \"yes\",'Entry-Prescription A'!I215 = \"P\"), 1,0)","v":0},{"$f":"IF(OR('Entry-Prescription A'!I228 = \"yes\",'Entry-Prescription A'!I228 = \"P\"), 1,0)","v":0},{"$f":"IF(OR('Entry-Prescription A'!I241 = \"yes\",'Entry-Prescription A'!I241 = \"P\"), 1,0)","v":0},{"$f":"IF(OR('Entry-Prescription A'!I254 = \"yes\",'Entry-Prescription A'!I254 = \"P\"), 1,0)","v":0},{"$f":"IF(OR('Entry-Prescription A'!I267 = \"yes\",'Entry-Prescription A'!I267 = \"P\"), 1,0)","v":0},{"$f":"IF(OR('Entry-Prescription A'!I280 = \"yes\",'Entry-Prescription A'!I280 = \"P\"), 1,0)","v":0},{"$f":"IF(OR('Entry-Prescription A'!I293 = \"yes\",'Entry-Prescription A'!I293 = \"P\"), 1,0)","v":0},{"$f":"IF(OR('Entry-Prescription A'!I306 = \"yes\",'Entry-Prescription A'!I306 = \"P\"), 1,0)","v":0},{"$f":"IF(OR('Entry-Prescription A'!I319 = \"yes\",'Entry-Prescription A'!I319 = \"P\"), 1,0)","v":0},{"$f":"IF(OR('Entry-Prescription A'!I332 = \"yes\",'Entry-Prescription A'!I332 = \"P\"), 1,0)","v":0},{"$f":"IF(OR('Entry-Prescription A'!I345 = \"yes\",'Entry-Prescription A'!I345 = \"P\"), 1,0)","v":0},{"$f":"IF(OR('Entry-Prescription A'!I358 = \"yes\",'Entry-Prescription A'!I358 = \"P\"), 1,0)","v":0},{"$f":"IF(OR('Entry-Prescription A'!I371 = \"yes\",'Entry-Prescription A'!I371 = \"P\"), 1,0)","v":0},{"$f":"IF(OR('Entry-Prescription A'!I384 = \"yes\",'Entry-Prescription A'!I384 = \"P\"), 1,0)","v":0},{"$f":"SUM(O9:AR9)","v":0}]
["50-59",null,"Clindamycin","100mg/5ml",null,null,null,4,{"$f":"IF(OR(COUNTIF('Entry-Without Prescription B'!E43:F46,\"Yes\") > 0, COUNTIF('Entry-Without Prescription B'!E43:F46,\"=P\") >0),1,0)","v":0},{"$f":"IF(OR(COUNTIF('Entry-Prescription A'!E43:E46,\"=yes\") > 0, COUNTIF('Entry-Prescription A'!E43:E46,\"=P\") > 0), 1, 0)","v":0},{"$f":"IF(OR(COUNTIF('Entry-Prescription A'!I43:I44,\"=yes\") > 0, COUNTIF('Entry-Prescription A'!I43:I44,\"=P\") > 0), 1, 0)","v":0},{"$f":"IF(OR(COUNTIF('Entry-Prescription A'!I43:I55,\"=yes\") > 0, COUNTIF('Entry-Prescription A'!I43:I55,\"=P\") > 0), 1, 0)","v":0},null,"Elevated temperature (>36.5º)",{"$f":"IF(OR('Entry-Prescription A'!I8 = \"yes\",'Entry-Prescription A'!I8 = \"P\"), 1,0)","v":0},{"$f":"IF(OR('Entry-Prescription A'!I21 = \"yes\",'Entry-Prescription A'!I21 = \"P\"), 1,0)","v":0},{"$f":"IF(OR('Entry-Prescription A'!I34 = \"yes\",'Entry-Prescription A'!I34 = \"P\"), 1,0)","v":0},{"$f":"IF(OR('Entry-Prescription A'!I47 = \"yes\",'Entry-Prescription A'!I47 = \"P\"), 1,0)","v":0},{"$f":"IF(OR('Entry-Prescription A'!I60 = \"yes\",'Entry-Prescription A'!I60 = \"P\"), 1,0)","v":0},{"$f":"IF(OR('Entry-Prescription A'!I73 = \"yes\",'Entry-Prescription A'!I73 = \"P\"), 1,0)","v":0},{"$f":"IF(OR('Entry-Prescription A'!I86 = \"yes\",'Entry-Prescription A'!I86 = \"P\"), 1,0)","v":0},{"$f":"IF(OR('Entry-Prescription A'!I99 = \"yes\",'Entry-Prescription A'!I99 = \"P\"), 1,0)","v":0},{"$f":"IF(OR('Entry-Prescription A'!I112 = \"yes\",'Entry-Prescription A'!I112 = \"P\"), 1,0)","v":0},{"$f":"IF(OR('Entry-Prescription A'!I125 = \"yes\",'Entry-Prescription A'!I125 = \"P\"), 1,0)","v":0},{"$f":"IF(OR('Entry-Prescription A'!I138 = \"yes\",'Entry-Prescription A'!I138 = \"P\"), 1,0)","v":0},{"$f":"IF(OR('Entry-Prescription A'!I151 = \"yes\",'Entry-Prescription A'!I151 = \"P\"), 1,0)","v":0},{"$f":"IF(OR('Entry-Prescription A'!I164 = \"yes\",'Entry-Prescription A'!I164 = \"P\"), 1,0)","v":0},{"$f":"IF(OR('Entry-Prescription A'!I177 = \"yes\",'Entry-Prescription A'!I177 = \"P\"), 1,0)","v":0},{"$f":"IF(OR('Entry-Prescription A'!I190 = \"yes\",'Entry-Prescription A'!I190 = \"P\"), 1,0)","v":0},{"$f":"IF(OR('Entry-Prescription A'!I203 = \"yes\",'Entry-Prescription A'!I203 = \"P\"), 1,0)","v":0},{"$f":"IF(OR('Entry-Prescription A'!I216 = \"yes\",'Entry-Prescription A'!I216 = \"P\"), 1,0)","v":0},{"$f":"IF(OR('Entry-Prescription A'!I229 = \"yes\",'Entry-Prescription A'!I229 = \"P\"), 1,0)","v":0},{"$f":"IF(OR('Entry-Prescription A'!I242 = \"yes\",'Entry-Prescription A'!I242 = \"P\"), 1,0)","v":0},{"$f":"IF(OR('Entry-Prescription A'!I255 = \"yes\",'Entry-Prescription A'!I255 = \"P\"), 1,0)","v":0},{"$f":"IF(OR('Entry-Prescription A'!I268 = \"yes\",'Entry-Prescription A'!I268 = \"P\"), 1,0)","v":0},{"$f":"IF(OR('Entry-Prescription A'!I281 = \"yes\",'Entry-Prescription A'!I281 = \"P\"), 1,0)","v":0},{"$f":"IF(OR('Entry-Prescription A'!I294 = \"yes\",'Entry-Prescription A'!I294 = \"P\"), 1,0)","v":0},{"$f":"IF(OR('Entry-Prescription A'!I307 = \"yes\",'Entry-Prescription A'!I307 = \"P\"), 1,0)","v":0},{"$f":"IF(OR('Entry-Prescription A'!I320 = \"yes\",'Entry-Prescription A'!I320 = \"P\"), 1,0)","v":0},{"$f":"IF(OR('Entry-Prescription A'!I333 = \"yes\",'Entry-Prescription A'!I333 = \"P\"), 1,0)","v":0},{"$f":"IF(OR('Entry-Prescription A'!I346 = \"yes\",'Entry-Prescription A'!I346 = \"P\"), 1,0)","v":0},{"$f":"IF(OR('Entry-Prescription A'!I359 = \"yes\",'Entry-Prescription A'!I359 = \"P\"), 1,0)","v":0},{"$f":"IF(OR('Entry-Prescription A'!I372 = \"yes\",'Entry-Prescription A'!I372 = \"P\"), 1,0)","v":0},{"$f":"IF(OR('Entry-Prescription A'!I385 = \"yes\",'Entry-Prescription A'!I385 = \"P\"), 1,0)","v":0},{"$f":"SUM(O10:AR10)","v":0}]
["60-69",null,"Cephalosporin","125mg/5ml",null,null,null,5,{"$f":"IF(OR(COUNTIF('Entry-Without Prescription B'!E56:F59,\"Yes\") > 0, COUNTIF('Entry-Without Prescription B'!E56:F59,\"=P\") >0),1,0)","v":0},{"$f":"IF(OR(COUNTIF('Entry-Prescription A'!E56:E59,\"=yes\") > 0, COUNTIF('Entry-Prescription A'!E56:E59,\"=P\") > 0), 1, 0)","v":0},{"$f":"IF(OR(COUNTIF('Entry-Prescription A'!I56:I57,\"=yes\") > 0, COUNTIF('Entry-Prescription A'!I56:I57,\"=P\") > 0), 1, 0)","v":0},{"$f":"IF(OR(COUNTIF('Entry-Prescription A'!I56:I68,\"=yes\") > 0, COUNTIF('Entry-Prescription A'!I56:I68,\"=P\") > 0), 1, 0)","v":0},null,"Evidence of Systemic Spread (Malaise)",{"$f":"IF(OR('Entry-Prescription A'!I9 = \"yes\",'Entry-Prescription A'!I9 = \"P\"), 1,0)","v":0},{"$f":"IF(OR('Entry-Prescription A'!I22 = \"yes\",'Entry-Prescription A'!I22 = \"P\"), 1,0)","v":0},{"$f":"IF(OR('Entry-Prescription A'!I35 = \"yes\",'Entry-Prescription A'!I35 = \"P\"), 1,0)","v":0},{"$f":"IF(OR('Entry-Prescription A'!I48 = \"yes\",'Entry-Prescription A'!I48 = \"P\"), 1,0)","v":0},{"$f":"IF(OR('Entry-Prescription A'!I61 = \"yes\",'Entry-Prescription A'!I61 = \"P\"), 1,0)","v":0},{"$f":"IF(OR('Entry-Prescription A'!I74 = \"yes\",'Entry-Prescription A'!I74 = \"P\"), 1,0)","v":0},{"$f":"IF(OR('Entry-Prescription A'!I87 = \"yes\",'Entry-Prescription A'!I87 = \"P\"), 1,0)","v":0},{"$f":"IF(OR('Entry-Prescription A'!I100 = \"yes\",'Entry-Prescription A'!I100 = \"P\"), 1,0)","v":0},{"$f":"IF(OR('Entry-Prescription A'!I113 = \"yes\",'Entry-Prescription A'!I113 = \"P\"), 1,0)","v":0},{"$f":"IF(OR('Entry-Prescription A'!I126 = \"yes\",'Entry-Prescription A'!I126 = \"P\"), 1,0)","v":0},{"$f":"IF(OR('Entry-Prescription A'!I139 = \"yes\",'Entry-Prescription A'!I139 = \"P\"), 1,0)","v":0},{"$f":"IF(OR('Entry-Prescription A'!I152 = \"yes\",'Entry-Prescription A'!I152 = \"P\"), 1,0)","v":0},{"$f":"IF(OR('Entry-Prescription A'!I165 = \"yes\",'Entry-Prescription A'!I165 = \"P\"), 1,0)","v":0},{"$f":"IF(OR('Entry-Prescription A'!I178 = \"yes\",'Entry-Prescription A'!I178 = \"P\"), 1,0)","v":0},{"$f":"IF(OR('Entry-Prescription A'!I191 = \"yes\",'Entry-Prescription A'!I191 = \"P\"), 1,0)","v":0},{"$f":"IF(OR('Entry-Prescription A'!I204 = \"yes\",'Entry-Prescription A'!I204 = \"P\"), 1,0)","v":0},{"$f":"IF(OR('Entry-Prescription A'!I217 = \"yes\",'Entry-Prescription A'!I217 = \"P\"), 1,0)","v":0},{"$f":"IF(OR('Entry-Prescription A'!I230 = \"yes\",'Entry-Prescription A'!I230 = \"P\"), 1,0)","v":0},{"$f":"IF(OR('Entry-Prescription A'!I243 = \"yes\",'Entry-Prescription A'!I243 = \"P\"), 1,0)","v":0},{"$f":"IF(OR('Entry-Prescription A'!I256 = \"yes\",'Entry-Prescription A'!I256 = \"P\"), 1,0)","v":0},{"$f":"IF(OR('Entry-Prescription A'!I269 = \"yes\",'Entry-Prescription A'!I269 = \"P\"), 1,0)","v":0},{"$f":"IF(OR('Entry-Prescription A'!I282 = \"yes\",'Entry-Prescription A'!I282 = \"P\"), 1,0)","v":0},{"$f":"IF(OR('Entry-Prescription A'!I295 = \"yes\",'Entry-Prescription A'!I295 = \"P\"), 1,0)","v":0},{"$f":"IF(OR('Entry-Prescription A'!I308 = \"yes\",'Entry-Prescription A'!I308 = \"P\"), 1,0)","v":0},{"$f":"IF(OR('Entry-Prescription A'!I321 = \"yes\",'Entry-Prescription A'!I321 = \"P\"), 1,0)","v":0},{"$f":"IF(OR('Entry-Prescription A'!I334 = \"yes\",'Entry-Prescription A'!I334 = \"P\"), 1,0)","v":0},{"$f":"IF(OR('Entry-Prescription A'!I347 = \"yes\",'Entry-Prescription A'!I347 = \"P\"), 1,0)","v":0},{"$f":"IF(OR('Entry-Prescription A'!I360 = \"yes\",'Entry-Prescription A'!I360 = \"P\"), 1,0)","v":0},{"$f":"IF(OR('Entry-Prescription A'!I373 = \"yes\",'Entry-Prescription A'!I373 = \"P\"), 1,0)","v":0},{"$f":"IF(OR('Entry-Prescription A'!I386 = \"yes\",'Entry-Prescription A'!I386 = \"P\"), 1,0)","v":0},{"$f":"SUM(X11:AR11)","v":0}]
["Over 70",null,"Co-amoxiclav","200mg/5ml",null,null,null,6,{"$f":"IF(OR(COUNTIF('Entry-Without Prescription B'!E69:F72,\"Yes\") > 0, COUNTIF('Entry-Without Prescription B'!E69:F72,\"=P\") >0),1,0)","v":0},{"$f":"IF(OR(COUNTIF('Entry-Prescription A'!E69:E72,\"=yes\") > 0, COUNTIF('Entry-Prescription A'!E69:E72,\"=P\") > 0), 1, 0)","v":0},{"$f":"IF(OR(COUNTIF('Entry-Prescription A'!I69:I70,\"=yes\") > 0, COUNTIF('Entry-Prescription A'!I69:I70,\"=P\") > 0), 1, 0)","v":0},{"$f":"IF(OR(COUNTIF('Entry-Prescription A'!I69:I81,\"=yes\") > 0, COUNTIF('Entry-Prescription A'!I69:I81,\"=P\") > 0), 1, 0)","v":0},null,"Pain",{"$f":"IF(OR('Entry-Prescription A'!I10 = \"yes\",'Entry-Prescription A'!I10 = \"P\"), 1,0)","v":0},{"$f":"IF(OR('Entry-Prescription A'!I23 = \"yes\",'Entry-Prescription A'!I23 = \"P\"), 1,0)","v":0},{"$f":"IF(OR('Entry-Prescription A'!I36 = \"yes\",'Entry-Prescription A'!I36 = \"P\"), 1,0)","v":0},{"$f":"IF(OR('Entry-Prescription A'!I49 = \"yes\",'Entry-Prescription A'!I49 = \"P\"), 1,0)","v":0},{"$f":"IF(OR('Entry-Prescription A'!I62 = \"yes\",'Entry-Prescription A'!I62 = \"P\"), 1,0)","v":0},{"$f":"IF(OR('Entry-Prescription A'!I75 = \"yes\",'Entry-Prescription A'!I75 = \"P\"), 1,0)","v":0},{"$f":"IF(OR('Entry-Prescription A'!I88 = \"yes\",'Entry-Prescription A'!I88 = \"P\"), 1,0)","v":0},{"$f":"IF(OR('Entry-Prescription A'!I101 = \"yes\",'Entry-Prescription A'!I101 = \"P\"), 1,0)","v":0},{"$f":"IF(OR('Entry-Prescription A'!I114 = \"yes\",'Entry-Prescription A'!I114 = \"P\"), 1,0)","v":0},{"$f":"IF(OR('Entry-Prescription A'!I127 = \"yes\",'Entry-Prescription A'!I127 = \"P\"), 1,0)","v":0},{"$f":"IF(OR('Entry-Prescription A'!I140 = \"yes\",'Entry-Prescription A'!I140 = \"P\"), 1,0)","v":0},{"$f":"IF(OR('Entry-Prescription A'!I153 = \"yes\",'Entry-Prescription A'!I153 = \"P\"), 1,0)","v":0},{"$f":"IF(OR('Entry-Prescription A'!I166 = \"yes\",'Entry-Prescription A'!I166 = \"P\"), 1,0)","v":0},{"$f":"IF(OR('Entry-Prescription A'!I179 = \"yes\",'Entry-Prescription A'!I179 = \"P\"), 1,0)","v":0},{"$f":"IF(OR('Entry-Prescription A'!I192 = \"yes\",'Entry-Prescription A'!I192 = \"P\"), 1,0)","v":0},{"$f":"IF(OR('Entry-Prescription A'!I205 = \"yes\",'Entry-Prescription A'!I205 = \"P\"), 1,0)","v":0},{"$f":"IF(OR('Entry-Prescription A'!I218 = \"yes\",'Entry-Prescription A'!I218 = \"P\"), 1,0)","v":0},{"$f":"IF(OR('Entry-Prescription A'!I231 = \"yes\",'Entry-Prescription A'!I231 = \"P\"), 1,0)","v":0},{"$f":"IF(OR('Entry-Prescription A'!I244 = \"yes\",'Entry-Prescription A'!I244 = \"P\"), 1,0)","v":0},{"$f":"IF(OR('Entry-Prescription A'!I257 = \"yes\",'Entry-Prescription A'!I257 = \"P\"), 1,0)","v":0},{"$f":"IF(OR('Entry-Prescription A'!I270 = \"yes\",'Entry-Prescription A'!I270 = \"P\"), 1,0)","v":0},{"$f":"IF(OR('Entry-Prescription A'!I283 = \"yes\",'Entry-Prescription A'!I283 = \"P\"), 1,0)","v":0},{"$f":"IF(OR('Entry-Prescription A'!I296 = \"yes\",'Entry-Prescription A'!I296 = \"P\"), 1,0)","v":0},{"$f":"IF(OR('Entry-Prescription A'!I309 = \"yes\",'Entry-Prescription A'!I309 = \"P\"), 1,0)","v":0},{"$f":"IF(OR('Entry-Prescription A'!I322 = \"yes\",'Entry-Prescription A'!I322 = \"P\"), 1,0)","v":0},{"$f":"IF(OR('Entry-Prescription A'!I335 = \"yes\",'Entry-Prescription A'!I335 = \"P\"), 1,0)","v":0},{"$f":"IF(OR('Entry-Prescription A'!I348 = \"yes\",'Entry-Prescription A'!I348 = \"P\"), 1,0)","v":0},{"$f":"IF(OR('Entry-Prescription A'!I361 = \"yes\",'Entry-Prescription A'!I361 = \"P\"), 1,0)","v":0},{"$f":"IF(OR('Entry-Prescription A'!I374 = \"yes\",'Entry-Prescription A'!I374 = \"P\"), 1,0)","v":0},{"$f":"IF(OR('Entry-Prescription A'!I387 = \"yes\",'Entry-Prescription A'!I387 = \"P\"), 1,0)","v":0},{"$f":"SUM(X12:AR12)","v":0}]
[null,null,"Erythromycin","250mg/5ml",null,"No",null,7,{"$f":"IF(OR(COUNTIF('Entry-Without Prescription B'!E70:F73,\"Yes\") > 0, COUNTIF('Entry-Without Prescription B'!E70:F73,\"=P\") >0),1,0)","v":0},{"$f":"IF(OR(COUNTIF('Entry-Prescription A'!E70:E73,\"=yes\") > 0, COUNTIF('Entry-Prescription A'!E70:E73,\"=P\") > 0), 1, 0)","v":0},{"$f":"IF(OR(COUNTIF('Entry-Prescription A'!I82:I83,\"=yes\") > 0, COUNTIF('Entry-Prescription A'!I82:I83,\"=P\") > 0), 1, 0)","v":0},{"$f":"IF(OR(COUNTIF('Entry-Prescription A'!I82:I94,\"=yes\") > 0, COUNTIF('Entry-Prescription A'!I82:I94,\"=P\") > 0), 1, 0)","v":0},null,"Patient Expectation",{"$f":"IF(OR('Entry-Prescription A'!I11 = \"yes\",'Entry-Prescription A'!I11 = \"P\"), 1,0)","v":0},{"$f":"IF(OR('Entry-Prescription A'!I24 = \"yes\",'Entry-Prescription A'!I24 = \"P\"), 1,0)","v":0},{"$f":"IF(OR('Entry-Prescription A'!I37 = \"yes\",'Entry-Prescription A'!I37 = \"P\"), 1,0)","v":0},{"$f":"IF(OR('Entry-Prescription A'!I50 = \"yes\",'Entry-Prescription A'!I50 = \"P\"), 1,0)","v":0},{"$f":"IF(OR('Entry-Prescription A'!I63 = \"yes\",'Entry-Prescription A'!I63 = \"P\"), 1,0)","v":0},{"$f":"IF(OR('Entry-Prescription A'!I76 = \"yes\",'Entry-Prescription A'!I76 = \"P\"), 1,0)","v":0},{"$f":"IF(OR('Entry-Prescription A'!I89 = \"yes\",'Entry-Prescription A'!I89 = \"P\"), 1,0)","v":0},{"$f":"IF(OR('Entry-Prescription A'!I102 = \"yes\",'Entry-Prescription A'!I102 = \"P\"), 1,0)","v":0},{"$f":"IF(OR('Entry-Prescription A'!I115 = \"yes\",'Entry-Prescription A'!I115 = \"P\"), 1,0)","v":0},{"$f":"IF(OR('Entry-Prescription A'!I128 = \"yes\",'Entry-Prescription A'!I128 = \"P\"), 1,0)","v":0},{"$f":"IF(OR('Entry-Prescription A'!I141 = \"yes\",'Entry-Prescription A'!I141 = \"P\"), 1,0)","v":0},{"$f":"IF(OR('Entry-Prescription A'!I154 = \"yes\",'Entry-Prescription A'!I154 = \"P\"), 1,0)","v":0},{"$f":"IF(OR('Entry-Prescription A'!I167 = \"yes\",'Entry-Prescription A'!I167 = \"P\"), 1,0)","v":0},{"$f":"IF(OR('Entry-Prescription A'!I180 = \"yes\",'Entry-Prescription A'!I180 = \"P\"), 1,0)","v":0},{"$f":"IF(OR('Entry-Prescription A'!I193 = \"yes\",'Entry-Prescription A'!I193 = \"P\"), 1,0)","v":0},{"$f":"IF(OR('Entry-Prescription A'!I206 = \"yes\",'Entry-Prescription A'!I206 = \"P\"), 1,0)","v":0},{"$f":"IF(OR('Entry-Prescription A'!I219 = \"yes\",'Entry-Prescription A'!I219 = \"P\"), 1,0)","v":0},{"$f":"IF(OR('Entry-Prescription A'!I232 = \"yes\",'Entry-Prescription A'!I232 = \"P\"), 1,0)","v":0},{"$f":"IF(OR('Entry-Prescription A'!I245 = \"yes\",'Entry-Prescription A'!I245 = \"P\"), 1,0)","v":0},{"$f":"IF(OR('Entry-Prescription A'!I258 = \"yes\",'Entry-Prescription A'!I258 = \"P\"), 1,0)","v":0},{"$f":"IF(OR('Entry-Prescription A'!I271 = \"yes\",'Entry-Prescription A'!I271 = \"P\"), 1,0)","v":0},{"$f":"IF(OR('Entry-Prescription A'!I284 = \"yes\",'Entry-Prescription A'!I284 = \"P\"), 1,0)","v":0},{"$f":"IF(OR('Entry-Prescription A'!I297 = \"yes\",'Entry-Prescription A'!I297 = \"P\"), 1,0)","v":0},{"$f":"IF(OR('Entry-Prescription A'!I310 = \"yes\",'Entry-Prescription A'!I310 = \"P\"), 1,0)","v":0},{"$f":"IF(OR('Entry-Prescription A'!I323 = \"yes\",'Entry-Prescription A'!I323 = \"P\"), 1,0)","v":0},{"$f":"IF(OR('Entry-Prescription A'!I336 = \"yes\",'Entry-Prescription A'!I336 = \"P\"), 1,0)","v":0},{"$f":"IF(OR('Entry-Prescription A'!I349 = \"yes\",'Entry-Prescription A'!I349 = \"P\"), 1,0)","v":0},{"$f":"IF(OR('Entry-Prescription A'!I362 = \"yes\",'Entry-Prescription A'!I362 = \"P\"), 1,0)","v":0},{"$f":"IF(OR('Entry-Prescription A'!I375 = \"yes\",'Entry-Prescription A'!I375 = \"P\"), 1,0)","v":0},{"$f":"IF(OR('Entry-Prescription A'!I388 = \"yes\",'Entry-Prescription A'!I388 = \"P\"), 1,0)","v":0},{"$f":"SUM(O13:AR13)","v":0}]
[null,null,"Tetracycline","500mg/5ml",null,"Before 3 days",null,8,{"$f":"IF(OR(COUNTIF('Entry-Without Prescription B'!E95:F98,\"Yes\") > 0, COUNTIF('Entry-Without Prescription B'!E95:F98,\"=P\") >0),1,0)","v":0},{"$f":"IF(OR(COUNTIF('Entry-Prescription A'!E95:E98,\"=yes\") > 0, COUNTIF('Entry-Prescription A'!E95:E98,\"=P\") > 0), 1, 0)","v":0},{"$f":"IF(OR(COUNTIF('Entry-Prescription A'!I95:I96,\"=yes\") > 0, COUNTIF('Entry-Prescription A'!I95:I96,\"=P\") > 0), 1, 0)","v":0},{"$f":"IF(OR(COUNTIF('Entry-Prescription A'!I95:I107,\"=yes\") > 0, COUNTIF('Entry-Prescription A'!I95:I107,\"=P\") > 0), 1, 0)","v":0},null,"Pressure of Time and Workload",{"$f":"IF(OR('Entry-Prescription A'!I12 = \"yes\",'Entry-Prescription A'!I12 = \"P\"), 1,0)","v":0},{"$f":"IF(OR('Entry-Prescription A'!I25 = \"yes\",'Entry-Prescription A'!I25 = \"P\"), 1,0)","v":0},{"$f":"IF(OR('Entry-Prescription A'!I38 = \"yes\",'Entry-Prescription A'!I38 = \"P\"), 1,0)","v":0},{"$f":"IF(OR('Entry-Prescription A'!I51 = \"yes\",'Entry-Prescription A'!I51 = \"P\"), 1,0)","v":0},{"$f":"IF(OR('Entry-Prescription A'!I64 = \"yes\",'Entry-Prescription A'!I64 = \"P\"), 1,0)","v":0},{"$f":"IF(OR('Entry-Prescription A'!I77 = \"yes\",'Entry-Prescription A'!I77 = \"P\"), 1,0)","v":0},{"$f":"IF(OR('Entry-Prescription A'!I90 = \"yes\",'Entry-Prescription A'!I90 = \"P\"), 1,0)","v":0},{"$f":"IF(OR('Entry-Prescription A'!I103 = \"yes\",'Entry-Prescription A'!I103 = \"P\"), 1,0)","v":0},{"$f":"IF(OR('Entry-Prescription A'!I116 = \"yes\",'Entry-Prescription A'!I116 = \"P\"), 1,0)","v":0},{"$f":"IF(OR('Entry-Prescription A'!I129 = \"yes\",'Entry-Prescription A'!I129 = \"P\"), 1,0)","v":0},{"$f":"IF(OR('Entry-Prescription A'!I142 = \"yes\",'Entry-Prescription A'!I142 = \"P\"), 1,0)","v":0},{"$f":"IF(OR('Entry-Prescription A'!I155 = \"yes\",'Entry-Prescription A'!I155 = \"P\"), 1,0)","v":0},{"$f":"IF(OR('Entry-Prescription A'!I168 = \"yes\",'Entry-Prescription A'!I168 = \"P\"), 1,0)","v":0},{"$f":"IF(OR('Entry-Prescription A'!I181 = \"yes\",'Entry-Prescription A'!I181 = \"P\"), 1,0)","v":0},{"$f":"IF(OR('Entry-Prescription A'!I194 = \"yes\",'Entry-Prescription A'!I194 = \"P\"), 1,0)","v":0},{"$f":"IF(OR('Entry-Prescription A'!I207 = \"yes\",'Entry-Prescription A'!I207 = \"P\"), 1,0)","v":0},{"$f":"IF(OR('Entry-Prescription A'!I220 = \"yes\",'Entry-Prescription A'!I220 = \"P\"), 1,0)","v":0},{"$f":"IF(OR('Entry-Prescription A'!I233 = \"yes\",'Entry-Prescription A'!I233 = \"P\"), 1,0)","v":0},{"$f":"IF(OR('Entry-Prescription A'!I246 = \"yes\",'Entry-Prescription A'!I246 = \"P\"), 1,0)","v":0},{"$f":"IF(OR('Entry-Prescription A'!I259 = \"yes\",'Entry-Prescription A'!I259 = \"P\"), 1,0)","v":0},{"$f":"IF(OR('Entry-Prescription A'!I272 = \"yes\",'Entry-Prescription A'!I272 = \"P\"), 1,0)","v":0},{"$f":"IF(OR('Entry-Prescription A'!I285 = \"yes\",'Entry-Prescription A'!I285 = \"P\"), 1,0)","v":0},{"$f":"IF(OR('Entry-Prescription A'!I298 = \"yes\",'Entry-Prescription A'!I298 = \"P\"), 1,0)","v":0},{"$f":"IF(OR('Entry-Prescription A'!I311 = \"yes\",'Entry-Prescription A'!I311 = \"P\"), 1,0)","v":0},{"$f":"IF(OR('Entry-Prescription A'!I324 = \"yes\",'Entry-Prescription A'!I324 = \"P\"), 1,0)","v":0},{"$f":"IF(OR('Entry-Prescription A'!I337 = \"yes\",'Entry-Prescription A'!I337 = \"P\"), 1,0)","v":0},{"$f":"IF(OR('Entry-Prescription A'!I350 = \"yes\",'Entry-Prescription A'!I350 = \"P\"), 1,0)","v":0},{"$f":"IF(OR('Entry-Prescription A'!I363 = \"yes\",'Entry-Prescription A'!I363 = \"P\"), 1,0)","v":0},{"$f":"IF(OR('Entry-Prescription A'!I376 = \"yes\",'Entry-Prescription A'!I376 = \"P\"), 1,0)","v":0},{"$f":"IF(OR('Entry-Prescription A'!I389 = \"yes\",'Entry-Prescription A'!I389 = \"P\"), 1,0)","v":0},0]
[null,null,"Amoxicillin + Metronidazole","100mg/5ml SF",null,"3 days",null,9,{"$f":"IF(OR(COUNTIF('Entry-Without Prescription B'!E108:F111,\"Yes\") > 0, COUNTIF('Entry-Without Prescription B'!E108:F111,\"=P\") >0),1,0)","v":0},{"$f":"IF(OR(COUNTIF('Entry-Prescription A'!E108:E111,\"=yes\") > 0, COUNTIF('Entry-Prescription A'!E108:E111,\"=P\") > 0), 1, 0)","v":0},{"$f":"IF(OR(COUNTIF('Entry-Prescription A'!I108:I109,\"=yes\") > 0, COUNTIF('Entry-Prescription A'!I108:I109,\"=P\") > 0), 1, 0)","v":0},{"$f":"IF(OR(COUNTIF('Entry-Prescription A'!I108:I120,\"=yes\") > 0, COUNTIF('Entry-Prescription A'!I108:I120,\"=P\") > 0), 1, 0)","v":0},null,"Uncertainty of Diagnosis",{"$f":"IF(OR('Entry-Prescription A'!I13 = \"yes\",'Entry-Prescription A'!I13 = \"P\"), 1,0)","v":0},{"$f":"IF(OR('Entry-Prescription A'!I26 = \"yes\",'Entry-Prescription A'!I26 = \"P\"), 1,0)","v":0},{"$f":"IF(OR('Entry-Prescription A'!I39 = \"yes\",'Entry-Prescription A'!I39 = \"P\"), 1,0)","v":0},{"$f":"IF(OR('Entry-Prescription A'!I52 = \"yes\",'Entry-Prescription A'!I52 = \"P\"), 1,0)","v":0},{"$f":"IF(OR('Entry-Prescription A'!I65 = \"yes\",'Entry-Prescription A'!I65 = \"P\"), 1,0)","v":0},{"$f":"IF(OR('Entry-Prescription A'!I78 = \"yes\",'Entry-Prescription A'!I78 = \"P\"), 1,0)","v":0},{"$f":"IF(OR('Entry-Prescription A'!I91 = \"yes\",'Entry-Prescription A'!I91 = \"P\"), 1,0)","v":0},{"$f":"IF(OR('Entry-Prescription A'!I104 = \"yes\",'Entry-Prescription A'!I104 = \"P\"), 1,0)","v":0},{"$f":"IF(OR('Entry-Prescription A'!I117 = \"yes\",'Entry-Prescription A'!I117 = \"P\"), 1,0)","v":0},{"$f":"IF(OR('Entry-Prescription A'!I130 = \"yes\",'Entry-Prescription A'!I130 = \"P\"), 1,0)","v":0},{"$f":"IF(OR('Entry-Prescription A'!I143 = \"yes\",'Entry-Prescription A'!I143 = \"P\"), 1,0)","v":0},{"$f":"IF(OR('Entry-Prescription A'!I156 = \"yes\",'Entry-Prescription A'!I156 = \"P\"), 1,0)","v":0},{"$f":"IF(OR('Entry-Prescription A'!I169 = \"yes\",'Entry-Prescription A'!I169 = \"P\"), 1,0)","v":0},{"$f":"IF(OR('Entry-Prescription A'!I182 = \"yes\",'Entry-Prescription A'!I182 = \"P\"), 1,0)","v":0},{"$f":"IF(OR('Entry-Prescription A'!I195 = \"yes\",'Entry-Prescription A'!I195 = \"P\"), 1,0)","v":0},{"$f":"IF(OR('Entry-Prescription A'!I208 = \"yes\",'Entry-Prescription A'!I208 = \"P\"), 1,0)","v":0},{"$f":"IF(OR('Entry-Prescription A'!I221 = \"yes\",'Entry-Prescription A'!I221 = \"P\"), 1,0)","v":0},{"$f":"IF(OR('Entry-Prescription A'!I234 = \"yes\",'Entry-Prescription A'!I234 = \"P\"), 1,0)","v":0},{"$f":"IF(OR('Entry-Prescription A'!I247 = \"yes\",'Entry-Prescription A'!I247 = \"P\"), 1,0)","v":0},{"$f":"IF(OR('Entry-Prescription A'!I260 = \"yes\",'Entry-Prescription A'!I260 = \"P\"), 1,0)","v":0},{"$f":"IF(OR('Entry-Prescription A'!I273 = \"yes\",'Entry-Prescription A'!I273 = \"P\"), 1,0)","v":0},{"$f":"IF(OR('Entry-Prescription A'!I286 = \"yes\",'Entry-Prescription A'!I286 = \"P\"), 1,0)","v":0},{"$f":"IF(OR('Entry-Prescription A'!I299 = \"yes\",'Entry-Prescription A'!I299 = \"P\"), 1,0)","v":0},{"$f":"IF(OR('Entry-Prescription A'!I312 = \"yes\",'Entry-Prescription A'!I312 = \"P\"), 1,0)","v":0},{"$f":"IF(OR('Entry-Prescription A'!I325 = \"yes\",'Entry-Prescription A'!I325 = \"P\"), 1,0)","v":0},{"$f":"IF(OR('Entry-Prescription A'!I338 = \"yes\",'Entry-Prescription A'!I338 = \"P\"), 1,0)","v":0},{"$f":"IF(OR('Entry-Prescription A'!I351 = \"yes\",'Entry-Prescription A'!I351 = \"P\"), 1,0)","v":0},{"$f":"IF(OR('Entry-Prescription A'!I364 = \"yes\",'Entry-Prescription A'!I364 = \"P\"), 1,0)","v":0},{"$f":"IF(OR('Entry-Prescription A'!I377 = \"yes\",'Entry-Prescription A'!I377 = \"P\"), 1,0)","v":0},{"$f":"IF(OR('Entry-Prescription A'!I390 = \"yes\",'Entry-Prescription A'!I390 = \"P\"), 1,0)","v":0},0]
[null,null,"Other","125mg/5ml SF",null,"After 3 days",null,10,{"$f":"IF(OR(COUNTIF('Entry-Without Prescription B'!E121:F124,\"Yes\") > 0, COUNTIF('Entry-Without Prescription B'!E121:F124,\"=P\") >0),1,0)","v":0},{"$f":"IF(OR(COUNTIF('Entry-Prescription A'!E121:E124,\"=yes\") > 0, COUNTIF('Entry-Prescription A'!E121:E124,\"=P\") > 0), 1, 0)","v":0},{"$f":"IF(OR(COUNTIF('Entry-Prescription A'!I121:I122,\"=yes\") > 0, COUNTIF('Entry-Prescription A'!I121:I122,\"=P\") > 0), 1, 0)","v":0},{"$f":"IF(OR(COUNTIF('Entry-Prescription A'!I121:I133,\"=yes\") > 0, COUNTIF('Entry-Prescription A'!I121:I133,\"=P\") > 0), 1, 0)","v":0},null,"Treatment had to be Delayed",{"$f":"IF(OR('Entry-Prescription A'!I14 = \"yes\",'Entry-Prescription A'!I14 = \"P\"), 1,0)","v":0},{"$f":"IF(OR('Entry-Prescription A'!I27 = \"yes\",'Entry-Prescription A'!I27 = \"P\"), 1,0)","v":0},{"$f":"IF(OR('Entry-Prescription A'!I40 = \"yes\",'Entry-Prescription A'!I40 = \"P\"), 1,0)","v":0},{"$f":"IF(OR('Entry-Prescription A'!I53 = \"yes\",'Entry-Prescription A'!I53 = \"P\"), 1,0)","v":0},{"$f":"IF(OR('Entry-Prescription A'!I66 = \"yes\",'Entry-Prescription A'!I66 = \"P\"), 1,0)","v":0},{"$f":"IF(OR('Entry-Prescription A'!I79 = \"yes\",'Entry-Prescription A'!I79 = \"P\"), 1,0)","v":0},{"$f":"IF(OR('Entry-Prescription A'!I92 = \"yes\",'Entry-Prescription A'!I92 = \"P\"), 1,0)","v":0},{"$f":"IF(OR('Entry-Prescription A'!I105 = \"yes\",'Entry-Prescription A'!I105 = \"P\"), 1,0)","v":0},{"$f":"IF(OR('Entry-Prescription A'!I118 = \"yes\",'Entry-Prescription A'!I118 = \"P\"), 1,0)","v":0},{"$f":"IF(OR('Entry-Prescription A'!I131 = \"yes\",'Entry-Prescription A'!I131 = \"P\"), 1,0)","v":0},{"$f":"IF(OR('Entry-Prescription A'!I144 = \"yes\",'Entry-Prescription A'!I144 = \"P\"), 1,0)","v":0},{"$f":"IF(OR('Entry-Prescription A'!I157 = \"yes\",'Entry-Prescription A'!I157 = \"P\"), 1,0)","v":0},{"$f":"IF(OR('Entry-Prescription A'!I170 = \"yes\",'Entry-Prescription A'!I170 = \"P\"), 1,0)","v":0},{"$f":"IF(OR('Entry-Prescription A'!I183 = \"yes\",'Entry-Prescription A'!I183 = \"P\"), 1,0)","v":0},{"$f":"IF(OR('Entry-Prescription A'!I196 = \"yes\",'Entry-Prescription A'!I196 = \"P\"), 1,0)","v":0},{"$f":"IF(OR('Entry-Prescription A'!I209 = \"yes\",'Entry-Prescription A'!I209 = \"P\"), 1,0)","v":0},{"$f":"IF(OR('Entry-Prescription A'!I222 = \"yes\",'Entry-Prescription A'!I222 = \"P\"), 1,0)","v":0},{"$f":"IF(OR('Entry-Prescription A'!I235 = \"yes\",'Entry-Prescription A'!I235 = \"P\"), 1,0)","v":0},{"$f":"IF(OR('Entry-Prescription A'!I248 = \"yes\",'Entry-Prescription A'!I248 = \"P\"), 1,0)","v":0},{"$f":"IF(OR('Entry-Prescription A'!I261 = \"yes\",'Entry-Prescription A'!I261 = \"P\"), 1,0)","v":0},{"$f":"IF(OR('Entry-Prescription A'!I274 = \"yes\",'Entry-Prescription A'!I274 = \"P\"), 1,0)","v":0},{"$f":"IF(OR('Entry-Prescription A'!I287 = \"yes\",'Entry-Prescription A'!I287 = \"P\"), 1,0)","v":0},{"$f":"IF(OR('Entry-Prescription A'!I300 = \"yes\",'Entry-Prescription A'!I300 = \"P\"), 1,0)","v":0},{"$f":"IF(OR('Entry-Prescription A'!I313 = \"yes\",'Entry-Prescription A'!I313 = \"P\"), 1,0)","v":0},{"$f":"IF(OR('Entry-Prescription A'!I326 = \"yes\",'Entry-Prescription A'!I326 = \"P\"), 1,0)","v":0},{"$f":"IF(OR('Entry-Prescription A'!I339 = \"yes\",'Entry-Prescription A'!I339 = \"P\"), 1,0)","v":0},{"$f":"IF(OR('Entry-Prescription A'!I352 = \"yes\",'Entry-Prescription A'!I352 = \"P\"), 1,0)","v":0},{"$f":"IF(OR('Entry-Prescription A'!I365 = \"yes\",'Entry-Prescription A'!I365 = \"P\"), 1,0)","v":0},{"$f":"IF(OR('Entry-Prescription A'!I378 = \"yes\",'Entry-Prescription A'!I378 = \"P\"), 1,0)","v":0},{"$f":"IF(OR('Entry-Prescription A'!I391 = \"yes\",'Entry-Prescription A'!I391 = \"P\"), 1,0)","v":0},0]
[null,null,null,"200mg/5ml SF",null,null,null,11,{"$f":"IF(OR(COUNTIF('Entry-Without Prescription B'!E134:F137,\"Yes\") > 0, COUNTIF('Entry-Without Prescription B'!E134:F137,\"=P\") >0),1,0)","v":0},{"$f":"IF(OR(COUNTIF('Entry-Prescription A'!E134:E137,\"=yes\") > 0, COUNTIF('Entry-Prescription A'!E134:E137,\"=P\") > 0), 1, 0)","v":0},{"$f":"IF(OR(COUNTIF('Entry-Prescription A'!I134:I135,\"=yes\") > 0, COUNTIF('Entry-Prescription A'!I134:I135,\"=P\") > 0), 1, 0)","v":0},{"$f":"IF(OR(COUNTIF('Entry-Prescription A'!I134:I146,\"=yes\") > 0, COUNTIF('Entry-Prescription A'!I134:I146,\"=P\") > 0), 1, 0)","v":0},null,"Unable to Drain or Remove Source of Infection",{"$f":"IF(OR('Entry-Prescription A'!I15 = \"yes\",'Entry-Prescription A'!I15 = \"P\"), 1,0)","v":0},{"$f":"IF(OR('Entry-Prescription A'!I28 = \"yes\",'Entry-Prescription A'!I28 = \"P\"), 1,0)","v":0},{"$f":"IF(OR('Entry-Prescription A'!I41 = \"yes\",'Entry-Prescription A'!I41 = \"P\"), 1,0)","v":0},{"$f":"IF(OR('Entry-Prescription A'!I54 = \"yes\",'Entry-Prescription A'!I54 = \"P\"), 1,0)","v":0},{"$f":"IF(OR('Entry-Prescription A'!I67 = \"yes\",'Entry-Prescription A'!I67 = \"P\"), 1,0)","v":0},{"$f":"IF(OR('Entry-Prescription A'!I80 = \"yes\",'Entry-Prescription A'!I80 = \"P\"), 1,0)","v":0},{"$f":"IF(OR('Entry-Prescription A'!I93 = \"yes\",'Entry-Prescription A'!I93 = \"P\"), 1,0)","v":0},{"$f":"IF(OR('Entry-Prescription A'!I106 = \"yes\",'Entry-Prescription A'!I106 = \"P\"), 1,0)","v":0},{"$f":"IF(OR('Entry-Prescription A'!I119 = \"yes\",'Entry-Prescription A'!I119 = \"P\"), 1,0)","v":0},{"$f":"IF(OR('Entry-Prescription A'!I132 = \"yes\",'Entry-Prescription A'!I132 = \"P\"), 1,0)","v":0},{"$f":"IF(OR('Entry-Prescription A'!I145 = \"yes\",'Entry-Prescription A'!I145 = \"P\"), 1,0)","v":0},{"$f":"IF(OR('Entry-Prescription A'!I158 = \"yes\",'Entry-Prescription A'!I158 = \"P\"), 1,0)","v":0},{"$f":"IF(OR('Entry-Prescription A'!I171 = \"yes\",'Entry-Prescription A'!I171 = \"P\"), 1,0)","v":0},{"$f":"IF(OR('Entry-Prescription A'!I184 = \"yes\",'Entry-Prescription A'!I184 = \"P\"), 1,0)","v":0},{"$f":"IF(OR('Entry-Prescription A'!I197 = \"yes\",'Entry-Prescription A'!I197 = \"P\"), 1,0)","v":0},{"$f":"IF(OR('Entry-Prescription A'!I210 = \"yes\",'Entry-Prescription A'!I210 = \"P\"), 1,0)","v":0},{"$f":"IF(OR('Entry-Prescription A'!I223 = \"yes\",'Entry-Prescription A'!I223 = \"P\"), 1,0)","v":0},{"$f":"IF(OR('Entry-Prescription A'!I236 = \"yes\",'Entry-Prescription A'!I236 = \"P\"), 1,0)","v":0},{"$f":"IF(OR('Entry-Prescription A'!I249 = \"yes\",'Entry-Prescription A'!I249 = \"P\"), 1,0)","v":0},{"$f":"IF(OR('Entry-Prescription A'!I262 = \"yes\",'Entry-Prescription A'!I262 = \"P\"), 1,0)","v":0},{"$f":"IF(OR('Entry-Prescription A'!I275 = \"yes\",'Entry-Prescription A'!I275 = \"P\"), 1,0)","v":0},{"$f":"IF(OR('Entry-Prescription A'!I288 = \"yes\",'Entry-Prescription A'!I288 = \"P\"), 1,0)","v":0},{"$f":"IF(OR('Entry-Prescription A'!I301 = \"yes\",'Entry-Prescription A'!I301 = \"P\"), 1,0)","v":0},{"$f":"IF(OR('Entry-Prescription A'!I314 = \"yes\",'Entry-Prescription A'!I314 = \"P\"), 1,0)","v":0},{"$f":"IF(OR('Entry-Prescription A'!I327 = \"yes\",'Entry-Prescription A'!I327 = \"P\"), 1,0)","v":0},{"$f":"IF(OR('Entry-Prescription A'!I340 = \"yes\",'Entry-Prescription A'!I340 = \"P\"), 1,0)","v":0},{"$f":"IF(OR('Entry-Prescription A'!I353 = \"yes\",'Entry-Prescription A'!I353 = \"P\"), 1,0)","v":0},{"$f":"IF(OR('Entry-Prescription A'!I366 = \"yes\",'Entry-Prescription A'!I366 = \"P\"), 1,0)","v":0},{"$f":"IF(OR('Entry-Prescription A'!I379 = \"yes\",'Entry-Prescription A'!I379 = \"P\"), 1,0)","v":0},{"$f":"IF(OR('Entry-Prescription A'!I392 = \"yes\",'Entry-Prescription A'!I392 = \"P\"), 1,0)","v":0},0]
[null,null,null,"250mg/5ml SF",null,null,null,12,{"$f":"IF(OR(COUNTIF('Entry-Without Prescription B'!E147:F150,\"Yes\") > 0, COUNTIF('Entry-Without Prescription B'!E147:F150,\"=P\") >0),1,0)","v":0},{"$f":"IF(OR(COUNTIF('Entry-Prescription A'!E147:E150,\"=yes\") > 0, COUNTIF('Entry-Prescription A'!E147:E150,\"=P\") > 0), 1, 0)","v":0},{"$f":"IF(OR(COUNTIF('Entry-Prescription A'!I147:I148,\"=yes\") > 0, COUNTIF('Entry-Prescription A'!I147:I148,\"=P\") > 0), 1, 0)","v":0},{"$f":"IF(OR(COUNTIF('Entry-Prescription A'!I147:I159,\"=yes\") > 0, COUNTIF('Entry-Prescription A'!I147:I159,\"=P\") > 0), 1, 0)","v":0},null,"Other",{"$f":"IF(OR('Entry-Prescription A'!I16 = \"yes\",'Entry-Prescription A'!I16 = \"P\"), 1,0)","v":0},{"$f":"IF(OR('Entry-Prescription A'!I29 = \"yes\",'Entry-Prescription A'!I29 = \"P\"), 1,0)","v":0},{"$f":"IF(OR('Entry-Prescription A'!I42 = \"yes\",'Entry-Prescription A'!I42 = \"P\"), 1,0)","v":0},{"$f":"IF(OR('Entry-Prescription A'!I55 = \"yes\",'Entry-Prescription A'!I55 = \"P\"), 1,0)","v":0},{"$f":"IF(OR('Entry-Prescription A'!I68 = \"yes\",'Entry-Prescription A'!I68 = \"P\"), 1,0)","v":0},{"$f":"IF(OR('Entry-Prescription A'!I81 = \"yes\",'Entry-Prescription A'!I81 = \"P\"), 1,0)","v":0},{"$f":"IF(OR('Entry-Prescription A'!I94 = \"yes\",'Entry-Prescription A'!I94 = \"P\"), 1,0)","v":0},{"$f":"IF(OR('Entry-Prescription A'!I107 = \"yes\",'Entry-Prescription A'!I107 = \"P\"), 1,0)","v":0},{"$f":"IF(OR('Entry-Prescription A'!I120 = \"yes\",'Entry-Prescription A'!I120 = \"P\"), 1,0)","v":0},{"$f":"IF(OR('Entry-Prescription A'!I133 = \"yes\",'Entry-Prescription A'!I133 = \"P\"), 1,0)","v":0},{"$f":"IF(OR('Entry-Prescription A'!I146 = \"yes\",'Entry-Prescription A'!I146 = \"P\"), 1,0)","v":0},{"$f":"IF(OR('Entry-Prescription A'!I159 = \"yes\",'Entry-Prescription A'!I159 = \"P\"), 1,0)","v":0},{"$f":"IF(OR('Entry-Prescription A'!I172 = \"yes\",'Entry-Prescription A'!I172 = \"P\"), 1,0)","v":0},{"$f":"IF(OR('Entry-Prescription A'!I185 = \"yes\",'Entry-Prescription A'!I185 = \"P\"), 1,0)","v":0},{"$f":"IF(OR('Entry-Prescription A'!I198 = \"yes\",'Entry-Prescription A'!I198 = \"P\"), 1,0)","v":0},{"$f":"IF(OR('Entry-Prescription A'!I211 = \"yes\",'Entry-Prescription A'!I211 = \"P\"), 1,0)","v":0},{"$f":"IF(OR('Entry-Prescription A'!I224 = \"yes\",'Entry-Prescription A'!I224 = \"P\"), 1,0)","v":0},{"$f":"IF(OR('Entry-Prescription A'!I237 = \"yes\",'Entry-Prescription A'!I237 = \"P\"), 1,0)","v":0},{"$f":"IF(OR('Entry-Prescription A'!I250 = \"yes\",'Entry-Prescription A'!I250 = \"P\"), 1,0)","v":0},{"$f":"IF(OR('Entry-Prescription A'!I263 = \"yes\",'Entry-Prescription A'!I263 = \"P\"), 1,0)","v":0},{"$f":"IF(OR('Entry-Prescription A'!I276 = \"yes\",'Entry-Prescription A'!I276 = \"P\"), 1,0)","v":0},{"$f":"IF(OR('Entry-Prescription A'!I289 = \"yes\",'Entry-Prescription A'!I289 = \"P\"), 1,0)","v":0},{"$f":"IF(OR('Entry-Prescription A'!I302 = \"yes\",'Entry-Prescription A'!I302 = \"P\"), 1,0)","v":0},{"$f":"IF(OR('Entry-Prescription A'!I315 = \"yes\",'Entry-Prescription A'!I315 = \"P\"), 1,0)","v":0},{"$f":"IF(OR('Entry-Prescription A'!I328 = \"yes\",'Entry-Prescription A'!I328 = \"P\"), 1,0)","v":0},{"$f":"IF(OR('Entry-Prescription A'!I341 = \"yes\",'Entry-Prescription A'!I341 = \"P\"), 1,0)","v":0},{"$f":"IF(OR('Entry-Prescription A'!I354 = \"yes\",'Entry-Prescription A'!I354 = \"P\"), 1,0)","v":0},{"$f":"IF(OR('Entry-Prescription A'!I367 = \"yes\",'Entry-Prescription A'!I367 = \"P\"), 1,0)","v":0},{"$f":"IF(OR('Entry-Prescription A'!I380 = \"yes\",'Entry-Prescription A'!I380 = \"P\"), 1,0)","v":0},{"$f":"IF(OR('Entry-Prescription A'!I393 = \"yes\",'Entry-Prescription A'!I393 = \"P\"), 1,0)","v":0},0]
[null,null,null,"500mg/5ml SF",null,null,null,13,{"$f":"IF(OR(COUNTIF('Entry-Without Prescription B'!E160:F163,\"Yes\") > 0, COUNTIF('Entry-Without Prescription B'!E160:F163,\"=P\") >0),1,0)","v":0},{"$f":"IF(OR(COUNTIF('Entry-Prescription A'!E160:E163,\"=yes\") > 0, COUNTIF('Entry-Prescription A'!E160:E163,\"=P\") > 0), 1, 0)","v":0},{"$f":"IF(OR(COUNTIF('Entry-Prescription A'!I160:I161,\"=yes\") > 0, COUNTIF('Entry-Prescription A'!I160:I161,\"=P\") > 0), 1, 0)","v":0},{"$f":"IF(OR(COUNTIF('Entry-Prescription A'!I160:I172,\"=yes\") > 0, COUNTIF('Entry-Prescription A'!I160:I172,\"=P\") > 0), 1, 0)","v":0},null,null,null,null,null,null,null,null,null,null,null,null,null,null,null,null,null,null,null,null,null,null,null,null,null,null,null,null,null,null,null,null,{"$f":"SUM(AS6:AS18)","v":0}]
[null,null,null,"Other",null,null,null,14,{"$f":"IF(OR(COUNTIF('Entry-Without Prescription B'!E173:F176,\"Yes\") > 0, COUNTIF('Entry-Without Prescription B'!E173:F176,\"=P\") >0),1,0)","v":0},{"$f":"IF(OR(COUNTIF('Entry-Prescription A'!E173:E176,\"=yes\") > 0, COUNTIF('Entry-Prescription A'!E173:E176,\"=P\") > 0), 1, 0)","v":0},{"$f":"IF(OR(COUNTIF('Entry-Prescription A'!I173:I174,\"=yes\") > 0, COUNTIF('Entry-Prescription A'!I173:I174,\"=P\") > 0), 1, 0)","v":0},{"$f":"IF(OR(COUNTIF('Entry-Prescription A'!I173:I185,\"=yes\") > 0, COUNTIF('Entry-Prescription A'!I173:I185,\"=P\") > 0), 1, 0)","v":0}]
[null,null,null,null,null,null,null,15,{"$f":"IF(OR(COUNTIF('Entry-Without Prescription B'!E186:F189,\"Yes\") > 0, COUNTIF('Entry-Without Prescription B'!E186:F189,\"=P\") >0),1,0)","v":0},{"$f":"IF(OR(COUNTIF('Entry-Prescription A'!E186:E189,\"=yes\") > 0, COUNTIF('Entry-Prescription A'!E186:E189,\"=P\") > 0), 1, 0)","v":0},{"$f":"IF(OR(COUNTIF('Entry-Prescription A'!I186:I187,\"=yes\") > 0, COUNTIF('Entry-Prescription A'!I186:I187,\"=P\") > 0), 1, 0)","v":0},{"$f":"IF(OR(COUNTIF('Entry-Prescription A'!I186:I198,\"=yes\") > 0, COUNTIF('Entry-Prescription A'!I186:I198,\"=P\") > 0), 1, 0)","v":0},null,"With",1,2,3,4,5,6,7,8,9,10,11,12,13,14,15,16,17,18,19,20,21,22,23,24,25,26,27,28,29,30,"Total"]
[null,null,null,null,null,null,null,16,{"$f":"IF(OR(COUNTIF('Entry-Without Prescription B'!E199:F202,\"Yes\") > 0, COUNTIF('Entry-Without Prescription B'!E199:F202,\"=P\") >0),1,0)","v":0},{"$f":"IF(OR(COUNTIF('Entry-Prescription A'!E199:E202,\"=yes\") > 0, COUNTIF('Entry-Prescription A'!E199:E202,\"=P\") > 0), 1, 0)","v":0},{"$f":"IF(OR(COUNTIF('Entry-Prescription A'!I199:I200,\"=yes\") > 0, COUNTIF('Entry-Prescription A'!I199:I200,\"=P\") > 0), 1, 0)","v":0},{"$f":"IF(OR(COUNTIF('Entry-Prescription A'!I199:I211,\"=yes\") > 0, COUNTIF('Entry-Prescription A'!I199:I211,\"=P\") > 0), 1, 0)","v":0},null,"None ",{"$f":"IF(OR('Entry-Prescription A'!K4=\"Yes\",'Entry-Prescription A'!K4=\"P\"),1,0)","v":0},{"$f":"IF(OR('Entry-Prescription A'!K17=\"Yes\",'Entry-Prescription A'!K17=\"P\"),1,0)","v":0},{"$f":"IF(OR('Entry-Prescription A'!K30=\"Yes\",'Entry-Prescription A'!K30=\"P\"),1,0)","v":0},{"$f":"IF(OR('Entry-Prescription A'!K43=\"Yes\",'Entry-Prescription A'!K43=\"P\"),1,0)","v":0},{"$f":"IF(OR('Entry-Prescription A'!K56=\"Yes\",'Entry-Prescription A'!K56=\"P\"),1,0)","v":0},{"$f":"IF(OR('Entry-Prescription A'!K69=\"Yes\",'Entry-Prescription A'!K69=\"P\"),1,0)","v":0},{"$f":"IF(OR('Entry-Prescription A'!K82=\"Yes\",'Entry-Prescription A'!K82=\"P\"),1,0)","v":0},{"$f":"IF(OR('Entry-Prescription A'!K95=\"Yes\",'Entry-Prescription A'!K95=\"P\"),1,0)","v":0},{"$f":"IF(OR('Entry-Prescription A'!K108=\"Yes\",'Entry-Prescription A'!K108=\"P\"),1,0)","v":0},{"$f":"IF(OR('Entry-Prescription A'!K121=\"Yes\",'Entry-Prescription A'!K121=\"P\"),1,0)","v":0},{"$f":"IF(OR('Entry-Prescription A'!K134=\"Yes\",'Entry-Prescription A'!K134=\"P\"),1,0)","v":0},{"$f":"IF(OR('Entry-Prescription A'!K147=\"Yes\",'Entry-Prescription A'!K147=\"P\"),1,0)","v":0},{"$f":"IF(OR('Entry-Prescription A'!K160=\"Yes\",'Entry-Prescription A'!K160=\"P\"),1,0)","v":0},{"$f":"IF(OR('Entry-Prescription A'!K173=\"Yes\",'Entry-Prescription A'!K173=\"P\"),1,0)","v":0},{"$f":"IF(OR('Entry-Prescription A'!K186=\"Yes\",'Entry-Prescription A'!K186=\"P\"),1,0)","v":0},{"$f":"IF(OR('Entry-Prescription A'!K199=\"Yes\",'Entry-Prescription A'!K199=\"P\"),1,0)","v":0},{"$f":"IF(OR('Entry-Prescription A'!K212=\"Yes\",'Entry-Prescription A'!K212=\"P\"),1,0)","v":0},{"$f":"IF(OR('Entry-Prescription A'!K225=\"Yes\",'Entry-Prescription A'!K225=\"P\"),1,0)","v":0},{"$f":"IF(OR('Entry-Prescription A'!K238=\"Yes\",'Entry-Prescription A'!K238=\"P\"),1,0)","v":0},{"$f":"IF(OR('Entry-Prescription A'!K251=\"Yes\",'Entry-Prescription A'!K251=\"P\"),1,0)","v":0},{"$f":"IF(OR('Entry-Prescription A'!K264=\"Yes\",'Entry-Prescription A'!K264=\"P\"),1,0)","v":0},{"$f":"IF(OR('Entry-Prescription A'!K277=\"Yes\",'Entry-Prescription A'!K277=\"P\"),1,0)","v":0},{"$f":"IF(OR('Entry-Prescription A'!K290=\"Yes\",'Entry-Prescription A'!K290=\"P\"),1,0)","v":0},{"$f":"IF(OR('Entry-Prescription A'!K303=\"Yes\",'Entry-Prescription A'!K303=\"P\"),1,0)","v":0},{"$f":"IF(OR('Entry-Prescription A'!K316=\"Yes\",'Entry-Prescription A'!K316=\"P\"),1,0)","v":0},{"$f":"IF(OR('Entry-Prescription A'!K329=\"Yes\",'Entry-Prescription A'!K329=\"P\"),1,0)","v":0},{"$f":"IF(OR('Entry-Prescription A'!K342=\"Yes\",'Entry-Prescription A'!K342=\"P\"),1,0)","v":0},{"$f":"IF(OR('Entry-Prescription A'!K355=\"Yes\",'Entry-Prescription A'!K355=\"P\"),1,0)","v":0},{"$f":"IF(OR('Entry-Prescription A'!K368=\"Yes\",'Entry-Prescription A'!K368=\"P\"),1,0)","v":0},{"$f":"IF(OR('Entry-Prescription A'!K381=\"Yes\",'Entry-Prescription A'!K381=\"P\"),1,0)","v":0},{"$f":"SUM(O22:AR22)","v":0}]
[null,null,null,null,null,null,null,17,{"$f":"IF(OR(COUNTIF('Entry-Without Prescription B'!E212:F225,\"Yes\") > 0, COUNTIF('Entry-Without Prescription B'!E212:F215,\"=P\") >0),1,0)","v":0},{"$f":"IF(OR(COUNTIF('Entry-Prescription A'!E212:E215,\"=yes\") > 0, COUNTIF('Entry-Prescription A'!E212:E215,\"=P\") > 0), 1, 0)","v":0},{"$f":"IF(OR(COUNTIF('Entry-Prescription A'!I212:I213,\"=yes\") > 0, COUNTIF('Entry-Prescription A'!I212:I213,\"=P\") > 0), 1, 0)","v":0},{"$f":"IF(OR(COUNTIF('Entry-Prescription A'!I212:I224,\"=yes\") > 0, COUNTIF('Entry-Prescription A'!I212:I224,\"=P\") > 0), 1, 0)","v":0},null,"Extraction",{"$f":"IF(OR('Entry-Prescription A'!K5=\"Yes\",'Entry-Prescription A'!K5=\"P\"),1,0)","v":0},{"$f":"IF(OR('Entry-Prescription A'!K18=\"Yes\",'Entry-Prescription A'!K18=\"P\"),1,0)","v":0},{"$f":"IF(OR('Entry-Prescription A'!K31=\"Yes\",'Entry-Prescription A'!K31=\"P\"),1,0)","v":0},{"$f":"IF(OR('Entry-Prescription A'!K44=\"Yes\",'Entry-Prescription A'!K44=\"P\"),1,0)","v":0},{"$f":"IF(OR('Entry-Prescription A'!K57=\"Yes\",'Entry-Prescription A'!K57=\"P\"),1,0)","v":0},{"$f":"IF(OR('Entry-Prescription A'!K70=\"Yes\",'Entry-Prescription A'!K70=\"P\"),1,0)","v":0},{"$f":"IF(OR('Entry-Prescription A'!K83=\"Yes\",'Entry-Prescription A'!K83=\"P\"),1,0)","v":0},{"$f":"IF(OR('Entry-Prescription A'!K96=\"Yes\",'Entry-Prescription A'!K96=\"P\"),1,0)","v":0},{"$f":"IF(OR('Entry-Prescription A'!K109=\"Yes\",'Entry-Prescription A'!K109=\"P\"),1,0)","v":0},{"$f":"IF(OR('Entry-Prescription A'!K122=\"Yes\",'Entry-Prescription A'!K122=\"P\"),1,0)","v":0},{"$f":"IF(OR('Entry-Prescription A'!K135=\"Yes\",'Entry-Prescription A'!K135=\"P\"),1,0)","v":0},{"$f":"IF(OR('Entry-Prescription A'!K148=\"Yes\",'Entry-Prescription A'!K148=\"P\"),1,0)","v":0},{"$f":"IF(OR('Entry-Prescription A'!K161=\"Yes\",'Entry-Prescription A'!K161=\"P\"),1,0)","v":0},{"$f":"IF(OR('Entry-Prescription A'!K174=\"Yes\",'Entry-Prescription A'!K174=\"P\"),1,0)","v":0},{"$f":"IF(OR('Entry-Prescription A'!K187=\"Yes\",'Entry-Prescription A'!K187=\"P\"),1,0)","v":0},{"$f":"IF(OR('Entry-Prescription A'!K200=\"Yes\",'Entry-Prescription A'!K200=\"P\"),1,0)","v":0},{"$f":"IF(OR('Entry-Prescription A'!K213=\"Yes\",'Entry-Prescription A'!K213=\"P\"),1,0)","v":0},{"$f":"IF(OR('Entry-Prescription A'!K226=\"Yes\",'Entry-Prescription A'!K226=\"P\"),1,0)","v":0},{"$f":"IF(OR('Entry-Prescription A'!K239=\"Yes\",'Entry-Prescription A'!K239=\"P\"),1,0)","v":0},{"$f":"IF(OR('Entry-Prescription A'!K252=\"Yes\",'Entry-Prescription A'!K252=\"P\"),1,0)","v":0},{"$f":"IF(OR('Entry-Prescription A'!K265=\"Yes\",'Entry-Prescription A'!K265=\"P\"),1,0)","v":0},{"$f":"IF(OR('Entry-Prescription A'!K278=\"Yes\",'Entry-Prescription A'!K278=\"P\"),1,0)","v":0},{"$f":"IF(OR('Entry-Prescription A'!K291=\"Yes\",'Entry-Prescription A'!K291=\"P\"),1,0)","v":0},{"$f":"IF(OR('Entry-Prescription A'!K304=\"Yes\",'Entry-Prescription A'!K304=\"P\"),1,0)","v":0},{"$f":"IF(OR('Entry-Prescription A'!K317=\"Yes\",'Entry-Prescription A'!K317=\"P\"),1,0)","v":0},{"$f":"IF(OR('Entry-Prescription A'!K330=\"Yes\",'Entry-Prescription A'!K330=\"P\"),1,0)","v":0},{"$f":"IF(OR('Entry-Prescription A'!K343=\"Yes\",'Entry-Prescription A'!K343=\"P\"),1,0)","v":0},{"$f":"IF(OR('Entry-Prescription A'!K356=\"Yes\",'Entry-Prescription A'!K356=\"P\"),1,0)","v":0},{"$f":"IF(OR('Entry-Prescription A'!K369=\"Yes\",'Entry-Prescription A'!K369=\"P\"),1,0)","v":0},{"$f":"IF(OR('Entry-Prescription A'!K382=\"Yes\",'Entry-Prescription A'!K382=\"P\"),1,0)","v":0},{"$f":"SUM(O23:AR23)","v":0}]
[null,null,null,null,null,null,null,18,{"$f":"IF(OR(COUNTIF('Entry-Without Prescription B'!E225:F228,\"Yes\") > 0, COUNTIF('Entry-Without Prescription B'!E225:F228,\"=P\") >0),1,0)","v":0},{"$f":"IF(OR(COUNTIF('Entry-Prescription A'!E225:E228,\"=yes\") > 0, COUNTIF('Entry-Prescription A'!E225:E228,\"=P\") > 0), 1, 0)","v":0},{"$f":"IF(OR(COUNTIF('Entry-Prescription A'!I225:I226,\"=yes\") > 0, COUNTIF('Entry-Prescription A'!I225:I226,\"=P\") > 0), 1, 0)","v":0},{"$f":"IF(OR(COUNTIF('Entry-Prescription A'!I225:I237,\"=yes\") > 0, COUNTIF('Entry-Prescription A'!I225:I237,\"=P\") > 0), 1, 0)","v":0},null,"Opened Tooth for Drainage",{"$f":"IF(OR('Entry-Prescription A'!K6=\"Yes\",'Entry-Prescription A'!K6=\"P\"),1,0)","v":0},{"$f":"IF(OR('Entry-Prescription A'!K19=\"Yes\",'Entry-Prescription A'!K19=\"P\"),1,0)","v":0},{"$f":"IF(OR('Entry-Prescription A'!K32=\"Yes\",'Entry-Prescription A'!K32=\"P\"),1,0)","v":0},{"$f":"IF(OR('Entry-Prescription A'!K45=\"Yes\",'Entry-Prescription A'!K45=\"P\"),1,0)","v":0},{"$f":"IF(OR('Entry-Prescription A'!K58=\"Yes\",'Entry-Prescription A'!K58=\"P\"),1,0)","v":0},{"$f":"IF(OR('Entry-Prescription A'!K71=\"Yes\",'Entry-Prescription A'!K71=\"P\"),1,0)","v":0},{"$f":"IF(OR('Entry-Prescription A'!K84=\"Yes\",'Entry-Prescription A'!K84=\"P\"),1,0)","v":0},{"$f":"IF(OR('Entry-Prescription A'!K97=\"Yes\",'Entry-Prescription A'!K97=\"P\"),1,0)","v":0},{"$f":"IF(OR('Entry-Prescription A'!K110=\"Yes\",'Entry-Prescription A'!K110=\"P\"),1,0)","v":0},{"$f":"IF(OR('Entry-Prescription A'!K123=\"Yes\",'Entry-Prescription A'!K123=\"P\"),1,0)","v":0},{"$f":"IF(OR('Entry-Prescription A'!K136=\"Yes\",'Entry-Prescription A'!K136=\"P\"),1,0)","v":0},{"$f":"IF(OR('Entry-Prescription A'!K149=\"Yes\",'Entry-Prescription A'!K149=\"P\"),1,0)","v":0},{"$f":"IF(OR('Entry-Prescription A'!K162=\"Yes\",'Entry-Prescription A'!K162=\"P\"),1,0)","v":0},{"$f":"IF(OR('Entry-Prescription A'!K175=\"Yes\",'Entry-Prescription A'!K175=\"P\"),1,0)","v":0},{"$f":"IF(OR('Entry-Prescription A'!K188=\"Yes\",'Entry-Prescription A'!K188=\"P\"),1,0)","v":0},{"$f":"IF(OR('Entry-Prescription A'!K201=\"Yes\",'Entry-Prescription A'!K201=\"P\"),1,0)","v":0},{"$f":"IF(OR('Entry-Prescription A'!K214=\"Yes\",'Entry-Prescription A'!K214=\"P\"),1,0)","v":0},{"$f":"IF(OR('Entry-Prescription A'!K227=\"Yes\",'Entry-Prescription A'!K227=\"P\"),1,0)","v":0},{"$f":"IF(OR('Entry-Prescription A'!K240=\"Yes\",'Entry-Prescription A'!K240=\"P\"),1,0)","v":0},{"$f":"IF(OR('Entry-Prescription A'!K253=\"Yes\",'Entry-Prescription A'!K253=\"P\"),1,0)","v":0},{"$f":"IF(OR('Entry-Prescription A'!K266=\"Yes\",'Entry-Prescription A'!K266=\"P\"),1,0)","v":0},{"$f":"IF(OR('Entry-Prescription A'!K279=\"Yes\",'Entry-Prescription A'!K279=\"P\"),1,0)","v":0},{"$f":"IF(OR('Entry-Prescription A'!K292=\"Yes\",'Entry-Prescription A'!K292=\"P\"),1,0)","v":0},{"$f":"IF(OR('Entry-Prescription A'!K305=\"Yes\",'Entry-Prescription A'!K305=\"P\"),1,0)","v":0},{"$f":"IF(OR('Entry-Prescription A'!K318=\"Yes\",'Entry-Prescription A'!K318=\"P\"),1,0)","v":0},{"$f":"IF(OR('Entry-Prescription A'!K331=\"Yes\",'Entry-Prescription A'!K331=\"P\"),1,0)","v":0},{"$f":"IF(OR('Entry-Prescription A'!K344=\"Yes\",'Entry-Prescription A'!K344=\"P\"),1,0)","v":0},{"$f":"IF(OR('Entry-Prescription A'!K357=\"Yes\",'Entry-Prescription A'!K357=\"P\"),1,0)","v":0},{"$f":"IF(OR('Entry-Prescription A'!K370=\"Yes\",'Entry-Prescription A'!K370=\"P\"),1,0)","v":0},{"$f":"IF(OR('Entry-Prescription A'!K383=\"Yes\",'Entry-Prescription A'!K383=\"P\"),1,0)","v":0},0]
[null,null,null,null,null,null,null,19,{"$f":"IF(OR(COUNTIF('Entry-Without Prescription B'!E238:F241,\"Yes\") > 0, COUNTIF('Entry-Without Prescription B'!E238:F241,\"=P\") >0),1,0)","v":0},{"$f":"IF(OR(COUNTIF('Entry-Prescription A'!E238:E241,\"=yes\") > 0, COUNTIF('Entry-Prescription A'!E238:E241,\"=P\") > 0), 1, 0)","v":0},{"$f":"IF(OR(COUNTIF('Entry-Prescription A'!I238:I239,\"=yes\") > 0, COUNTIF('Entry-Prescription A'!I238:I239,\"=P\") > 0), 1, 0)","v":0},{"$f":"IF(OR(COUNTIF('Entry-Prescription A'!I238:I250,\"=yes\") > 0, COUNTIF('Entry-Prescription A'!I238:I250,\"=P\") > 0), 1, 0)","v":0},null,"Incise Abscess",{"$f":"IF(OR('Entry-Prescription A'!K7=\"Yes\",'Entry-Prescription A'!K7=\"P\"),1,0)","v":0},{"$f":"IF(OR('Entry-Prescription A'!K20=\"Yes\",'Entry-Prescription A'!K20=\"P\"),1,0)","v":0},{"$f":"IF(OR('Entry-Prescription A'!K33=\"Yes\",'Entry-Prescription A'!K33=\"P\"),1,0)","v":0},{"$f":"IF(OR('Entry-Prescription A'!K46=\"Yes\",'Entry-Prescription A'!K46=\"P\"),1,0)","v":0},{"$f":"IF(OR('Entry-Prescription A'!K59=\"Yes\",'Entry-Prescription A'!K59=\"P\"),1,0)","v":0},{"$f":"IF(OR('Entry-Prescription A'!K72=\"Yes\",'Entry-Prescription A'!K72=\"P\"),1,0)","v":0},{"$f":"IF(OR('Entry-Prescription A'!K85=\"Yes\",'Entry-Prescription A'!K85=\"P\"),1,0)","v":0},{"$f":"IF(OR('Entry-Prescription A'!K98=\"Yes\",'Entry-Prescription A'!K98=\"P\"),1,0)","v":0},{"$f":"IF(OR('Entry-Prescription A'!K111=\"Yes\",'Entry-Prescription A'!K111=\"P\"),1,0)","v":0},{"$f":"IF(OR('Entry-Prescription A'!K124=\"Yes\",'Entry-Prescription A'!K124=\"P\"),1,0)","v":0},{"$f":"IF(OR('Entry-Prescription A'!K137=\"Yes\",'Entry-Prescription A'!K137=\"P\"),1,0)","v":0},{"$f":"IF(OR('Entry-Prescription A'!K150=\"Yes\",'Entry-Prescription A'!K150=\"P\"),1,0)","v":0},{"$f":"IF(OR('Entry-Prescription A'!K163=\"Yes\",'Entry-Prescription A'!K163=\"P\"),1,0)","v":0},{"$f":"IF(OR('Entry-Prescription A'!K176=\"Yes\",'Entry-Prescription A'!K176=\"P\"),1,0)","v":0},{"$f":"IF(OR('Entry-Prescription A'!K189=\"Yes\",'Entry-Prescription A'!K189=\"P\"),1,0)","v":0},{"$f":"IF(OR('Entry-Prescription A'!K202=\"Yes\",'Entry-Prescription A'!K202=\"P\"),1,0)","v":0},{"$f":"IF(OR('Entry-Prescription A'!K215=\"Yes\",'Entry-Prescription A'!K215=\"P\"),1,0)","v":0},{"$f":"IF(OR('Entry-Prescription A'!K228=\"Yes\",'Entry-Prescription A'!K228=\"P\"),1,0)","v":0},{"$f":"IF(OR('Entry-Prescription A'!K241=\"Yes\",'Entry-Prescription A'!K241=\"P\"),1,0)","v":0},{"$f":"IF(OR('Entry-Prescription A'!K254=\"Yes\",'Entry-Prescription A'!K254=\"P\"),1,0)","v":0},{"$f":"IF(OR('Entry-Prescription A'!K267=\"Yes\",'Entry-Prescription A'!K267=\"P\"),1,0)","v":0},{"$f":"IF(OR('Entry-Prescription A'!K280=\"Yes\",'Entry-Prescription A'!K280=\"P\"),1,0)","v":0},{"$f":"IF(OR('Entry-Prescription A'!K293=\"Yes\",'Entry-Prescription A'!K293=\"P\"),1,0)","v":0},{"$f":"IF(OR('Entry-Prescription A'!K306=\"Yes\",'Entry-Prescription A'!K306=\"P\"),1,0)","v":0},{"$f":"IF(OR('Entry-Prescription A'!K319=\"Yes\",'Entry-Prescription A'!K319=\"P\"),1,0)","v":0},{"$f":"IF(OR('Entry-Prescription A'!K332=\"Yes\",'Entry-Prescription A'!K332=\"P\"),1,0)","v":0},{"$f":"IF(OR('Entry-Prescription A'!K345=\"Yes\",'Entry-Prescription A'!K345=\"P\"),1,0)","v":0},{"$f":"IF(OR('Entry-Prescription A'!K358=\"Yes\",'Entry-Prescription A'!K358=\"P\"),1,0)","v":0},{"$f":"IF(OR('Entry-Prescription A'!K371=\"Yes\",'Entry-Prescription A'!K371=\"P\"),1,0)","v":0},{"$f":"IF(OR('Entry-Prescription A'!K384=\"Yes\",'Entry-Prescription A'!K384=\"P\"),1,0)","v":0},0]
[null,null,"Without pre","Pre",null,null,null,20,{"$f":"IF(OR(COUNTIF('Entry-Without Prescription B'!E251:F254,\"Yes\") > 0, COUNTIF('Entry-Without Prescription B'!E251:F254,\"=P\") >0),1,0)","v":0},{"$f":"IF(OR(COUNTIF('Entry-Prescription A'!E251:E254,\"=yes\") > 0, COUNTIF('Entry-Prescription A'!E251:E254,\"=P\") > 0), 1, 0)","v":0},{"$f":"IF(OR(COUNTIF('Entry-Prescription A'!I251:I252,\"=yes\") > 0, COUNTIF('Entry-Prescription A'!I251:I252,\"=P\") > 0), 1, 0)","v":0},{"$f":"IF(OR(COUNTIF('Entry-Prescription A'!I251:I263,\"=yes\") > 0, COUNTIF('Entry-Prescription A'!I251:I263,\"=P\") > 0), 1, 0)","v":0},null,"Scaling/RSD",{"$f":"IF(OR('Entry-Prescription A'!K8=\"Yes\",'Entry-Prescription A'!K8=\"P\"),1,0)","v":0},{"$f":"IF(OR('Entry-Prescription A'!K21=\"Yes\",'Entry-Prescription A'!K21=\"P\"),1,0)","v":0},{"$f":"IF(OR('Entry-Prescription A'!K34=\"Yes\",'Entry-Prescription A'!K34=\"P\"),1,0)","v":0},{"$f":"IF(OR('Entry-Prescription A'!K47=\"Yes\",'Entry-Prescription A'!K47=\"P\"),1,0)","v":0},{"$f":"IF(OR('Entry-Prescription A'!K60=\"Yes\",'Entry-Prescription A'!K60=\"P\"),1,0)","v":0},{"$f":"IF(OR('Entry-Prescription A'!K73=\"Yes\",'Entry-Prescription A'!K73=\"P\"),1,0)","v":0},{"$f":"IF(OR('Entry-Prescription A'!K86=\"Yes\",'Entry-Prescription A'!K86=\"P\"),1,0)","v":0},{"$f":"IF(OR('Entry-Prescription A'!K99=\"Yes\",'Entry-Prescription A'!K99=\"P\"),1,0)","v":0},{"$f":"IF(OR('Entry-Prescription A'!K112=\"Yes\",'Entry-Prescription A'!K112=\"P\"),1,0)","v":0},{"$f":"IF(OR('Entry-Prescription A'!K125=\"Yes\",'Entry-Prescription A'!K125=\"P\"),1,0)","v":0},{"$f":"IF(OR('Entry-Prescription A'!K138=\"Yes\",'Entry-Prescription A'!K138=\"P\"),1,0)","v":0},{"$f":"IF(OR('Entry-Prescription A'!K151=\"Yes\",'Entry-Prescription A'!K151=\"P\"),1,0)","v":0},{"$f":"IF(OR('Entry-Prescription A'!K164=\"Yes\",'Entry-Prescription A'!K164=\"P\"),1,0)","v":0},{"$f":"IF(OR('Entry-Prescription A'!K177=\"Yes\",'Entry-Prescription A'!K177=\"P\"),1,0)","v":0},{"$f":"IF(OR('Entry-Prescription A'!K190=\"Yes\",'Entry-Prescription A'!K190=\"P\"),1,0)","v":0},{"$f":"IF(OR('Entry-Prescription A'!K203=\"Yes\",'Entry-Prescription A'!K203=\"P\"),1,0)","v":0},{"$f":"IF(OR('Entry-Prescription A'!K216=\"Yes\",'Entry-Prescription A'!K216=\"P\"),1,0)","v":0},{"$f":"IF(OR('Entry-Prescription A'!K229=\"Yes\",'Entry-Prescription A'!K229=\"P\"),1,0)","v":0},{"$f":"IF(OR('Entry-Prescription A'!K242=\"Yes\",'Entry-Prescription A'!K242=\"P\"),1,0)","v":0},{"$f":"IF(OR('Entry-Prescription A'!K255=\"Yes\",'Entry-Prescription A'!K255=\"P\"),1,0)","v":0},{"$f":"IF(OR('Entry-Prescription A'!K268=\"Yes\",'Entry-Prescription A'!K268=\"P\"),1,0)","v":0},{"$f":"IF(OR('Entry-Prescription A'!K281=\"Yes\",'Entry-Prescription A'!K281=\"P\"),1,0)","v":0},{"$f":"IF(OR('Entry-Prescription A'!K294=\"Yes\",'Entry-Prescription A'!K294=\"P\"),1,0)","v":0},{"$f":"IF(OR('Entry-Prescription A'!K307=\"Yes\",'Entry-Prescription A'!K307=\"P\"),1,0)","v":0},{"$f":"IF(OR('Entry-Prescription A'!K320=\"Yes\",'Entry-Prescription A'!K320=\"P\"),1,0)","v":0},{"$f":"IF(OR('Entry-Prescription A'!K333=\"Yes\",'Entry-Prescription A'!K333=\"P\"),1,0)","v":0},{"$f":"IF(OR('Entry-Prescription A'!K346=\"Yes\",'Entry-Prescription A'!K346=\"P\"),1,0)","v":0},{"$f":"IF(OR('Entry-Prescription A'!K359=\"Yes\",'Entry-Prescription A'!K359=\"P\"),1,0)","v":0},{"$f":"IF(OR('Entry-Prescription A'!K372=\"Yes\",'Entry-Prescription A'!K372=\"P\"),1,0)","v":0},{"$f":"IF(OR('Entry-Prescription A'!K385=\"Yes\",'Entry-Prescription A'!K385=\"P\"),1,0)","v":0},0]
[null,null,{"$f":"COUNTIF('Entry-Without Prescription B'!D4:D393,\"Female\")","v":0},{"$f":"COUNTIF('Entry-Prescription A'!D4:D393,\"Female\")","v":0},null,null,null,21,{"$f":"IF(OR(COUNTIF('Entry-Without Prescription B'!E264:F267,\"Yes\") > 0, COUNTIF('Entry-Without Prescription B'!E264:F267,\"=P\") >0),1,0)","v":0},{"$f":"IF(OR(COUNTIF('Entry-Prescription A'!E264:E267,\"=yes\") > 0, COUNTIF('Entry-Prescription A'!E264:E267,\"=P\") > 0), 1, 0)","v":0},{"$f":"IF(OR(COUNTIF('Entry-Prescription A'!I264:I265,\"=yes\") > 0, COUNTIF('Entry-Prescription A'!I264:I265,\"=P\") > 0), 1, 0)","v":0},{"$f":"IF(OR(COUNTIF('Entry-Prescription A'!I264:I276,\"=yes\") > 0, COUNTIF('Entry-Prescription A'!I264:I276,\"=P\") > 0), 1, 0)","v":0},null,"Debridement/ Irrigation",{"$f":"IF(OR('Entry-Prescription A'!K9=\"Yes\",'Entry-Prescription A'!K9=\"P\"),1,0)","v":0},{"$f":"IF(OR('Entry-Prescription A'!K22=\"Yes\",'Entry-Prescription A'!K22=\"P\"),1,0)","v":0},{"$f":"IF(OR('Entry-Prescription A'!K35=\"Yes\",'Entry-Prescription A'!K35=\"P\"),1,0)","v":0},{"$f":"IF(OR('Entry-Prescription A'!K48=\"Yes\",'Entry-Prescription A'!K48=\"P\"),1,0)","v":0},{"$f":"IF(OR('Entry-Prescription A'!K61=\"Yes\",'Entry-Prescription A'!K61=\"P\"),1,0)","v":0},{"$f":"IF(OR('Entry-Prescription A'!K74=\"Yes\",'Entry-Prescription A'!K74=\"P\"),1,0)","v":0},{"$f":"IF(OR('Entry-Prescription A'!K87=\"Yes\",'Entry-Prescription A'!K87=\"P\"),1,0)","v":0},{"$f":"IF(OR('Entry-Prescription A'!K100=\"Yes\",'Entry-Prescription A'!K100=\"P\"),1,0)","v":0},{"$f":"IF(OR('Entry-Prescription A'!K113=\"Yes\",'Entry-Prescription A'!K113=\"P\"),1,0)","v":0},{"$f":"IF(OR('Entry-Prescription A'!K126=\"Yes\",'Entry-Prescription A'!K126=\"P\"),1,0)","v":0},{"$f":"IF(OR('Entry-Prescription A'!K139=\"Yes\",'Entry-Prescription A'!K139=\"P\"),1,0)","v":0},{"$f":"IF(OR('Entry-Prescription A'!K152=\"Yes\",'Entry-Prescription A'!K152=\"P\"),1,0)","v":0},{"$f":"IF(OR('Entry-Prescription A'!K165=\"Yes\",'Entry-Prescription A'!K165=\"P\"),1,0)","v":0},{"$f":"IF(OR('Entry-Prescription A'!K178=\"Yes\",'Entry-Prescription A'!K178=\"P\"),1,0)","v":0},{"$f":"IF(OR('Entry-Prescription A'!K191=\"Yes\",'Entry-Prescription A'!K191=\"P\"),1,0)","v":0},{"$f":"IF(OR('Entry-Prescription A'!K204=\"Yes\",'Entry-Prescription A'!K204=\"P\"),1,0)","v":0},{"$f":"IF(OR('Entry-Prescription A'!K217=\"Yes\",'Entry-Prescription A'!K217=\"P\"),1,0)","v":0},{"$f":"IF(OR('Entry-Prescription A'!K230=\"Yes\",'Entry-Prescription A'!K230=\"P\"),1,0)","v":0},{"$f":"IF(OR('Entry-Prescription A'!K243=\"Yes\",'Entry-Prescription A'!K243=\"P\"),1,0)","v":0},{"$f":"IF(OR('Entry-Prescription A'!K256=\"Yes\",'Entry-Prescription A'!K256=\"P\"),1,0)","v":0},{"$f":"IF(OR('Entry-Prescription A'!K269=\"Yes\",'Entry-Prescription A'!K269=\"P\"),1,0)","v":0},{"$f":"IF(OR('Entry-Prescription A'!K282=\"Yes\",'Entry-Prescription A'!K282=\"P\"),1,0)","v":0},{"$f":"IF(OR('Entry-Prescription A'!K295=\"Yes\",'Entry-Prescription A'!K295=\"P\"),1,0)","v":0},{"$f":"IF(OR('Entry-Prescription A'!K308=\"Yes\",'Entry-Prescription A'!K308=\"P\"),1,0)","v":0},{"$f":"IF(OR('Entry-Prescription A'!K321=\"Yes\",'Entry-Prescription A'!K321=\"P\"),1,0)","v":0},{"$f":"IF(OR('Entry-Prescription A'!K334=\"Yes\",'Entry-Prescription A'!K334=\"P\"),1,0)","v":0},{"$f":"IF(OR('Entry-Prescription A'!K347=\"Yes\",'Entry-Prescription A'!K347=\"P\"),1,0)","v":0},{"$f":"IF(OR('Entry-Prescription A'!K360=\"Yes\",'Entry-Prescription A'!K360=\"P\"),1,0)","v":0},{"$f":"IF(OR('Entry-Prescription A'!K373=\"Yes\",'Entry-Prescription A'!K373=\"P\"),1,0)","v":0},{"$f":"IF(OR('Entry-Prescription A'!K386=\"Yes\",'Entry-Prescription A'!K386=\"P\"),1,0)","v":0},0]
[null,null,{"$f":"COUNTIF('Entry-Without Prescription B'!D4:D393,\"Male\")","v":0},{"$f":"COUNTIF('Entry-Prescription A'!D4:D393,\"Male\")","v":0},null,null,null,22,{"$f":"IF(OR(COUNTIF('Entry-Without Prescription B'!E277:F280,\"Yes\") > 0, COUNTIF('Entry-Without Prescription B'!E277:F280,\"=P\") >0),1,0)","v":0},{"$f":"IF(OR(COUNTIF('Entry-Prescription A'!E277:E280,\"=yes\") > 0, COUNTIF('Entry-Prescription A'!E277:E280,\"=P\") > 0), 1, 0)","v":0},{"$f":"IF(OR(COUNTIF('Entry-Prescription A'!I277:I278,\"=yes\") > 0, COUNTIF('Entry-Prescription A'!I277:I278,\"=P\") > 0), 1, 0)","v":0},{"$f":"IF(OR(COUNTIF('Entry-Prescription A'!I277:I289,\"=yes\") > 0, COUNTIF('Entry-Prescription A'!I277:I289,\"=P\") > 0), 1, 0)","v":0},null,"Analgesia Recommended",{"$f":"IF(OR('Entry-Prescription A'!K10=\"Yes\",'Entry-Prescription A'!K10=\"P\"),1,0)","v":0},{"$f":"IF(OR('Entry-Prescription A'!K23=\"Yes\",'Entry-Prescription A'!K23=\"P\"),1,0)","v":0},{"$f":"IF(OR('Entry-Prescription A'!K36=\"Yes\",'Entry-Prescription A'!K36=\"P\"),1,0)","v":0},{"$f":"IF(OR('Entry-Prescription A'!K49=\"Yes\",'Entry-Prescription A'!K49=\"P\"),1,0)","v":0},{"$f":"IF(OR('Entry-Prescription A'!K62=\"Yes\",'Entry-Prescription A'!K62=\"P\"),1,0)","v":0},{"$f":"IF(OR('Entry-Prescription A'!K75=\"Yes\",'Entry-Prescription A'!K75=\"P\"),1,0)","v":0},{"$f":"IF(OR('Entry-Prescription A'!K88=\"Yes\",'Entry-Prescription A'!K88=\"P\"),1,0)","v":0},{"$f":"IF(OR('Entry-Prescription A'!K101=\"Yes\",'Entry-Prescription A'!K101=\"P\"),1,0)","v":0},{"$f":"IF(OR('Entry-Prescription A'!K114=\"Yes\",'Entry-Prescription A'!K114=\"P\"),1,0)","v":0},{"$f":"IF(OR('Entry-Prescription A'!K127=\"Yes\",'Entry-Prescription A'!K127=\"P\"),1,0)","v":0},{"$f":"IF(OR('Entry-Prescription A'!K140=\"Yes\",'Entry-Prescription A'!K140=\"P\"),1,0)","v":0},{"$f":"IF(OR('Entry-Prescription A'!K153=\"Yes\",'Entry-Prescription A'!K153=\"P\"),1,0)","v":0},{"$f":"IF(OR('Entry-Prescription A'!K166=\"Yes\",'Entry-Prescription A'!K166=\"P\"),1,0)","v":0},{"$f":"IF(OR('Entry-Prescription A'!K179=\"Yes\",'Entry-Prescription A'!K179=\"P\"),1,0)","v":0},{"$f":"IF(OR('Entry-Prescription A'!K192=\"Yes\",'Entry-Prescription A'!K192=\"P\"),1,0)","v":0},{"$f":"IF(OR('Entry-Prescription A'!K205=\"Yes\",'Entry-Prescription A'!K205=\"P\"),1,0)","v":0},{"$f":"IF(OR('Entry-Prescription A'!K218=\"Yes\",'Entry-Prescription A'!K218=\"P\"),1,0)","v":0},{"$f":"IF(OR('Entry-Prescription A'!K231=\"Yes\",'Entry-Prescription A'!K231=\"P\"),1,0)","v":0},{"$f":"IF(OR('Entry-Prescription A'!K244=\"Yes\",'Entry-Prescription A'!K244=\"P\"),1,0)","v":0},{"$f":"IF(OR('Entry-Prescription A'!K257=\"Yes\",'Entry-Prescription A'!K257=\"P\"),1,0)","v":0},{"$f":"IF(OR('Entry-Prescription A'!K270=\"Yes\",'Entry-Prescription A'!K270=\"P\"),1,0)","v":0},{"$f":"IF(OR('Entry-Prescription A'!K283=\"Yes\",'Entry-Prescription A'!K283=\"P\"),1,0)","v":0},{"$f":"IF(OR('Entry-Prescription A'!K296=\"Yes\",'Entry-Prescription A'!K296=\"P\"),1,0)","v":0},{"$f":"IF(OR('Entry-Prescription A'!K309=\"Yes\",'Entry-Prescription A'!K309=\"P\"),1,0)","v":0},{"$f":"IF(OR('Entry-Prescription A'!K322=\"Yes\",'Entry-Prescription A'!K322=\"P\"),1,0)","v":0},{"$f":"IF(OR('Entry-Prescription A'!K335=\"Yes\",'Entry-Prescription A'!K335=\"P\"),1,0)","v":0},{"$f":"IF(OR('Entry-Prescription A'!K348=\"Yes\",'Entry-Prescription A'!K348=\"P\"),1,0)","v":0},{"$f":"IF(OR('Entry-Prescription A'!K361=\"Yes\",'Entry-Prescription A'!K361=\"P\"),1,0)","v":0},{"$f":"IF(OR('Entry-Prescription A'!K374=\"Yes\",'Entry-Prescription A'!K374=\"P\"),1,0)","v":0},{"$f":"IF(OR('Entry-Prescription A'!K387=\"Yes\",'Entry-Prescription A'!K387=\"P\"),1,0)","v":0},0]
[null,"Total",{"$f":"SUM(C27:C28)","v":0},{"$f":"SUM(D27:D28)","v":0},null,null,null,23,{"$f":"IF(OR(COUNTIF('Entry-Without Prescription B'!E290:F293,\"Yes\") > 0, COUNTIF('Entry-Without Prescription B'!E290:F293,\"=P\") >0),1,0)","v":0},{"$f":"IF(OR(COUNTIF('Entry-Prescription A'!E290:E293,\"=yes\") > 0, COUNTIF('Entry-Prescription A'!E290:E293,\"=P\") > 0), 1, 0)","v":0},{"$f":"IF(OR(COUNTIF('Entry-Prescription A'!I290:I291,\"=yes\") > 0, COUNTIF('Entry-Prescription A'!I290:I291,\"=P\") > 0), 1, 0)","v":0},{"$f":"IF(OR(COUNTIF('Entry-Prescription A'!I290:I302,\"=yes\") > 0, COUNTIF('Entry-Prescription A'!I290:I302,\"=P\") > 0), 1, 0)","v":0},null,"Other ",{"$f":"IF(OR('Entry-Prescription A'!K11=\"Yes\",'Entry-Prescription A'!K11=\"P\"),1,0)","v":0},{"$f":"IF(OR('Entry-Prescription A'!K24=\"Yes\",'Entry-Prescription A'!K24=\"P\"),1,0)","v":0},{"$f":"IF(OR('Entry-Prescription A'!K37=\"Yes\",'Entry-Prescription A'!K37=\"P\"),1,0)","v":0},{"$f":"IF(OR('Entry-Prescription A'!K50=\"Yes\",'Entry-Prescription A'!K50=\"P\"),1,0)","v":0},{"$f":"IF(OR('Entry-Prescription A'!K63=\"Yes\",'Entry-Prescription A'!K63=\"P\"),1,0)","v":0},{"$f":"IF(OR('Entry-Prescription A'!K76=\"Yes\",'Entry-Prescription A'!K76=\"P\"),1,0)","v":0},{"$f":"IF(OR('Entry-Prescription A'!K89=\"Yes\",'Entry-Prescription A'!K89=\"P\"),1,0)","v":0},{"$f":"IF(OR('Entry-Prescription A'!K102=\"Yes\",'Entry-Prescription A'!K102=\"P\"),1,0)","v":0},{"$f":"IF(OR('Entry-Prescription A'!K115=\"Yes\",'Entry-Prescription A'!K115=\"P\"),1,0)","v":0},{"$f":"IF(OR('Entry-Prescription A'!K128=\"Yes\",'Entry-Prescription A'!K128=\"P\"),1,0)","v":0},{"$f":"IF(OR('Entry-Prescription A'!K141=\"Yes\",'Entry-Prescription A'!K141=\"P\"),1,0)","v":0},{"$f":"IF(OR('Entry-Prescription A'!K154=\"Yes\",'Entry-Prescription A'!K154=\"P\"),1,0)","v":0},{"$f":"IF(OR('Entry-Prescription A'!K167=\"Yes\",'Entry-Prescription A'!K167=\"P\"),1,0)","v":0},{"$f":"IF(OR('Entry-Prescription A'!K180=\"Yes\",'Entry-Prescription A'!K180=\"P\"),1,0)","v":0},{"$f":"IF(OR('Entry-Prescription A'!K193=\"Yes\",'Entry-Prescription A'!K193=\"P\"),1,0)","v":0},{"$f":"IF(OR('Entry-Prescription A'!K206=\"Yes\",'Entry-Prescription A'!K206=\"P\"),1,0)","v":0},{"$f":"IF(OR('Entry-Prescription A'!K219=\"Yes\",'Entry-Prescription A'!K219=\"P\"),1,0)","v":0},{"$f":"IF(OR('Entry-Prescription A'!K232=\"Yes\",'Entry-Prescription A'!K232=\"P\"),1,0)","v":0},{"$f":"IF(OR('Entry-Prescription A'!K245=\"Yes\",'Entry-Prescription A'!K245=\"P\"),1,0)","v":0},{"$f":"IF(OR('Entry-Prescription A'!K258=\"Yes\",'Entry-Prescription A'!K258=\"P\"),1,0)","v":0},{"$f":"IF(OR('Entry-Prescription A'!K271=\"Yes\",'Entry-Prescription A'!K271=\"P\"),1,0)","v":0},{"$f":"IF(OR('Entry-Prescription A'!K284=\"Yes\",'Entry-Prescription A'!K284=\"P\"),1,0)","v":0},{"$f":"IF(OR('Entry-Prescription A'!K297=\"Yes\",'Entry-Prescription A'!K297=\"P\"),1,0)","v":0},{"$f":"IF(OR('Entry-Prescription A'!K310=\"Yes\",'Entry-Prescription A'!K310=\"P\"),1,0)","v":0},{"$f":"IF(OR('Entry-Prescription A'!K323=\"Yes\",'Entry-Prescription A'!K323=\"P\"),1,0)","v":0},{"$f":"IF(OR('Entry-Prescription A'!K336=\"Yes\",'Entry-Prescription A'!K336=\"P\"),1,0)","v":0},{"$f":"IF(OR('Entry-Prescription A'!K349=\"Yes\",'Entry-Prescription A'!K349=\"P\"),1,0)","v":0},{"$f":"IF(OR('Entry-Prescription A'!K362=\"Yes\",'Entry-Prescription A'!K362=\"P\"),1,0)","v":0},{"$f":"IF(OR('Entry-Prescription A'!K375=\"Yes\",'Entry-Prescription A'!K375=\"P\"),1,0)","v":0},{"$f":"IF(OR('Entry-Prescription A'!K388=\"Yes\",'Entry-Prescription A'!K388=\"P\"),1,0)","v":0},0]
[null,null,null,null,null,null,null,24,{"$f":"IF(OR(COUNTIF('Entry-Without Prescription B'!E303:F306,\"Yes\") > 0, COUNTIF('Entry-Without Prescription B'!E303:F306,\"=P\") >0),1,0)","v":0},{"$f":"IF(OR(COUNTIF('Entry-Prescription A'!E303:E306,\"=yes\") > 0, COUNTIF('Entry-Prescription A'!E303:E306,\"=P\") > 0), 1, 0)","v":0},{"$f":"IF(OR(COUNTIF('Entry-Prescription A'!I303:I304,\"=yes\") > 0, COUNTIF('Entry-Prescription A'!I303:I304,\"=P\") > 0), 1, 0)","v":0},{"$f":"IF(OR(COUNTIF('Entry-Prescription A'!I303:I315,\"=yes\") > 0, COUNTIF('Entry-Prescription A'!I303:I315,\"=P\") > 0), 1, 0)","v":0}]
[null,null,null,null,null,null,null,25,{"$f":"IF(OR(COUNTIF('Entry-Without Prescription B'!E316:F319,\"Yes\") > 0, COUNTIF('Entry-Without Prescription B'!E316:F319,\"=P\") >0),1,0)","v":0},{"$f":"IF(OR(COUNTIF('Entry-Prescription A'!E316:E319,\"=yes\") > 0, COUNTIF('Entry-Prescription A'!E316:E319,\"=P\") > 0), 1, 0)","v":0},{"$f":"IF(OR(COUNTIF('Entry-Prescription A'!I316:I317,\"=yes\") > 0, COUNTIF('Entry-Prescription A'!I316:I317,\"=P\") > 0), 1, 0)","v":0},{"$f":"IF(OR(COUNTIF('Entry-Prescription A'!I316:I328,\"=yes\") > 0, COUNTIF('Entry-Prescription A'!I316:I328,\"=P\") > 0), 1, 0)","v":0}]
[null,null,null,null,null,null,null,26,{"$f":"IF(OR(COUNTIF('Entry-Without Prescription B'!E329:F332,\"Yes\") > 0, COUNTIF('Entry-Without Prescription B'!E329:F332,\"=P\") >0),1,0)","v":0},{"$f":"IF(OR(COUNTIF('Entry-Prescription A'!E329:E332,\"=yes\") > 0, COUNTIF('Entry-Prescription A'!E329:E332,\"=P\") > 0), 1, 0)","v":0},{"$f":"IF(OR(COUNTIF('Entry-Prescription A'!I329:I330,\"=yes\") > 0, COUNTIF('Entry-Prescription A'!I329:I330,\"=P\") > 0), 1, 0)","v":0},{"$f":"IF(OR(COUNTIF('Entry-Prescription A'!I329:I341,\"=yes\") > 0, COUNTIF('Entry-Prescription A'!I329:I341,\"=P\") > 0), 1, 0)","v":0},null,null,1,2,3,4,5,6,7,8,9,10,11,12,13,14,15,16,17,18,19,20,21,22,23,24,25,26,27,28,29,30,"Total"]
[null,null,null,null,null,null,null,27,{"$f":"IF(OR(COUNTIF('Entry-Without Prescription B'!E342:F345,\"Yes\") > 0, COUNTIF('Entry-Without Prescription B'!E342:F345,\"=P\") >0),1,0)","v":0},{"$f":"IF(OR(COUNTIF('Entry-Prescription A'!E342:E345,\"=yes\") > 0, COUNTIF('Entry-Prescription A'!E342:E345,\"=P\") > 0), 1, 0)","v":0},{"$f":"IF(OR(COUNTIF('Entry-Prescription A'!I342:I343,\"=yes\") > 0, COUNTIF('Entry-Prescription A'!I342:I343,\"=P\") > 0), 1, 0)","v":0},{"$f":"IF(OR(COUNTIF('Entry-Prescription A'!I342:I354,\"=yes\") > 0, COUNTIF('Entry-Prescription A'!I342:I354,\"=P\") > 0), 1, 0)","v":0},null,"No infection ",{"$f":"IF(OR('Entry-Without Prescription B'!$K4=\"Yes\",'Entry-Without Prescription B'!$K4=\"P\"),1,0)","v":0},{"$f":"IF(OR('Entry-Without Prescription B'!$K17=\"Yes\",'Entry-Without Prescription B'!$K17=\"P\"),1,0)","v":0},{"$f":"IF(OR('Entry-Without Prescription B'!$K30=\"Yes\",'Entry-Without Prescription B'!$K30=\"P\"),1,0)","v":0},{"$f":"IF(OR('Entry-Without Prescription B'!$K43=\"Yes\",'Entry-Without Prescription B'!$K43=\"P\"),1,0)","v":0},{"$f":"IF(OR('Entry-Without Prescription B'!$K56=\"Yes\",'Entry-Without Prescription B'!$K56=\"P\"),1,0)","v":0},{"$f":"IF(OR('Entry-Without Prescription B'!$K69=\"Yes\",'Entry-Without Prescription B'!$K69=\"P\"),1,0)","v":0},{"$f":"IF(OR('Entry-Without Prescription B'!$K82=\"Yes\",'Entry-Without Prescription B'!$K82=\"P\"),1,0)","v":0},{"$f":"IF(OR('Entry-Without Prescription B'!$K95=\"Yes\",'Entry-Without Prescription B'!$K95=\"P\"),1,0)","v":0},{"$f":"IF(OR('Entry-Without Prescription B'!$K108=\"Yes\",'Entry-Without Prescription B'!$K108=\"P\"),1,0)","v":0},{"$f":"IF(OR('Entry-Without Prescription B'!$K121=\"Yes\",'Entry-Without Prescription B'!$K121=\"P\"),1,0)","v":0},{"$f":"IF(OR('Entry-Without Prescription B'!$K134=\"Yes\",'Entry-Without Prescription B'!$K134=\"P\"),1,0)","v":0},{"$f":"IF(OR('Entry-Without Prescription B'!$K147=\"Yes\",'Entry-Without Prescription B'!$K147=\"P\"),1,0)","v":0},{"$f":"IF(OR('Entry-Without Prescription B'!$K160=\"Yes\",'Entry-Without Prescription B'!$K160=\"P\"),1,0)","v":0},{"$f":"IF(OR('Entry-Without Prescription B'!$K173=\"Yes\",'Entry-Without Prescription B'!$K173=\"P\"),1,0)","v":0},{"$f":"IF(OR('Entry-Without Prescription B'!$K186=\"Yes\",'Entry-Without Prescription B'!$K186=\"P\"),1,0)","v":0},{"$f":"IF(OR('Entry-Without Prescription B'!$K199=\"Yes\",'Entry-Without Prescription B'!$K199=\"P\"),1,0)","v":0},{"$f":"IF(OR('Entry-Without Prescription B'!$K212=\"Yes\",'Entry-Without Prescription B'!$K212=\"P\"),1,0)","v":0},{"$f":"IF(OR('Entry-Without Prescription B'!$K225=\"Yes\",'Entry-Without Prescription B'!$K225=\"P\"),1,0)","v":0},{"$f":"IF(OR('Entry-Without Prescription B'!$K238=\"Yes\",'Entry-Without Prescription B'!$K238=\"P\"),1,0)","v":0},{"$f":"IF(OR('Entry-Without Prescription B'!$K251=\"Yes\",'Entry-Without Prescription B'!$K251=\"P\"),1,0)","v":0},{"$f":"IF(OR('Entry-Without Prescription B'!$K264=\"Yes\",'Entry-Without Prescription B'!$K264=\"P\"),1,0)","v":0},{"$f":"IF(OR('Entry-Without Prescription B'!$K277=\"Yes\",'Entry-Without Prescription B'!$K277=\"P\"),1,0)","v":0},{"$f":"IF(OR('Entry-Without Prescription B'!$K290=\"Yes\",'Entry-Without Prescription B'!$K290=\"P\"),1,0)","v":0},{"$f":"IF(OR('Entry-Without Prescription B'!$K303=\"Yes\",'Entry-Without Prescription B'!$K303=\"P\"),1,0)","v":0},{"$f":"IF(OR('Entry-Without Prescription B'!$K316=\"Yes\",'Entry-Without Prescription B'!$K316=\"P\"),1,0)","v":0},{"$f":"IF(OR('Entry-Without Prescription B'!$K329=\"Yes\",'Entry-Without Prescription B'!$K329=\"P\"),1,0)","v":0},{"$f":"IF(OR('Entry-Without Prescription B'!$K342=\"Yes\",'Entry-Without Prescription B'!$K342=\"P\"),1,0)","v":0},{"$f":"IF(OR('Entry-Without Prescription B'!$K355=\"Yes\",'Entry-Without Prescription B'!$K355=\"P\"),1,0)","v":0},{"$f":"IF(OR('Entry-Without Prescription B'!$K368=\"Yes\",'Entry-Without Prescription B'!$K368=\"P\"),1,0)","v":0},{"$f":"IF(OR('Entry-Without Prescription B'!$K381=\"Yes\",'Entry-Without Prescription B'!$K381=\"P\"),1,0)","v":0},{"$f":"SUM(O33:AR33)","v":0}]
[null,null,null,null,null,null,null,28,{"$f":"IF(OR(COUNTIF('Entry-Without Prescription B'!E355:F358,\"Yes\") > 0, COUNTIF('Entry-Without Prescription B'!E355:F358,\"=P\") >0),1,0)","v":0},{"$f":"IF(OR(COUNTIF('Entry-Prescription A'!E355:E358,\"=yes\") > 0, COUNTIF('Entry-Prescription A'!E355:E358,\"=P\") > 0), 1, 0)","v":0},{"$f":"IF(OR(COUNTIF('Entry-Prescription A'!I355:I356,\"=yes\") > 0, COUNTIF('Entry-Prescription A'!I355:I356,\"=P\") > 0), 1, 0)","v":0},{"$f":"IF(OR(COUNTIF('Entry-Prescription A'!I355:I367,\"=yes\") > 0, COUNTIF('Entry-Prescription A'!I355:I367,\"=P\") > 0), 1, 0)","v":0},null,"Clinical intervention was successful ",{"$f":"IF(OR('Entry-Without Prescription B'!$K5=\"Yes\",'Entry-Without Prescription B'!$K5=\"P\"),1,0)","v":0},{"$f":"IF(OR('Entry-Without Prescription B'!$K18=\"Yes\",'Entry-Without Prescription B'!$K18=\"P\"),1,0)","v":0},{"$f":"IF(OR('Entry-Without Prescription B'!$K31=\"Yes\",'Entry-Without Prescription B'!$K31=\"P\"),1,0)","v":0},{"$f":"IF(OR('Entry-Without Prescription B'!$K44=\"Yes\",'Entry-Without Prescription B'!$K44=\"P\"),1,0)","v":0},{"$f":"IF(OR('Entry-Without Prescription B'!$K57=\"Yes\",'Entry-Without Prescription B'!$K57=\"P\"),1,0)","v":0},{"$f":"IF(OR('Entry-Without Prescription B'!$K70=\"Yes\",'Entry-Without Prescription B'!$K70=\"P\"),1,0)","v":0},{"$f":"IF(OR('Entry-Without Prescription B'!$K83=\"Yes\",'Entry-Without Prescription B'!$K83=\"P\"),1,0)","v":0},{"$f":"IF(OR('Entry-Without Prescription B'!$K96=\"Yes\",'Entry-Without Prescription B'!$K96=\"P\"),1,0)","v":0},{"$f":"IF(OR('Entry-Without Prescription B'!$K109=\"Yes\",'Entry-Without Prescription B'!$K109=\"P\"),1,0)","v":0},{"$f":"IF(OR('Entry-Without Prescription B'!$K122=\"Yes\",'Entry-Without Prescription B'!$K122=\"P\"),1,0)","v":0},{"$f":"IF(OR('Entry-Without Prescription B'!$K135=\"Yes\",'Entry-Without Prescription B'!$K135=\"P\"),1,0)","v":0},{"$f":"IF(OR('Entry-Without Prescription B'!$K148=\"Yes\",'Entry-Without Prescription B'!$K148=\"P\"),1,0)","v":0},{"$f":"IF(OR('Entry-Without Prescription B'!$K161=\"Yes\",'Entry-Without Prescription B'!$K161=\"P\"),1,0)","v":0},{"$f":"IF(OR('Entry-Without Prescription B'!$K174=\"Yes\",'Entry-Without Prescription B'!$K174=\"P\"),1,0)","v":0},{"$f":"IF(OR('Entry-Without Prescription B'!$K187=\"Yes\",'Entry-Without Prescription B'!$K187=\"P\"),1,0)","v":0},{"$f":"IF(OR('Entry-Without Prescription B'!$K200=\"Yes\",'Entry-Without Prescription B'!$K200=\"P\"),1,0)","v":0},{"$f":"IF(OR('Entry-Without Prescription B'!$K213=\"Yes\",'Entry-Without Prescription B'!$K213=\"P\"),1,0)","v":0},{"$f":"IF(OR('Entry-Without Prescription B'!$K226=\"Yes\",'Entry-Without Prescription B'!$K226=\"P\"),1,0)","v":0},{"$f":"IF(OR('Entry-Without Prescription B'!$K239=\"Yes\",'Entry-Without Prescription B'!$K239=\"P\"),1,0)","v":0},{"$f":"IF(OR('Entry-Without Prescription B'!$K252=\"Yes\",'Entry-Without Prescription B'!$K252=\"P\"),1,0)","v":0},{"$f":"IF(OR('Entry-Without Prescription B'!$K265=\"Yes\",'Entry-Without Prescription B'!$K265=\"P\"),1,0)","v":0},{"$f":"IF(OR('Entry-Without Prescription B'!$K278=\"Yes\",'Entry-Without Prescription B'!$K278=\"P\"),1,0)","v":0},{"$f":"IF(OR('Entry-Without Prescription B'!$K291=\"Yes\",'Entry-Without Prescription B'!$K291=\"P\"),1,0)","v":0},{"$f":"IF(OR('Entry-Without Prescription B'!$K304=\"Yes\",'Entry-Without Prescription B'!$K304=\"P\"),1,0)","v":0},{"$f":"IF(OR('Entry-Without Prescription B'!$K317=\"Yes\",'Entry-Without Prescription B'!$K317=\"P\"),1,0)","v":0},{"$f":"IF(OR('Entry-Without Prescription B'!$K330=\"Yes\",'Entry-Without Prescription B'!$K330=\"P\"),1,0)","v":0},{"$f":"IF(OR('Entry-Without Prescription B'!$K343=\"Yes\",'Entry-Without Prescription B'!$K343=\"P\"),1,0)","v":0},{"$f":"IF(OR('Entry-Without Prescription B'!$K356=\"Yes\",'Entry-Without Prescription B'!$K356=\"P\"),1,0)","v":0},{"$f":"IF(OR('Entry-Without Prescription B'!$K369=\"Yes\",'Entry-Without Prescription B'!$K369=\"P\"),1,0)","v":0},{"$f":"IF(OR('Entry-Without Prescription B'!$K382=\"Yes\",'Entry-Without Prescription B'!$K382=\"P\"),1,0)","v":0},0]
[null,null,null,null,null,null,null,29,{"$f":"IF(OR(COUNTIF('Entry-Without Prescription B'!E368:F371,\"Yes\") > 0, COUNTIF('Entry-Without Prescription B'!E368:F371,\"=P\") >0),1,0)","v":0},{"$f":"IF(OR(COUNTIF('Entry-Prescription A'!E368:E371,\"=yes\") > 0, COUNTIF('Entry-Prescription A'!E368:E371,\"=P\") > 0), 1, 0)","v":0},{"$f":"IF(OR(COUNTIF('Entry-Prescription A'!I368:I369,\"=yes\") > 0, COUNTIF('Entry-Prescription A'!I368:I369,\"=P\") > 0), 1, 0)","v":0},{"$f":"IF(OR(COUNTIF('Entry-Prescription A'!I368:I380,\"=yes\") > 0, COUNTIF('Entry-Prescription A'!I368:I380,\"=P\") > 0), 1, 0)","v":0},null,"Patient refused treatment ",{"$f":"IF(OR('Entry-Without Prescription B'!$K6=\"Yes\",'Entry-Without Prescription B'!$K6=\"P\"),1,0)","v":0},{"$f":"IF(OR('Entry-Without Prescription B'!$K19=\"Yes\",'Entry-Without Prescription B'!$K19=\"P\"),1,0)","v":0},{"$f":"IF(OR('Entry-Without Prescription B'!$K32=\"Yes\",'Entry-Without Prescription B'!$K32=\"P\"),1,0)","v":0},{"$f":"IF(OR('Entry-Without Prescription B'!$K45=\"Yes\",'Entry-Without Prescription B'!$K45=\"P\"),1,0)","v":0},{"$f":"IF(OR('Entry-Without Prescription B'!$K58=\"Yes\",'Entry-Without Prescription B'!$K58=\"P\"),1,0)","v":0},{"$f":"IF(OR('Entry-Without Prescription B'!$K71=\"Yes\",'Entry-Without Prescription B'!$K71=\"P\"),1,0)","v":0},{"$f":"IF(OR('Entry-Without Prescription B'!$K84=\"Yes\",'Entry-Without Prescription B'!$K84=\"P\"),1,0)","v":0},{"$f":"IF(OR('Entry-Without Prescription B'!$K97=\"Yes\",'Entry-Without Prescription B'!$K97=\"P\"),1,0)","v":0},{"$f":"IF(OR('Entry-Without Prescription B'!$K110=\"Yes\",'Entry-Without Prescription B'!$K110=\"P\"),1,0)","v":0},{"$f":"IF(OR('Entry-Without Prescription B'!$K123=\"Yes\",'Entry-Without Prescription B'!$K123=\"P\"),1,0)","v":0},{"$f":"IF(OR('Entry-Without Prescription B'!$K136=\"Yes\",'Entry-Without Prescription B'!$K136=\"P\"),1,0)","v":0},{"$f":"IF(OR('Entry-Without Prescription B'!$K149=\"Yes\",'Entry-Without Prescription B'!$K149=\"P\"),1,0)","v":0},{"$f":"IF(OR('Entry-Without Prescription B'!$K162=\"Yes\",'Entry-Without Prescription B'!$K162=\"P\"),1,0)","v":0},{"$f":"IF(OR('Entry-Without Prescription B'!$K175=\"Yes\",'Entry-Without Prescription B'!$K175=\"P\"),1,0)","v":0},{"$f":"IF(OR('Entry-Without Prescription B'!$K188=\"Yes\",'Entry-Without Prescription B'!$K188=\"P\"),1,0)","v":0},{"$f":"IF(OR('Entry-Without Prescription B'!$K201=\"Yes\",'Entry-Without Prescription B'!$K201=\"P\"),1,0)","v":0},{"$f":"IF(OR('Entry-Without Prescription B'!$K214=\"Yes\",'Entry-Without Prescription B'!$K214=\"P\"),1,0)","v":0},{"$f":"IF(OR('Entry-Without Prescription B'!$K227=\"Yes\",'Entry-Without Prescription B'!$K227=\"P\"),1,0)","v":0},{"$f":"IF(OR('Entry-Without Prescription B'!$K240=\"Yes\",'Entry-Without Prescription B'!$K240=\"P\"),1,0)","v":0},{"$f":"IF(OR('Entry-Without Prescription B'!$K253=\"Yes\",'Entry-Without Prescription B'!$K253=\"P\"),1,0)","v":0},{"$f":"IF(OR('Entry-Without Prescription B'!$K266=\"Yes\",'Entry-Without Prescription B'!$K266=\"P\"),1,0)","v":0},{"$f":"IF(OR('Entry-Without Prescription B'!$K279=\"Yes\",'Entry-Without Prescription B'!$K279=\"P\"),1,0)","v":0},{"$f":"IF(OR('Entry-Without Prescription B'!$K292=\"Yes\",'Entry-Without Prescription B'!$K292=\"P\"),1,0)","v":0},{"$f":"IF(OR('Entry-Without Prescription B'!$K305=\"Yes\",'Entry-Without Prescription B'!$K305=\"P\"),1,0)","v":0},{"$f":"IF(OR('Entry-Without Prescription B'!$K318=\"Yes\",'Entry-Without Prescription B'!$K318=\"P\"),1,0)","v":0},{"$f":"IF(OR('Entry-Without Prescription B'!$K331=\"Yes\",'Entry-Without Prescription B'!$K331=\"P\"),1,0)","v":0},{"$f":"IF(OR('Entry-Without Prescription B'!$K344=\"Yes\",'Entry-Without Prescription B'!$K344=\"P\"),1,0)","v":0},{"$f":"IF(OR('Entry-Without Prescription B'!$K357=\"Yes\",'Entry-Without Prescription B'!$K357=\"P\"),1,0)","v":0},{"$f":"IF(OR('Entry-Without Prescription B'!$K370=\"Yes\",'Entry-Without Prescription B'!$K370=\"P\"),1,0)","v":0},{"$f":"IF(OR('Entry-Without Prescription B'!$K383=\"Yes\",'Entry-Without Prescription B'!$K383=\"P\"),1,0)","v":0},0]
[null,null,null,null,null,null,null,30,{"$f":"IF(OR(COUNTIF('Entry-Without Prescription B'!E381:F384,\"Yes\") > 0, COUNTIF('Entry-Without Prescription B'!E381:F384,\"=P\") >0),1,0)","v":0},{"$f":"IF(OR(COUNTIF('Entry-Prescription A'!E381:E384,\"=yes\") > 0, COUNTIF('Entry-Prescription A'!E381:E384,\"=P\") > 0), 1, 0)","v":0},{"$f":"IF(OR(COUNTIF('Entry-Prescription A'!I381:I382,\"=yes\") > 0, COUNTIF('Entry-Prescription A'!I381:I382,\"=P\") > 0), 1, 0)","v":0},{"$f":"IF(OR(COUNTIF('Entry-Prescription A'!I381:I393,\"=yes\") > 0, COUNTIF('Entry-Prescription A'!I381:I393,\"=P\") > 0), 1, 0)","v":0},null,"Referred - evidence of systemic spread (Malaise)",{"$f":"IF(OR('Entry-Without Prescription B'!$K7=\"Yes\",'Entry-Without Prescription B'!$K7=\"P\"),1,0)","v":0},{"$f":"IF(OR('Entry-Without Prescription B'!$K20=\"Yes\",'Entry-Without Prescription B'!$K20=\"P\"),1,0)","v":0},{"$f":"IF(OR('Entry-Without Prescription B'!$K33=\"Yes\",'Entry-Without Prescription B'!$K33=\"P\"),1,0)","v":0},{"$f":"IF(OR('Entry-Without Prescription B'!$K46=\"Yes\",'Entry-Without Prescription B'!$K46=\"P\"),1,0)","v":0},{"$f":"IF(OR('Entry-Without Prescription B'!$K59=\"Yes\",'Entry-Without Prescription B'!$K59=\"P\"),1,0)","v":0},{"$f":"IF(OR('Entry-Without Prescription B'!$K72=\"Yes\",'Entry-Without Prescription B'!$K72=\"P\"),1,0)","v":0},{"$f":"IF(OR('Entry-Without Prescription B'!$K85=\"Yes\",'Entry-Without Prescription B'!$K85=\"P\"),1,0)","v":0},{"$f":"IF(OR('Entry-Without Prescription B'!$K98=\"Yes\",'Entry-Without Prescription B'!$K98=\"P\"),1,0)","v":0},{"$f":"IF(OR('Entry-Without Prescription B'!$K111=\"Yes\",'Entry-Without Prescription B'!$K111=\"P\"),1,0)","v":0},{"$f":"IF(OR('Entry-Without Prescription B'!$K124=\"Yes\",'Entry-Without Prescription B'!$K124=\"P\"),1,0)","v":0},{"$f":"IF(OR('Entry-Without Prescription B'!$K137=\"Yes\",'Entry-Without Prescription B'!$K137=\"P\"),1,0)","v":0},{"$f":"IF(OR('Entry-Without Prescription B'!$K150=\"Yes\",'Entry-Without Prescription B'!$K150=\"P\"),1,0)","v":0},{"$f":"IF(OR('Entry-Without Prescription B'!$K163=\"Yes\",'Entry-Without Prescription B'!$K163=\"P\"),1,0)","v":0},{"$f":"IF(OR('Entry-Without Prescription B'!$K176=\"Yes\",'Entry-Without Prescription B'!$K176=\"P\"),1,0)","v":0},{"$f":"IF(OR('Entry-Without Prescription B'!$K189=\"Yes\",'Entry-Without Prescription B'!$K189=\"P\"),1,0)","v":0},{"$f":"IF(OR('Entry-Without Prescription B'!$K202=\"Yes\",'Entry-Without Prescription B'!$K202=\"P\"),1,0)","v":0},{"$f":"IF(OR('Entry-Without Prescription B'!$K215=\"Yes\",'Entry-Without Prescription B'!$K215=\"P\"),1,0)","v":0},{"$f":"IF(OR('Entry-Without Prescription B'!$K228=\"Yes\",'Entry-Without Prescription B'!$K228=\"P\"),1,0)","v":0},{"$f":"IF(OR('Entry-Without Prescription B'!$K241=\"Yes\",'Entry-Without Prescription B'!$K241=\"P\"),1,0)","v":0},{"$f":"IF(OR('Entry-Without Prescription B'!$K254=\"Yes\",'Entry-Without Prescription B'!$K254=\"P\"),1,0)","v":0},{"$f":"IF(OR('Entry-Without Prescription B'!$K267=\"Yes\",'Entry-Without Prescription B'!$K267=\"P\"),1,0)","v":0},{"$f":"IF(OR('Entry-Without Prescription B'!$K280=\"Yes\",'Entry-Without Prescription B'!$K280=\"P\"),1,0)","v":0},{"$f":"IF(OR('Entry-Without Prescription B'!$K293=\"Yes\",'Entry-Without Prescription B'!$K293=\"P\"),1,0)","v":0},{"$f":"IF(OR('Entry-Without Prescription B'!$K306=\"Yes\",'Entry-Without Prescription B'!$K306=\"P\"),1,0)","v":0},{"$f":"IF(OR('Entry-Without Prescription B'!$K319=\"Yes\",'Entry-Without Prescription B'!$K319=\"P\"),1,0)","v":0},{"$f":"IF(OR('Entry-Without Prescription B'!$K332=\"Yes\",'Entry-Without Prescription B'!$K332=\"P\"),1,0)","v":0},{"$f":"IF(OR('Entry-Without Prescription B'!$K345=\"Yes\",'Entry-Without Prescription B'!$K345=\"P\"),1,0)","v":0},{"$f":"IF(OR('Entry-Without Prescription B'!$K358=\"Yes\",'Entry-Without Prescription B'!$K358=\"P\"),1,0)","v":0},{"$f":"IF(OR('Entry-Without Prescription B'!$K371=\"Yes\",'Entry-Without Prescription B'!$K371=\"P\"),1,0)","v":0},{"$f":"IF(OR('Entry-Without Prescription B'!$K384=\"Yes\",'Entry-Without Prescription B'!$K384=\"P\"),1,0)","v":0},0]
[null,null,null,null,null,null,null,null,null,null,null,null,null,"Referred - elevated heart rate ",{"$f":"IF(OR('Entry-Without Prescription B'!$K8=\"Yes\",'Entry-Without Prescription B'!$K8=\"P\"),1,0)","v":0},{"$f":"IF(OR('Entry-Without Prescription B'!$K21=\"Yes\",'Entry-Without Prescription B'!$K21=\"P\"),1,0)","v":0},{"$f":"IF(OR('Entry-Without Prescription B'!$K34=\"Yes\",'Entry-Without Prescription B'!$K34=\"P\"),1,0)","v":0},{"$f":"IF(OR('Entry-Without Prescription B'!$K47=\"Yes\",'Entry-Without Prescription B'!$K47=\"P\"),1,0)","v":0},{"$f":"IF(OR('Entry-Without Prescription B'!$K60=\"Yes\",'Entry-Without Prescription B'!$K60=\"P\"),1,0)","v":0},{"$f":"IF(OR('Entry-Without Prescription B'!$K73=\"Yes\",'Entry-Without Prescription B'!$K73=\"P\"),1,0)","v":0},{"$f":"IF(OR('Entry-Without Prescription B'!$K86=\"Yes\",'Entry-Without Prescription B'!$K86=\"P\"),1,0)","v":0},{"$f":"IF(OR('Entry-Without Prescription B'!$K99=\"Yes\",'Entry-Without Prescription B'!$K99=\"P\"),1,0)","v":0},{"$f":"IF(OR('Entry-Without Prescription B'!$K112=\"Yes\",'Entry-Without Prescription B'!$K112=\"P\"),1,0)","v":0},{"$f":"IF(OR('Entry-Without Prescription B'!$K125=\"Yes\",'Entry-Without Prescription B'!$K125=\"P\"),1,0)","v":0},{"$f":"IF(OR('Entry-Without Prescription B'!$K138=\"Yes\",'Entry-Without Prescription B'!$K138=\"P\"),1,0)","v":0},{"$f":"IF(OR('Entry-Without Prescription B'!$K151=\"Yes\",'Entry-Without Prescription B'!$K151=\"P\"),1,0)","v":0},{"$f":"IF(OR('Entry-Without Prescription B'!$K164=\"Yes\",'Entry-Without Prescription B'!$K164=\"P\"),1,0)","v":0},{"$f":"IF(OR('Entry-Without Prescription B'!$K177=\"Yes\",'Entry-Without Prescription B'!$K177=\"P\"),1,0)","v":0},{"$f":"IF(OR('Entry-Without Prescription B'!$K190=\"Yes\",'Entry-Without Prescription B'!$K190=\"P\"),1,0)","v":0},{"$f":"IF(OR('Entry-Without Prescription B'!$K203=\"Yes\",'Entry-Without Prescription B'!$K203=\"P\"),1,0)","v":0},{"$f":"IF(OR('Entry-Without Prescription B'!$K216=\"Yes\",'Entry-Without Prescription B'!$K216=\"P\"),1,0)","v":0},{"$f":"IF(OR('Entry-Without Prescription B'!$K229=\"Yes\",'Entry-Without Prescription B'!$K229=\"P\"),1,0)","v":0},{"$f":"IF(OR('Entry-Without Prescription B'!$K242=\"Yes\",'Entry-Without Prescription B'!$K242=\"P\"),1,0)","v":0},{"$f":"IF(OR('Entry-Without Prescription B'!$K255=\"Yes\",'Entry-Without Prescription B'!$K255=\"P\"),1,0)","v":0},{"$f":"IF(OR('Entry-Without Prescription B'!$K268=\"Yes\",'Entry-Without Prescription B'!$K268=\"P\"),1,0)","v":0},{"$f":"IF(OR('Entry-Without Prescription B'!$K281=\"Yes\",'Entry-Without Prescription B'!$K281=\"P\"),1,0)","v":0},{"$f":"IF(OR('Entry-Without Prescription B'!$K294=\"Yes\",'Entry-Without Prescription B'!$K294=\"P\"),1,0)","v":0},{"$f":"IF(OR('Entry-Without Prescription B'!$K307=\"Yes\",'Entry-Without Prescription B'!$K307=\"P\"),1,0)","v":0},{"$f":"IF(OR('Entry-Without Prescription B'!$K320=\"Yes\",'Entry-Without Prescription B'!$K320=\"P\"),1,0)","v":0},{"$f":"IF(OR('Entry-Without Prescription B'!$K333=\"Yes\",'Entry-Without Prescription B'!$K333=\"P\"),1,0)","v":0},{"$f":"IF(OR('Entry-Without Prescription B'!$K346=\"Yes\",'Entry-Without Prescription B'!$K346=\"P\"),1,0)","v":0},{"$f":"IF(OR('Entry-Without Prescription B'!$K359=\"Yes\",'Entry-Without Prescription B'!$K359=\"P\"),1,0)","v":0},{"$f":"IF(OR('Entry-Without Prescription B'!$K372=\"Yes\",'Entry-Without Prescription B'!$K372=\"P\"),1,0)","v":0},{"$f":"IF(OR('Entry-Without Prescription B'!$K385=\"Yes\",'Entry-Without Prescription B'!$K385=\"P\"),1,0)","v":0},0]
[null,null,null,null,null,null,null,null,null,null,null,null,null,"Referred - elevated temperature ",{"$f":"IF(OR('Entry-Without Prescription B'!$K9=\"Yes\",'Entry-Without Prescription B'!$K9=\"P\"),1,0)","v":0},{"$f":"IF(OR('Entry-Without Prescription B'!$K22=\"Yes\",'Entry-Without Prescription B'!$K22=\"P\"),1,0)","v":0},{"$f":"IF(OR('Entry-Without Prescription B'!$K35=\"Yes\",'Entry-Without Prescription B'!$K35=\"P\"),1,0)","v":0},{"$f":"IF(OR('Entry-Without Prescription B'!$K48=\"Yes\",'Entry-Without Prescription B'!$K48=\"P\"),1,0)","v":0},{"$f":"IF(OR('Entry-Without Prescription B'!$K61=\"Yes\",'Entry-Without Prescription B'!$K61=\"P\"),1,0)","v":0},{"$f":"IF(OR('Entry-Without Prescription B'!$K74=\"Yes\",'Entry-Without Prescription B'!$K74=\"P\"),1,0)","v":0},{"$f":"IF(OR('Entry-Without Prescription B'!$K87=\"Yes\",'Entry-Without Prescription B'!$K87=\"P\"),1,0)","v":0},{"$f":"IF(OR('Entry-Without Prescription B'!$K100=\"Yes\",'Entry-Without Prescription B'!$K100=\"P\"),1,0)","v":0},{"$f":"IF(OR('Entry-Without Prescription B'!$K113=\"Yes\",'Entry-Without Prescription B'!$K113=\"P\"),1,0)","v":0},{"$f":"IF(OR('Entry-Without Prescription B'!$K126=\"Yes\",'Entry-Without Prescription B'!$K126=\"P\"),1,0)","v":0},{"$f":"IF(OR('Entry-Without Prescription B'!$K139=\"Yes\",'Entry-Without Prescription B'!$K139=\"P\"),1,0)","v":0},{"$f":"IF(OR('Entry-Without Prescription B'!$K152=\"Yes\",'Entry-Without Prescription B'!$K152=\"P\"),1,0)","v":0},{"$f":"IF(OR('Entry-Without Prescription B'!$K165=\"Yes\",'Entry-Without Prescription B'!$K165=\"P\"),1,0)","v":0},{"$f":"IF(OR('Entry-Without Prescription B'!$K178=\"Yes\",'Entry-Without Prescription B'!$K178=\"P\"),1,0)","v":0},{"$f":"IF(OR('Entry-Without Prescription B'!$K191=\"Yes\",'Entry-Without Prescription B'!$K191=\"P\"),1,0)","v":0},{"$f":"IF(OR('Entry-Without Prescription B'!$K204=\"Yes\",'Entry-Without Prescription B'!$K204=\"P\"),1,0)","v":0},{"$f":"IF(OR('Entry-Without Prescription B'!$K217=\"Yes\",'Entry-Without Prescription B'!$K217=\"P\"),1,0)","v":0},{"$f":"IF(OR('Entry-Without Prescription B'!$K230=\"Yes\",'Entry-Without Prescription B'!$K230=\"P\"),1,0)","v":0},{"$f":"IF(OR('Entry-Without Prescription B'!$K243=\"Yes\",'Entry-Without Prescription B'!$K243=\"P\"),1,0)","v":0},{"$f":"IF(OR('Entry-Without Prescription B'!$K256=\"Yes\",'Entry-Without Prescription B'!$K256=\"P\"),1,0)","v":0},{"$f":"IF(OR('Entry-Without Prescription B'!$K269=\"Yes\",'Entry-Without Prescription B'!$K269=\"P\"),1,0)","v":0},{"$f":"IF(OR('Entry-Without Prescription B'!$K282=\"Yes\",'Entry-Without Prescription B'!$K282=\"P\"),1,0)","v":0},{"$f":"IF(OR('Entry-Without Prescription B'!$K295=\"Yes\",'Entry-Without Prescription B'!$K295=\"P\"),1,0)","v":0},{"$f":"IF(OR('Entry-Without Prescription B'!$K308=\"Yes\",'Entry-Without Prescription B'!$K308=\"P\"),1,0)","v":0},{"$f":"IF(OR('Entry-Without Prescription B'!$K321=\"Yes\",'Entry-Without Prescription B'!$K321=\"P\"),1,0)","v":0},{"$f":"IF(OR('Entry-Without Prescription B'!$K334=\"Yes\",'Entry-Without Prescription B'!$K334=\"P\"),1,0)","v":0},{"$f":"IF(OR('Entry-Without Prescription B'!$K347=\"Yes\",'Entry-Without Prescription B'!$K347=\"P\"),1,0)","v":0},{"$f":"IF(OR('Entry-Without Prescription B'!$K360=\"Yes\",'Entry-Without Prescription B'!$K360=\"P\"),1,0)","v":0},{"$f":"IF(OR('Entry-Without Prescription B'!$K373=\"Yes\",'Entry-Without Prescription B'!$K373=\"P\"),1,0)","v":0},{"$f":"IF(OR('Entry-Without Prescription B'!$K386=\"Yes\",'Entry-Without Prescription B'!$K386=\"P\"),1,0)","v":0},0]
[]
[]
[]
[null,null,null,null,null,null,null,null,null,null,null,null,null,"Without ",1,2,3,4,5,6,7,8,9,10,11,12,13,14,15,16,17,18,19,20,21,22,23,24,25,26,27,28,29,30,"Total "]
[null,null,null,null,null,null,null,null,null,null,null,null,null,"None ",{"$f":"IF(OR('Entry-Without Prescription B'!$I4=\"Yes\",'Entry-Without Prescription B'!$I4=\"P\"),1,0)","v":0},{"$f":"IF(OR('Entry-Without Prescription B'!$I17=\"Yes\",'Entry-Without Prescription B'!$I17=\"P\"),1,0)","v":0},{"$f":"IF(OR('Entry-Without Prescription B'!$I30=\"Yes\",'Entry-Without Prescription B'!$I30=\"P\"),1,0)","v":0},{"$f":"IF(OR('Entry-Without Prescription B'!$I43=\"Yes\",'Entry-Without Prescription B'!$I43=\"P\"),1,0)","v":0},{"$f":"IF(OR('Entry-Without Prescription B'!$I56=\"Yes\",'Entry-Without Prescription B'!$I56=\"P\"),1,0)","v":0},{"$f":"IF(OR('Entry-Without Prescription B'!$I69=\"Yes\",'Entry-Without Prescription B'!$I69=\"P\"),1,0)","v":0},{"$f":"IF(OR('Entry-Without Prescription B'!$I82=\"Yes\",'Entry-Without Prescription B'!$I82=\"P\"),1,0)","v":0},{"$f":"IF(OR('Entry-Without Prescription B'!$I95=\"Yes\",'Entry-Without Prescription B'!$I95=\"P\"),1,0)","v":0},{"$f":"IF(OR('Entry-Without Prescription B'!$I108=\"Yes\",'Entry-Without Prescription B'!$I108=\"P\"),1,0)","v":0},{"$f":"IF(OR('Entry-Without Prescription B'!$I121=\"Yes\",'Entry-Without Prescription B'!$I121=\"P\"),1,0)","v":0},{"$f":"IF(OR('Entry-Without Prescription B'!$I134=\"Yes\",'Entry-Without Prescription B'!$I134=\"P\"),1,0)","v":0},{"$f":"IF(OR('Entry-Without Prescription B'!$I147=\"Yes\",'Entry-Without Prescription B'!$I147=\"P\"),1,0)","v":0},{"$f":"IF(OR('Entry-Without Prescription B'!$I160=\"Yes\",'Entry-Without Prescription B'!$I160=\"P\"),1,0)","v":0},{"$f":"IF(OR('Entry-Without Prescription B'!$I173=\"Yes\",'Entry-Without Prescription B'!$I173=\"P\"),1,0)","v":0},{"$f":"IF(OR('Entry-Without Prescription B'!$I186=\"Yes\",'Entry-Without Prescription B'!$I186=\"P\"),1,0)","v":0},{"$f":"IF(OR('Entry-Without Prescription B'!$I199=\"Yes\",'Entry-Without Prescription B'!$I199=\"P\"),1,0)","v":0},{"$f":"IF(OR('Entry-Without Prescription B'!$I212=\"Yes\",'Entry-Without Prescription B'!$I212=\"P\"),1,0)","v":0},{"$f":"IF(OR('Entry-Without Prescription B'!$I225=\"Yes\",'Entry-Without Prescription B'!$I225=\"P\"),1,0)","v":0},{"$f":"IF(OR('Entry-Without Prescription B'!$I238=\"Yes\",'Entry-Without Prescription B'!$I238=\"P\"),1,0)","v":0},{"$f":"IF(OR('Entry-Without Prescription B'!$I251=\"Yes\",'Entry-Without Prescription B'!$I251=\"P\"),1,0)","v":0},{"$f":"IF(OR('Entry-Without Prescription B'!$I264=\"Yes\",'Entry-Without Prescription B'!$I264=\"P\"),1,0)","v":0},{"$f":"IF(OR('Entry-Without Prescription B'!$I277=\"Yes\",'Entry-Without Prescription B'!$I277=\"P\"),1,0)","v":0},{"$f":"IF(OR('Entry-Without Prescription B'!$I290=\"Yes\",'Entry-Without Prescription B'!$I290=\"P\"),1,0)","v":0},{"$f":"IF(OR('Entry-Without Prescription B'!$I303=\"Yes\",'Entry-Without Prescription B'!$I303=\"P\"),1,0)","v":0},{"$f":"IF(OR('Entry-Without Prescription B'!$I316=\"Yes\",'Entry-Without Prescription B'!$I316=\"P\"),1,0)","v":0},{"$f":"IF(OR('Entry-Without Prescription B'!$I329=\"Yes\",'Entry-Without Prescription B'!$I329=\"P\"),1,0)","v":0},{"$f":"IF(OR('Entry-Without Prescription B'!$I342=\"Yes\",'Entry-Without Prescription B'!$I342=\"P\"),1,0)","v":0},{"$f":"IF(OR('Entry-Without Prescription B'!$I355=\"Yes\",'Entry-Without Prescription B'!$I355=\"P\"),1,0)","v":0},{"$f":"IF(OR('Entry-Without Prescription B'!$I368=\"Yes\",'Entry-Without Prescription B'!$I368=\"P\"),1,0)","v":0},{"$f":"IF(OR('Entry-Without Prescription B'!$I381=\"Yes\",'Entry-Without Prescription B'!$I381=\"P\"),1,0)","v":0},{"$f":"SUM(O43:AR43)","v":0}]
[null,null,null,null,null,null,null,null,null,null,null,null,null,"Extraction",{"$f":"IF(OR('Entry-Without Prescription B'!I5=\"Yes\",'Entry-Without Prescription B'!I5=\"P\"),1,0)","v":0},{"$f":"IF(OR('Entry-Without Prescription B'!$I18=\"Yes\",'Entry-Without Prescription B'!$I18=\"P\"),1,0)","v":0},{"$f":"IF(OR('Entry-Without Prescription B'!$I31=\"Yes\",'Entry-Without Prescription B'!$I31=\"P\"),1,0)","v":0},{"$f":"IF(OR('Entry-Without Prescription B'!$I44=\"Yes\",'Entry-Without Prescription B'!$I44=\"P\"),1,0)","v":0},{"$f":"IF(OR('Entry-Without Prescription B'!$I57=\"Yes\",'Entry-Without Prescription B'!$I57=\"P\"),1,0)","v":0},{"$f":"IF(OR('Entry-Without Prescription B'!$I70=\"Yes\",'Entry-Without Prescription B'!$I70=\"P\"),1,0)","v":0},{"$f":"IF(OR('Entry-Without Prescription B'!$I83=\"Yes\",'Entry-Without Prescription B'!$I83=\"P\"),1,0)","v":0},{"$f":"IF(OR('Entry-Without Prescription B'!$I96=\"Yes\",'Entry-Without Prescription B'!$I96=\"P\"),1,0)","v":0},{"$f":"IF(OR('Entry-Without Prescription B'!$I109=\"Yes\",'Entry-Without Prescription B'!$I109=\"P\"),1,0)","v":0},{"$f":"IF(OR('Entry-Without Prescription B'!$I122=\"Yes\",'Entry-Without Prescription B'!$I122=\"P\"),1,0)","v":0},{"$f":"IF(OR('Entry-Without Prescription B'!$I135=\"Yes\",'Entry-Without Prescription B'!$I135=\"P\"),1,0)","v":0},{"$f":"IF(OR('Entry-Without Prescription B'!$I148=\"Yes\",'Entry-Without Prescription B'!$I148=\"P\"),1,0)","v":0},{"$f":"IF(OR('Entry-Without Prescription B'!$I161=\"Yes\",'Entry-Without Prescription B'!$I161=\"P\"),1,0)","v":0},{"$f":"IF(OR('Entry-Without Prescription B'!$I174=\"Yes\",'Entry-Without Prescription B'!$I174=\"P\"),1,0)","v":0},{"$f":"IF(OR('Entry-Without Prescription B'!$I187=\"Yes\",'Entry-Without Prescription B'!$I187=\"P\"),1,0)","v":0},{"$f":"IF(OR('Entry-Without Prescription B'!$I200=\"Yes\",'Entry-Without Prescription B'!$I200=\"P\"),1,0)","v":0},{"$f":"IF(OR('Entry-Without Prescription B'!$I213=\"Yes\",'Entry-Without Prescription B'!$I213=\"P\"),1,0)","v":0},{"$f":"IF(OR('Entry-Without Prescription B'!$I226=\"Yes\",'Entry-Without Prescription B'!$I226=\"P\"),1,0)","v":0},{"$f":"IF(OR('Entry-Without Prescription B'!$I239=\"Yes\",'Entry-Without Prescription B'!$I239=\"P\"),1,0)","v":0},{"$f":"IF(OR('Entry-Without Prescription B'!$I252=\"Yes\",'Entry-Without Prescription B'!$I252=\"P\"),1,0)","v":0},{"$f":"IF(OR('Entry-Without Prescription B'!$I265=\"Yes\",'Entry-Without Prescription B'!$I265=\"P\"),1,0)","v":0},{"$f":"IF(OR('Entry-Without Prescription B'!$I278=\"Yes\",'Entry-Without Prescription B'!$I278=\"P\"),1,0)","v":0},{"$f":"IF(OR('Entry-Without Prescription B'!$I291=\"Yes\",'Entry-Without Prescription B'!$I291=\"P\"),1,0)","v":0},{"$f":"IF(OR('Entry-Without Prescription B'!$I304=\"Yes\",'Entry-Without Prescription B'!$I304=\"P\"),1,0)","v":0},{"$f":"IF(OR('Entry-Without Prescription B'!$I317=\"Yes\",'Entry-Without Prescription B'!$I317=\"P\"),1,0)","v":0},{"$f":"IF(OR('Entry-Without Prescription B'!$I330=\"Yes\",'Entry-Without Prescription B'!$I330=\"P\"),1,0)","v":0},{"$f":"IF(OR('Entry-Without Prescription B'!$I343=\"Yes\",'Entry-Without Prescription B'!$I343=\"P\"),1,0)","v":0},{"$f":"IF(OR('Entry-Without Prescription B'!$I356=\"Yes\",'Entry-Without Prescription B'!$I356=\"P\"),1,0)","v":0},{"$f":"IF(OR('Entry-Without Prescription B'!$I369=\"Yes\",'Entry-Without Prescription B'!$I369=\"P\"),1,0)","v":0},{"$f":"IF(OR('Entry-Without Prescription B'!$I382=\"Yes\",'Entry-Without Prescription B'!$I382=\"P\"),1,0)","v":0},0]
[null,null,null,null,null,null,null,null,null,null,null,null,null,"Opened Tooth for Drainage",{"$f":"IF(OR('Entry-Without Prescription B'!I6=\"Yes\",'Entry-Without Prescription B'!I6=\"P\"),1,0)","v":0},{"$f":"IF(OR('Entry-Without Prescription B'!$I19=\"Yes\",'Entry-Without Prescription B'!$I19=\"P\"),1,0)","v":0},{"$f":"IF(OR('Entry-Without Prescription B'!$I32=\"Yes\",'Entry-Without Prescription B'!$I32=\"P\"),1,0)","v":0},{"$f":"IF(OR('Entry-Without Prescription B'!$I45=\"Yes\",'Entry-Without Prescription B'!$I45=\"P\"),1,0)","v":0},{"$f":"IF(OR('Entry-Without Prescription B'!$I58=\"Yes\",'Entry-Without Prescription B'!$I58=\"P\"),1,0)","v":0},{"$f":"IF(OR('Entry-Without Prescription B'!$I71=\"Yes\",'Entry-Without Prescription B'!$I71=\"P\"),1,0)","v":0},{"$f":"IF(OR('Entry-Without Prescription B'!$I84=\"Yes\",'Entry-Without Prescription B'!$I84=\"P\"),1,0)","v":0},{"$f":"IF(OR('Entry-Without Prescription B'!$I97=\"Yes\",'Entry-Without Prescription B'!$I97=\"P\"),1,0)","v":0},{"$f":"IF(OR('Entry-Without Prescription B'!$I110=\"Yes\",'Entry-Without Prescription B'!$I110=\"P\"),1,0)","v":0},{"$f":"IF(OR('Entry-Without Prescription B'!$I123=\"Yes\",'Entry-Without Prescription B'!$I123=\"P\"),1,0)","v":0},{"$f":"IF(OR('Entry-Without Prescription B'!$I136=\"Yes\",'Entry-Without Prescription B'!$I136=\"P\"),1,0)","v":0},{"$f":"IF(OR('Entry-Without Prescription B'!$I149=\"Yes\",'Entry-Without Prescription B'!$I149=\"P\"),1,0)","v":0},{"$f":"IF(OR('Entry-Without Prescription B'!$I162=\"Yes\",'Entry-Without Prescription B'!$I162=\"P\"),1,0)","v":0},{"$f":"IF(OR('Entry-Without Prescription B'!$I175=\"Yes\",'Entry-Without Prescription B'!$I175=\"P\"),1,0)","v":0},{"$f":"IF(OR('Entry-Without Prescription B'!$I188=\"Yes\",'Entry-Without Prescription B'!$I188=\"P\"),1,0)","v":0},{"$f":"IF(OR('Entry-Without Prescription B'!$I201=\"Yes\",'Entry-Without Prescription B'!$I201=\"P\"),1,0)","v":0},{"$f":"IF(OR('Entry-Without Prescription B'!$I214=\"Yes\",'Entry-Without Prescription B'!$I214=\"P\"),1,0)","v":0},{"$f":"IF(OR('Entry-Without Prescription B'!$I227=\"Yes\",'Entry-Without Prescription B'!$I227=\"P\"),1,0)","v":0},{"$f":"IF(OR('Entry-Without Prescription B'!$I240=\"Yes\",'Entry-Without Prescription B'!$I240=\"P\"),1,0)","v":0},{"$f":"IF(OR('Entry-Without Prescription B'!$I253=\"Yes\",'Entry-Without Prescription B'!$I253=\"P\"),1,0)","v":0},{"$f":"IF(OR('Entry-Without Prescription B'!$I266=\"Yes\",'Entry-Without Prescription B'!$I266=\"P\"),1,0)","v":0},{"$f":"IF(OR('Entry-Without Prescription B'!$I279=\"Yes\",'Entry-Without Prescription B'!$I279=\"P\"),1,0)","v":0},{"$f":"IF(OR('Entry-Without Prescription B'!$I292=\"Yes\",'Entry-Without Prescription B'!$I292=\"P\"),1,0)","v":0},{"$f":"IF(OR('Entry-Without Prescription B'!$I305=\"Yes\",'Entry-Without Prescription B'!$I305=\"P\"),1,0)","v":0},{"$f":"IF(OR('Entry-Without Prescription B'!$I318=\"Yes\",'Entry-Without Prescription B'!$I318=\"P\"),1,0)","v":0},{"$f":"IF(OR('Entry-Without Prescription B'!$I331=\"Yes\",'Entry-Without Prescription B'!$I331=\"P\"),1,0)","v":0},{"$f":"IF(OR('Entry-Without Prescription B'!$I344=\"Yes\",'Entry-Without Prescription B'!$I344=\"P\"),1,0)","v":0},{"$f":"IF(OR('Entry-Without Prescription B'!$I357=\"Yes\",'Entry-Without Prescription B'!$I357=\"P\"),1,0)","v":0},{"$f":"IF(OR('Entry-Without Prescription B'!$I370=\"Yes\",'Entry-Without Prescription B'!$I370=\"P\"),1,0)","v":0},{"$f":"IF(OR('Entry-Without Prescription B'!$I383=\"Yes\",'Entry-Without Prescription B'!$I383=\"P\"),1,0)","v":0},0]
[null,null,null,null,null,null,null,null,null,null,null,null,null,"Incise Abscess",{"$f":"IF(OR('Entry-Without Prescription B'!I7=\"Yes\",'Entry-Without Prescription B'!I7=\"P\"),1,0)","v":0},{"$f":"IF(OR('Entry-Without Prescription B'!$I20=\"Yes\",'Entry-Without Prescription B'!$I20=\"P\"),1,0)","v":0},{"$f":"IF(OR('Entry-Without Prescription B'!$I33=\"Yes\",'Entry-Without Prescription B'!$I33=\"P\"),1,0)","v":0},{"$f":"IF(OR('Entry-Without Prescription B'!$I46=\"Yes\",'Entry-Without Prescription B'!$I46=\"P\"),1,0)","v":0},{"$f":"IF(OR('Entry-Without Prescription B'!$I59=\"Yes\",'Entry-Without Prescription B'!$I59=\"P\"),1,0)","v":0},{"$f":"IF(OR('Entry-Without Prescription B'!$I72=\"Yes\",'Entry-Without Prescription B'!$I72=\"P\"),1,0)","v":0},{"$f":"IF(OR('Entry-Without Prescription B'!$I85=\"Yes\",'Entry-Without Prescription B'!$I85=\"P\"),1,0)","v":0},{"$f":"IF(OR('Entry-Without Prescription B'!$I98=\"Yes\",'Entry-Without Prescription B'!$I98=\"P\"),1,0)","v":0},{"$f":"IF(OR('Entry-Without Prescription B'!$I111=\"Yes\",'Entry-Without Prescription B'!$I111=\"P\"),1,0)","v":0},{"$f":"IF(OR('Entry-Without Prescription B'!$I124=\"Yes\",'Entry-Without Prescription B'!$I124=\"P\"),1,0)","v":0},{"$f":"IF(OR('Entry-Without Prescription B'!$I137=\"Yes\",'Entry-Without Prescription B'!$I137=\"P\"),1,0)","v":0},{"$f":"IF(OR('Entry-Without Prescription B'!$I150=\"Yes\",'Entry-Without Prescription B'!$I150=\"P\"),1,0)","v":0},{"$f":"IF(OR('Entry-Without Prescription B'!$I163=\"Yes\",'Entry-Without Prescription B'!$I163=\"P\"),1,0)","v":0},{"$f":"IF(OR('Entry-Without Prescription B'!$I176=\"Yes\",'Entry-Without Prescription B'!$I176=\"P\"),1,0)","v":0},{"$f":"IF(OR('Entry-Without Prescription B'!$I189=\"Yes\",'Entry-Without Prescription B'!$I189=\"P\"),1,0)","v":0},{"$f":"IF(OR('Entry-Without Prescription B'!$I202=\"Yes\",'Entry-Without Prescription B'!$I202=\"P\"),1,0)","v":0},{"$f":"IF(OR('Entry-Without Prescription B'!$I215=\"Yes\",'Entry-Without Prescription B'!$I215=\"P\"),1,0)","v":0},{"$f":"IF(OR('Entry-Without Prescription B'!$I228=\"Yes\",'Entry-Without Prescription B'!$I228=\"P\"),1,0)","v":0},{"$f":"IF(OR('Entry-Without Prescription B'!$I241=\"Yes\",'Entry-Without Prescription B'!$I241=\"P\"),1,0)","v":0},{"$f":"IF(OR('Entry-Without Prescription B'!$I254=\"Yes\",'Entry-Without Prescription B'!$I254=\"P\"),1,0)","v":0},{"$f":"IF(OR('Entry-Without Prescription B'!$I267=\"Yes\",'Entry-Without Prescription B'!$I267=\"P\"),1,0)","v":0},{"$f":"IF(OR('Entry-Without Prescription B'!$I280=\"Yes\",'Entry-Without Prescription B'!$I280=\"P\"),1,0)","v":0},{"$f":"IF(OR('Entry-Without Prescription B'!$I293=\"Yes\",'Entry-Without Prescription B'!$I293=\"P\"),1,0)","v":0},{"$f":"IF(OR('Entry-Without Prescription B'!$I306=\"Yes\",'Entry-Without Prescription B'!$I306=\"P\"),1,0)","v":0},{"$f":"IF(OR('Entry-Without Prescription B'!$I319=\"Yes\",'Entry-Without Prescription B'!$I319=\"P\"),1,0)","v":0},{"$f":"IF(OR('Entry-Without Prescription B'!$I332=\"Yes\",'Entry-Without Prescription B'!$I332=\"P\"),1,0)","v":0},{"$f":"IF(OR('Entry-Without Prescription B'!$I345=\"Yes\",'Entry-Without Prescription B'!$I345=\"P\"),1,0)","v":0},{"$f":"IF(OR('Entry-Without Prescription B'!$I358=\"Yes\",'Entry-Without Prescription B'!$I358=\"P\"),1,0)","v":0},{"$f":"IF(OR('Entry-Without Prescription B'!$I371=\"Yes\",'Entry-Without Prescription B'!$I371=\"P\"),1,0)","v":0},{"$f":"IF(OR('Entry-Without Prescription B'!$I384=\"Yes\",'Entry-Without Prescription B'!$I384=\"P\"),1,0)","v":0},0]
[null,null,null,null,null,null,null,null,null,null,null,null,null,"Scaling/RSD",{"$f":"IF(OR('Entry-Without Prescription B'!I8=\"Yes\",'Entry-Without Prescription B'!I8=\"P\"),1,0)","v":0},{"$f":"IF(OR('Entry-Without Prescription B'!$I21=\"Yes\",'Entry-Without Prescription B'!$I21=\"P\"),1,0)","v":0},{"$f":"IF(OR('Entry-Without Prescription B'!$I34=\"Yes\",'Entry-Without Prescription B'!$I34=\"P\"),1,0)","v":0},{"$f":"IF(OR('Entry-Without Prescription B'!$I47=\"Yes\",'Entry-Without Prescription B'!$I47=\"P\"),1,0)","v":0},{"$f":"IF(OR('Entry-Without Prescription B'!$I60=\"Yes\",'Entry-Without Prescription B'!$I60=\"P\"),1,0)","v":0},{"$f":"IF(OR('Entry-Without Prescription B'!$I73=\"Yes\",'Entry-Without Prescription B'!$I73=\"P\"),1,0)","v":0},{"$f":"IF(OR('Entry-Without Prescription B'!$I86=\"Yes\",'Entry-Without Prescription B'!$I86=\"P\"),1,0)","v":0},{"$f":"IF(OR('Entry-Without Prescription B'!$I99=\"Yes\",'Entry-Without Prescription B'!$I99=\"P\"),1,0)","v":0},{"$f":"IF(OR('Entry-Without Prescription B'!$I112=\"Yes\",'Entry-Without Prescription B'!$I112=\"P\"),1,0)","v":0},{"$f":"IF(OR('Entry-Without Prescription B'!$I125=\"Yes\",'Entry-Without Prescription B'!$I125=\"P\"),1,0)","v":0},{"$f":"IF(OR('Entry-Without Prescription B'!$I138=\"Yes\",'Entry-Without Prescription B'!$I138=\"P\"),1,0)","v":0},{"$f":"IF(OR('Entry-Without Prescription B'!$I151=\"Yes\",'Entry-Without Prescription B'!$I151=\"P\"),1,0)","v":0},{"$f":"IF(OR('Entry-Without Prescription B'!$I164=\"Yes\",'Entry-Without Prescription B'!$I164=\"P\"),1,0)","v":0},{"$f":"IF(OR('Entry-Without Prescription B'!$I177=\"Yes\",'Entry-Without Prescription B'!$I177=\"P\"),1,0)","v":0},{"$f":"IF(OR('Entry-Without Prescription B'!$I190=\"Yes\",'Entry-Without Prescription B'!$I190=\"P\"),1,0)","v":0},{"$f":"IF(OR('Entry-Without Prescription B'!$I203=\"Yes\",'Entry-Without Prescription B'!$I203=\"P\"),1,0)","v":0},{"$f":"IF(OR('Entry-Without Prescription B'!$I216=\"Yes\",'Entry-Without Prescription B'!$I216=\"P\"),1,0)","v":0},{"$f":"IF(OR('Entry-Without Prescription B'!$I229=\"Yes\",'Entry-Without Prescription B'!$I229=\"P\"),1,0)","v":0},{"$f":"IF(OR('Entry-Without Prescription B'!$I242=\"Yes\",'Entry-Without Prescription B'!$I242=\"P\"),1,0)","v":0},{"$f":"IF(OR('Entry-Without Prescription B'!$I255=\"Yes\",'Entry-Without Prescription B'!$I255=\"P\"),1,0)","v":0},{"$f":"IF(OR('Entry-Without Prescription B'!$I268=\"Yes\",'Entry-Without Prescription B'!$I268=\"P\"),1,0)","v":0},{"$f":"IF(OR('Entry-Without Prescription B'!$I281=\"Yes\",'Entry-Without Prescription B'!$I281=\"P\"),1,0)","v":0},{"$f":"IF(OR('Entry-Without Prescription B'!$I294=\"Yes\",'Entry-Without Prescription B'!$I294=\"P\"),1,0)","v":0},{"$f":"IF(OR('Entry-Without Prescription B'!$I307=\"Yes\",'Entry-Without Prescription B'!$I307=\"P\"),1,0)","v":0},{"$f":"IF(OR('Entry-Without Prescription B'!$I320=\"Yes\",'Entry-Without Prescription B'!$I320=\"P\"),1,0)","v":0},{"$f":"IF(OR('Entry-Without Prescription B'!$I333=\"Yes\",'Entry-Without Prescription B'!$I333=\"P\"),1,0)","v":0},{"$f":"IF(OR('Entry-Without Prescription B'!$I346=\"Yes\",'Entry-Without Prescription B'!$I346=\"P\"),1,0)","v":0},{"$f":"IF(OR('Entry-Without Prescription B'!$I359=\"Yes\",'Entry-Without Prescription B'!$I359=\"P\"),1,0)","v":0},{"$f":"IF(OR('Entry-Without Prescription B'!$I372=\"Yes\",'Entry-Prescription A'!$I372=\"P\"),1,0)","v":0},{"$f":"IF(OR('Entry-Without Prescription B'!$I385=\"Yes\",'Entry-Without Prescription B'!$I385=\"P\"),1,0)","v":0},0]
[null,null,null,null,null,null,null,null,null,null,null,null,null,"Debridement/ Irrigation",{"$f":"IF(OR('Entry-Without Prescription B'!I9=\"Yes\",'Entry-Without Prescription B'!I9=\"P\"),1,0)","v":0},{"$f":"IF(OR('Entry-Without Prescription B'!$I22=\"Yes\",'Entry-Without Prescription B'!$I22=\"P\"),1,0)","v":0},{"$f":"IF(OR('Entry-Without Prescription B'!$I35=\"Yes\",'Entry-Without Prescription B'!$I35=\"P\"),1,0)","v":0},{"$f":"IF(OR('Entry-Without Prescription B'!$I48=\"Yes\",'Entry-Without Prescription B'!$I48=\"P\"),1,0)","v":0},{"$f":"IF(OR('Entry-Without Prescription B'!$I61=\"Yes\",'Entry-Without Prescription B'!$I61=\"P\"),1,0)","v":0},{"$f":"IF(OR('Entry-Without Prescription B'!$I74=\"Yes\",'Entry-Without Prescription B'!$I74=\"P\"),1,0)","v":0},{"$f":"IF(OR('Entry-Without Prescription B'!$I87=\"Yes\",'Entry-Without Prescription B'!$I87=\"P\"),1,0)","v":0},{"$f":"IF(OR('Entry-Without Prescription B'!$I100=\"Yes\",'Entry-Without Prescription B'!$I100=\"P\"),1,0)","v":0},{"$f":"IF(OR('Entry-Without Prescription B'!$I113=\"Yes\",'Entry-Without Prescription B'!$I113=\"P\"),1,0)","v":0},{"$f":"IF(OR('Entry-Without Prescription B'!$I126=\"Yes\",'Entry-Without Prescription B'!$I126=\"P\"),1,0)","v":0},{"$f":"IF(OR('Entry-Without Prescription B'!$I139=\"Yes\",'Entry-Without Prescription B'!$I139=\"P\"),1,0)","v":0},{"$f":"IF(OR('Entry-Without Prescription B'!$I152=\"Yes\",'Entry-Without Prescription B'!$I152=\"P\"),1,0)","v":0},{"$f":"IF(OR('Entry-Without Prescription B'!$I165=\"Yes\",'Entry-Without Prescription B'!$I165=\"P\"),1,0)","v":0},{"$f":"IF(OR('Entry-Without Prescription B'!$I178=\"Yes\",'Entry-Without Prescription B'!$I178=\"P\"),1,0)","v":0},{"$f":"IF(OR('Entry-Without Prescription B'!$I191=\"Yes\",'Entry-Without Prescription B'!$I191=\"P\"),1,0)","v":0},{"$f":"IF(OR('Entry-Without Prescription B'!$I204=\"Yes\",'Entry-Without Prescription B'!$I204=\"P\"),1,0)","v":0},{"$f":"IF(OR('Entry-Without Prescription B'!$I217=\"Yes\",'Entry-Without Prescription B'!$I217=\"P\"),1,0)","v":0},{"$f":"IF(OR('Entry-Without Prescription B'!$I230=\"Yes\",'Entry-Without Prescription B'!$I230=\"P\"),1,0)","v":0},{"$f":"IF(OR('Entry-Without Prescription B'!$I243=\"Yes\",'Entry-Without Prescription B'!$I243=\"P\"),1,0)","v":0},{"$f":"IF(OR('Entry-Without Prescription B'!$I256=\"Yes\",'Entry-Without Prescription B'!$I256=\"P\"),1,0)","v":0},{"$f":"IF(OR('Entry-Without Prescription B'!$I269=\"Yes\",'Entry-Without Prescription B'!$I269=\"P\"),1,0)","v":0},{"$f":"IF(OR('Entry-Without Prescription B'!$I282=\"Yes\",'Entry-Without Prescription B'!$I282=\"P\"),1,0)","v":0},{"$f":"IF(OR('Entry-Without Prescription B'!$I295=\"Yes\",'Entry-Without Prescription B'!$I295=\"P\"),1,0)","v":0},{"$f":"IF(OR('Entry-Without Prescription B'!$I308=\"Yes\",'Entry-Without Prescription B'!$I308=\"P\"),1,0)","v":0},{"$f":"IF(OR('Entry-Without Prescription B'!$I321=\"Yes\",'Entry-Without Prescription B'!$I321=\"P\"),1,0)","v":0},{"$f":"IF(OR('Entry-Without Prescription B'!$I334=\"Yes\",'Entry-Without Prescription B'!$I334=\"P\"),1,0)","v":0},{"$f":"IF(OR('Entry-Without Prescription B'!$I347=\"Yes\",'Entry-Without Prescription B'!$I347=\"P\"),1,0)","v":0},{"$f":"IF(OR('Entry-Without Prescription B'!$I360=\"Yes\",'Entry-Without Prescription B'!$I360=\"P\"),1,0)","v":0},{"$f":"IF(OR('Entry-Without Prescription B'!$I373=\"Yes\",'Entry-Prescription A'!$I373=\"P\"),1,0)","v":0},{"$f":"IF(OR('Entry-Without Prescription B'!$I386=\"Yes\",'Entry-Without Prescription B'!$I386=\"P\"),1,0)","v":0},0]
[null,null,null,null,null,null,null,null,null,null,null,null,null,"Analgesia Recommended",{"$f":"IF(OR('Entry-Without Prescription B'!I10=\"Yes\",'Entry-Without Prescription B'!I10=\"P\"),1,0)","v":0},{"$f":"IF(OR('Entry-Without Prescription B'!$I23=\"Yes\",'Entry-Without Prescription B'!$I23=\"P\"),1,0)","v":0},{"$f":"IF(OR('Entry-Without Prescription B'!$I36=\"Yes\",'Entry-Without Prescription B'!$I36=\"P\"),1,0)","v":0},{"$f":"IF(OR('Entry-Without Prescription B'!$I49=\"Yes\",'Entry-Without Prescription B'!$I49=\"P\"),1,0)","v":0},{"$f":"IF(OR('Entry-Without Prescription B'!$I62=\"Yes\",'Entry-Without Prescription B'!$I62=\"P\"),1,0)","v":0},{"$f":"IF(OR('Entry-Without Prescription B'!$I75=\"Yes\",'Entry-Without Prescription B'!$I75=\"P\"),1,0)","v":0},{"$f":"IF(OR('Entry-Without Prescription B'!$I88=\"Yes\",'Entry-Without Prescription B'!$I88=\"P\"),1,0)","v":0},{"$f":"IF(OR('Entry-Without Prescription B'!$I101=\"Yes\",'Entry-Without Prescription B'!$I101=\"P\"),1,0)","v":0},{"$f":"IF(OR('Entry-Without Prescription B'!$I114=\"Yes\",'Entry-Without Prescription B'!$I114=\"P\"),1,0)","v":0},{"$f":"IF(OR('Entry-Without Prescription B'!$I127=\"Yes\",'Entry-Without Prescription B'!$I127=\"P\"),1,0)","v":0},{"$f":"IF(OR('Entry-Without Prescription B'!$I140=\"Yes\",'Entry-Without Prescription B'!$I140=\"P\"),1,0)","v":0},{"$f":"IF(OR('Entry-Without Prescription B'!$I153=\"Yes\",'Entry-Without Prescription B'!$I153=\"P\"),1,0)","v":0},{"$f":"IF(OR('Entry-Without Prescription B'!$I166=\"Yes\",'Entry-Without Prescription B'!$I166=\"P\"),1,0)","v":0},{"$f":"IF(OR('Entry-Without Prescription B'!$I179=\"Yes\",'Entry-Without Prescription B'!$I179=\"P\"),1,0)","v":0},{"$f":"IF(OR('Entry-Without Prescription B'!$I192=\"Yes\",'Entry-Without Prescription B'!$I192=\"P\"),1,0)","v":0},{"$f":"IF(OR('Entry-Without Prescription B'!$I205=\"Yes\",'Entry-Without Prescription B'!$I205=\"P\"),1,0)","v":0},{"$f":"IF(OR('Entry-Without Prescription B'!$I218=\"Yes\",'Entry-Without Prescription B'!$I218=\"P\"),1,0)","v":0},{"$f":"IF(OR('Entry-Without Prescription B'!$I231=\"Yes\",'Entry-Without Prescription B'!$I231=\"P\"),1,0)","v":0},{"$f":"IF(OR('Entry-Without Prescription B'!$I244=\"Yes\",'Entry-Without Prescription B'!$I244=\"P\"),1,0)","v":0},{"$f":"IF(OR('Entry-Without Prescription B'!$I257=\"Yes\",'Entry-Without Prescription B'!$I257=\"P\"),1,0)","v":0},{"$f":"IF(OR('Entry-Without Prescription B'!$I270=\"Yes\",'Entry-Without Prescription B'!$I270=\"P\"),1,0)","v":0},{"$f":"IF(OR('Entry-Without Prescription B'!$I283=\"Yes\",'Entry-Without Prescription B'!$I283=\"P\"),1,0)","v":0},{"$f":"IF(OR('Entry-Without Prescription B'!$I296=\"Yes\",'Entry-Without Prescription B'!$I296=\"P\"),1,0)","v":0},{"$f":"IF(OR('Entry-Without Prescription B'!$I309=\"Yes\",'Entry-Without Prescription B'!$I309=\"P\"),1,0)","v":0},{"$f":"IF(OR('Entry-Without Prescription B'!$I322=\"Yes\",'Entry-Without Prescription B'!$I322=\"P\"),1,0)","v":0},{"$f":"IF(OR('Entry-Without Prescription B'!$I335=\"Yes\",'Entry-Without Prescription B'!$I335=\"P\"),1,0)","v":0},{"$f":"IF(OR('Entry-Without Prescription B'!$I348=\"Yes\",'Entry-Without Prescription B'!$I348=\"P\"),1,0)","v":0},{"$f":"IF(OR('Entry-Without Prescription B'!$I361=\"Yes\",'Entry-Without Prescription B'!$I361=\"P\"),1,0)","v":0},{"$f":"IF(OR('Entry-Without Prescription B'!$I374=\"Yes\",'Entry-Prescription A'!$I374=\"P\"),1,0)","v":0},{"$f":"IF(OR('Entry-Without Prescription B'!$I387=\"Yes\",'Entry-Without Prescription B'!$I387=\"P\"),1,0)","v":0},0]
[null,null,null,null,null,null,null,null,null,null,null,null,null,"Other ",{"$f":"IF(OR('Entry-Without Prescription B'!I11=\"Yes\",'Entry-Without Prescription B'!I11=\"P\"),1,0)","v":0},{"$f":"IF(OR('Entry-Without Prescription B'!$I24=\"Yes\",'Entry-Without Prescription B'!$I24=\"P\"),1,0)","v":0},{"$f":"IF(OR('Entry-Without Prescription B'!$I37=\"Yes\",'Entry-Without Prescription B'!$I37=\"P\"),1,0)","v":0},{"$f":"IF(OR('Entry-Without Prescription B'!$I50=\"Yes\",'Entry-Without Prescription B'!$I50=\"P\"),1,0)","v":0},{"$f":"IF(OR('Entry-Without Prescription B'!$I63=\"Yes\",'Entry-Without Prescription B'!$I63=\"P\"),1,0)","v":0},{"$f":"IF(OR('Entry-Without Prescription B'!$I76=\"Yes\",'Entry-Without Prescription B'!$I76=\"P\"),1,0)","v":0},{"$f":"IF(OR('Entry-Without Prescription B'!$I89=\"Yes\",'Entry-Without Prescription B'!$I89=\"P\"),1,0)","v":0},{"$f":"IF(OR('Entry-Without Prescription B'!$I102=\"Yes\",'Entry-Without Prescription B'!$I102=\"P\"),1,0)","v":0},{"$f":"IF(OR('Entry-Without Prescription B'!$I115=\"Yes\",'Entry-Without Prescription B'!$I115=\"P\"),1,0)","v":0},{"$f":"IF(OR('Entry-Without Prescription B'!$I128=\"Yes\",'Entry-Without Prescription B'!$I128=\"P\"),1,0)","v":0},{"$f":"IF(OR('Entry-Without Prescription B'!$I141=\"Yes\",'Entry-Without Prescription B'!$I141=\"P\"),1,0)","v":0},{"$f":"IF(OR('Entry-Without Prescription B'!$I154=\"Yes\",'Entry-Without Prescription B'!$I154=\"P\"),1,0)","v":0},{"$f":"IF(OR('Entry-Without Prescription B'!$I167=\"Yes\",'Entry-Without Prescription B'!$I167=\"P\"),1,0)","v":0},{"$f":"IF(OR('Entry-Without Prescription B'!$I180=\"Yes\",'Entry-Without Prescription B'!$I180=\"P\"),1,0)","v":0},{"$f":"IF(OR('Entry-Without Prescription B'!$I193=\"Yes\",'Entry-Without Prescription B'!$I193=\"P\"),1,0)","v":0},{"$f":"IF(OR('Entry-Without Prescription B'!$I206=\"Yes\",'Entry-Without Prescription B'!$I206=\"P\"),1,0)","v":0},{"$f":"IF(OR('Entry-Without Prescription B'!$I219=\"Yes\",'Entry-Without Prescription B'!$I219=\"P\"),1,0)","v":0},{"$f":"IF(OR('Entry-Without Prescription B'!$I232=\"Yes\",'Entry-Without Prescription B'!$I232=\"P\"),1,0)","v":0},{"$f":"IF(OR('Entry-Without Prescription B'!$I245=\"Yes\",'Entry-Without Prescription B'!$I245=\"P\"),1,0)","v":0},{"$f":"IF(OR('Entry-Without Prescription B'!$I258=\"Yes\",'Entry-Without Prescription B'!$I258=\"P\"),1,0)","v":0},{"$f":"IF(OR('Entry-Without Prescription B'!$I271=\"Yes\",'Entry-Without Prescription B'!$I271=\"P\"),1,0)","v":0},{"$f":"IF(OR('Entry-Without Prescription B'!$I284=\"Yes\",'Entry-Without Prescription B'!$I284=\"P\"),1,0)","v":0},{"$f":"IF(OR('Entry-Without Prescription B'!$I297=\"Yes\",'Entry-Without Prescription B'!$I297=\"P\"),1,0)","v":0},{"$f":"IF(OR('Entry-Without Prescription B'!$I310=\"Yes\",'Entry-Without Prescription B'!$I310=\"P\"),1,0)","v":0},{"$f":"IF(OR('Entry-Without Prescription B'!$I323=\"Yes\",'Entry-Without Prescription B'!$I323=\"P\"),1,0)","v":0},{"$f":"IF(OR('Entry-Without Prescription B'!$I336=\"Yes\",'Entry-Without Prescription B'!$I336=\"P\"),1,0)","v":0},{"$f":"IF(OR('Entry-Without Prescription B'!$I349=\"Yes\",'Entry-Without Prescription B'!$I349=\"P\"),1,0)","v":0},{"$f":"IF(OR('Entry-Without Prescription B'!$I362=\"Yes\",'Entry-Without Prescription B'!$I362=\"P\"),1,0)","v":0},{"$f":"IF(OR('Entry-Without Prescription B'!$I375=\"Yes\",'Entry-Prescription A'!$I375=\"P\"),1,0)","v":0},{"$f":"IF(OR('Entry-Without Prescription B'!$I388=\"Yes\",'Entry-Without Prescription B'!$I388=\"P\"),1,0)","v":0},0]

{"sheet":"Back End - Graphs","index":8,"n_rows":52,"n_cols":15,"rows_kept":52,"cut":false,"hidden":true,"merged":[[37,3,37,5],[29,3,29,10],[35,3,35,5],[36,3,36,5],[31,8,31,10],[32,8,32,10],[34,8,34,10],[33,8,33,10],[30,3,30,5],[30,8,30,10],[51,3,51,4],[51,5,51,7],[51,8,51,9],[49,3,49,4],[49,5,49,6],[49,8,49,9],[50,3,50,4],[50,5,50,6],[50,8,50,9],[46,3,46,4],[46,5,46,6],[46,8,46,9],[47,3,47,4],[47,5,47,6],[47,8,47,9],[48,3,48,4],[48,5,48,6],[48,8,48,9],[43,3,43,4],[43,5,43,6],[43,8,43,9],[44,3,44,4],[44,5,44,6],[44,8,44,9],[45,3,45,4],[45,5,45,6],[45,8,45,9],[42,3,42,9],[5,3,5,10],[6,3,6,5],[6,6,6,10],[7,3,7,5],[7,6,7,10],[8,3,8,5],[8,6,8,10],[9,3,9,5],[9,6,9,10],[10,3,10,5],[10,6,10,10],[11,7,11,10],[39,8,39,10],[38,8,38,10],[37,8,37,10],[36,8,36,10],[35,8,35,10],[38,3,38,5],[39,3,39,5],[33,3,33,5],[32,3,32,5],[31,3,31,5],[34,3,34,5],[25,12,25,13],[25,14,25,15],[19,12,19,13],[19,14,19,15],[20,12,20,13],[20,14,20,15],[21,12,21,13],[21,14,21,15],[24,14,24,15],[24,12,24,13],[15,12,15,15],[22,12,22,13],[23,14,23,15],[23,12,23,13],[16,12,16,13],[16,14,16,15],[17,12,17,13],[17,14,17,15],[18,12,18,13],[18,14,18,15],[22,14,22,15],[18,6,18,7],[18,8,18,9],[19,6,19,7],[19,8,19,9],[20,6,20,7],[20,8,20,9],[15,6,15,9],[16,6,16,7],[16,8,16,9],[17,6,17,7],[17,8,17,9],[24,6,24,7],[24,8,24,9],[25,6,25,7],[25,8,25,9],[21,6,21,7],[21,8,21,9],[22,6,22,7],[22,8,22,9],[23,6,23,7],[23,8,23,9]]}
[]
[]
[]
[]
[]
[null,null,null,"3 . Reasons for Prescribing "]
[null,null,null,"Prescribing",null,null,"Percentage"]
[null,null,null,"Appropriate prescribing ",null,null,{"$f":"(SUM('Back End'!O9:AR9)+SUM('Back End'!O10:AR10)+SUM('Back End'!O11:AR11))/'Back End'!AS19","v":{"$error":"#DIV/0!"}}]
[null,null,null,"Possible justification for prescribing",null,null,{"$f":"(SUM('Back End'!O6:AR6)+SUM('Back End'!O7:AR7)+SUM('Back End'!O16:AR16)+SUM('Back End'!O17:AR17))/'Back End'!AS19","v":{"$error":"#DIV/0!"}}]
[null,null,null,"Inappropriate prescribing ",null,null,{"$f":"(SUM('Back End'!O8:AR8)+SUM('Back End'!O12:AR12)+SUM('Back End'!O13:AR13)+SUM('Back End'!O14:AR14)+SUM('Back End'!O15:AR15))/'Back End'!AS19","v":{"$error":"#DIV/0!"}}]
[null,null,null,"Other",null,null,{"$f":"SUM('Back End'!O18:AR18)/'Back End'!AS19","v":{"$error":"#DIV/0!"}}]
[null,null,null,null,null,null,"Total",{"$f":"SUM(G8:I11)","v":{"$error":"#DIV/0!"}}]
[]
[]
[]
[null,null,null,null,null,null,"Treatment given with a prescription",null,null,null,null,null,"Treatment given without a prescription"]
[null,null,null,null,null,null,"Treatment",null,"Frequency",null,null,null,"Treatment",null,"Frequency"]
[null,null,null,null,null,null,"None ",null,{"$f":"('Back End'!AS22)","v":0},null,null,null,"None ",null,{"$f":"'Back End'!AS43","v":0}]
[null,null,null,null,null,null,"Extraction ",null,{"$f":"('Back End'!AS23)","v":0},null,null,null,"Extraction ",null,{"$f":"'Back End'!AS44","v":0}]
[null,null,null,null,null,null,"Open tooth for drainage ",null,{"$f":"('Back End'!AS24)","v":0},null,null,null,"Open tooth for drainage ",null,{"$f":"'Back End'!AS45","v":0}]
[null,null,null,null,null,null,"Incise abscess",null,{"$f":"('Back End'!AS25)","v":0},null,null,null,"Incise abscess",null,{"$f":"'Back End'!AS46","v":0}]
[null,null,null,null,null,null,"Scaling and polishing",null,{"$f":"('Back End'!AS26)","v":0},null,null,null,"Scaling and polishing",null,{"$f":"'Back End'!AS47","v":0}]
[null,null,null,null,null,null,"Debridement/ Irrigation",null,{"$f":"('Back End'!AS27)","v":0},null,null,null,"Debridement/ Irrigation",null,{"$f":"'Back End'!AS48","v":0}]
[null,null,null,null,null,null,"Analgesia Recommended",null,{"$f":"('Back End'!AS28)","v":0},null,null,null,"Analgesia Recommended",null,{"$f":"'Back End'!AS49","v":0}]
[null,null,null,null,null,null,"Other ",null,{"$f":"('Back End'!AS29)","v":0},null,null,null,"Other ",null,{"$f":"'Back End'!AS50","v":0}]
[null,null,null,null,null,null,"Total",null,{"$f":"SUM(I18:J25)","v":0},null,null,null,"Total",null,{"$f":"SUM(O18:P25)","v":0}]
[]
[]
[]
[null,null,null,"Age distribution of patients issued with prescriptions"]
[null,null,null,"Age Group",null,null,"Frequency - with prescription","Frequency - without prescription","Percentage"]
[null,null,null,"0-9",null,null,{"$f":"COUNTIF('Entry-Prescription A'!C4:C393,D32)","v":0},{"$f":"COUNTIF('Entry-Without Prescription B'!$C$4:$C$393,D32)","v":0},{"$f":"(G32+H32)","v":0}]
[null,null,null,"10-19",null,null,{"$f":"COUNTIF('Entry-Prescription A'!C4:C393,D33)","v":0},{"$f":"COUNTIF('Entry-Without Prescription B'!$C$4:$C$393,D33)","v":0},0]
[null,null,null,"20-29",null,null,{"$f":"COUNTIF('Entry-Prescription A'!C4:C393,D34)","v":0},{"$f":"COUNTIF('Entry-Without Prescription B'!$C$4:$C$393,D34)","v":0},0]
[null,null,null,"30-39",null,null,{"$f":"COUNTIF('Entry-Prescription A'!C4:C393,D35)","v":0},{"$f":"COUNTIF('Entry-Without Prescription B'!$C$4:$C$393,D35)","v":0},0]
[null,null,null,"40-49",null,null,{"$f":"COUNTIF('Entry-Prescription A'!C4:C393,D36)","v":0},{"$f":"COUNTIF('Entry-Without Prescription B'!$C$4:$C$393,D36)","v":0},0]
[null,null,null,"50-59",null,null,{"$f":"COUNTIF('Entry-Prescription A'!C4:C393,D37)","v":0},{"$f":"COUNTIF('Entry-Without Prescription B'!$C$4:$C$393,D37)","v":0},0]
[null,null,null,"60-69",null,null,{"$f":"COUNTIF('Entry-Prescription A'!C4:C393,D38)","v":0},{"$f":"COUNTIF('Entry-Without Prescription B'!$C$4:$C$393,D38)","v":0},0]
[null,null,null,"Over 70",null,null,{"$f":"COUNTIF('Entry-Prescription A'!C4:C393,D39)","v":0},{"$f":"COUNTIF('Entry-Without Prescription B'!$C$4:$C$393,D39)","v":0},0]
[null,null,null,"Total",null,null,{"$f":"SUM(G32:H39)","v":0},{"$f":"SUM(H32:H39)","v":0},{"$f":"SUM(I32:J39)","v":0}]
[]
[]
[null,null,null,"6. Treatment given with a prescription"]
[null,null,null,"Treatment",null,"Frequency",null,null,"Relative Frequency %"]
[null,null,null,"None ",null,{"$f":"SUM('Back End'!O22:AR22)","v":0},null,null,{"$f":"F45/F52","v":{"$error":"#DIV/0!"}}]
[null,null,null,"Extraction ",null,{"$f":"SUM('Back End'!O23:AR23)","v":0},null,null,{"$f":"F46/F52","v":{"$error":"#DIV/0!"}}]
[null,null,null,"Open tooth for drainage ",null,{"$f":"SUM('Back End'!O24:AR24)","v":0},null,null,{"$f":"F47/F52","v":{"$error":"#DIV/0!"}}]
[null,null,null,"Incise abscess",null,{"$f":"SUM('Back End'!O25:AR25)","v":0},null,null,{"$f":"F48/F52","v":{"$error":"#DIV/0!"}}]
[null,null,null,"Scaling and polishing",null,{"$f":"SUM('Back End'!O26:AR26)","v":0},null,null,{"$f":"F49/F52","v":{"$error":"#DIV/0!"}}]
[null,null,null,"Debridement/ Irrigation",null,{"$f":"SUM('Back End'!O29:AR29)","v":0},null,null,{"$f":"F50/F52","v":{"$error":"#DIV/0!"}}]
[null,null,null,"Other ",null,{"$f":"SUM('Back End'!O28:AR28)","v":0},null,null,{"$f":"F51/F52","v":{"$error":"#DIV/0!"}}]
[null,null,null,"Total",null,{"$f":"SUM(F45:H51)","v":0},null,null,{"$f":"SUM(I45:J51)","v":{"$error":"#DIV/0!"}}]